Workbook

Sheet Start
E2: Energy Savings and Impacts Scenario Tool
E3: (ESIST)
E4: Version 1.2, Updated December 2024
B6: ESIST is a customizable and transparent Excel-based planning tool for analyzing the energy savings and costs from customer-funded energy efficiency programs and their impacts on emissions, public health, and equity. ESIST enables users to develop, explore, and share energy efficiency scenarios between 2010 and 2045. ESIST users first select a study area based on states, utility types, specific utilities, or different customer sectors within a utility. Users can adjust inputs, including electricity sales growth forecasts, energy efficiency savings goals, program budgets, savings expiration schedules, discount rates, and first-year costs. The tool allows users to compare levels of energy efficiency savings, annual costs, and levelized costs of saved energy. ESIST users can then estimate multiple benefits that could result from the energy efficiency scenario—including avoided emissions, public health benefits, peak demand impacts, and energy burden reductions—and review customer demographic data. We strongly recommend that new users: • Review the User Manual prior to using ESIST. • Use the red "Next" and "Back" arrows to progress through the tool. Users who wish to analyze different scenarios (e.g., different levels of savings in several states, or the same level of investment in different utility service territories) should save multiple copies of this file, each containing a different scenario. These users may find it helpful to click the "Restore default Excel functionality" button (lower-right) to easily copy data from each workbook and paste it in a separate comparative workbook. If you have questions or need assistance using ESIST, please contact us at esist@epa.gov.
D27: NOTE: Cells formatted in blue are intended to be editable
B32: esist-2024-update-beta.xlsm

Sheet S1_StudyArea
B2: =scenarioLabel -> Energy Savings and Impacts Scenario Tool -- GA, All sectors, All Utilities
C4: Step 1. Set Study Area
C5: For this step, select the region to be analyzed. Users can select the United States as a whole, a state, a utility type, a utility, or a utility's sector.
C7: Select state/U.S. Total: | D7: GA | E7: Choose total (the United States as a whole); any of the 50 states; Washington, D.C.; or Puerto Rico.
C8: Select sector: | D8: Total | E8: Choose total (all sectors), or choose between the residential, commericial, and industrial sectors. | P8: =Sales_Savings!$BZ$108 -> Sales_Savings!BZ109:BZ112
C9: Select utility type: | D9: Total | E9: Choose total (all utility types), or choose between investor-owned, cooperative, municipal, or another utility type. | P9: =Sales_Savings!$BZ$100 -> Sales_Savings!BZ101:BZ106
C10: Select utility: | D10: Total | E10: Choose total (all of the utilities under the above selection), or choose a specific utility. | P10: =Sales_Savings!$BZ$9 -> Sales_Savings!BZ10:BZ10
C11: =IF(D8="Residential","Note: You have selected the residential sector. Users may model low-income savings as part of the residential sector, or seperately in the energy burden impact module.","Note: You have selected a sector other than residential. ESIST does not contain data to assess energy burden impacts for this sector.") -> Note: You have selected a sector other than residential. ESIST does not contain data to assess energy burden impacts for this sector.
C12: =IF(SUM(D21:D28)>=1,"Note: You have selected 'User Input' as a setting on at least one page. If you change your selected area, these user-input values will be preserved unless you go to that page and modify your selection.","") -> 
C18: ="Energy Savings and Impacts Scenario Tool -- "&D7&", "&IF(D8="Total","All sectors, ",D8&" Sector, ")&IF(D9="Total","All Utilities",IF(D10="Total",D9&" Utilities",D10)) -> Energy Savings and Impacts Scenario Tool -- GA, All sectors, All Utilities
C20: User input check
C21: S2_Sales | D21: =IF(LEFT(S2_Sales!D8,10)="User Input",1,0) -> 0
C22: S4or5_Costs | D22: =IF(S4or5_Costs!D7="User Input",1,0) -> 0
C23: S4_AnnSavings | D23: =IF(LEFT(S4_AnnSavings!D7,10)="User Input",1,0) -> 0
C24: S4_CumulSavings | D24: =IF(LEFT(S4_CumulSavings!D8,10)="User Input",1,0) -> 0
C25: S5_Budget | D25: =IF(LEFT(S5_Budget!D7,10)="User Input",1,0) -> 0
C26: A_MeasureExpiration | D26: =IF(LEFT(A_MeasureExpiration!D7,10)="User Input",1,0) -> 0
C27: B_PeakDemand | D27: =IF(OR(LEFT(B_PeakDemand!D9,10)="User Input",LEFT(B_PeakDemand!D9,10)="User Input"),1,0) -> 0
C28: C_Emissions | D28: =IF(OR(LEFT(C_Emissions!D9,10)="User Input",LEFT(C_Emissions!D23,10)="User Input"),1,0) -> 0

Sheet S2_Sales
B2: =scenarioLabel -> Energy Savings and Impacts Scenario Tool -- GA, All sectors, All Utilities
C4: Step 2. Set Baseline Electricity Sales
C5: Use this step to set trajectories for electricity sales. "Reported sales" include the effects of energy efficiency. "Baseline sales" have these effects removed—they show what sales would have been if not for energy efficiency.
C6: This step determines the expected demand for energy in future years in the absence of any energy efficiency. You can select a pre-populated growth rate specific to your selected region, enter your own growth rate, or enter MWh sales manually.
C7: =IF(SUM(E11:O13)=0,"You have selected a state and utility combination that is not possible. Return to Step 1 and modify your selected area.","") -> 
C8: Select annual growth rate: | D8: CAGR | F8: =IF(D8="CAGR","Sales will increase by a compound annual growth rate (CAGR) for the region your selected state is in. This is best for capturing long-term trends in electricity sales.", IF(D8="AAGR","Sales will increase by year-specific annual average growth rates (AAGR) for the region your selected state is in. This is best for highlighting year-to-year differences in electricity sales.", IF(D8="Historical CAGR","Sales will increase by the compound annual growth rate (CAGR) observed for this region from 2011 to 2022. This is best for situations where future sales growth is likely to resemble growth in the recent past.", "Please enter values in the blue cells below. This is best when users already possess their own information on future changes to electricity sales."))) -> Sales will increase by a compound annual growth rate (CAGR) for the region your selected state is in. This is best for capturing long-term trends in electricity sales.
D10: =HYPERLINK("#R"&ROW(),"Click here to jump to future years") -> Click here to jump to future years | E10: 2010 | F10: 2011 | G10: 2012 | H10: 2013 | I10: 2014 | J10: 2015 | K10: 2016 | L10: 2017 | M10: 2018 | N10: 2019 | O10: 2020 | P10: 2021 | Q10: 2022 | R10: 2023 | S10: 2024 | T10: 2025 | U10: 2026 | V10: 2027 | W10: 2028 | X10: 2029 | Y10: 2030 | Z10: 2031 | AA10: 2032 | AB10: 2033 | AC10: 2034 | AD10: 2035 | AE10: 2036 | AF10: 2037 | AG10: 2038 | AH10: 2039 | AI10: 2040 | AJ10: 2041 | AK10: 2042 | AL10: 2043 | AM10: 2044 | AN10: 2045
C11: Annual sales growth rate | D11: % | F11: =IFERROR(F13/E13-1,0) -> -0.02948470473 | G11: -0.03780888112 | H11: -0.001221430604 | I11: 0.04308504733 | J11: 0.003495266879 | K11: 0.01948898572 | L11: -0.03059107332 | M11: 0.05000364092 | N11: -0.001551381428 | O11: =IFERROR(O13/N13-1,0) -> -0.03968865727 | P11: =IFERROR(P13/O13-1,0) -> 0.03013826369 | Q11: =IFERROR(Q13/P13-1,0) -> 0.05682873273 | R11: =INDEX(Library!$AS$28:$AS$80,MATCH($D$24,Library!$B$28:$B$80,0)) -> 0.006883122983 | S11: =INDEX(Library!$AS$28:$AS$80,MATCH($D$24,Library!$B$28:$B$80,0)) -> 0.006883122983 | T11: =INDEX(Library!$AS$28:$AS$80,MATCH($D$24,Library!$B$28:$B$80,0)) -> 0.006883122983 | U11: =INDEX(Library!$AS$28:$AS$80,MATCH($D$24,Library!$B$28:$B$80,0)) -> 0.006883122983 | V11: =INDEX(Library!$AS$28:$AS$80,MATCH($D$24,Library!$B$28:$B$80,0)) -> 0.006883122983 | W11: =INDEX(Library!$AS$28:$AS$80,MATCH($D$24,Library!$B$28:$B$80,0)) -> 0.006883122983 | X11: =INDEX(Library!$AS$28:$AS$80,MATCH($D$24,Library!$B$28:$B$80,0)) -> 0.006883122983 | Y11: =INDEX(Library!$AS$28:$AS$80,MATCH($D$24,Library!$B$28:$B$80,0)) -> 0.006883122983 | Z11: =INDEX(Library!$AS$28:$AS$80,MATCH($D$24,Library!$B$28:$B$80,0)) -> 0.006883122983 | AA11: =INDEX(Library!$AS$28:$AS$80,MATCH($D$24,Library!$B$28:$B$80,0)) -> 0.006883122983 | AB11: =INDEX(Library!$AS$28:$AS$80,MATCH($D$24,Library!$B$28:$B$80,0)) -> 0.006883122983 | AC11: =INDEX(Library!$AS$28:$AS$80,MATCH($D$24,Library!$B$28:$B$80,0)) -> 0.006883122983 | AD11: =INDEX(Library!$AS$28:$AS$80,MATCH($D$24,Library!$B$28:$B$80,0)) -> 0.006883122983 | AE11: =INDEX(Library!$AS$28:$AS$80,MATCH($D$24,Library!$B$28:$B$80,0)) -> 0.006883122983 | AF11: =INDEX(Library!$AS$28:$AS$80,MATCH($D$24,Library!$B$28:$B$80,0)) -> 0.006883122983 | AG11: =INDEX(Library!$AS$28:$AS$80,MATCH($D$24,Library!$B$28:$B$80,0)) -> 0.006883122983 | AH11: =INDEX(Library!$AS$28:$AS$80,MATCH($D$24,Library!$B$28:$B$80,0)) -> 0.006883122983 | AI11: =INDEX(Library!$AS$28:$AS$80,MATCH($D$24,Library!$B$28:$B$80,0)) -> 0.006883122983 | AJ11: =INDEX(Library!$AS$28:$AS$80,MATCH($D$24,Library!$B$28:$B$80,0)) -> 0.006883122983 | AK11: =INDEX(Library!$AS$28:$AS$80,MATCH($D$24,Library!$B$28:$B$80,0)) -> 0.006883122983 | AL11: =INDEX(Library!$AS$28:$AS$80,MATCH($D$24,Library!$B$28:$B$80,0)) -> 0.006883122983 | AM11: =INDEX(Library!$AS$28:$AS$80,MATCH($D$24,Library!$B$28:$B$80,0)) -> 0.006883122983 | AN11: =INDEX(Library!$AS$28:$AS$80,MATCH($D$24,Library!$B$28:$B$80,0)) -> 0.006883122983
C12: Reported sales | D12: MWh | E12: =IF($D$24="US Total",SUMIFS(Sales_Savings!I$7:I$30000,Sales_Savings!$H$7:$H$30000,$D$25), IF($D$26="Total",SUMIFS(Sales_Savings!I$7:I$30000,Sales_Savings!$D$7:$D$30000,$D$24,Sales_Savings!$H$7:$H$30000,$D$25), IF($D$27="Total",SUMIFS(Sales_Savings!I$7:I$30000,Sales_Savings!$D$7:$D$30000,$D$24,Sales_Savings!$H$7:$H$30000,$D$25,Sales_Savings!$G$7:$G$30000,$D$26), SUMIFS(Sales_Savings!I$7:I$30000,Sales_Savings!$D$7:$D$30000,$D$24,Sales_Savings!$H$7:$H$30000,$D$25,Sales_Savings!$G$7:$G$30000,$D$26,Sales_Savings!$C$7:$C$30000,$D$27)))) -> 140671580 | F12: =IF($D$24="US Total",SUMIFS(Sales_Savings!J$7:J$30000,Sales_Savings!$H$7:$H$30000,$D$25), IF($D$26="Total",SUMIFS(Sales_Savings!J$7:J$30000,Sales_Savings!$D$7:$D$30000,$D$24,Sales_Savings!$H$7:$H$30000,$D$25), IF($D$27="Total",SUMIFS(Sales_Savings!J$7:J$30000,Sales_Savings!$D$7:$D$30000,$D$24,Sales_Savings!$H$7:$H$30000,$D$25,Sales_Savings!$G$7:$G$30000,$D$26), SUMIFS(Sales_Savings!J$7:J$30000,Sales_Savings!$D$7:$D$30000,$D$24,Sales_Savings!$H$7:$H$30000,$D$25,Sales_Savings!$G$7:$G$30000,$D$26,Sales_Savings!$C$7:$C$30000,$D$27)))) -> 136371149 | G12: =IF($D$24="US Total",SUMIFS(Sales_Savings!K$7:K$30000,Sales_Savings!$H$7:$H$30000,$D$25), IF($D$26="Total",SUMIFS(Sales_Savings!K$7:K$30000,Sales_Savings!$D$7:$D$30000,$D$24,Sales_Savings!$H$7:$H$30000,$D$25), IF($D$27="Total",SUMIFS(Sales_Savings!K$7:K$30000,Sales_Savings!$D$7:$D$30000,$D$24,Sales_Savings!$H$7:$H$30000,$D$25,Sales_Savings!$G$7:$G$30000,$D$26), SUMIFS(Sales_Savings!K$7:K$30000,Sales_Savings!$D$7:$D$30000,$D$24,Sales_Savings!$H$7:$H$30000,$D$25,Sales_Savings!$G$7:$G$30000,$D$26,Sales_Savings!$C$7:$C$30000,$D$27)))) -> 130978872 | H12: =IF($D$24="US Total",SUMIFS(Sales_Savings!L$7:L$30000,Sales_Savings!$H$7:$H$30000,$D$25), IF($D$26="Total",SUMIFS(Sales_Savings!L$7:L$30000,Sales_Savings!$D$7:$D$30000,$D$24,Sales_Savings!$H$7:$H$30000,$D$25), IF($D$27="Total",SUMIFS(Sales_Savings!L$7:L$30000,Sales_Savings!$D$7:$D$30000,$D$24,Sales_Savings!$H$7:$H$30000,$D$25,Sales_Savings!$G$7:$G$30000,$D$26), SUMIFS(Sales_Savings!L$7:L$30000,Sales_Savings!$D$7:$D$30000,$D$24,Sales_Savings!$H$7:$H$30000,$D$25,Sales_Savings!$G$7:$G$30000,$D$26,Sales_Savings!$C$7:$C$30000,$D$27)))) -> 130497470 | I12: =IF($D$24="US Total",SUMIFS(Sales_Savings!M$7:M$30000,Sales_Savings!$H$7:$H$30000,$D$25), IF($D$26="Total",SUMIFS(Sales_Savings!M$7:M$30000,Sales_Savings!$D$7:$D$30000,$D$24,Sales_Savings!$H$7:$H$30000,$D$25), IF($D$27="Total",SUMIFS(Sales_Savings!M$7:M$30000,Sales_Savings!$D$7:$D$30000,$D$24,Sales_Savings!$H$7:$H$30000,$D$25,Sales_Savings!$G$7:$G$30000,$D$26), SUMIFS(Sales_Savings!M$7:M$30000,Sales_Savings!$D$7:$D$30000,$D$24,Sales_Savings!$H$7:$H$30000,$D$25,Sales_Savings!$G$7:$G$30000,$D$26,Sales_Savings!$C$7:$C$30000,$D$27)))) -> 135789932 | J12: =IF($D$24="US Total",SUMIFS(Sales_Savings!N$7:N$30000,Sales_Savings!$H$7:$H$30000,$D$25), IF($D$26="Total",SUMIFS(Sales_Savings!N$7:N$30000,Sales_Savings!$D$7:$D$30000,$D$24,Sales_Savings!$H$7:$H$30000,$D$25), IF($D$27="Total",SUMIFS(Sales_Savings!N$7:N$30000,Sales_Savings!$D$7:$D$30000,$D$24,Sales_Savings!$H$7:$H$30000,$D$25,Sales_Savings!$G$7:$G$30000,$D$26), SUMIFS(Sales_Savings!N$7:N$30000,Sales_Savings!$D$7:$D$30000,$D$24,Sales_Savings!$H$7:$H$30000,$D$25,Sales_Savings!$G$7:$G$30000,$D$26,Sales_Savings!$C$7:$C$30000,$D$27)))) -> 135878215 | K12: =IF($D$24="US Total",SUMIFS(Sales_Savings!O$7:O$30000,Sales_Savings!$H$7:$H$30000,$D$25), IF($D$26="Total",SUMIFS(Sales_Savings!O$7:O$30000,Sales_Savings!$D$7:$D$30000,$D$24,Sales_Savings!$H$7:$H$30000,$D$25), IF($D$27="Total",SUMIFS(Sales_Savings!O$7:O$30000,Sales_Savings!$D$7:$D$30000,$D$24,Sales_Savings!$H$7:$H$30000,$D$25,Sales_Savings!$G$7:$G$30000,$D$26), SUMIFS(Sales_Savings!O$7:O$30000,Sales_Savings!$D$7:$D$30000,$D$24,Sales_Savings!$H$7:$H$30000,$D$25,Sales_Savings!$G$7:$G$30000,$D$26,Sales_Savings!$C$7:$C$30000,$D$27)))) -> 138112239 | L12: =IF($D$24="US Total",SUMIFS(Sales_Savings!P$7:P$30000,Sales_Savings!$H$7:$H$30000,$D$25), IF($D$26="Total",SUMIFS(Sales_Savings!P$7:P$30000,Sales_Savings!$D$7:$D$30000,$D$24,Sales_Savings!$H$7:$H$30000,$D$25), IF($D$27="Total",SUMIFS(Sales_Savings!P$7:P$30000,Sales_Savings!$D$7:$D$30000,$D$24,Sales_Savings!$H$7:$H$30000,$D$25,Sales_Savings!$G$7:$G$30000,$D$26), SUMIFS(Sales_Savings!P$7:P$30000,Sales_Savings!$D$7:$D$30000,$D$24,Sales_Savings!$H$7:$H$30000,$D$25,Sales_Savings!$G$7:$G$30000,$D$26,Sales_Savings!$C$7:$C$30000,$D$27)))) -> 133456620 | M12: =IF($D$24="US Total",SUMIFS(Sales_Savings!Q$7:Q$30000,Sales_Savings!$H$7:$H$30000,$D$25), IF($D$26="Total",SUMIFS(Sales_Savings!Q$7:Q$30000,Sales_Savings!$D$7:$D$30000,$D$24,Sales_Savings!$H$7:$H$30000,$D$25), IF($D$27="Total",SUMIFS(Sales_Savings!Q$7:Q$30000,Sales_Savings!$D$7:$D$30000,$D$24,Sales_Savings!$H$7:$H$30000,$D$25,Sales_Savings!$G$7:$G$30000,$D$26), SUMIFS(Sales_Savings!Q$7:Q$30000,Sales_Savings!$D$7:$D$30000,$D$24,Sales_Savings!$H$7:$H$30000,$D$25,Sales_Savings!$G$7:$G$30000,$D$26,Sales_Savings!$C$7:$C$30000,$D$27)))) -> 139866074 | N12: =IF($D$24="US Total",SUMIFS(Sales_Savings!R$7:R$30000,Sales_Savings!$H$7:$H$30000,$D$25), IF($D$26="Total",SUMIFS(Sales_Savings!R$7:R$30000,Sales_Savings!$D$7:$D$30000,$D$24,Sales_Savings!$H$7:$H$30000,$D$25), IF($D$27="Total",SUMIFS(Sales_Savings!R$7:R$30000,Sales_Savings!$D$7:$D$30000,$D$24,Sales_Savings!$H$7:$H$30000,$D$25,Sales_Savings!$G$7:$G$30000,$D$26), SUMIFS(Sales_Savings!R$7:R$30000,Sales_Savings!$D$7:$D$30000,$D$24,Sales_Savings!$H$7:$H$30000,$D$25,Sales_Savings!$G$7:$G$30000,$D$26,Sales_Savings!$C$7:$C$30000,$D$27)))) -> 139300990 | O12: =IF($D$24="US Total",SUMIFS(Sales_Savings!S$7:S$30000,Sales_Savings!$H$7:$H$30000,$D$25), IF($D$26="Total",SUMIFS(Sales_Savings!S$7:S$30000,Sales_Savings!$D$7:$D$30000,$D$24,Sales_Savings!$H$7:$H$30000,$D$25), IF($D$27="Total",SUMIFS(Sales_Savings!S$7:S$30000,Sales_Savings!$D$7:$D$30000,$D$24,Sales_Savings!$H$7:$H$30000,$D$25,Sales_Savings!$G$7:$G$30000,$D$26), SUMIFS(Sales_Savings!S$7:S$30000,Sales_Savings!$D$7:$D$30000,$D$24,Sales_Savings!$H$7:$H$30000,$D$25,Sales_Savings!$G$7:$G$30000,$D$26,Sales_Savings!$C$7:$C$30000,$D$27)))) -> 133470142 | P12: =IF($D$24="US Total",SUMIFS(Sales_Savings!T$7:T$30000,Sales_Savings!$H$7:$H$30000,$D$25), IF($D$26="Total",SUMIFS(Sales_Savings!T$7:T$30000,Sales_Savings!$D$7:$D$30000,$D$24,Sales_Savings!$H$7:$H$30000,$D$25), IF($D$27="Total",SUMIFS(Sales_Savings!T$7:T$30000,Sales_Savings!$D$7:$D$30000,$D$24,Sales_Savings!$H$7:$H$30000,$D$25,Sales_Savings!$G$7:$G$30000,$D$26), SUMIFS(Sales_Savings!T$7:T$30000,Sales_Savings!$D$7:$D$30000,$D$24,Sales_Savings!$H$7:$H$30000,$D$25,Sales_Savings!$G$7:$G$30000,$D$26,Sales_Savings!$C$7:$C$30000,$D$27)))) -> 137363952 | Q12: =IF($D$24="US Total",SUMIFS(Sales_Savings!U$7:U$30000,Sales_Savings!$H$7:$H$30000,$D$25), IF($D$26="Total",SUMIFS(Sales_Savings!U$7:U$30000,Sales_Savings!$D$7:$D$30000,$D$24,Sales_Savings!$H$7:$H$30000,$D$25), IF($D$27="Total",SUMIFS(Sales_Savings!U$7:U$30000,Sales_Savings!$D$7:$D$30000,$D$24,Sales_Savings!$H$7:$H$30000,$D$25,Sales_Savings!$G$7:$G$30000,$D$26), SUMIFS(Sales_Savings!U$7:U$30000,Sales_Savings!$D$7:$D$30000,$D$24,Sales_Savings!$H$7:$H$30000,$D$25,Sales_Savings!$G$7:$G$30000,$D$26,Sales_Savings!$C$7:$C$30000,$D$27)))) -> 145035204
C13: Baseline sales | D13: MWh | E13: =E12+S7_Outputs!E12 -> 140671580 | F13: =F12+S7_Outputs!F12 -> 136523920 | G13: =G12+S7_Outputs!G12 -> 131362103.3 | H13: =H12+S7_Outputs!H12 -> 131201653.6 | I13: =I12+S7_Outputs!I12 -> 136854483.1 | J13: =J12+S7_Outputs!J12 -> 137332826 | K13: =K12+S7_Outputs!K12 -> 140009303.5 | L13: =L12+S7_Outputs!L12 -> 135726268.7 | M13: =M12+S7_Outputs!M12 -> 142513076.3 | N13: =N12+S7_Outputs!N12 -> 142291984.1 | O13: =O12+S7_Outputs!O12 -> 136644606.3 | P13: =P12+S7_Outputs!P12 -> 140762837.5 | Q13: =Q12+S7_Outputs!Q12 -> 148762211.2 | R13: =Q13*(1+R11) -> 149786159.8 | S13: =R13*(1+S11) -> 150817156.3 | T13: 151855249.4 | U13: 152900487.7 | V13: 153952920.6 | W13: 155012597.5 | X13: 156079568.2 | Y13: 157153883.1 | Z13: 158235592.6 | AA13: 159324747.7 | AB13: 160421399.5 | AC13: 161525599.7 | AD13: 162637400.3 | AE13: 163756853.5 | AF13: 164884012.1 | AG13: 166018929 | AH13: 167161657.7 | AI13: 168312252 | AJ13: 169470765.9 | AK13: 170637254 | AL13: 171811771.2 | AM13: 172994372.8 | AN13: 174185114.3 | AQ13: =AP13*(1+AQ11) -> 0 | AR13: 0 | AS13: 0 | AT13: 0 | AU13: 0 | AV13: 0 | AW13: 0 | AX13: 0 | AY13: 0 | AZ13: 0 | BA13: 0 | BB13: 0 | BC13: 0 | BD13: 0 | BE13: 0 | BF13: 0 | BG13: 0 | BH13: 0 | BI13: 0 | BJ13: 0 | BK13: 0 | BL13: 0 | BM13: 0 | BN13: 0 | BO13: 0 | BP13: 0 | BQ13: 0 | BR13: =BQ13*(1+BR11) -> 0 | BS13: 0 | BT13: 0 | BU13: 0 | BV13: 0 | BW13: 0 | BX13: 0 | BY13: 0 | BZ13: 0 | CA13: 0 | CB13: 0 | CC13: 0 | CD13: 0 | CE13: 0 | CF13: 0 | CG13: 0 | CH13: 0 | CI13: 0 | CJ13: 0 | CK13: 0 | CL13: 0 | CM13: 0 | CN13: 0 | CO13: 0 | CP13: 0 | CQ13: 0 | CR13: 0 | CS13: 0 | CT13: 0 | CU13: 0 | CV13: 0 | CW13: 0 | CX13: 0 | CY13: 0 | CZ13: 0 | DA13: 0 | DB13: 0 | DC13: 0 | DD13: 0 | DE13: 0 | DF13: 0 | DG13: 0 | DH13: 0 | DI13: 0 | DJ13: 0 | DK13: 0 | DL13: 0 | DM13: 0 | DN13: 0 | DO13: 0 | DP13: 0 | DQ13: 0 | DR13: 0 | DS13: 0 | DT13: 0 | DU13: 0 | DV13: 0 | DW13: 0 | DX13: 0 | DY13: 0 | DZ13: 0 | EA13: 0 | EB13: 0 | EC13: 0 | ED13: =EC13*(1+ED11) -> 0 | EE13: 0 | EF13: 0 | EG13: 0 | EH13: 0 | EI13: 0 | EJ13: 0 | EK13: 0 | EL13: 0 | EM13: 0 | EN13: 0 | EO13: 0 | EP13: 0 | EQ13: 0 | ER13: 0 | ES13: 0 | ET13: 0 | EU13: 0 | EV13: 0 | EW13: 0 | EX13: 0 | EY13: 0 | EZ13: 0 | FA13: 0 | FB13: 0 | FC13: 0 | FD13: 0 | FE13: 0 | FF13: 0 | FG13: 0 | FH13: 0 | FI13: 0 | FJ13: 0 | FK13: 0 | FL13: 0 | FM13: 0 | FN13: 0 | FO13: 0 | FP13: 0 | FQ13: 0 | FR13: 0 | FS13: 0 | FT13: 0 | FU13: 0 | FV13: 0 | FW13: 0 | FX13: 0 | FY13: 0 | FZ13: 0 | GA13: 0 | GB13: 0 | GC13: 0 | GD13: 0 | GE13: 0 | GF13: 0 | GG13: 0 | GH13: 0 | GI13: 0 | GJ13: 0 | GK13: 0 | GL13: 0 | GM13: 0 | GN13: 0 | GO13: 0 | GP13: =GO13*(1+GP11) -> 0 | GQ13: 0 | GR13: 0 | GS13: 0 | GT13: 0 | GU13: 0 | GV13: 0 | GW13: 0 | GX13: 0 | GY13: 0 | GZ13: 0 | HA13: 0 | HB13: 0 | HC13: 0 | HD13: 0 | HE13: 0 | HF13: 0 | HG13: 0 | HH13: 0 | HI13: 0 | HJ13: 0 | HK13: 0 | HL13: 0 | HM13: 0 | HN13: 0 | HO13: 0 | HP13: 0 | HQ13: 0 | HR13: 0 | HS13: 0 | HT13: 0 | HU13: 0 | HV13: 0 | HW13: 0 | HX13: 0 | HY13: 0 | HZ13: 0 | IA13: 0 | IB13: 0 | IC13: 0 | ID13: 0 | IE13: 0 | IF13: 0 | IG13: 0 | IH13: 0 | II13: 0 | IJ13: 0 | IK13: 0 | IL13: 0 | IM13: 0 | IN13: 0 | IO13: 0 | IP13: 0 | IQ13: 0 | IR13: 0 | IS13: 0 | IT13: 0 | IU13: 0 | IV13: 0 | IW13: 0 | IX13: 0 | IY13: 0 | IZ13: 0 | JA13: 0 | JB13: =JA13*(1+JB11) -> 0 | JC13: 0 | JD13: 0 | JE13: 0 | JF13: 0 | JG13: 0 | JH13: 0 | JI13: 0 | JJ13: 0 | JK13: 0 | JL13: 0 | JM13: 0 | JN13: 0 | JO13: 0 | JP13: 0 | JQ13: 0 | JR13: 0 | JS13: 0 | JT13: 0 | JU13: 0 | JV13: 0 | JW13: 0 | JX13: 0 | JY13: 0 | JZ13: 0 | KA13: 0 | KB13: 0 | KC13: 0 | KD13: 0 | KE13: 0 | KF13: 0 | KG13: 0 | KH13: 0 | KI13: 0 | KJ13: 0 | KK13: 0 | KL13: 0 | KM13: 0 | KN13: 0 | KO13: 0 | KP13: 0 | KQ13: 0 | KR13: 0 | KS13: 0 | KT13: 0 | KU13: 0 | KV13: 0 | KW13: 0 | KX13: 0 | KY13: 0 | KZ13: 0 | LA13: 0 | LB13: 0 | LC13: 0 | LD13: 0 | LE13: 0 | LF13: 0 | LG13: 0 | LH13: 0 | LI13: 0 | LJ13: 0 | LK13: 0 | LL13: 0 | LM13: 0 | LN13: =LM13*(1+LN11) -> 0 | LO13: 0 | LP13: 0 | LQ13: 0 | LR13: 0 | LS13: 0 | LT13: 0 | LU13: 0 | LV13: 0 | LW13: 0 | LX13: 0 | LY13: 0 | LZ13: 0 | MA13: 0 | MB13: 0 | MC13: 0 | MD13: 0 | ME13: 0
C19: Data sources:
C20: Energy Information Administration (EIA). "Annual Energy Outlook (AEO) 2023." (2023). Available at https://www.eia.gov/outlooks/aeo/
C21: U.S. Energy Information Administration (EIA). "Annual Electric Power Industry Report, Form EIA-861 detailed data files (EIA Form 861)." (2022). Available at https://www.eia.gov/electricity/data/eia861/
C24: State | D24: =S1_StudyArea!D7 -> GA
C25: Sector | D25: =S1_StudyArea!D8 -> Total
C26: Utility Type | D26: =S1_StudyArea!D9 -> Total
C27: Utility | D27: =S1_StudyArea!D10 -> Total

Sheet S3_Approach
B2: =scenarioLabel -> Energy Savings and Impacts Scenario Tool -- GA, All sectors, All Utilities
C4: Step 3. Set Target Type
C5: Choose a type of savings target, and then click on the button labeled "Apply Target Type." Target types include:
D6: Annual budget: Set up an energy efficiency trajectory based on potential program budget.
D7: Annual incremental savings: Set up an energy efficiency trajectory based on the annual incremental savings to be implemented in each year (in MWh), or as a percent of previous years' sales (in %).
D8: Cumulative savings: Set up an energy efficiency trajectory based on a future-year target for cumulative energy efficiency (in MWh or %).
C10: Select target type: | F10: Annual Incremental Savings | H10: =IF(F10="Annual Incremental Savings","With Annual Incremental Savings, you can enter an amount of new energy efficiency to add in each year. Savings may be based on total MWh or a percent of sales.", IF(F10="Cumulative Savings","With Cumulative Savings, you set a target level of savings you'd like to reach by a certain year. Savings may be based on total MWh or a percent of sales.", IF(F10="Annual Budget","With Annual Budget, you enter the amount of budget you have available. Costs of saved energy determine annual savings, independent of any MWh or percent-of-sales goals."))) -> With Annual Incremental Savings, you can enter an amount of new energy efficiency to add in each year. Savings may be based on total MWh or a percent of sales.
D15: This figure defines two terms commonly used in this tool. "Annual incremental savings" are the new first year savings that are installed in any one year. "Cumulative savings" are the sum total of new and persisting savings in a given year, net of expired savings. We note that some energy efficiency planners may call cumulative savings "Annual Total Savings" and that what ESIST calls cumulative savings may refer to a different quantity.

Sheet S4or5_Costs
B2: =scenarioLabel -> Energy Savings and Impacts Scenario Tool -- GA, All sectors, All Utilities
C4: =IF(S3_Approach!$F$10="Annual Budget","Step 4. Set Program Cost Assumptions","Step 5. Set Program Cost Assumptions") -> Step 5. Set Program Cost Assumptions
C5: This step determines the cost of implementing energy efficiency. Costs are input in terms of first-year costs, and are then converted into levelized cost terms. | J5: =IF(COUNTIFS(F21:O21,"#DIV/0!")>0,"Note: First-year costs will show as #DIV/0! errors in years where the selected area has no reported savings.","") -> 
C7: Select first-year cost trend: | D7: Constant | E7: =IF(D7="Constant","First-year costs of saved energy remain constant at "&ROUND(D9,0)&" ¢/kWh.",IF(D7="Historical","First-year costs are equal to those observed in the most recent historical year.",IF(D7="Savings-Dependent","First-year costs vary according to the savings levels specified in the blue cells below.",IF(D7="User Input","Enter first-year costs in the blue cells below.")))) -> First-year costs of saved energy remain constant at 51 ¢/kWh.
C8: Basis for cost: | D8: National | E8: Choose whether costs are based on national- or state-level values. Also choose whether costs are tied to the sector being considered.
C9: First-year cost per kWh: | D9: =Library!H605*100/D16 -> 51.38526171 | E9: First-year cost of saved energy assumed for each future year. Includes both utility and participant spending.
D11: Savings achieved | E11: Cost Adjustment Factor
C12: First-Year Costs Trends: | D12: 0.005 | E12: 0 | G12: ="If savings levels are below "&TEXT(D12,"0.00%")&" per year, a cost adjustment factor of "&TEXT(E12,"0%")&" is applied. In these years, first-year costs are "&ROUND((1+E12)*Library!F532*100,0)&" ¢/kWh." -> If savings levels are below 0.50% per year, a cost adjustment factor of 0% is applied. In these years, first-year costs are 51 ¢/kWh.
D13: 0.01 | E13: -0.1 | G13: ="If savings levels are equal to or greater than "&TEXT(D12,"0.00%")&" but below "&TEXT(D13,"0.00%")&" per year, a cost adjustment factor of "&TEXT(E13,"0%")&" is applied. In these years, first-year costs are "&ROUND((1+E13)*Library!F532*100,0)&" ¢/kWh." -> If savings levels are equal to or greater than 0.50% but below 1.00% per year, a cost adjustment factor of -10% is applied. In these years, first-year costs are 46 ¢/kWh.
D14: 1 | E14: -0.2 | G14: ="If savings levels are equal to or greater than "&TEXT(D13,"0.00%")&" but below "&TEXT(D14,"0.00%")&" per year, a cost adjustment factor of "&TEXT(E14,"0%")&" is applied. In these years, first-year costs are "&ROUND((1+E14)*Library!F532*100,0)&" ¢/kWh." -> If savings levels are equal to or greater than 1.00% but below 100.00% per year, a cost adjustment factor of -20% is applied. In these years, first-year costs are 41 ¢/kWh.
C16: Utility share of costs: | D16: =IF(OR($D$8="National",$D$8="State-specfic"),Library!$G$588,IF(S1_StudyArea!D8="Total",Library!$G$588,IF(S1_StudyArea!D8="Resdential",Library!$G$585,IF(OR(S1_StudyArea!D8="Commercial",S1_StudyArea!D8="Industrial"),Library!$G$586,IF(S1_StudyArea!D8="Low Income",Library!$G$587))))) -> 0.54 | E16: ="The utilities or program administrators are assumed to pay "&TEXT(D16,"0%")&" of first-year total energy efficiency expenditures (not just measure costs) in each year. The remainder is paid by program participants." -> The utilities or program administrators are assumed to pay 54% of first-year total energy efficiency expenditures (not just measure costs) in each year. The remainder is paid by program participants.
C17: Select discount rate: | D17: 0.03 | E17: Typical EPA discount rates are 3% and 7%. The ESIST default is 3%. Discount rates are used to convert first-year costs into levelized costs.
D19: =HYPERLINK("#R"&ROW(),"Click here to jump to future years") -> Click here to jump to future years | E19: 2010 | F19: 2011 | G19: 2012 | H19: 2013 | I19: 2014 | J19: 2015 | K19: 2016 | L19: 2017 | M19: 2018 | N19: 2019 | O19: 2020 | P19: 2021 | Q19: 2022 | R19: 2023 | S19: 2024 | T19: 2025 | U19: 2026 | V19: 2027 | W19: 2028 | X19: 2029 | Y19: 2030 | Z19: 2031 | AA19: 2032 | AB19: 2033 | AC19: 2034 | AD19: 2035 | AE19: 2036 | AF19: 2037 | AG19: 2038 | AH19: 2039 | AI19: 2040 | AJ19: 2041 | AK19: 2042 | AL19: 2043 | AM19: 2044 | AN19: 2045
C20: Annual incremental savings | D20: % | F20: =IF(S3_Approach!$F$10="Annual Incremental Savings",S4_AnnSavings!F14,IF(S3_Approach!$F$10="Cumulative Savings",S4_CumulSavings!F18,"-")) -> 0.00108601183 | G20: =IF(S3_Approach!$F$10="Annual Incremental Savings",S4_AnnSavings!G14,IF(S3_Approach!$F$10="Cumulative Savings",S4_CumulSavings!G18,"-")) -> 0.001767170178 | H20: =IF(S3_Approach!$F$10="Annual Incremental Savings",S4_AnnSavings!H14,IF(S3_Approach!$F$10="Cumulative Savings",S4_CumulSavings!H18,"-")) -> 0.002579769899 | I20: =IF(S3_Approach!$F$10="Annual Incremental Savings",S4_AnnSavings!I14,IF(S3_Approach!$F$10="Cumulative Savings",S4_CumulSavings!I18,"-")) -> 0.00294663969 | J20: =IF(S3_Approach!$F$10="Annual Incremental Savings",S4_AnnSavings!J14,IF(S3_Approach!$F$10="Cumulative Savings",S4_CumulSavings!J18,"-")) -> 0.003080016017 | K20: =IF(S3_Approach!$F$10="Annual Incremental Savings",S4_AnnSavings!K14,IF(S3_Approach!$F$10="Cumulative Savings",S4_CumulSavings!K18,"-")) -> 0.00349413912 | L20: =IF(S3_Approach!$F$10="Annual Incremental Savings",S4_AnnSavings!L14,IF(S3_Approach!$F$10="Cumulative Savings",S4_CumulSavings!L18,"-")) -> 0.003012579231 | M20: =IF(S3_Approach!$F$10="Annual Incremental Savings",S4_AnnSavings!M14,IF(S3_Approach!$F$10="Cumulative Savings",S4_CumulSavings!M18,"-")) -> 0.003201345121 | N20: =IF(S3_Approach!$F$10="Annual Incremental Savings",S4_AnnSavings!N14,IF(S3_Approach!$F$10="Cumulative Savings",S4_CumulSavings!N18,"-")) -> 0.002955268857 | O20: =IF(S3_Approach!$F$10="Annual Incremental Savings",S4_AnnSavings!O14,IF(S3_Approach!$F$10="Cumulative Savings",S4_CumulSavings!O18,"-")) -> 0.001915246102 | P20: =IF(S3_Approach!$F$10="Annual Incremental Savings",S4_AnnSavings!P14,IF(S3_Approach!$F$10="Cumulative Savings",S4_CumulSavings!P18,"-")) -> 0.002459532008 | Q20: =IF(S3_Approach!$F$10="Annual Incremental Savings",S4_AnnSavings!Q14,IF(S3_Approach!$F$10="Cumulative Savings",S4_CumulSavings!Q18,"-")) -> 0.003270296629 | R20: =IF(S3_Approach!$F$10="Annual Incremental Savings",S4_AnnSavings!R14,IF(S3_Approach!$F$10="Cumulative Savings",S4_CumulSavings!R18,"-")) -> 0.005270296629 | S20: =IF(S3_Approach!$F$10="Annual Incremental Savings",S4_AnnSavings!S14,IF(S3_Approach!$F$10="Cumulative Savings",S4_CumulSavings!S18,"-")) -> 0.007270296629 | T20: =IF(S3_Approach!$F$10="Annual Incremental Savings",S4_AnnSavings!T14,IF(S3_Approach!$F$10="Cumulative Savings",S4_CumulSavings!T18,"-")) -> 0.009270296629 | U20: =IF(S3_Approach!$F$10="Annual Incremental Savings",S4_AnnSavings!U14,IF(S3_Approach!$F$10="Cumulative Savings",S4_CumulSavings!U18,"-")) -> 0.01 | V20: =IF(S3_Approach!$F$10="Annual Incremental Savings",S4_AnnSavings!V14,IF(S3_Approach!$F$10="Cumulative Savings",S4_CumulSavings!V18,"-")) -> 0.01 | W20: =IF(S3_Approach!$F$10="Annual Incremental Savings",S4_AnnSavings!W14,IF(S3_Approach!$F$10="Cumulative Savings",S4_CumulSavings!W18,"-")) -> 0.01 | X20: =IF(S3_Approach!$F$10="Annual Incremental Savings",S4_AnnSavings!X14,IF(S3_Approach!$F$10="Cumulative Savings",S4_CumulSavings!X18,"-")) -> 0.01 | Y20: =IF(S3_Approach!$F$10="Annual Incremental Savings",S4_AnnSavings!Y14,IF(S3_Approach!$F$10="Cumulative Savings",S4_CumulSavings!Y18,"-")) -> 0.01 | Z20: =IF(S3_Approach!$F$10="Annual Incremental Savings",S4_AnnSavings!Z14,IF(S3_Approach!$F$10="Cumulative Savings",S4_CumulSavings!Z18,"-")) -> 0.01 | AA20: =IF(S3_Approach!$F$10="Annual Incremental Savings",S4_AnnSavings!AA14,IF(S3_Approach!$F$10="Cumulative Savings",S4_CumulSavings!AA18,"-")) -> 0.01 | AB20: =IF(S3_Approach!$F$10="Annual Incremental Savings",S4_AnnSavings!AB14,IF(S3_Approach!$F$10="Cumulative Savings",S4_CumulSavings!AB18,"-")) -> 0.01 | AC20: =IF(S3_Approach!$F$10="Annual Incremental Savings",S4_AnnSavings!AC14,IF(S3_Approach!$F$10="Cumulative Savings",S4_CumulSavings!AC18,"-")) -> 0.01 | AD20: =IF(S3_Approach!$F$10="Annual Incremental Savings",S4_AnnSavings!AD14,IF(S3_Approach!$F$10="Cumulative Savings",S4_CumulSavings!AD18,"-")) -> 0.01 | AE20: =IF(S3_Approach!$F$10="Annual Incremental Savings",S4_AnnSavings!AE14,IF(S3_Approach!$F$10="Cumulative Savings",S4_CumulSavings!AE18,"-")) -> 0.01 | AF20: =IF(S3_Approach!$F$10="Annual Incremental Savings",S4_AnnSavings!AF14,IF(S3_Approach!$F$10="Cumulative Savings",S4_CumulSavings!AF18,"-")) -> 0.01 | AG20: =IF(S3_Approach!$F$10="Annual Incremental Savings",S4_AnnSavings!AG14,IF(S3_Approach!$F$10="Cumulative Savings",S4_CumulSavings!AG18,"-")) -> 0.01 | AH20: =IF(S3_Approach!$F$10="Annual Incremental Savings",S4_AnnSavings!AH14,IF(S3_Approach!$F$10="Cumulative Savings",S4_CumulSavings!AH18,"-")) -> 0.01 | AI20: =IF(S3_Approach!$F$10="Annual Incremental Savings",S4_AnnSavings!AI14,IF(S3_Approach!$F$10="Cumulative Savings",S4_CumulSavings!AI18,"-")) -> 0.01 | AJ20: =IF(S3_Approach!$F$10="Annual Incremental Savings",S4_AnnSavings!AJ14,IF(S3_Approach!$F$10="Cumulative Savings",S4_CumulSavings!AJ18,"-")) -> 0.01 | AK20: =IF(S3_Approach!$F$10="Annual Incremental Savings",S4_AnnSavings!AK14,IF(S3_Approach!$F$10="Cumulative Savings",S4_CumulSavings!AK18,"-")) -> 0.01 | AL20: =IF(S3_Approach!$F$10="Annual Incremental Savings",S4_AnnSavings!AL14,IF(S3_Approach!$F$10="Cumulative Savings",S4_CumulSavings!AL18,"-")) -> 0.01 | AM20: =IF(S3_Approach!$F$10="Annual Incremental Savings",S4_AnnSavings!AM14,IF(S3_Approach!$F$10="Cumulative Savings",S4_CumulSavings!AM18,"-")) -> 0.01 | AN20: =IF(S3_Approach!$F$10="Annual Incremental Savings",S4_AnnSavings!AN14,IF(S3_Approach!$F$10="Cumulative Savings",S4_CumulSavings!AN18,"-")) -> 0.01
C21: First-year costs of saved energy | D21: 2022 ¢/kWh | F21: =S5_Budget!F15*10^6*100/(S7_Outputs!F9*1000) -> 32.7126231 | G21: =S5_Budget!G15*10^6*100/(S7_Outputs!G9*1000) -> 35.76655874 | H21: =S5_Budget!H15*10^6*100/(S7_Outputs!H9*1000) -> 22.60438937 | I21: =S5_Budget!I15*10^6*100/(S7_Outputs!I9*1000) -> 22.1319203 | J21: =S5_Budget!J15*10^6*100/(S7_Outputs!J9*1000) -> 23.08064431 | K21: =S5_Budget!K15*10^6*100/(S7_Outputs!K9*1000) -> 23.78582669 | L21: =S5_Budget!L15*10^6*100/(S7_Outputs!L9*1000) -> 22.33346477 | M21: =S5_Budget!M15*10^6*100/(S7_Outputs!M9*1000) -> 23.59851095 | N21: =S5_Budget!N15*10^6*100/(S7_Outputs!N9*1000) -> 21.99357658 | O21: =S5_Budget!O15*10^6*100/(S7_Outputs!O9*1000) -> 24.61742431 | P21: =S5_Budget!P15*10^6*100/(S7_Outputs!P9*1000) -> 22.55491336 | Q21: =S5_Budget!Q15*10^6*100/(S7_Outputs!Q9*1000) -> 18.67482766 | R21: =IF(OR($D$7="Constant",$D$7="User Input"),$D$9,IF($D$7="Historical",$Q21,IF($D$7="Savings-Dependent",IF(R19<$D$12,$D$9*(1+$E$12),IF(AND(R20>=$D$12,R19<$D$13),$D$9*(1+$E$13),$D$9*(1+$E$14)))))) -> 51.38526171 | S21: =IF(OR($D$7="Constant",$D$7="User Input"),$D$9,IF($D$7="Historical",$Q21,IF($D$7="Savings-Dependent",IF(S19<$D$12,$D$9*(1+$E$12),IF(AND(S20>=$D$12,S19<$D$13),$D$9*(1+$E$13),$D$9*(1+$E$14)))))) -> 51.38526171 | T21: 51.38526171 | U21: 51.38526171 | V21: 51.38526171 | W21: 51.38526171 | X21: 51.38526171 | Y21: 51.38526171 | Z21: 51.38526171 | AA21: 51.38526171 | AB21: 51.38526171 | AC21: 51.38526171 | AD21: 51.38526171 | AE21: 51.38526171 | AF21: 51.38526171 | AG21: 51.38526171 | AH21: 51.38526171 | AI21: 51.38526171 | AJ21: 51.38526171 | AK21: 51.38526171 | AL21: 51.38526171 | AM21: 51.38526171 | AN21: 51.38526171
C22: Utility first-year cost of saved energy | D22: 2022 ¢/kWh | F22: =F21*$D$16 -> 17.66481647 | G22: =G21*$D$16 -> 19.31394172 | H22: =H21*$D$16 -> 12.20637026 | I22: 11.95123696 | J22: 12.46354793 | K22: 12.84434641 | L22: 12.06007097 | M22: 12.74319591 | N22: 11.87653135 | O22: =O21*$D$16 -> 13.29340913 | P22: =P21*$D$16 -> 12.17965322 | Q22: =Q21*$D$16 -> 10.08440693 | R22: 27.74804132 | S22: 27.74804132 | T22: 27.74804132 | U22: 27.74804132 | V22: 27.74804132 | W22: 27.74804132 | X22: 27.74804132 | Y22: 27.74804132 | Z22: 27.74804132 | AA22: 27.74804132 | AB22: 27.74804132 | AC22: 27.74804132 | AD22: 27.74804132 | AE22: 27.74804132 | AF22: 27.74804132 | AG22: 27.74804132 | AH22: 27.74804132 | AI22: 27.74804132 | AJ22: =AJ21*$D$16 -> 27.74804132 | AK22: 27.74804132 | AL22: 27.74804132 | AM22: 27.74804132 | AN22: 27.74804132
C23: Utility levelized cost of saved energy | D23: 2022 ¢/kWh | F23: =S7_Outputs!F62/10 -> 1.899984272 | G23: =S7_Outputs!G62/10 -> 2.077360133 | H23: =S7_Outputs!H62/10 -> 1.312887205 | I23: =S7_Outputs!I62/10 -> 1.285445693 | J23: =S7_Outputs!J62/10 -> 1.340548603 | K23: =S7_Outputs!K62/10 -> 1.381506352 | L23: =S7_Outputs!L62/10 -> 1.297151613 | M23: =S7_Outputs!M62/10 -> 1.370626853 | N23: =S7_Outputs!N62/10 -> 1.277410542 | O23: =S7_Outputs!O62/10 -> 1.429806435 | P23: =S7_Outputs!P62/10 -> 1.310013585 | Q23: =S7_Outputs!Q62/10 -> 1.084654041 | R23: =S7_Outputs!R62/10 -> 2.984511171 | S23: =S7_Outputs!S62/10 -> 2.984511171 | T23: =S7_Outputs!T62/10 -> 2.984511171 | U23: =S7_Outputs!U62/10 -> 2.984511171 | V23: =S7_Outputs!V62/10 -> 2.984511171 | W23: =S7_Outputs!W62/10 -> 2.984511171 | X23: =S7_Outputs!X62/10 -> 2.984511171 | Y23: =S7_Outputs!Y62/10 -> 2.984511171 | Z23: =S7_Outputs!Z62/10 -> 2.984511171 | AA23: =S7_Outputs!AA62/10 -> 2.984511171 | AB23: =S7_Outputs!AB62/10 -> 2.984511171 | AC23: =S7_Outputs!AC62/10 -> 2.984511171 | AD23: =S7_Outputs!AD62/10 -> 2.984511171 | AE23: =S7_Outputs!AE62/10 -> 2.984511171 | AF23: =S7_Outputs!AF62/10 -> 2.984511171 | AG23: =S7_Outputs!AG62/10 -> 2.984511171 | AH23: =S7_Outputs!AH62/10 -> 2.984511171 | AI23: =S7_Outputs!AI62/10 -> 2.984511171 | AJ23: =S7_Outputs!AJ62/10 -> 2.984511171 | AK23: =S7_Outputs!AK62/10 -> 2.984511171 | AL23: =S7_Outputs!AL62/10 -> 2.984511171 | AM23: =S7_Outputs!AM62/10 -> 2.984511171 | AN23: =S7_Outputs!AN62/10 -> 2.984511171
C29: Data sources:
C30: Lawrence Berkeley National Laboratory (LBNL). "The Cost of Saving Electricity Through Energy Efficiency Programs Funded by Utility Customers: 2009–2015." (2018). Available at https://eta-publications.lbl.gov/sites/default/files/cose_final_report_20200429.pdf
C31: Lawrence Berkeley National Laboratory (LBNL). "Still the One: Efficiency Remains a Cost-Effective Electricity Resource." (2021). Available at https://eta-publications.lbl.gov/sites/default/files/cose_cspd_analysis_2021_final_v2.pdf
C35: State | D35: =S1_StudyArea!D7 -> GA | F35: =IF(S3_Approach!$F$10="Annual Budget","F36:F38","F36:F39") -> F36:F39
C36: Sector | D36: =S1_StudyArea!D8 -> Total | F36: Constant
C37: Utility Type | D37: =S1_StudyArea!D9 -> Total | F37: Historical
C38: Utility | D38: =S1_StudyArea!D10 -> Total | F38: =IF(S3_Approach!$F$10="Annual Budget","User Input","Savings-Dependent") -> Savings-Dependent
F39: =IF(S3_Approach!$F$10<>"Annual Budget","User Input","-") -> User Input

Sheet S4_AnnSavings
B2: =scenarioLabel -> Energy Savings and Impacts Scenario Tool -- GA, All sectors, All Utilities
C4: Step 4. Set Savings Trajectory
C5: This step determines how much energy efficiency is achieved in each year. Select a reasonable level to ramp up savings, and a final target for savings as a percent of sales in a future year.
C7: Select savings trend: | D7: Increase to Goal | E7: =IF(D7="Increase to Goal","Savings will remain at 2022 levels until "&D10&", at which point savings will increase "&TEXT(D11,"0.00%")&" per year until a level of "&TEXT(D9,"0.00%")&" is achieved. Please enter values below to modify this trend.","Please enter annual first-year savings goals into the blue cells below.") -> Savings will remain at 2022 levels until 2023, at which point savings will increase 0.20% per year until a level of 1.00% is achieved. Please enter values below to modify this trend.
C9: Annual incremental savings: | D9: 0.01 | E9: ="Energy efficiency programs will achieve a final annual incremental savings as a percent of sales level of "&TEXT(D9,"0.00%")&"." -> Energy efficiency programs will achieve a final annual incremental savings as a percent of sales level of 1.00%.
C10: Year to start ramp: | D10: 2023 | E10: ="Energy efficiency programs will begin increasing from 2022 levels in the year "&D10&"." -> Energy efficiency programs will begin increasing from 2022 levels in the year 2023.
C11: Percent achieved/year: | D11: 0.002 | E11: ="Energy efficiency programs are limited to a ramp rate of "&TEXT(D11,"0.00%")&" per year." -> Energy efficiency programs are limited to a ramp rate of 0.20% per year.
E12: =IF(COUNTIF(F14:AI14,">3%")>0,"Note: The savings trajectory you have chosen causes annual incremental savings to exceed 3% in at least one year. This value approaches the maximum level regarded as achievable for most jurisdictions.","") -> 
D13: =HYPERLINK("#R"&ROW(),"Click here to jump to future years") -> Click here to jump to future years | E13: 2010 | F13: 2011 | G13: 2012 | H13: 2013 | I13: 2014 | J13: 2015 | K13: 2016 | L13: 2017 | M13: 2018 | N13: 2019 | O13: 2020 | P13: 2021 | Q13: 2022 | R13: 2023 | S13: 2024 | T13: 2025 | U13: 2026 | V13: 2027 | W13: 2028 | X13: 2029 | Y13: 2030 | Z13: 2031 | AA13: 2032 | AB13: 2033 | AC13: 2034 | AD13: 2035 | AE13: 2036 | AF13: 2037 | AG13: 2038 | AH13: 2039 | AI13: 2040 | AJ13: 2041 | AK13: 2042 | AL13: 2043 | AM13: 2044 | AN13: 2045
C14: First-year savings | D14: % | F14: =IFERROR(F15/S2_Sales!E13,0) -> 0.00108601183 | G14: =IFERROR(G15/S2_Sales!F13,0) -> 0.001767170178 | H14: =IFERROR(H15/S2_Sales!G13,0) -> 0.002579769899 | I14: =IFERROR(I15/S2_Sales!H13,0) -> 0.00294663969 | J14: =IFERROR(J15/S2_Sales!I13,0) -> 0.003080016017 | K14: =IFERROR(K15/S2_Sales!J13,0) -> 0.00349413912 | L14: =IFERROR(L15/S2_Sales!K13,0) -> 0.003012579231 | M14: =IFERROR(M15/S2_Sales!L13,0) -> 0.003201345121 | N14: =IFERROR(N15/S2_Sales!M13,0) -> 0.002955268857 | O14: =IFERROR(O15/S2_Sales!N13,0) -> 0.001915246102 | P14: =IFERROR(P15/S2_Sales!O13,0) -> 0.002459532008 | Q14: =IFERROR(Q15/S2_Sales!P13,0) -> 0.003270296629 | R14: =IF(R13<$D$10,$Q$14,IF(R13>=$D$10,IF(Q14>=$D$9,Q14,MIN(Q14+$D$11,IF($D$9="",0,$D$9))),Q14)) -> 0.005270296629 | S14: =IF(S13<$D$10,$Q$14,IF(S13>=$D$10,IF(R14>=$D$9,R14,MIN(R14+$D$11,IF($D$9="",0,$D$9))),R14)) -> 0.007270296629 | T14: 0.009270296629 | U14: 0.01 | V14: 0.01 | W14: 0.01 | X14: 0.01 | Y14: 0.01 | Z14: 0.01 | AA14: 0.01 | AB14: 0.01 | AC14: 0.01 | AD14: 0.01 | AE14: 0.01 | AF14: 0.01 | AG14: 0.01 | AH14: 0.01 | AI14: 0.01 | AJ14: =IF(AJ13<$D$10,$Q$14,IF(AJ13>=$D$10,IF(AI14>=$D$9,AI14,MIN(AI14+$D$11,IF($D$9="",0,$D$9))),AI14)) -> 0.01 | AK14: =IF(AK13<$D$10,$Q$14,IF(AK13>=$D$10,IF(AJ14>=$D$9,AJ14,MIN(AJ14+$D$11,IF($D$9="",0,$D$9))),AJ14)) -> 0.01 | AL14: =IF(AL13<$D$10,$Q$14,IF(AL13>=$D$10,IF(AK14>=$D$9,AK14,MIN(AK14+$D$11,IF($D$9="",0,$D$9))),AK14)) -> 0.01 | AM14: =IF(AM13<$D$10,$Q$14,IF(AM13>=$D$10,IF(AL14>=$D$9,AL14,MIN(AL14+$D$11,IF($D$9="",0,$D$9))),AL14)) -> 0.01 | AN14: =IF(AN13<$D$10,$Q$14,IF(AN13>=$D$10,IF(AM14>=$D$9,AM14,MIN(AM14+$D$11,IF($D$9="",0,$D$9))),AM14)) -> 0.01
C15: Annual incremental savings | D15: MWh | F15: =IF($D$24="US Total",SUMIFS(Sales_Savings!W$7:W$30000,Sales_Savings!$H$7:$H$30000,$D$25), IF($D$26="Total",SUMIFS(Sales_Savings!W$7:W$30000,Sales_Savings!$D$7:$D$30000,$D$24,Sales_Savings!$H$7:$H$30000,$D$25), IF($D$27="Total",SUMIFS(Sales_Savings!W$7:W$30000,Sales_Savings!$D$7:$D$30000,$D$24,Sales_Savings!$H$7:$H$30000,$D$25,Sales_Savings!$G$7:$G$30000,$D$26), SUMIFS(Sales_Savings!W$7:W$30000,Sales_Savings!$D$7:$D$30000,$D$24,Sales_Savings!$H$7:$H$30000,$D$25,Sales_Savings!$G$7:$G$30000,$D$26,Sales_Savings!$C$7:$C$30000,$D$27)))) -> 152771 | G15: =IF($D$24="US Total",SUMIFS(Sales_Savings!X$7:X$30000,Sales_Savings!$H$7:$H$30000,$D$25), IF($D$26="Total",SUMIFS(Sales_Savings!X$7:X$30000,Sales_Savings!$D$7:$D$30000,$D$24,Sales_Savings!$H$7:$H$30000,$D$25), IF($D$27="Total",SUMIFS(Sales_Savings!X$7:X$30000,Sales_Savings!$D$7:$D$30000,$D$24,Sales_Savings!$H$7:$H$30000,$D$25,Sales_Savings!$G$7:$G$30000,$D$26), SUMIFS(Sales_Savings!X$7:X$30000,Sales_Savings!$D$7:$D$30000,$D$24,Sales_Savings!$H$7:$H$30000,$D$25,Sales_Savings!$G$7:$G$30000,$D$26,Sales_Savings!$C$7:$C$30000,$D$27)))) -> 241261 | H15: =IF($D$24="US Total",SUMIFS(Sales_Savings!Y$7:Y$30000,Sales_Savings!$H$7:$H$30000,$D$25), IF($D$26="Total",SUMIFS(Sales_Savings!Y$7:Y$30000,Sales_Savings!$D$7:$D$30000,$D$24,Sales_Savings!$H$7:$H$30000,$D$25), IF($D$27="Total",SUMIFS(Sales_Savings!Y$7:Y$30000,Sales_Savings!$D$7:$D$30000,$D$24,Sales_Savings!$H$7:$H$30000,$D$25,Sales_Savings!$G$7:$G$30000,$D$26), SUMIFS(Sales_Savings!Y$7:Y$30000,Sales_Savings!$D$7:$D$30000,$D$24,Sales_Savings!$H$7:$H$30000,$D$25,Sales_Savings!$G$7:$G$30000,$D$26,Sales_Savings!$C$7:$C$30000,$D$27)))) -> 338884 | I15: =IF($D$24="US Total",SUMIFS(Sales_Savings!Z$7:Z$30000,Sales_Savings!$H$7:$H$30000,$D$25), IF($D$26="Total",SUMIFS(Sales_Savings!Z$7:Z$30000,Sales_Savings!$D$7:$D$30000,$D$24,Sales_Savings!$H$7:$H$30000,$D$25), IF($D$27="Total",SUMIFS(Sales_Savings!Z$7:Z$30000,Sales_Savings!$D$7:$D$30000,$D$24,Sales_Savings!$H$7:$H$30000,$D$25,Sales_Savings!$G$7:$G$30000,$D$26), SUMIFS(Sales_Savings!Z$7:Z$30000,Sales_Savings!$D$7:$D$30000,$D$24,Sales_Savings!$H$7:$H$30000,$D$25,Sales_Savings!$G$7:$G$30000,$D$26,Sales_Savings!$C$7:$C$30000,$D$27)))) -> 386604 | J15: =IF($D$24="US Total",SUMIFS(Sales_Savings!AA$7:AA$30000,Sales_Savings!$H$7:$H$30000,$D$25), IF($D$26="Total",SUMIFS(Sales_Savings!AA$7:AA$30000,Sales_Savings!$D$7:$D$30000,$D$24,Sales_Savings!$H$7:$H$30000,$D$25), IF($D$27="Total",SUMIFS(Sales_Savings!AA$7:AA$30000,Sales_Savings!$D$7:$D$30000,$D$24,Sales_Savings!$H$7:$H$30000,$D$25,Sales_Savings!$G$7:$G$30000,$D$26), SUMIFS(Sales_Savings!AA$7:AA$30000,Sales_Savings!$D$7:$D$30000,$D$24,Sales_Savings!$H$7:$H$30000,$D$25,Sales_Savings!$G$7:$G$30000,$D$26,Sales_Savings!$C$7:$C$30000,$D$27)))) -> 421514 | K15: =IF($D$24="US Total",SUMIFS(Sales_Savings!AB$7:AB$30000,Sales_Savings!$H$7:$H$30000,$D$25), IF($D$26="Total",SUMIFS(Sales_Savings!AB$7:AB$30000,Sales_Savings!$D$7:$D$30000,$D$24,Sales_Savings!$H$7:$H$30000,$D$25), IF($D$27="Total",SUMIFS(Sales_Savings!AB$7:AB$30000,Sales_Savings!$D$7:$D$30000,$D$24,Sales_Savings!$H$7:$H$30000,$D$25,Sales_Savings!$G$7:$G$30000,$D$26), SUMIFS(Sales_Savings!AB$7:AB$30000,Sales_Savings!$D$7:$D$30000,$D$24,Sales_Savings!$H$7:$H$30000,$D$25,Sales_Savings!$G$7:$G$30000,$D$26,Sales_Savings!$C$7:$C$30000,$D$27)))) -> 479860 | L15: =IF($D$24="US Total",SUMIFS(Sales_Savings!AC$7:AC$30000,Sales_Savings!$H$7:$H$30000,$D$25), IF($D$26="Total",SUMIFS(Sales_Savings!AC$7:AC$30000,Sales_Savings!$D$7:$D$30000,$D$24,Sales_Savings!$H$7:$H$30000,$D$25), IF($D$27="Total",SUMIFS(Sales_Savings!AC$7:AC$30000,Sales_Savings!$D$7:$D$30000,$D$24,Sales_Savings!$H$7:$H$30000,$D$25,Sales_Savings!$G$7:$G$30000,$D$26), SUMIFS(Sales_Savings!AC$7:AC$30000,Sales_Savings!$D$7:$D$30000,$D$24,Sales_Savings!$H$7:$H$30000,$D$25,Sales_Savings!$G$7:$G$30000,$D$26,Sales_Savings!$C$7:$C$30000,$D$27)))) -> 421789.12 | M15: =IF($D$24="US Total",SUMIFS(Sales_Savings!AD$7:AD$30000,Sales_Savings!$H$7:$H$30000,$D$25), IF($D$26="Total",SUMIFS(Sales_Savings!AD$7:AD$30000,Sales_Savings!$D$7:$D$30000,$D$24,Sales_Savings!$H$7:$H$30000,$D$25), IF($D$27="Total",SUMIFS(Sales_Savings!AD$7:AD$30000,Sales_Savings!$D$7:$D$30000,$D$24,Sales_Savings!$H$7:$H$30000,$D$25,Sales_Savings!$G$7:$G$30000,$D$26), SUMIFS(Sales_Savings!AD$7:AD$30000,Sales_Savings!$D$7:$D$30000,$D$24,Sales_Savings!$H$7:$H$30000,$D$25,Sales_Savings!$G$7:$G$30000,$D$26,Sales_Savings!$C$7:$C$30000,$D$27)))) -> 434506.628 | N15: =IF($D$24="US Total",SUMIFS(Sales_Savings!AE$7:AE$30000,Sales_Savings!$H$7:$H$30000,$D$25), IF($D$26="Total",SUMIFS(Sales_Savings!AE$7:AE$30000,Sales_Savings!$D$7:$D$30000,$D$24,Sales_Savings!$H$7:$H$30000,$D$25), IF($D$27="Total",SUMIFS(Sales_Savings!AE$7:AE$30000,Sales_Savings!$D$7:$D$30000,$D$24,Sales_Savings!$H$7:$H$30000,$D$25,Sales_Savings!$G$7:$G$30000,$D$26), SUMIFS(Sales_Savings!AE$7:AE$30000,Sales_Savings!$D$7:$D$30000,$D$24,Sales_Savings!$H$7:$H$30000,$D$25,Sales_Savings!$G$7:$G$30000,$D$26,Sales_Savings!$C$7:$C$30000,$D$27)))) -> 421164.456 | O15: =IF($D$24="US Total",SUMIFS(Sales_Savings!AF$7:AF$30000,Sales_Savings!$H$7:$H$30000,$D$25), IF($D$26="Total",SUMIFS(Sales_Savings!AF$7:AF$30000,Sales_Savings!$D$7:$D$30000,$D$24,Sales_Savings!$H$7:$H$30000,$D$25), IF($D$27="Total",SUMIFS(Sales_Savings!AF$7:AF$30000,Sales_Savings!$D$7:$D$30000,$D$24,Sales_Savings!$H$7:$H$30000,$D$25,Sales_Savings!$G$7:$G$30000,$D$26), SUMIFS(Sales_Savings!AF$7:AF$30000,Sales_Savings!$D$7:$D$30000,$D$24,Sales_Savings!$H$7:$H$30000,$D$25,Sales_Savings!$G$7:$G$30000,$D$26,Sales_Savings!$C$7:$C$30000,$D$27)))) -> 272524.168 | P15: =IF($D$24="US Total",SUMIFS(Sales_Savings!AG$7:AG$30000,Sales_Savings!$H$7:$H$30000,$D$25), IF($D$26="Total",SUMIFS(Sales_Savings!AG$7:AG$30000,Sales_Savings!$D$7:$D$30000,$D$24,Sales_Savings!$H$7:$H$30000,$D$25), IF($D$27="Total",SUMIFS(Sales_Savings!AG$7:AG$30000,Sales_Savings!$D$7:$D$30000,$D$24,Sales_Savings!$H$7:$H$30000,$D$25,Sales_Savings!$G$7:$G$30000,$D$26), SUMIFS(Sales_Savings!AG$7:AG$30000,Sales_Savings!$D$7:$D$30000,$D$24,Sales_Savings!$H$7:$H$30000,$D$25,Sales_Savings!$G$7:$G$30000,$D$26,Sales_Savings!$C$7:$C$30000,$D$27)))) -> 336081.783 | Q15: =IF($D$24="US Total",SUMIFS(Sales_Savings!AH$7:AH$30000,Sales_Savings!$H$7:$H$30000,$D$25), IF($D$26="Total",SUMIFS(Sales_Savings!AH$7:AH$30000,Sales_Savings!$D$7:$D$30000,$D$24,Sales_Savings!$H$7:$H$30000,$D$25), IF($D$27="Total",SUMIFS(Sales_Savings!AH$7:AH$30000,Sales_Savings!$D$7:$D$30000,$D$24,Sales_Savings!$H$7:$H$30000,$D$25,Sales_Savings!$G$7:$G$30000,$D$26), SUMIFS(Sales_Savings!AH$7:AH$30000,Sales_Savings!$D$7:$D$30000,$D$24,Sales_Savings!$H$7:$H$30000,$D$25,Sales_Savings!$G$7:$G$30000,$D$26,Sales_Savings!$C$7:$C$30000,$D$27)))) -> 460336.233 | R15: =R14*S7_Outputs!Q14 -> 764378.5467 | S15: =S14*S7_Outputs!R14 -> 1057694.107 | T15: =T14*S7_Outputs!S14 -> 1350694.439 | U15: =U14*S7_Outputs!T14 -> 1456915.272 | V15: =V14*S7_Outputs!U14 -> 1456522.228 | W15: =W14*S7_Outputs!V14 -> 1456657.089 | X15: =X14*S7_Outputs!W14 -> 1457227.076 | Y15: =Y14*S7_Outputs!X14 -> 1458239.923 | Z15: =Z14*S7_Outputs!Y14 -> 1459740.388 | AA15: =AA14*S7_Outputs!Z14 -> 1461874.757 | AB15: =AB14*S7_Outputs!AA14 -> 1464545.6 | AC15: =AC14*S7_Outputs!AB14 -> 1467933.859 | AD15: =AD14*S7_Outputs!AC14 -> 1472082.516 | AE15: =AE14*S7_Outputs!AD14 -> 1476990.835 | AF15: =AF14*S7_Outputs!AE14 -> 1482977.525 | AG15: =AG14*S7_Outputs!AF14 -> 1490048.767 | AH15: =AH14*S7_Outputs!AG14 -> 1498286.288 | AI15: =AI14*S7_Outputs!AH14 -> 1507466.534 | AJ15: =AJ14*S7_Outputs!AI14 -> 1517381.997 | AK15: =AK14*S7_Outputs!AJ14 -> 1527710.484 | AL15: =AL14*S7_Outputs!AK14 -> 1538240.075 | AM15: =AM14*S7_Outputs!AL14 -> 1548923.384 | AN15: =AN14*S7_Outputs!AM14 -> 1559710.533
C21: Data sources:
C22: U.S. Energy Information Administration (EIA). "Annual Electric Power Industry Report, Form EIA-861 detailed data files (EIA Form 861)." (2022). Available at https://www.eia.gov/electricity/data/eia861/
C24: State | D24: =S1_StudyArea!D7 -> GA
C25: Sector | D25: =S1_StudyArea!D8 -> Total
C26: Utility Type | D26: =S1_StudyArea!D9 -> Total
C27: Utility | D27: =S1_StudyArea!D10 -> Total

Sheet S4_CumulSavings
B2: =scenarioLabel -> Energy Savings and Impacts Scenario Tool -- GA, All sectors, All Utilities
C4: Step 4. Set Savings Trajectory | E4: =IF(COUNTIF(S7_Outputs!$F$10:$AI$10,">3%")>0,"Note: The savings trajectory you have chosen causes annual incremental savings to exceed 3% in at least one year. This value approaches the maximum level regarded as achievable for most jurisdictions.","") -> 
C5: This step determines how much energy efficiency should be achieved by a specified year. Savings are maintained at this level in all years after the year specified.
C7: Select savings trend: | D7: Increase to Goal | E7: =IF(D7="Increase to Goal","Savings will remain at 2022 levels until "&D12&", at which point savings will increase linearly until a level of "&TEXT(D9,"0.0%")&" is achieved in "&D10&".","Please enter annual cumulative savings goals into the blue cells below.") -> Savings will remain at 2022 levels until 2022, at which point savings will increase linearly until a level of 10.0% is achieved in 2030.
C9: Cumulative savings goal: | D9: 0.1 | E9: =IF(D7<>"Increase to Goal","-","Energy efficiency programs will achieve a cumulative level of savings as a percent of sales of "&TEXT(D9,"0.0%")&" by the year "&D10&".") -> Energy efficiency programs will achieve a cumulative level of savings as a percent of sales of 10.0% by the year 2030.
C10: Target year: | D10: 2030 | E10: ="This is the year in which "&TEXT(D9,"0.0%")&" cumulative savings is achieved." -> This is the year in which 10.0% cumulative savings is achieved.
C12: Year to start ramp: | D12: 2022 | E12: =IF(D7<>"Increase to Goal","-","Energy efficiency programs will begin increasing savings from 2022 levels in the year "&D12&".") -> Energy efficiency programs will begin increasing savings from 2022 levels in the year 2022.
D14: =HYPERLINK("#R"&ROW(),"Click here to jump to future years") -> Click here to jump to future years | E14: 2010 | F14: 2011 | G14: 2012 | H14: 2013 | I14: 2014 | J14: 2015 | K14: 2016 | L14: 2017 | M14: 2018 | N14: 2019 | O14: 2020 | P14: 2021 | Q14: 2022 | R14: 2023 | S14: 2024 | T14: 2025 | U14: 2026 | V14: 2027 | W14: 2028 | X14: 2029 | Y14: 2030 | Z14: 2031 | AA14: 2032 | AB14: 2033 | AC14: 2034 | AD14: 2035 | AE14: 2036 | AF14: 2037 | AG14: 2038 | AH14: 2039 | AI14: 2040 | AJ14: 2041 | AK14: 2042 | AL14: 2043 | AM14: 2044 | AN14: 2045
C15: Cumulative savings (% of sales) | D15: % | F15: =S7_Outputs!F13 -> 0.001119005373 | G15: =S7_Outputs!G13 -> 0.002917366031 | H15: =S7_Outputs!H13 -> 0.005367185742 | I15: =S7_Outputs!I13 -> 0.007778708287 | J15: =S7_Outputs!J13 -> 0.01059186711 | K15: =S7_Outputs!K13 -> 0.0135495605 | L15: =S7_Outputs!L13 -> 0.01672225047 | M15: =S7_Outputs!M13 -> 0.01857375008 | N15: =S7_Outputs!N13 -> 0.02102011677 | O15: =S7_Outputs!O13 -> 0.02323153777 | P15: =S7_Outputs!P13 -> 0.02414618496 | Q15: =S7_Outputs!Q13 -> 0.02505345378 | R15: =IF(R14>=$D$10,$D$9,IF(R14<$D$12,Q15,($D$9-$Q$15)/($D$10-$D$12+1)+ Q15)) -> 0.0333808478 | S15: =IF(S14>=$D$10,$D$9,IF(S14<$D$12,R15,($D$9-$Q$15)/($D$10-$D$12+1)+ R15)) -> 0.04170824183 | T15: 0.05003563585 | U15: 0.05836302988 | V15: 0.0666904239 | W15: 0.07501781793 | X15: 0.08334521195 | Y15: 0.1 | Z15: 0.1 | AA15: 0.1 | AB15: 0.1 | AC15: 0.1 | AD15: 0.1 | AE15: 0.1 | AF15: 0.1 | AG15: 0.1 | AH15: 0.1 | AI15: 0.1 | AJ15: =IF(AJ14>=$D$10,$D$9,IF(AJ14<$D$12,AI15,($D$9-$Q$15)/($D$10-$D$12+1)+ AI15)) -> 0.1 | AK15: =IF(AK14>=$D$10,$D$9,IF(AK14<$D$12,AJ15,($D$9-$Q$15)/($D$10-$D$12+1)+ AJ15)) -> 0.1 | AL15: =IF(AL14>=$D$10,$D$9,IF(AL14<$D$12,AK15,($D$9-$Q$15)/($D$10-$D$12+1)+ AK15)) -> 0.1 | AM15: =IF(AM14>=$D$10,$D$9,IF(AM14<$D$12,AL15,($D$9-$Q$15)/($D$10-$D$12+1)+ AL15)) -> 0.1 | AN15: =IF(AN14>=$D$10,$D$9,IF(AN14<$D$12,AM15,($D$9-$Q$15)/($D$10-$D$12+1)+ AM15)) -> 0.1 | AQ15: =AQ16/S7_Outputs!AQ8 ->  | AR15: =AR16/S7_Outputs!AR8 ->  | AS15: =AS16/S7_Outputs!AS8 ->  | AT15: =AT16/S7_Outputs!AT8 ->  | AU15: =AU16/S7_Outputs!AU8 ->  | AV15: =AV16/S7_Outputs!AV8 ->  | AW15: =AW16/S7_Outputs!AW8 ->  | AX15: =AX16/S7_Outputs!AX8 ->  | AY15: =AY16/S7_Outputs!AY8 ->  | AZ15: =AZ16/S7_Outputs!AZ8 ->  | BA15: =BA16/S7_Outputs!BA8 ->  | BB15: =BB16/S7_Outputs!BB8 ->  | BC15: =BC16/S7_Outputs!BC8 ->  | BD15: =BD16/S7_Outputs!BD8 ->  | BE15: =BE16/S7_Outputs!BE8 ->  | BF15: =BF16/S7_Outputs!BF8 ->  | BG15: =BG16/S7_Outputs!BG8 ->  | BH15: =BH16/S7_Outputs!BH8 ->  | BI15: =BI16/S7_Outputs!BI8 ->  | BJ15: =BJ16/S7_Outputs!BJ8 ->  | BK15: =BK16/S7_Outputs!BK8 ->  | BL15: =BL16/S7_Outputs!BL8 ->  | BM15: =BM16/S7_Outputs!BM8 ->  | BN15: =BN16/S7_Outputs!BN8 ->  | BO15: =BO16/S7_Outputs!BO8 ->  | BP15: =BP16/S7_Outputs!BP8 ->  | BQ15: =BQ16/S7_Outputs!BQ8 ->  | BR15: =BR16/S7_Outputs!BR8 ->  | BS15: =BS16/S7_Outputs!BS8 ->  | BT15: =BT16/S7_Outputs!BT8 ->  | BU15: =BU16/S7_Outputs!BU8 ->  | BV15: =BV16/S7_Outputs!BV8 ->  | BW15: =BW16/S7_Outputs!BW8 ->  | BX15: =BX16/S7_Outputs!BX8 ->  | BY15: =BY16/S7_Outputs!BY8 ->  | BZ15: =BZ16/S7_Outputs!BZ8 ->  | CA15: =CA16/S7_Outputs!CA8 ->  | CB15: =CB16/S7_Outputs!CB8 ->  | CC15: =CC16/S7_Outputs!CC8 ->  | CD15: =CD16/S7_Outputs!CD8 ->  | CE15: =CE16/S7_Outputs!CE8 ->  | CF15: =CF16/S7_Outputs!CF8 ->  | CG15: =CG16/S7_Outputs!CG8 ->  | CH15: =CH16/S7_Outputs!CH8 ->  | CI15: =CI16/S7_Outputs!CI8 ->  | CJ15: =CJ16/S7_Outputs!CJ8 ->  | CK15: =CK16/S7_Outputs!CK8 ->  | CL15: =CL16/S7_Outputs!CL8 ->  | CM15: =CM16/S7_Outputs!CM8 ->  | CN15: =CN16/S7_Outputs!CN8 ->  | CO15: =CO16/S7_Outputs!CO8 ->  | CP15: =CP16/S7_Outputs!CP8 ->  | CQ15: =CQ16/S7_Outputs!CQ8 ->  | CR15: =CR16/S7_Outputs!CR8 ->  | CS15: =CS16/S7_Outputs!CS8 ->  | CT15: =CT16/S7_Outputs!CT8 ->  | CU15: =CU16/S7_Outputs!CU8 ->  | CV15: =CV16/S7_Outputs!CV8 ->  | CW15: =CW16/S7_Outputs!CW8 ->  | CX15: =CX16/S7_Outputs!CX8 ->  | CY15: =CY16/S7_Outputs!CY8 ->  | CZ15: =CZ16/S7_Outputs!CZ8 ->  | DA15: =DA16/S7_Outputs!DA8 ->  | DB15: =DB16/S7_Outputs!DB8 ->  | DC15: =DC16/S7_Outputs!DC8 ->  | DD15: =DD16/S7_Outputs!DD8 ->  | DE15: =DE16/S7_Outputs!DE8 ->  | DF15: =DF16/S7_Outputs!DF8 ->  | DG15: =DG16/S7_Outputs!DG8 ->  | DH15: =DH16/S7_Outputs!DH8 ->  | DI15: =DI16/S7_Outputs!DI8 ->  | DJ15: =DJ16/S7_Outputs!DJ8 ->  | DK15: =DK16/S7_Outputs!DK8 ->  | DL15: =DL16/S7_Outputs!DL8 ->  | DM15: =DM16/S7_Outputs!DM8 ->  | DN15: =DN16/S7_Outputs!DN8 ->  | DO15: =DO16/S7_Outputs!DO8 ->  | DP15: =DP16/S7_Outputs!DP8 ->  | DQ15: =DQ16/S7_Outputs!DQ8 ->  | DR15: =DR16/S7_Outputs!DR8 ->  | DS15: =DS16/S7_Outputs!DS8 ->  | DT15: =DT16/S7_Outputs!DT8 ->  | DU15: =DU16/S7_Outputs!DU8 ->  | DV15: =DV16/S7_Outputs!DV8 ->  | DW15: =DW16/S7_Outputs!DW8 ->  | DX15: =DX16/S7_Outputs!DX8 ->  | DY15: =DY16/S7_Outputs!DY8 ->  | DZ15: =DZ16/S7_Outputs!DZ8 ->  | EA15: =EA16/S7_Outputs!EA8 ->  | EB15: =EB16/S7_Outputs!EB8 ->  | EC15: =EC16/S7_Outputs!EC8 ->  | ED15: =ED16/S7_Outputs!ED8 ->  | EE15: =EE16/S7_Outputs!EE8 ->  | EF15: =EF16/S7_Outputs!EF8 ->  | EG15: =EG16/S7_Outputs!EG8 ->  | EH15: =EH16/S7_Outputs!EH8 ->  | EI15: =EI16/S7_Outputs!EI8 ->  | EJ15: =EJ16/S7_Outputs!EJ8 ->  | EK15: =EK16/S7_Outputs!EK8 ->  | EL15: =EL16/S7_Outputs!EL8 ->  | EM15: =EM16/S7_Outputs!EM8 ->  | EN15: =EN16/S7_Outputs!EN8 ->  | EO15: =EO16/S7_Outputs!EO8 ->  | EP15: =EP16/S7_Outputs!EP8 ->  | EQ15: =EQ16/S7_Outputs!EQ8 ->  | ER15: =ER16/S7_Outputs!ER8 ->  | ES15: =ES16/S7_Outputs!ES8 ->  | ET15: =ET16/S7_Outputs!ET8 ->  | EU15: =EU16/S7_Outputs!EU8 ->  | EV15: =EV16/S7_Outputs!EV8 ->  | EW15: =EW16/S7_Outputs!EW8 ->  | EX15: =EX16/S7_Outputs!EX8 ->  | EY15: =EY16/S7_Outputs!EY8 ->  | EZ15: =EZ16/S7_Outputs!EZ8 ->  | FA15: =FA16/S7_Outputs!FA8 ->  | FB15: =FB16/S7_Outputs!FB8 ->  | FC15: =FC16/S7_Outputs!FC8 ->  | FD15: =FD16/S7_Outputs!FD8 ->  | FE15: =FE16/S7_Outputs!FE8 ->  | FF15: =FF16/S7_Outputs!FF8 ->  | FG15: =FG16/S7_Outputs!FG8 ->  | FH15: =FH16/S7_Outputs!FH8 ->  | FI15: =FI16/S7_Outputs!FI8 ->  | FJ15: =FJ16/S7_Outputs!FJ8 ->  | FK15: =FK16/S7_Outputs!FK8 ->  | FL15: =FL16/S7_Outputs!FL8 ->  | FM15: =FM16/S7_Outputs!FM8 ->  | FN15: =FN16/S7_Outputs!FN8 ->  | FO15: =FO16/S7_Outputs!FO8 ->  | FP15: =FP16/S7_Outputs!FP8 ->  | FQ15: =FQ16/S7_Outputs!FQ8 ->  | FR15: =FR16/S7_Outputs!FR8 ->  | FS15: =FS16/S7_Outputs!FS8 ->  | FT15: =FT16/S7_Outputs!FT8 ->  | FU15: =FU16/S7_Outputs!FU8 ->  | FV15: =FV16/S7_Outputs!FV8 ->  | FW15: =FW16/S7_Outputs!FW8 ->  | FX15: =FX16/S7_Outputs!FX8 ->  | FY15: =FY16/S7_Outputs!FY8 ->  | FZ15: =FZ16/S7_Outputs!FZ8 ->  | GA15: =GA16/S7_Outputs!GA8 ->  | GB15: =GB16/S7_Outputs!GB8 ->  | GC15: =GC16/S7_Outputs!GC8 ->  | GD15: =GD16/S7_Outputs!GD8 ->  | GE15: =GE16/S7_Outputs!GE8 ->  | GF15: =GF16/S7_Outputs!GF8 ->  | GG15: =GG16/S7_Outputs!GG8 ->  | GH15: =GH16/S7_Outputs!GH8 ->  | GI15: =GI16/S7_Outputs!GI8 ->  | GJ15: =GJ16/S7_Outputs!GJ8 ->  | GK15: =GK16/S7_Outputs!GK8 ->  | GL15: =GL16/S7_Outputs!GL8 ->  | GM15: =GM16/S7_Outputs!GM8 ->  | GN15: =GN16/S7_Outputs!GN8 ->  | GO15: =GO16/S7_Outputs!GO8 ->  | GP15: =GP16/S7_Outputs!GP8 ->  | GQ15: =GQ16/S7_Outputs!GQ8 ->  | GR15: =GR16/S7_Outputs!GR8 ->  | GS15: =GS16/S7_Outputs!GS8 ->  | GT15: =GT16/S7_Outputs!GT8 ->  | GU15: =GU16/S7_Outputs!GU8 ->  | GV15: =GV16/S7_Outputs!GV8 ->  | GW15: =GW16/S7_Outputs!GW8 ->  | GX15: =GX16/S7_Outputs!GX8 ->  | GY15: =GY16/S7_Outputs!GY8 ->  | GZ15: =GZ16/S7_Outputs!GZ8 ->  | HA15: =HA16/S7_Outputs!HA8 ->  | HB15: =HB16/S7_Outputs!HB8 ->  | HC15: =HC16/S7_Outputs!HC8 ->  | HD15: =HD16/S7_Outputs!HD8 ->  | HE15: =HE16/S7_Outputs!HE8 ->  | HF15: =HF16/S7_Outputs!HF8 ->  | HG15: =HG16/S7_Outputs!HG8 ->  | HH15: =HH16/S7_Outputs!HH8 ->  | HI15: =HI16/S7_Outputs!HI8 ->  | HJ15: =HJ16/S7_Outputs!HJ8 ->  | HK15: =HK16/S7_Outputs!HK8 ->  | HL15: =HL16/S7_Outputs!HL8 ->  | HM15: =HM16/S7_Outputs!HM8 ->  | HN15: =HN16/S7_Outputs!HN8 ->  | HO15: =HO16/S7_Outputs!HO8 ->  | HP15: =HP16/S7_Outputs!HP8 ->  | HQ15: =HQ16/S7_Outputs!HQ8 ->  | HR15: =HR16/S7_Outputs!HR8 ->  | HS15: =HS16/S7_Outputs!HS8 ->  | HT15: =HT16/S7_Outputs!HT8 ->  | HU15: =HU16/S7_Outputs!HU8 ->  | HV15: =HV16/S7_Outputs!HV8 ->  | HW15: =HW16/S7_Outputs!HW8 ->  | HX15: =HX16/S7_Outputs!HX8 ->  | HY15: =HY16/S7_Outputs!HY8 ->  | HZ15: =HZ16/S7_Outputs!HZ8 ->  | IA15: =IA16/S7_Outputs!IA8 ->  | IB15: =IB16/S7_Outputs!IB8 ->  | IC15: =IC16/S7_Outputs!IC8 ->  | ID15: =ID16/S7_Outputs!ID8 ->  | IE15: =IE16/S7_Outputs!IE8 ->  | IF15: =IF16/S7_Outputs!IF8 ->  | IG15: =IG16/S7_Outputs!IG8 ->  | IH15: =IH16/S7_Outputs!IH8 ->  | II15: =II16/S7_Outputs!II8 ->  | IJ15: =IJ16/S7_Outputs!IJ8 ->  | IK15: =IK16/S7_Outputs!IK8 ->  | IL15: =IL16/S7_Outputs!IL8 ->  | IM15: =IM16/S7_Outputs!IM8 ->  | IN15: =IN16/S7_Outputs!IN8 ->  | IO15: =IO16/S7_Outputs!IO8 ->  | IP15: =IP16/S7_Outputs!IP8 ->  | IQ15: =IQ16/S7_Outputs!IQ8 ->  | IR15: =IR16/S7_Outputs!IR8 ->  | IS15: =IS16/S7_Outputs!IS8 ->  | IT15: =IT16/S7_Outputs!IT8 ->  | IU15: =IU16/S7_Outputs!IU8 ->  | IV15: =IV16/S7_Outputs!IV8 ->  | IW15: =IW16/S7_Outputs!IW8 ->  | IX15: =IX16/S7_Outputs!IX8 ->  | IY15: =IY16/S7_Outputs!IY8 ->  | IZ15: =IZ16/S7_Outputs!IZ8 ->  | JA15: =JA16/S7_Outputs!JA8 ->  | JB15: =JB16/S7_Outputs!JB8 ->  | JC15: =JC16/S7_Outputs!JC8 ->  | JD15: =JD16/S7_Outputs!JD8 ->  | JE15: =JE16/S7_Outputs!JE8 ->  | JF15: =JF16/S7_Outputs!JF8 ->  | JG15: =JG16/S7_Outputs!JG8 ->  | JH15: =JH16/S7_Outputs!JH8 ->  | JI15: =JI16/S7_Outputs!JI8 ->  | JJ15: =JJ16/S7_Outputs!JJ8 ->  | JK15: =JK16/S7_Outputs!JK8 ->  | JL15: =JL16/S7_Outputs!JL8 ->  | JM15: =JM16/S7_Outputs!JM8 ->  | JN15: =JN16/S7_Outputs!JN8 ->  | JO15: =JO16/S7_Outputs!JO8 ->  | JP15: =JP16/S7_Outputs!JP8 ->  | JQ15: =JQ16/S7_Outputs!JQ8 ->  | JR15: =JR16/S7_Outputs!JR8 ->  | JS15: =JS16/S7_Outputs!JS8 ->  | JT15: =JT16/S7_Outputs!JT8 ->  | JU15: =JU16/S7_Outputs!JU8 ->  | JV15: =JV16/S7_Outputs!JV8 ->  | JW15: =JW16/S7_Outputs!JW8 ->  | JX15: =JX16/S7_Outputs!JX8 ->  | JY15: =JY16/S7_Outputs!JY8 ->  | JZ15: =JZ16/S7_Outputs!JZ8 ->  | KA15: =KA16/S7_Outputs!KA8 ->  | KB15: =KB16/S7_Outputs!KB8 ->  | KC15: =KC16/S7_Outputs!KC8 ->  | KD15: =KD16/S7_Outputs!KD8 ->  | KE15: =KE16/S7_Outputs!KE8 ->  | KF15: =KF16/S7_Outputs!KF8 ->  | KG15: =KG16/S7_Outputs!KG8 ->  | KH15: =KH16/S7_Outputs!KH8 ->  | KI15: =KI16/S7_Outputs!KI8 ->  | KJ15: =KJ16/S7_Outputs!KJ8 ->  | KK15: =KK16/S7_Outputs!KK8 ->  | KL15: =KL16/S7_Outputs!KL8 ->  | KM15: =KM16/S7_Outputs!KM8 ->  | KN15: =KN16/S7_Outputs!KN8 ->  | KO15: =KO16/S7_Outputs!KO8 ->  | KP15: =KP16/S7_Outputs!KP8 ->  | KQ15: =KQ16/S7_Outputs!KQ8 ->  | KR15: =KR16/S7_Outputs!KR8 ->  | KS15: =KS16/S7_Outputs!KS8 ->  | KT15: =KT16/S7_Outputs!KT8 ->  | KU15: =KU16/S7_Outputs!KU8 ->  | KV15: =KV16/S7_Outputs!KV8 ->  | KW15: =KW16/S7_Outputs!KW8 ->  | KX15: =KX16/S7_Outputs!KX8 ->  | KY15: =KY16/S7_Outputs!KY8 ->  | KZ15: =KZ16/S7_Outputs!KZ8 ->  | LA15: =LA16/S7_Outputs!LA8 ->  | LB15: =LB16/S7_Outputs!LB8 ->  | LC15: =LC16/S7_Outputs!LC8 ->  | LD15: =LD16/S7_Outputs!LD8 ->  | LE15: =LE16/S7_Outputs!LE8 ->  | LF15: =LF16/S7_Outputs!LF8 ->  | LG15: =LG16/S7_Outputs!LG8 ->  | LH15: =LH16/S7_Outputs!LH8 ->  | LI15: =LI16/S7_Outputs!LI8 ->  | LJ15: =LJ16/S7_Outputs!LJ8 ->  | LK15: =LK16/S7_Outputs!LK8 ->  | LL15: =LL16/S7_Outputs!LL8 ->  | LM15: =LM16/S7_Outputs!LM8 ->  | LN15: =LN16/S7_Outputs!LN8 ->  | LO15: =LO16/S7_Outputs!LO8 ->  | LP15: =LP16/S7_Outputs!LP8 ->  | LQ15: =LQ16/S7_Outputs!LQ8 ->  | LR15: =LR16/S7_Outputs!LR8 ->  | LS15: =LS16/S7_Outputs!LS8 ->  | LT15: =LT16/S7_Outputs!LT8 ->  | LU15: =LU16/S7_Outputs!LU8 ->  | LV15: =LV16/S7_Outputs!LV8 ->  | LW15: =LW16/S7_Outputs!LW8 ->  | LX15: =LX16/S7_Outputs!LX8 ->  | LY15: =LY16/S7_Outputs!LY8 ->  | LZ15: =LZ16/S7_Outputs!LZ8 ->  | MA15: =MA16/S7_Outputs!MA8 ->  | MB15: =MB16/S7_Outputs!MB8 ->  | MC15: =MC16/S7_Outputs!MC8 ->  | MD15: =MD16/S7_Outputs!MD8 ->  | ME15: =ME16/S7_Outputs!ME8 ->  | MF15: =MF16/S7_Outputs!MF8 ->  | MG15: =MG16/S7_Outputs!MG8 ->  | MH15: =MH16/S7_Outputs!MH8 ->  | MI15: =MI16/S7_Outputs!MI8 ->  | MJ15: =MJ16/S7_Outputs!MJ8 ->  | MK15: =MK16/S7_Outputs!MK8 ->  | ML15: =ML16/S7_Outputs!ML8 ->  | MM15: =MM16/S7_Outputs!MM8 ->  | MN15: =MN16/S7_Outputs!MN8 ->  | MO15: =MO16/S7_Outputs!MO8 ->  | MP15: =MP16/S7_Outputs!MP8 ->  | MQ15: =MQ16/S7_Outputs!MQ8 ->  | MR15: =MR16/S7_Outputs!MR8 ->  | MS15: =MS16/S7_Outputs!MS8 ->  | MT15: =MT16/S7_Outputs!MT8 ->  | MU15: =MU16/S7_Outputs!MU8 ->  | MV15: =MV16/S7_Outputs!MV8 ->  | MW15: =MW16/S7_Outputs!MW8 ->  | MX15: =MX16/S7_Outputs!MX8 ->  | MY15: =MY16/S7_Outputs!MY8 ->  | MZ15: =MZ16/S7_Outputs!MZ8 ->  | NA15: =NA16/S7_Outputs!NA8 ->  | NB15: =NB16/S7_Outputs!NB8 ->  | NC15: =NC16/S7_Outputs!NC8 ->  | ND15: =ND16/S7_Outputs!ND8 ->  | NE15: =NE16/S7_Outputs!NE8 ->  | NF15: =NF16/S7_Outputs!NF8 ->  | NG15: =NG16/S7_Outputs!NG8 ->  | NH15: =NH16/S7_Outputs!NH8 ->  | NI15: =NI16/S7_Outputs!NI8 ->  | NJ15: =NJ16/S7_Outputs!NJ8 ->  | NK15: =NK16/S7_Outputs!NK8 ->  | NL15: =NL16/S7_Outputs!NL8 ->  | NM15: =NM16/S7_Outputs!NM8 ->  | NN15: =NN16/S7_Outputs!NN8 ->  | NO15: =NO16/S7_Outputs!NO8 ->  | NP15: =NP16/S7_Outputs!NP8 ->  | NQ15: =NQ16/S7_Outputs!NQ8 ->  | NR15: =NR16/S7_Outputs!NR8 ->  | NS15: =NS16/S7_Outputs!NS8 ->  | NT15: =NT16/S7_Outputs!NT8 ->  | NU15: =NU16/S7_Outputs!NU8 ->  | NV15: =NV16/S7_Outputs!NV8 ->  | NW15: =NW16/S7_Outputs!NW8 ->  | NX15: =NX16/S7_Outputs!NX8 ->  | NY15: =NY16/S7_Outputs!NY8 ->  | NZ15: =NZ16/S7_Outputs!NZ8 ->  | OA15: =OA16/S7_Outputs!OA8 ->  | OB15: =OB16/S7_Outputs!OB8 ->  | OC15: =OC16/S7_Outputs!OC8 ->  | OD15: =OD16/S7_Outputs!OD8 ->  | OE15: =OE16/S7_Outputs!OE8 ->  | OF15: =OF16/S7_Outputs!OF8 ->  | OG15: =OG16/S7_Outputs!OG8 ->  | OH15: =OH16/S7_Outputs!OH8 ->  | OI15: =OI16/S7_Outputs!OI8 ->  | OJ15: =OJ16/S7_Outputs!OJ8 ->  | OK15: =OK16/S7_Outputs!OK8 ->  | OL15: =OL16/S7_Outputs!OL8 ->  | OM15: =OM16/S7_Outputs!OM8 ->  | ON15: =ON16/S7_Outputs!ON8 ->  | OO15: =OO16/S7_Outputs!OO8 ->  | OP15: =OP16/S7_Outputs!OP8 ->  | OQ15: =OQ16/S7_Outputs!OQ8 ->  | OR15: =OR16/S7_Outputs!OR8 ->  | OS15: =OS16/S7_Outputs!OS8 ->  | OT15: =OT16/S7_Outputs!OT8 ->  | OU15: =OU16/S7_Outputs!OU8 ->  | OV15: =OV16/S7_Outputs!OV8 ->  | OW15: =OW16/S7_Outputs!OW8 ->  | OX15: =OX16/S7_Outputs!OX8 ->  | OY15: =OY16/S7_Outputs!OY8 ->  | OZ15: =OZ16/S7_Outputs!OZ8 ->  | PA15: =PA16/S7_Outputs!PA8 ->  | PB15: =PB16/S7_Outputs!PB8 ->  | PC15: =PC16/S7_Outputs!PC8 ->  | PD15: =PD16/S7_Outputs!PD8 ->  | PE15: =PE16/S7_Outputs!PE8 ->  | PF15: =PF16/S7_Outputs!PF8 ->  | PG15: =PG16/S7_Outputs!PG8 ->  | PH15: =PH16/S7_Outputs!PH8 ->  | PI15: =PI16/S7_Outputs!PI8 ->  | PJ15: =PJ16/S7_Outputs!PJ8 ->  | PK15: =PK16/S7_Outputs!PK8 ->  | PL15: =PL16/S7_Outputs!PL8 ->  | PM15: =PM16/S7_Outputs!PM8 ->  | PN15: =PN16/S7_Outputs!PN8 ->  | PO15: =PO16/S7_Outputs!PO8 ->  | PP15: =PP16/S7_Outputs!PP8 ->  | PQ15: =PQ16/S7_Outputs!PQ8 ->  | PR15: =PR16/S7_Outputs!PR8 ->  | PS15: =PS16/S7_Outputs!PS8 ->  | PT15: =PT16/S7_Outputs!PT8 ->  | PU15: =PU16/S7_Outputs!PU8 ->  | PV15: =PV16/S7_Outputs!PV8 ->  | PW15: =PW16/S7_Outputs!PW8 ->  | PX15: =PX16/S7_Outputs!PX8 ->  | PY15: =PY16/S7_Outputs!PY8 ->  | PZ15: =PZ16/S7_Outputs!PZ8 ->  | QA15: =QA16/S7_Outputs!QA8 ->  | QB15: =QB16/S7_Outputs!QB8 ->  | QC15: =QC16/S7_Outputs!QC8 ->  | QD15: =QD16/S7_Outputs!QD8 ->  | QE15: =QE16/S7_Outputs!QE8 ->  | QF15: =QF16/S7_Outputs!QF8 ->  | QG15: =QG16/S7_Outputs!QG8 ->  | QH15: =QH16/S7_Outputs!QH8 ->  | QI15: =QI16/S7_Outputs!QI8 ->  | QJ15: =QJ16/S7_Outputs!QJ8 ->  | QK15: =QK16/S7_Outputs!QK8 ->  | QL15: =QL16/S7_Outputs!QL8 ->  | QM15: =QM16/S7_Outputs!QM8 ->  | QN15: =QN16/S7_Outputs!QN8 ->  | QO15: =QO16/S7_Outputs!QO8 ->  | QP15: =QP16/S7_Outputs!QP8 ->  | QQ15: =QQ16/S7_Outputs!QQ8 ->  | QR15: =QR16/S7_Outputs!QR8 ->  | QS15: =QS16/S7_Outputs!QS8 ->  | QT15: =QT16/S7_Outputs!QT8 ->  | QU15: =QU16/S7_Outputs!QU8 ->  | QV15: =QV16/S7_Outputs!QV8 ->  | QW15: =QW16/S7_Outputs!QW8 ->  | QX15: =QX16/S7_Outputs!QX8 ->  | QY15: =QY16/S7_Outputs!QY8 ->  | QZ15: =QZ16/S7_Outputs!QZ8 ->  | RA15: =RA16/S7_Outputs!RA8 ->  | RB15: =RB16/S7_Outputs!RB8 ->  | RC15: =RC16/S7_Outputs!RC8 ->  | RD15: =RD16/S7_Outputs!RD8 ->  | RE15: =RE16/S7_Outputs!RE8 ->  | RF15: =RF16/S7_Outputs!RF8 ->  | RG15: =RG16/S7_Outputs!RG8 ->  | RH15: =RH16/S7_Outputs!RH8 ->  | RI15: =RI16/S7_Outputs!RI8 ->  | RJ15: =RJ16/S7_Outputs!RJ8 ->  | RK15: =RK16/S7_Outputs!RK8 ->  | RL15: =RL16/S7_Outputs!RL8 ->  | RM15: =RM16/S7_Outputs!RM8 ->  | RN15: =RN16/S7_Outputs!RN8 ->  | RO15: =RO16/S7_Outputs!RO8 ->  | RP15: =RP16/S7_Outputs!RP8 ->  | RQ15: =RQ16/S7_Outputs!RQ8 ->  | RR15: =RR16/S7_Outputs!RR8 -> 
C16: Cumulative savings | D16: MWh | F16: =F15*S7_Outputs!F8 -> 152771 | G16: =G15*S7_Outputs!G8 -> 383231.3381 | H16: =H15*S7_Outputs!H8 -> 704183.6448 | I16: =I15*S7_Outputs!I8 -> 1064551.102 | J16: =J15*S7_Outputs!J8 -> 1454611.044 | K16: =K15*S7_Outputs!K8 -> 1897064.529 | L16: =L15*S7_Outputs!L8 -> 2269648.66 | M16: =M15*S7_Outputs!M8 -> 2647002.262 | N16: =N15*S7_Outputs!N8 -> 2990994.122 | O16: =O15*S7_Outputs!O8 -> 3174464.332 | P16: =P15*S7_Outputs!P8 -> 3398885.51 | Q16: =Q15*S7_Outputs!Q8 -> 3727007.182 | R16: =R15*S7_Outputs!R8 -> 4999989.003 | S16: =S15*S7_Outputs!S8 -> 6290318.428 | T16: =T15*S7_Outputs!T8 -> 7598173.96 | U16: =U15*S7_Outputs!U8 -> 8923735.733 | V16: =V15*S7_Outputs!V8 -> 10267185.53 | W16: =W15*S7_Outputs!W8 -> 11628706.81 | X16: =X15*S7_Outputs!X8 -> 13008484.7 | Y16: =Y15*S7_Outputs!Y8 -> 15715388.31 | Z16: =Z15*S7_Outputs!Z8 -> 15823559.26 | AA16: =AA15*S7_Outputs!AA8 -> 15932474.77 | AB16: =AB15*S7_Outputs!AB8 -> 16042139.95 | AC16: =AC15*S7_Outputs!AC8 -> 16152559.97 | AD16: =AD15*S7_Outputs!AD8 -> 16263740.03 | AE16: =AE15*S7_Outputs!AE8 -> 16375685.35 | AF16: =AF15*S7_Outputs!AF8 -> 16488401.21 | AG16: =AG15*S7_Outputs!AG8 -> 16601892.9 | AH16: =AH15*S7_Outputs!AH8 -> 16716165.77 | AI16: =AI15*S7_Outputs!AI8 -> 16831225.2 | AJ16: =AJ15*S7_Outputs!AJ8 -> 16947076.59 | AK16: =AK15*S7_Outputs!AK8 -> 17063725.4 | AL16: =AL15*S7_Outputs!AL8 -> 17181177.12 | AM16: =AM15*S7_Outputs!AM8 -> 17299437.28 | AN16: =AN15*S7_Outputs!AN8 -> 17418511.43
C17: Annual incremental savings | D17: MWh | F17: =F16*(1-A_MeasureExpiration!E18) -> 152771 | G17: =G16-$F$17*(1-A_MeasureExpiration!F18) -> 241261 | H17: =H16-$F$17*(1-A_MeasureExpiration!G18)-$G$17*(1-A_MeasureExpiration!F18) -> 338884 | I17: =I16-$F$17*(1-A_MeasureExpiration!H18)-$G$17*(1-A_MeasureExpiration!G18)-$H$17*(1-A_MeasureExpiration!F18) -> 386604 | J17: =J16-$F$17*(1-A_MeasureExpiration!I18)-$G$17*(1-A_MeasureExpiration!H18)-$H$17*(1-A_MeasureExpiration!G18)-$I$17*(1-A_MeasureExpiration!F18) -> 421514 | K17: =K16-$F$17*(1-A_MeasureExpiration!J18)-$G$17*(1-A_MeasureExpiration!I18)-$H$17*(1-A_MeasureExpiration!H18)-$I$17*(1-A_MeasureExpiration!G18)-$J$17*(1-A_MeasureExpiration!F18) -> 479860 | L17: =L16-$F$17*(1-A_MeasureExpiration!K18)-$G$17*(1-A_MeasureExpiration!J18)-$H$17*(1-A_MeasureExpiration!I18)-$I$17*(1-A_MeasureExpiration!H18)-$J$17*(1-A_MeasureExpiration!G18)-$K$17*(1-A_MeasureExpiration!F18) -> 421789.12 | M17: =M16-$F$17*(1-A_MeasureExpiration!L18)-$G$17*(1-A_MeasureExpiration!K18)-$H$17*(1-A_MeasureExpiration!J18)-$I$17*(1-A_MeasureExpiration!I18)-$J$17*(1-A_MeasureExpiration!H18)-$K$17*(1-A_MeasureExpiration!G18)-$L$17*(1-A_MeasureExpiration!F18) -> 434506.628 | N17: =N16-$F$17*(1-A_MeasureExpiration!M18)-$G$17*(1-A_MeasureExpiration!L18)-$H$17*(1-A_MeasureExpiration!K18)-$I$17*(1-A_MeasureExpiration!J18)-$J$17*(1-A_MeasureExpiration!I18)-$K$17*(1-A_MeasureExpiration!H18)-$L$17*(1-A_MeasureExpiration!G18)-$M$17*(1-A_MeasureExpiration!F18) -> 421164.456 | O17: =O16-$F$17*(1-A_MeasureExpiration!N18)-$G$17*(1-A_MeasureExpiration!M18)-$H$17*(1-A_MeasureExpiration!L18)-$I$17*(1-A_MeasureExpiration!K18)-$J$17*(1-A_MeasureExpiration!J18)-$K$17*(1-A_MeasureExpiration!I18)-$L$17*(1-A_MeasureExpiration!H18)-$M$17*(1-A_MeasureExpiration!G18)-$N$17*(1-A_MeasureExpiration!F18) -> 280328.7306 | P17: =P16-$F$17*(1-A_MeasureExpiration!O18)-$G$17*(1-A_MeasureExpiration!N18)-$H$17*(1-A_MeasureExpiration!M18)-$I$17*(1-A_MeasureExpiration!L18)-$J$17*(1-A_MeasureExpiration!K18)-$K$17*(1-A_MeasureExpiration!J18)-$L$17*(1-A_MeasureExpiration!I18)-$M$17*(1-A_MeasureExpiration!H18)-$N$17*(1-A_MeasureExpiration!G18)-$O$17*(1-A_MeasureExpiration!F18) -> 336633.5529 | Q17: =Q16-$F$17*(1-A_MeasureExpiration!P18)-$G$17*(1-A_MeasureExpiration!O18)-$H$17*(1-A_MeasureExpiration!N18)-$I$17*(1-A_MeasureExpiration!M18)-$J$17*(1-A_MeasureExpiration!L18)-$K$17*(1-A_MeasureExpiration!K18)-$L$17*(1-A_MeasureExpiration!J18)-$M$17*(1-A_MeasureExpiration!I18)-$N$17*(1-A_MeasureExpiration!H18)-$O$17*(1-A_MeasureExpiration!G18) -> 785383.2826 | R17: =R16-$F$17*(1-A_MeasureExpiration!Q18)-$G$17*(1-A_MeasureExpiration!P18)-$H$17*(1-A_MeasureExpiration!O18)-$I$17*(1-A_MeasureExpiration!N18)-$J$17*(1-A_MeasureExpiration!M18)-$K$17*(1-A_MeasureExpiration!L18)-$L$17*(1-A_MeasureExpiration!K18)-$M$17*(1-A_MeasureExpiration!J18)-$N$17*(1-A_MeasureExpiration!I18)-$O$17*(1-A_MeasureExpiration!H18)-$P$17*(1-A_MeasureExpiration!G18)-$Q$17*(1-A_MeasureExpiration!F18) -> 1169964.492 | S17: =S16-$F$17*(1-A_MeasureExpiration!R18)-$G$17*(1-A_MeasureExpiration!Q18)-$H$17*(1-A_MeasureExpiration!P18)-$I$17*(1-A_MeasureExpiration!O18)-$J$17*(1-A_MeasureExpiration!N18)-$K$17*(1-A_MeasureExpiration!M18)-$L$17*(1-A_MeasureExpiration!L18)-$M$17*(1-A_MeasureExpiration!K18)-$N$17*(1-A_MeasureExpiration!J18)-$O$17*(1-A_MeasureExpiration!I18)-$P$17*(1-A_MeasureExpiration!H18)-$Q$17*(1-A_MeasureExpiration!G18)-$R$17*(1-A_MeasureExpiration!F18) -> 1567361.819 | T17: =T16-$F$17*(1-A_MeasureExpiration!S18)-$G$17*(1-A_MeasureExpiration!R18)-$H$17*(1-A_MeasureExpiration!Q18)-$I$17*(1-A_MeasureExpiration!P18)-$J$17*(1-A_MeasureExpiration!O18)-$K$17*(1-A_MeasureExpiration!N18)-$L$17*(1-A_MeasureExpiration!M18)-$M$17*(1-A_MeasureExpiration!L18)-$N$17*(1-A_MeasureExpiration!K18)-$O$17*(1-A_MeasureExpiration!J18)-$P$17*(1-A_MeasureExpiration!I18)-$Q$17*(1-A_MeasureExpiration!H18)-$R$17*(1-A_MeasureExpiration!G18)-$S$17*(1-A_MeasureExpiration!F18) -> 1651043.293 | U17: =U16-$F$17*(1-A_MeasureExpiration!T18)-$G$17*(1-A_MeasureExpiration!S18)-$H$17*(1-A_MeasureExpiration!R18)-$I$17*(1-A_MeasureExpiration!Q18)-$J$17*(1-A_MeasureExpiration!P18)-$K$17*(1-A_MeasureExpiration!O18)-$L$17*(1-A_MeasureExpiration!N18)-$M$17*(1-A_MeasureExpiration!M18)-$N$17*(1-A_MeasureExpiration!L18)-$O$17*(1-A_MeasureExpiration!K18)-$P$17*(1-A_MeasureExpiration!J18)-$Q$17*(1-A_MeasureExpiration!I18)-$R$17*(1-A_MeasureExpiration!H18)-$S$17*(1-A_MeasureExpiration!G18)-$T$17*(1-A_MeasureExpiration!F18) -> 1726381.108 | V17: =V16-$F$17*(1-A_MeasureExpiration!U18)-$G$17*(1-A_MeasureExpiration!T18)-$H$17*(1-A_MeasureExpiration!S18)-$I$17*(1-A_MeasureExpiration!R18)-$J$17*(1-A_MeasureExpiration!Q18)-$K$17*(1-A_MeasureExpiration!P18)-$L$17*(1-A_MeasureExpiration!O18)-$M$17*(1-A_MeasureExpiration!N18)-$N$17*(1-A_MeasureExpiration!M18)-$O$17*(1-A_MeasureExpiration!L18)-$P$17*(1-A_MeasureExpiration!K18)-$Q$17*(1-A_MeasureExpiration!J18)-$R$17*(1-A_MeasureExpiration!I18)-$S$17*(1-A_MeasureExpiration!H18)-$T$17*(1-A_MeasureExpiration!G18)-$U$17*(1-A_MeasureExpiration!F18) -> 1791852.007 | W17: =W16-$F$17*(1-A_MeasureExpiration!V18)-$G$17*(1-A_MeasureExpiration!U18)-$H$17*(1-A_MeasureExpiration!T18)-$I$17*(1-A_MeasureExpiration!S18)-$J$17*(1-A_MeasureExpiration!R18)-$K$17*(1-A_MeasureExpiration!Q18)-$L$17*(1-A_MeasureExpiration!P18)-$M$17*(1-A_MeasureExpiration!O18)-$N$17*(1-A_MeasureExpiration!N18)-$O$17*(1-A_MeasureExpiration!M18)-$P$17*(1-A_MeasureExpiration!L18)-$Q$17*(1-A_MeasureExpiration!K18)-$R$17*(1-A_MeasureExpiration!J18)-$S$17*(1-A_MeasureExpiration!I18)-$T$17*(1-A_MeasureExpiration!H18)-$U$17*(1-A_MeasureExpiration!G18)-$V$17*(1-A_MeasureExpiration!F18) -> 1863034.003 | X17: =X16-$F$17*(1-A_MeasureExpiration!W18)-$G$17*(1-A_MeasureExpiration!V18)-$H$17*(1-A_MeasureExpiration!U18)-$I$17*(1-A_MeasureExpiration!T18)-$J$17*(1-A_MeasureExpiration!S18)-$K$17*(1-A_MeasureExpiration!R18)-$L$17*(1-A_MeasureExpiration!Q18)-$M$17*(1-A_MeasureExpiration!P18)-$N$17*(1-A_MeasureExpiration!O18)-$O$17*(1-A_MeasureExpiration!N18)-$P$17*(1-A_MeasureExpiration!M18)-$Q$17*(1-A_MeasureExpiration!L18)-$R$17*(1-A_MeasureExpiration!K18)-$S$17*(1-A_MeasureExpiration!J18)-$T$17*(1-A_MeasureExpiration!I18)-$U$17*(1-A_MeasureExpiration!H18)-$V$17*(1-A_MeasureExpiration!G18)-$W$17*(1-A_MeasureExpiration!F18) -> 1941550.628 | Y17: =Y16-$F$17*(1-A_MeasureExpiration!X18)-$G$17*(1-A_MeasureExpiration!W18)-$H$17*(1-A_MeasureExpiration!V18)-$I$17*(1-A_MeasureExpiration!U18)-$J$17*(1-A_MeasureExpiration!T18)-$K$17*(1-A_MeasureExpiration!S18)-$L$17*(1-A_MeasureExpiration!R18)-$M$17*(1-A_MeasureExpiration!Q18)-$N$17*(1-A_MeasureExpiration!P18)-$O$17*(1-A_MeasureExpiration!O18)-$P$17*(1-A_MeasureExpiration!N18)-$Q$17*(1-A_MeasureExpiration!M18)-$R$17*(1-A_MeasureExpiration!L18)-$S$17*(1-A_MeasureExpiration!K18)-$T$17*(1-A_MeasureExpiration!J18)-$U$17*(1-A_MeasureExpiration!I18)-$V$17*(1-A_MeasureExpiration!H18)-$W$17*(1-A_MeasureExpiration!G18)-$X$17*(1-A_MeasureExpiration!F18) -> 3344748.856 | Z17: =Z16-$F$17*(1-A_MeasureExpiration!Y18)-$G$17*(1-A_MeasureExpiration!X18)-$H$17*(1-A_MeasureExpiration!W18)-$I$17*(1-A_MeasureExpiration!V18)-$J$17*(1-A_MeasureExpiration!U18)-$K$17*(1-A_MeasureExpiration!T18)-$L$17*(1-A_MeasureExpiration!S18)-$M$17*(1-A_MeasureExpiration!R18)-$N$17*(1-A_MeasureExpiration!Q18)-$O$17*(1-A_MeasureExpiration!P18)-$P$17*(1-A_MeasureExpiration!O18)-$Q$17*(1-A_MeasureExpiration!N18)-$R$17*(1-A_MeasureExpiration!M18)-$S$17*(1-A_MeasureExpiration!L18)-$T$17*(1-A_MeasureExpiration!K18)-$U$17*(1-A_MeasureExpiration!J18)-$V$17*(1-A_MeasureExpiration!I18)-$W$17*(1-A_MeasureExpiration!H18)-$X$17*(1-A_MeasureExpiration!G18)-$Y$17*(1-A_MeasureExpiration!F18) -> 922994.4353 | AA17: =AA16-$F$17*(1-A_MeasureExpiration!Z18)-$G$17*(1-A_MeasureExpiration!Y18)-$H$17*(1-A_MeasureExpiration!X18)-$I$17*(1-A_MeasureExpiration!W18)-$J$17*(1-A_MeasureExpiration!V18)-$K$17*(1-A_MeasureExpiration!U18)-$L$17*(1-A_MeasureExpiration!T18)-$M$17*(1-A_MeasureExpiration!S18)-$N$17*(1-A_MeasureExpiration!R18)-$O$17*(1-A_MeasureExpiration!Q18)-$P$17*(1-A_MeasureExpiration!P18)-$Q$17*(1-A_MeasureExpiration!O18)-$R$17*(1-A_MeasureExpiration!N18)-$S$17*(1-A_MeasureExpiration!M18)-$T$17*(1-A_MeasureExpiration!L18)-$U$17*(1-A_MeasureExpiration!K18)-$V$17*(1-A_MeasureExpiration!J18)-$W$17*(1-A_MeasureExpiration!I18)-$X$17*(1-A_MeasureExpiration!H18)-$Y$17*(1-A_MeasureExpiration!G18)-$Z$17*(1-A_MeasureExpiration!F18) -> 833092.877 | AB17: =AB16-$F$17*(1-A_MeasureExpiration!AA18)-$G$17*(1-A_MeasureExpiration!Z18)-$H$17*(1-A_MeasureExpiration!Y18)-$I$17*(1-A_MeasureExpiration!X18)-$J$17*(1-A_MeasureExpiration!W18)-$K$17*(1-A_MeasureExpiration!V18)-$L$17*(1-A_MeasureExpiration!U18)-$M$17*(1-A_MeasureExpiration!T18)-$N$17*(1-A_MeasureExpiration!S18)-$O$17*(1-A_MeasureExpiration!R18)-$P$17*(1-A_MeasureExpiration!Q18)-$Q$17*(1-A_MeasureExpiration!P18)-$R$17*(1-A_MeasureExpiration!O18)-$S$17*(1-A_MeasureExpiration!N18)-$T$17*(1-A_MeasureExpiration!M18)-$U$17*(1-A_MeasureExpiration!L18)-$V$17*(1-A_MeasureExpiration!K18)-$W$17*(1-A_MeasureExpiration!J18)-$X$17*(1-A_MeasureExpiration!I18)-$Y$17*(1-A_MeasureExpiration!H18)-$Z$17*(1-A_MeasureExpiration!G18)-$AA$17*(1-A_MeasureExpiration!F18) -> 912425.2352 | AC17: =AC16-$F$17*(1-A_MeasureExpiration!AB18)-$G$17*(1-A_MeasureExpiration!AA18)-$H$17*(1-A_MeasureExpiration!Z18)-$I$17*(1-A_MeasureExpiration!Y18)-$J$17*(1-A_MeasureExpiration!X18)-$K$17*(1-A_MeasureExpiration!W18)-$L$17*(1-A_MeasureExpiration!V18)-$M$17*(1-A_MeasureExpiration!U18)-$N$17*(1-A_MeasureExpiration!T18)-$O$17*(1-A_MeasureExpiration!S18)-$P$17*(1-A_MeasureExpiration!R18)-$Q$17*(1-A_MeasureExpiration!Q18)-$R$17*(1-A_MeasureExpiration!P18)-$S$17*(1-A_MeasureExpiration!O18)-$T$17*(1-A_MeasureExpiration!N18)-$U$17*(1-A_MeasureExpiration!M18)-$V$17*(1-A_MeasureExpiration!L18)-$W$17*(1-A_MeasureExpiration!K18)-$X$17*(1-A_MeasureExpiration!J18)-$Y$17*(1-A_MeasureExpiration!I18)-$Z$17*(1-A_MeasureExpiration!H18)-$AA$17*(1-A_MeasureExpiration!G18)-$AB$17*(1-A_MeasureExpiration!F18) -> 1021875.055 | AD17: =AD16-$F$17*(1-A_MeasureExpiration!AC18)-$G$17*(1-A_MeasureExpiration!AB18)-$H$17*(1-A_MeasureExpiration!AA18)-$I$17*(1-A_MeasureExpiration!Z18)-$J$17*(1-A_MeasureExpiration!Y18)-$K$17*(1-A_MeasureExpiration!X18)-$L$17*(1-A_MeasureExpiration!W18)-$M$17*(1-A_MeasureExpiration!V18)-$N$17*(1-A_MeasureExpiration!U18)-$O$17*(1-A_MeasureExpiration!T18)-$P$17*(1-A_MeasureExpiration!S18)-$Q$17*(1-A_MeasureExpiration!R18)-$R$17*(1-A_MeasureExpiration!Q18)-$S$17*(1-A_MeasureExpiration!P18)-$T$17*(1-A_MeasureExpiration!O18)-$U$17*(1-A_MeasureExpiration!N18)-$V$17*(1-A_MeasureExpiration!M18)-$W$17*(1-A_MeasureExpiration!L18)-$X$17*(1-A_MeasureExpiration!K18)-$Y$17*(1-A_MeasureExpiration!J18)-$Z$17*(1-A_MeasureExpiration!I18)-$AA$17*(1-A_MeasureExpiration!H18)-$AB$17*(1-A_MeasureExpiration!G18)-$AC$17*(1-A_MeasureExpiration!F18) -> 1153715.98 | AE17: =AE16-$F$17*(1-A_MeasureExpiration!AD18)-$G$17*(1-A_MeasureExpiration!AC18)-$H$17*(1-A_MeasureExpiration!AB18)-$I$17*(1-A_MeasureExpiration!AA18)-$J$17*(1-A_MeasureExpiration!Z18)-$K$17*(1-A_MeasureExpiration!Y18)-$L$17*(1-A_MeasureExpiration!X18)-$M$17*(1-A_MeasureExpiration!W18)-$N$17*(1-A_MeasureExpiration!V18)-$O$17*(1-A_MeasureExpiration!U18)-$P$17*(1-A_MeasureExpiration!T18)-$Q$17*(1-A_MeasureExpiration!S18)-$R$17*(1-A_MeasureExpiration!R18)-$S$17*(1-A_MeasureExpiration!Q18)-$T$17*(1-A_MeasureExpiration!P18)-$U$17*(1-A_MeasureExpiration!O18)-$V$17*(1-A_MeasureExpiration!N18)-$W$17*(1-A_MeasureExpiration!M18)-$X$17*(1-A_MeasureExpiration!L18)-$Y$17*(1-A_MeasureExpiration!K18)-$Z$17*(1-A_MeasureExpiration!J18)-$AA$17*(1-A_MeasureExpiration!I18)-$AB$17*(1-A_MeasureExpiration!H18)-$AC$17*(1-A_MeasureExpiration!G18)-$AD$17*(1-A_MeasureExpiration!F18) -> 1319747.077 | AF17: =AF16-$F$17*(1-A_MeasureExpiration!AE18)-$G$17*(1-A_MeasureExpiration!AD18)-$H$17*(1-A_MeasureExpiration!AC18)-$I$17*(1-A_MeasureExpiration!AB18)-$J$17*(1-A_MeasureExpiration!AA18)-$K$17*(1-A_MeasureExpiration!Z18)-$L$17*(1-A_MeasureExpiration!Y18)-$M$17*(1-A_MeasureExpiration!X18)-$N$17*(1-A_MeasureExpiration!W18)-$O$17*(1-A_MeasureExpiration!V18)-$P$17*(1-A_MeasureExpiration!U18)-$Q$17*(1-A_MeasureExpiration!T18)-$R$17*(1-A_MeasureExpiration!S18)-$S$17*(1-A_MeasureExpiration!R18)-$T$17*(1-A_MeasureExpiration!Q18)-$U$17*(1-A_MeasureExpiration!P18)-$V$17*(1-A_MeasureExpiration!O18)-$W$17*(1-A_MeasureExpiration!N18)-$X$17*(1-A_MeasureExpiration!M18)-$Y$17*(1-A_MeasureExpiration!L18)-$Z$17*(1-A_MeasureExpiration!K18)-$AA$17*(1-A_MeasureExpiration!J18)-$AB$17*(1-A_MeasureExpiration!I18)-$AC$17*(1-A_MeasureExpiration!H18)-$AD$17*(1-A_MeasureExpiration!G18)-$AE$17*(1-A_MeasureExpiration!F18) -> 1472550.574 | AG17: =AG16-$F$17*(1-A_MeasureExpiration!AF18)-$G$17*(1-A_MeasureExpiration!AE18)-$H$17*(1-A_MeasureExpiration!AD18)-$I$17*(1-A_MeasureExpiration!AC18)-$J$17*(1-A_MeasureExpiration!AB18)-$K$17*(1-A_MeasureExpiration!AA18)-$L$17*(1-A_MeasureExpiration!Z18)-$M$17*(1-A_MeasureExpiration!Y18)-$N$17*(1-A_MeasureExpiration!X18)-$O$17*(1-A_MeasureExpiration!W18)-$P$17*(1-A_MeasureExpiration!V18)-$Q$17*(1-A_MeasureExpiration!U18)-$R$17*(1-A_MeasureExpiration!T18)-$S$17*(1-A_MeasureExpiration!S18)-$T$17*(1-A_MeasureExpiration!R18)-$U$17*(1-A_MeasureExpiration!Q18)-$V$17*(1-A_MeasureExpiration!P18)-$W$17*(1-A_MeasureExpiration!O18)-$X$17*(1-A_MeasureExpiration!N18)-$Y$17*(1-A_MeasureExpiration!M18)-$Z$17*(1-A_MeasureExpiration!L18)-$AA$17*(1-A_MeasureExpiration!K18)-$AB$17*(1-A_MeasureExpiration!J18)-$AC$17*(1-A_MeasureExpiration!I18)-$AD$17*(1-A_MeasureExpiration!H18)-$AE$17*(1-A_MeasureExpiration!G18)-$AF$17*(1-A_MeasureExpiration!F18) -> 1615248.626 | AH17: =AH16-$F$17*(1-A_MeasureExpiration!AG18)-$G$17*(1-A_MeasureExpiration!AF18)-$H$17*(1-A_MeasureExpiration!AE18)-$I$17*(1-A_MeasureExpiration!AD18)-$J$17*(1-A_MeasureExpiration!AC18)-$K$17*(1-A_MeasureExpiration!AB18)-$L$17*(1-A_MeasureExpiration!AA18)-$M$17*(1-A_MeasureExpiration!Z18)-$N$17*(1-A_MeasureExpiration!Y18)-$O$17*(1-A_MeasureExpiration!X18)-$P$17*(1-A_MeasureExpiration!W18)-$Q$17*(1-A_MeasureExpiration!V18)-$R$17*(1-A_MeasureExpiration!U18)-$S$17*(1-A_MeasureExpiration!T18)-$T$17*(1-A_MeasureExpiration!S18)-$U$17*(1-A_MeasureExpiration!R18)-$V$17*(1-A_MeasureExpiration!Q18)-$W$17*(1-A_MeasureExpiration!P18)-$X$17*(1-A_MeasureExpiration!O18)-$Y$17*(1-A_MeasureExpiration!N18)-$Z$17*(1-A_MeasureExpiration!M18)-$AA$17*(1-A_MeasureExpiration!L18)-$AB$17*(1-A_MeasureExpiration!K18)-$AC$17*(1-A_MeasureExpiration!J18)-$AD$17*(1-A_MeasureExpiration!I18)-$AE$17*(1-A_MeasureExpiration!H18)-$AF$17*(1-A_MeasureExpiration!G18)-$AG$17*(1-A_MeasureExpiration!F18) -> 1649481.898 | AI17: =AI16-$F$17*(1-A_MeasureExpiration!AH18)-$G$17*(1-A_MeasureExpiration!AG18)-$H$17*(1-A_MeasureExpiration!AF18)-$I$17*(1-A_MeasureExpiration!AE18)-$J$17*(1-A_MeasureExpiration!AD18)-$K$17*(1-A_MeasureExpiration!AC18)-$L$17*(1-A_MeasureExpiration!AB18)-$M$17*(1-A_MeasureExpiration!AA18)-$N$17*(1-A_MeasureExpiration!Z18)-$O$17*(1-A_MeasureExpiration!Y18)-$P$17*(1-A_MeasureExpiration!X18)-$Q$17*(1-A_MeasureExpiration!W18)-$R$17*(1-A_MeasureExpiration!V18)-$S$17*(1-A_MeasureExpiration!U18)-$T$17*(1-A_MeasureExpiration!T18)-$U$17*(1-A_MeasureExpiration!S18)-$V$17*(1-A_MeasureExpiration!R18)-$W$17*(1-A_MeasureExpiration!Q18)-$X$17*(1-A_MeasureExpiration!P18)-$Y$17*(1-A_MeasureExpiration!O18)-$Z$17*(1-A_MeasureExpiration!N18)-$AA$17*(1-A_MeasureExpiration!M18)-$AB$17*(1-A_MeasureExpiration!L18)-$AC$17*(1-A_MeasureExpiration!K18)-$AD$17*(1-A_MeasureExpiration!J18)-$AE$17*(1-A_MeasureExpiration!I18)-$AF$17*(1-A_MeasureExpiration!H18)-$AG$17*(1-A_MeasureExpiration!G18)-$AH$17*(1-A_MeasureExpiration!F18) -> 1693114.131 | AJ17: =AJ16-$F$17*(1-A_MeasureExpiration!AI18)-$G$17*(1-A_MeasureExpiration!AH18)-$H$17*(1-A_MeasureExpiration!AG18)-$I$17*(1-A_MeasureExpiration!AF18)-$J$17*(1-A_MeasureExpiration!AE18)-$K$17*(1-A_MeasureExpiration!AD18)-$L$17*(1-A_MeasureExpiration!AC18)-$M$17*(1-A_MeasureExpiration!AB18)-$N$17*(1-A_MeasureExpiration!AA18)-$O$17*(1-A_MeasureExpiration!Z18)-$P$17*(1-A_MeasureExpiration!Y18)-$Q$17*(1-A_MeasureExpiration!X18)-$R$17*(1-A_MeasureExpiration!W18)-$S$17*(1-A_MeasureExpiration!V18)-$T$17*(1-A_MeasureExpiration!U18)-$U$17*(1-A_MeasureExpiration!T18)-$V$17*(1-A_MeasureExpiration!S18)-$W$17*(1-A_MeasureExpiration!R18)-$X$17*(1-A_MeasureExpiration!Q18)-$Y$17*(1-A_MeasureExpiration!P18)-$Z$17*(1-A_MeasureExpiration!O18)-$AA$17*(1-A_MeasureExpiration!N18)-$AB$17*(1-A_MeasureExpiration!M18)-$AC$17*(1-A_MeasureExpiration!L18)-$AD$17*(1-A_MeasureExpiration!K18)-$AE$17*(1-A_MeasureExpiration!J18)-$AF$17*(1-A_MeasureExpiration!I18)-$AG$17*(1-A_MeasureExpiration!H18)-$AH$17*(1-A_MeasureExpiration!G18)-$AI$17*(1-A_MeasureExpiration!F18) -> 1720970.324 | AK17: =AK16-$F$17*(1-A_MeasureExpiration!AJ18)-$G$17*(1-A_MeasureExpiration!AI18)-$H$17*(1-A_MeasureExpiration!AH18)-$I$17*(1-A_MeasureExpiration!AG18)-$J$17*(1-A_MeasureExpiration!AF18)-$K$17*(1-A_MeasureExpiration!AE18)-$L$17*(1-A_MeasureExpiration!AD18)-$M$17*(1-A_MeasureExpiration!AC18)-$N$17*(1-A_MeasureExpiration!AB18)-$O$17*(1-A_MeasureExpiration!AA18)-$P$17*(1-A_MeasureExpiration!Z18)-$Q$17*(1-A_MeasureExpiration!Y18)-$R$17*(1-A_MeasureExpiration!X18)-$S$17*(1-A_MeasureExpiration!W18)-$T$17*(1-A_MeasureExpiration!V18)-$U$17*(1-A_MeasureExpiration!U18)-$V$17*(1-A_MeasureExpiration!T18)-$W$17*(1-A_MeasureExpiration!S18)-$X$17*(1-A_MeasureExpiration!R18)-$Y$17*(1-A_MeasureExpiration!Q18)-$Z$17*(1-A_MeasureExpiration!P18)-$AA$17*(1-A_MeasureExpiration!O18)-$AB$17*(1-A_MeasureExpiration!N18)-$AC$17*(1-A_MeasureExpiration!M18)-$AD$17*(1-A_MeasureExpiration!L18)-$AE$17*(1-A_MeasureExpiration!K18)-$AF$17*(1-A_MeasureExpiration!J18)-$AG$17*(1-A_MeasureExpiration!I18)-$AH$17*(1-A_MeasureExpiration!H18)-$AI$17*(1-A_MeasureExpiration!G18)-$AJ$17*(1-A_MeasureExpiration!F18) -> 1737262.253 | AL17: =AL16-$F$17*(1-A_MeasureExpiration!AK18)-$G$17*(1-A_MeasureExpiration!AJ18)-$H$17*(1-A_MeasureExpiration!AI18)-$I$17*(1-A_MeasureExpiration!AH18)-$J$17*(1-A_MeasureExpiration!AG18)-$K$17*(1-A_MeasureExpiration!AF18)-$L$17*(1-A_MeasureExpiration!AE18)-$M$17*(1-A_MeasureExpiration!AD18)-$N$17*(1-A_MeasureExpiration!AC18)-$O$17*(1-A_MeasureExpiration!AB18)-$P$17*(1-A_MeasureExpiration!AA18)-$Q$17*(1-A_MeasureExpiration!Z18)-$R$17*(1-A_MeasureExpiration!Y18)-$S$17*(1-A_MeasureExpiration!X18)-$T$17*(1-A_MeasureExpiration!W18)-$U$17*(1-A_MeasureExpiration!V18)-$V$17*(1-A_MeasureExpiration!U18)-$W$17*(1-A_MeasureExpiration!T18)-$X$17*(1-A_MeasureExpiration!S18)-$Y$17*(1-A_MeasureExpiration!R18)-$Z$17*(1-A_MeasureExpiration!Q18)-$AA$17*(1-A_MeasureExpiration!P18)-$AB$17*(1-A_MeasureExpiration!O18)-$AC$17*(1-A_MeasureExpiration!N18)-$AD$17*(1-A_MeasureExpiration!M18)-$AE$17*(1-A_MeasureExpiration!L18)-$AF$17*(1-A_MeasureExpiration!K18)-$AG$17*(1-A_MeasureExpiration!J18)-$AH$17*(1-A_MeasureExpiration!I18)-$AI$17*(1-A_MeasureExpiration!H18)-$AJ$17*(1-A_MeasureExpiration!G18)-$AK$17*(1-A_MeasureExpiration!F18) -> 1693585.689 | AM17: =AM16-$F$17*(1-A_MeasureExpiration!AL18)-$G$17*(1-A_MeasureExpiration!AK18)-$H$17*(1-A_MeasureExpiration!AJ18)-$I$17*(1-A_MeasureExpiration!AI18)-$J$17*(1-A_MeasureExpiration!AH18)-$K$17*(1-A_MeasureExpiration!AG18)-$L$17*(1-A_MeasureExpiration!AF18)-$M$17*(1-A_MeasureExpiration!AE18)-$N$17*(1-A_MeasureExpiration!AD18)-$O$17*(1-A_MeasureExpiration!AC18)-$P$17*(1-A_MeasureExpiration!AB18)-$Q$17*(1-A_MeasureExpiration!AA18)-$R$17*(1-A_MeasureExpiration!Z18)-$S$17*(1-A_MeasureExpiration!Y18)-$T$17*(1-A_MeasureExpiration!X18)-$U$17*(1-A_MeasureExpiration!W18)-$V$17*(1-A_MeasureExpiration!V18)-$W$17*(1-A_MeasureExpiration!U18)-$X$17*(1-A_MeasureExpiration!T18)-$Y$17*(1-A_MeasureExpiration!S18)-$Z$17*(1-A_MeasureExpiration!R18)-$AA$17*(1-A_MeasureExpiration!Q18)-$AB$17*(1-A_MeasureExpiration!P18)-$AC$17*(1-A_MeasureExpiration!O18)-$AD$17*(1-A_MeasureExpiration!N18)-$AE$17*(1-A_MeasureExpiration!M18)-$AF$17*(1-A_MeasureExpiration!L18)-$AG$17*(1-A_MeasureExpiration!K18)-$AH$17*(1-A_MeasureExpiration!J18)-$AI$17*(1-A_MeasureExpiration!I18)-$AJ$17*(1-A_MeasureExpiration!H18)-$AK$17*(1-A_MeasureExpiration!G18)-$AL$17*(1-A_MeasureExpiration!F18) -> 1634519.664 | AN17: =AN16-$F$17*(1-A_MeasureExpiration!AM18)-$G$17*(1-A_MeasureExpiration!AL18)-$H$17*(1-A_MeasureExpiration!AK18)-$I$17*(1-A_MeasureExpiration!AJ18)-$J$17*(1-A_MeasureExpiration!AI18)-$K$17*(1-A_MeasureExpiration!AH18)-$L$17*(1-A_MeasureExpiration!AG18)-$M$17*(1-A_MeasureExpiration!AF18)-$N$17*(1-A_MeasureExpiration!AE18)-$O$17*(1-A_MeasureExpiration!AD18)-$P$17*(1-A_MeasureExpiration!AC18)-$Q$17*(1-A_MeasureExpiration!AB18)-$R$17*(1-A_MeasureExpiration!AA18)-$S$17*(1-A_MeasureExpiration!Z18)-$T$17*(1-A_MeasureExpiration!Y18)-$U$17*(1-A_MeasureExpiration!X18)-$V$17*(1-A_MeasureExpiration!W18)-$W$17*(1-A_MeasureExpiration!V18)-$X$17*(1-A_MeasureExpiration!U18)-$Y$17*(1-A_MeasureExpiration!T18)-$Z$17*(1-A_MeasureExpiration!S18)-$AA$17*(1-A_MeasureExpiration!R18)-$AB$17*(1-A_MeasureExpiration!Q18)-$AC$17*(1-A_MeasureExpiration!P18)-$AD$17*(1-A_MeasureExpiration!O18)-$AE$17*(1-A_MeasureExpiration!N18)-$AF$17*(1-A_MeasureExpiration!M18)-$AG$17*(1-A_MeasureExpiration!L18)-$AH$17*(1-A_MeasureExpiration!K18)-$AI$17*(1-A_MeasureExpiration!J18)-$AJ$17*(1-A_MeasureExpiration!I18)-$AK$17*(1-A_MeasureExpiration!H18)-$AL$17*(1-A_MeasureExpiration!G18)-$AM$17*(1-A_MeasureExpiration!F18) -> 1720911.522
C18: Annual incremental savings | D18: % | F18: =F17/S7_Outputs!E14 -> 0.00108601183 | G18: =G17/S7_Outputs!F14 -> 0.001769149866 | H18: =H17/S7_Outputs!G14 -> 0.002587318052 | I18: =I17/S7_Outputs!H14 -> 0.002962540193 | J18: =J17/S7_Outputs!I14 -> 0.003104162391 | K18: =K17/S7_Outputs!J14 -> 0.003531544773 | L18: =L17/S7_Outputs!K14 -> 0.003053959034 | M18: =M17/S7_Outputs!L14 -> 0.003255789244 | N18: =N17/S7_Outputs!M14 -> 0.003011198098 | O18: =O17/S7_Outputs!N14 -> 0.002012395825 | P18: =P17/S7_Outputs!O14 -> 0.002522163743 | Q18: =Q17/S7_Outputs!P14 -> 0.005717535577 | R18: =R17/S7_Outputs!Q14 -> 0.008066762133 | S18: =S17/S7_Outputs!R14 -> 0.01077361146 | T18: =T17/S7_Outputs!S14 -> 0.0113316977 | U18: =U17/S7_Outputs!T14 -> 0.01184956422 | V18: =V17/S7_Outputs!U14 -> 0.01230226339 | W18: =W17/S7_Outputs!V14 -> 0.01278979121 | X18: =X17/S7_Outputs!W14 -> 0.01332359699 | Y18: =Y17/S7_Outputs!X14 -> 0.02293688989 | Z18: =Z17/S7_Outputs!Y14 -> 0.006323004029 | AA18: =AA17/S7_Outputs!Z14 -> 0.005698797882 | AB18: =AB17/S7_Outputs!AA14 -> 0.006230090994 | AC18: =AC17/S7_Outputs!AB14 -> 0.006961315379 | AD18: =AD17/S7_Outputs!AC14 -> 0.007837305092 | AE18: =AE17/S7_Outputs!AD14 -> 0.008935377563 | AF18: =AF17/S7_Outputs!AE14 -> 0.009929689086 | AG18: =AG17/S7_Outputs!AF14 -> 0.01084024001 | AH18: =AH17/S7_Outputs!AG14 -> 0.01100912364 | AI18: =AI17/S7_Outputs!AH14 -> 0.01123152052 | AJ18: =AJ17/S7_Outputs!AI14 -> 0.0113417078 | AK18: =AK17/S7_Outputs!AJ14 -> 0.011371672 | AL18: =AL17/S7_Outputs!AK14 -> 0.01100989186 | AM18: =AM17/S7_Outputs!AL14 -> 0.01055261791 | AN18: =AN17/S7_Outputs!AM14 -> 0.01103353145
C24: Data sources:
C25: U.S. Energy Information Administration (EIA). "Annual Electric Power Industry Report, Form EIA-861 detailed data files (EIA Form 861)." (2022). Available at https://www.eia.gov/electricity/data/eia861/
C29: State | D29: =S1_StudyArea!D7 -> GA
C30: Sector | D30: =S1_StudyArea!D8 -> Total
C31: Utility Type | D31: =S1_StudyArea!D9 -> Total
C32: Utility | D32: =S1_StudyArea!D10 -> Total

Sheet S5_Budget
B2: =scenarioLabel -> Energy Savings and Impacts Scenario Tool -- GA, All sectors, All Utilities
C4: Step 5. Set Budget Assumptions | E4: =IF(COUNTIF(S7_Outputs!$F$10:$AI$10,">3%")>0,"Note: The savings trajectory you have chosen causes annual incremental savings to exceed 3% in at least one year. This value approaches the maximum level regarded as achievable for most jurisdictions.","") -> 
C5: This step determines how much energy efficiency is achieved in each year based on the annual budget available. Utilities typically undergo gradual shifts to budgets over time.
C7: Select projection method: | D7: Constant Budget | E7: =IF(D7="Constant budget","Annual utility budget will remain at constant levels throughout the study period.",IF(D7="User Input","Please enter annual utility budget into the blue cells below.","Percent change in utility spending per year.")) -> Annual utility budget will remain at constant levels throughout the study period.
C9: Annual budget (2022 $ million): | D9: =Q13 -> 46.422179 | E9: This is the budget that is spent on new programmatic energy efficiency savings in every year.
C10: Annual change in budget | D10: =N14 -> -0.09662812388 | E10: This is the year-on-year change in spending in real dollar terms.
D12: =HYPERLINK("#R"&ROW(),"Click here to jump to future years") -> Click here to jump to future years | E12: 2010 | F12: 2011 | G12: 2012 | H12: 2013 | I12: 2014 | J12: 2015 | K12: 2016 | L12: 2017 | M12: 2018 | N12: 2019 | O12: 2020 | P12: 2021 | Q12: 2022 | R12: 2023 | S12: 2024 | T12: 2025 | U12: 2026 | V12: 2027 | W12: 2028 | X12: 2029 | Y12: 2030 | Z12: 2031 | AA12: 2032 | AB12: 2033 | AC12: 2034 | AD12: 2035 | AE12: 2036 | AF12: 2037 | AG12: 2038 | AH12: 2039 | AI12: 2040 | AJ12: 2041 | AK12: 2042 | AL12: 2043 | AM12: 2044 | AN12: 2045
C13: Annual utility budget | D13: 2022 $ Million | F13: =IF(S1_StudyArea!$D$7="US Total",SUMIFS(Sales_Savings!AJ$7:AJ$30000,Sales_Savings!$H$7:$H$30000,S1_StudyArea!$D$8), IF(S1_StudyArea!$D$9="Total",SUMIFS(Sales_Savings!AJ$7:AJ$30000,Sales_Savings!$D$7:$D$30000,S1_StudyArea!$D$7,Sales_Savings!$H$7:$H$30000,S1_StudyArea!$D$8), IF(S1_StudyArea!$D$10="Total",SUMIFS(Sales_Savings!AJ$7:AJ$30000,Sales_Savings!$D$7:$D$30000,S1_StudyArea!$D$7,Sales_Savings!$H$7:$H$30000,S1_StudyArea!$D$8,Sales_Savings!$G$7:$G$30000,S1_StudyArea!$D$9), SUMIFS(Sales_Savings!AJ$7:AJ$30000,Sales_Savings!$D$7:$D$30000,S1_StudyArea!$D$7,Sales_Savings!$H$7:$H$30000,S1_StudyArea!$D$8,Sales_Savings!$G$7:$G$30000,S1_StudyArea!$D$9,Sales_Savings!$C$7:$C$30000,S1_StudyArea!$D$10))))/INDEX(Library!$E$478:$E$491,MATCH(S5_Budget!F$12,Library!$B$478:$B$491,0))/1000 -> 26.98671677 | G13: =IF(S1_StudyArea!$D$7="US Total",SUMIFS(Sales_Savings!AK$7:AK$30000,Sales_Savings!$H$7:$H$30000,S1_StudyArea!$D$8), IF(S1_StudyArea!$D$9="Total",SUMIFS(Sales_Savings!AK$7:AK$30000,Sales_Savings!$D$7:$D$30000,S1_StudyArea!$D$7,Sales_Savings!$H$7:$H$30000,S1_StudyArea!$D$8), IF(S1_StudyArea!$D$10="Total",SUMIFS(Sales_Savings!AK$7:AK$30000,Sales_Savings!$D$7:$D$30000,S1_StudyArea!$D$7,Sales_Savings!$H$7:$H$30000,S1_StudyArea!$D$8,Sales_Savings!$G$7:$G$30000,S1_StudyArea!$D$9), SUMIFS(Sales_Savings!AK$7:AK$30000,Sales_Savings!$D$7:$D$30000,S1_StudyArea!$D$7,Sales_Savings!$H$7:$H$30000,S1_StudyArea!$D$8,Sales_Savings!$G$7:$G$30000,S1_StudyArea!$D$9,Sales_Savings!$C$7:$C$30000,S1_StudyArea!$D$10))))/INDEX(Library!$E$478:$E$491,MATCH(S5_Budget!G$12,Library!$B$478:$B$491,0))/1000 -> 46.59700894 | H13: =IF(S1_StudyArea!$D$7="US Total",SUMIFS(Sales_Savings!AL$7:AL$30000,Sales_Savings!$H$7:$H$30000,S1_StudyArea!$D$8), IF(S1_StudyArea!$D$9="Total",SUMIFS(Sales_Savings!AL$7:AL$30000,Sales_Savings!$D$7:$D$30000,S1_StudyArea!$D$7,Sales_Savings!$H$7:$H$30000,S1_StudyArea!$D$8), IF(S1_StudyArea!$D$10="Total",SUMIFS(Sales_Savings!AL$7:AL$30000,Sales_Savings!$D$7:$D$30000,S1_StudyArea!$D$7,Sales_Savings!$H$7:$H$30000,S1_StudyArea!$D$8,Sales_Savings!$G$7:$G$30000,S1_StudyArea!$D$9), SUMIFS(Sales_Savings!AL$7:AL$30000,Sales_Savings!$D$7:$D$30000,S1_StudyArea!$D$7,Sales_Savings!$H$7:$H$30000,S1_StudyArea!$D$8,Sales_Savings!$G$7:$G$30000,S1_StudyArea!$D$9,Sales_Savings!$C$7:$C$30000,S1_StudyArea!$D$10))))/INDEX(Library!$E$478:$E$491,MATCH(S5_Budget!H$12,Library!$B$478:$B$491,0))/1000 -> 41.3654358 | I13: =IF(S1_StudyArea!$D$7="US Total",SUMIFS(Sales_Savings!AM$7:AM$30000,Sales_Savings!$H$7:$H$30000,S1_StudyArea!$D$8), IF(S1_StudyArea!$D$9="Total",SUMIFS(Sales_Savings!AM$7:AM$30000,Sales_Savings!$D$7:$D$30000,S1_StudyArea!$D$7,Sales_Savings!$H$7:$H$30000,S1_StudyArea!$D$8), IF(S1_StudyArea!$D$10="Total",SUMIFS(Sales_Savings!AM$7:AM$30000,Sales_Savings!$D$7:$D$30000,S1_StudyArea!$D$7,Sales_Savings!$H$7:$H$30000,S1_StudyArea!$D$8,Sales_Savings!$G$7:$G$30000,S1_StudyArea!$D$9), SUMIFS(Sales_Savings!AM$7:AM$30000,Sales_Savings!$D$7:$D$30000,S1_StudyArea!$D$7,Sales_Savings!$H$7:$H$30000,S1_StudyArea!$D$8,Sales_Savings!$G$7:$G$30000,S1_StudyArea!$D$9,Sales_Savings!$C$7:$C$30000,S1_StudyArea!$D$10))))/INDEX(Library!$E$478:$E$491,MATCH(S5_Budget!I$12,Library!$B$478:$B$491,0))/1000 -> 46.20396014 | J13: =IF(S1_StudyArea!$D$7="US Total",SUMIFS(Sales_Savings!AN$7:AN$30000,Sales_Savings!$H$7:$H$30000,S1_StudyArea!$D$8), IF(S1_StudyArea!$D$9="Total",SUMIFS(Sales_Savings!AN$7:AN$30000,Sales_Savings!$D$7:$D$30000,S1_StudyArea!$D$7,Sales_Savings!$H$7:$H$30000,S1_StudyArea!$D$8), IF(S1_StudyArea!$D$10="Total",SUMIFS(Sales_Savings!AN$7:AN$30000,Sales_Savings!$D$7:$D$30000,S1_StudyArea!$D$7,Sales_Savings!$H$7:$H$30000,S1_StudyArea!$D$8,Sales_Savings!$G$7:$G$30000,S1_StudyArea!$D$9), SUMIFS(Sales_Savings!AN$7:AN$30000,Sales_Savings!$D$7:$D$30000,S1_StudyArea!$D$7,Sales_Savings!$H$7:$H$30000,S1_StudyArea!$D$8,Sales_Savings!$G$7:$G$30000,S1_StudyArea!$D$9,Sales_Savings!$C$7:$C$30000,S1_StudyArea!$D$10))))/INDEX(Library!$E$478:$E$491,MATCH(S5_Budget!J$12,Library!$B$478:$B$491,0))/1000 -> 52.53559941 | K13: =IF(S1_StudyArea!$D$7="US Total",SUMIFS(Sales_Savings!AO$7:AO$30000,Sales_Savings!$H$7:$H$30000,S1_StudyArea!$D$8), IF(S1_StudyArea!$D$9="Total",SUMIFS(Sales_Savings!AO$7:AO$30000,Sales_Savings!$D$7:$D$30000,S1_StudyArea!$D$7,Sales_Savings!$H$7:$H$30000,S1_StudyArea!$D$8), IF(S1_StudyArea!$D$10="Total",SUMIFS(Sales_Savings!AO$7:AO$30000,Sales_Savings!$D$7:$D$30000,S1_StudyArea!$D$7,Sales_Savings!$H$7:$H$30000,S1_StudyArea!$D$8,Sales_Savings!$G$7:$G$30000,S1_StudyArea!$D$9), SUMIFS(Sales_Savings!AO$7:AO$30000,Sales_Savings!$D$7:$D$30000,S1_StudyArea!$D$7,Sales_Savings!$H$7:$H$30000,S1_StudyArea!$D$8,Sales_Savings!$G$7:$G$30000,S1_StudyArea!$D$9,Sales_Savings!$C$7:$C$30000,S1_StudyArea!$D$10))))/INDEX(Library!$E$478:$E$491,MATCH(S5_Budget!K$12,Library!$B$478:$B$491,0))/1000 -> 61.63488069 | L13: =IF(S1_StudyArea!$D$7="US Total",SUMIFS(Sales_Savings!AP$7:AP$30000,Sales_Savings!$H$7:$H$30000,S1_StudyArea!$D$8), IF(S1_StudyArea!$D$9="Total",SUMIFS(Sales_Savings!AP$7:AP$30000,Sales_Savings!$D$7:$D$30000,S1_StudyArea!$D$7,Sales_Savings!$H$7:$H$30000,S1_StudyArea!$D$8), IF(S1_StudyArea!$D$10="Total",SUMIFS(Sales_Savings!AP$7:AP$30000,Sales_Savings!$D$7:$D$30000,S1_StudyArea!$D$7,Sales_Savings!$H$7:$H$30000,S1_StudyArea!$D$8,Sales_Savings!$G$7:$G$30000,S1_StudyArea!$D$9), SUMIFS(Sales_Savings!AP$7:AP$30000,Sales_Savings!$D$7:$D$30000,S1_StudyArea!$D$7,Sales_Savings!$H$7:$H$30000,S1_StudyArea!$D$8,Sales_Savings!$G$7:$G$30000,S1_StudyArea!$D$9,Sales_Savings!$C$7:$C$30000,S1_StudyArea!$D$10))))/INDEX(Library!$E$478:$E$491,MATCH(S5_Budget!L$12,Library!$B$478:$B$491,0))/1000 -> 50.86806724 | M13: =IF(S1_StudyArea!$D$7="US Total",SUMIFS(Sales_Savings!AQ$7:AQ$30000,Sales_Savings!$H$7:$H$30000,S1_StudyArea!$D$8), IF(S1_StudyArea!$D$9="Total",SUMIFS(Sales_Savings!AQ$7:AQ$30000,Sales_Savings!$D$7:$D$30000,S1_StudyArea!$D$7,Sales_Savings!$H$7:$H$30000,S1_StudyArea!$D$8), IF(S1_StudyArea!$D$10="Total",SUMIFS(Sales_Savings!AQ$7:AQ$30000,Sales_Savings!$D$7:$D$30000,S1_StudyArea!$D$7,Sales_Savings!$H$7:$H$30000,S1_StudyArea!$D$8,Sales_Savings!$G$7:$G$30000,S1_StudyArea!$D$9), SUMIFS(Sales_Savings!AQ$7:AQ$30000,Sales_Savings!$D$7:$D$30000,S1_StudyArea!$D$7,Sales_Savings!$H$7:$H$30000,S1_StudyArea!$D$8,Sales_Savings!$G$7:$G$30000,S1_StudyArea!$D$9,Sales_Savings!$C$7:$C$30000,S1_StudyArea!$D$10))))/INDEX(Library!$E$478:$E$491,MATCH(S5_Budget!M$12,Library!$B$478:$B$491,0))/1000 -> 55.37003087 | N13: =IF(S1_StudyArea!$D$7="US Total",SUMIFS(Sales_Savings!AR$7:AR$30000,Sales_Savings!$H$7:$H$30000,S1_StudyArea!$D$8), IF(S1_StudyArea!$D$9="Total",SUMIFS(Sales_Savings!AR$7:AR$30000,Sales_Savings!$D$7:$D$30000,S1_StudyArea!$D$7,Sales_Savings!$H$7:$H$30000,S1_StudyArea!$D$8), IF(S1_StudyArea!$D$10="Total",SUMIFS(Sales_Savings!AR$7:AR$30000,Sales_Savings!$D$7:$D$30000,S1_StudyArea!$D$7,Sales_Savings!$H$7:$H$30000,S1_StudyArea!$D$8,Sales_Savings!$G$7:$G$30000,S1_StudyArea!$D$9), SUMIFS(Sales_Savings!AR$7:AR$30000,Sales_Savings!$D$7:$D$30000,S1_StudyArea!$D$7,Sales_Savings!$H$7:$H$30000,S1_StudyArea!$D$8,Sales_Savings!$G$7:$G$30000,S1_StudyArea!$D$9,Sales_Savings!$C$7:$C$30000,S1_StudyArea!$D$10))))/INDEX(Library!$E$478:$E$491,MATCH(S5_Budget!N$12,Library!$B$478:$B$491,0))/1000 -> 50.01972867 | O13: =IF(S1_StudyArea!$D$7="US Total",SUMIFS(Sales_Savings!AS$7:AS$30000,Sales_Savings!$H$7:$H$30000,S1_StudyArea!$D$8), IF(S1_StudyArea!$D$9="Total",SUMIFS(Sales_Savings!AS$7:AS$30000,Sales_Savings!$D$7:$D$30000,S1_StudyArea!$D$7,Sales_Savings!$H$7:$H$30000,S1_StudyArea!$D$8), IF(S1_StudyArea!$D$10="Total",SUMIFS(Sales_Savings!AS$7:AS$30000,Sales_Savings!$D$7:$D$30000,S1_StudyArea!$D$7,Sales_Savings!$H$7:$H$30000,S1_StudyArea!$D$8,Sales_Savings!$G$7:$G$30000,S1_StudyArea!$D$9), SUMIFS(Sales_Savings!AS$7:AS$30000,Sales_Savings!$D$7:$D$30000,S1_StudyArea!$D$7,Sales_Savings!$H$7:$H$30000,S1_StudyArea!$D$8,Sales_Savings!$G$7:$G$30000,S1_StudyArea!$D$9,Sales_Savings!$C$7:$C$30000,S1_StudyArea!$D$10))))/INDEX(Library!$E$478:$E$491,MATCH(S5_Budget!O$12,Library!$B$478:$B$491,0))/1000 -> 36.22775263 | P13: =IF(S1_StudyArea!$D$7="US Total",SUMIFS(Sales_Savings!AT$7:AT$30000,Sales_Savings!$H$7:$H$30000,S1_StudyArea!$D$8), IF(S1_StudyArea!$D$9="Total",SUMIFS(Sales_Savings!AT$7:AT$30000,Sales_Savings!$D$7:$D$30000,S1_StudyArea!$D$7,Sales_Savings!$H$7:$H$30000,S1_StudyArea!$D$8), IF(S1_StudyArea!$D$10="Total",SUMIFS(Sales_Savings!AT$7:AT$30000,Sales_Savings!$D$7:$D$30000,S1_StudyArea!$D$7,Sales_Savings!$H$7:$H$30000,S1_StudyArea!$D$8,Sales_Savings!$G$7:$G$30000,S1_StudyArea!$D$9), SUMIFS(Sales_Savings!AT$7:AT$30000,Sales_Savings!$D$7:$D$30000,S1_StudyArea!$D$7,Sales_Savings!$H$7:$H$30000,S1_StudyArea!$D$8,Sales_Savings!$G$7:$G$30000,S1_StudyArea!$D$9,Sales_Savings!$C$7:$C$30000,S1_StudyArea!$D$10))))/INDEX(Library!$E$478:$E$491,MATCH(S5_Budget!P$12,Library!$B$478:$B$491,0))/1000 -> 40.93359569 | Q13: =IF(S1_StudyArea!$D$7="US Total",SUMIFS(Sales_Savings!AU$7:AU$30000,Sales_Savings!$H$7:$H$30000,S1_StudyArea!$D$8), IF(S1_StudyArea!$D$9="Total",SUMIFS(Sales_Savings!AU$7:AU$30000,Sales_Savings!$D$7:$D$30000,S1_StudyArea!$D$7,Sales_Savings!$H$7:$H$30000,S1_StudyArea!$D$8), IF(S1_StudyArea!$D$10="Total",SUMIFS(Sales_Savings!AU$7:AU$30000,Sales_Savings!$D$7:$D$30000,S1_StudyArea!$D$7,Sales_Savings!$H$7:$H$30000,S1_StudyArea!$D$8,Sales_Savings!$G$7:$G$30000,S1_StudyArea!$D$9), SUMIFS(Sales_Savings!AU$7:AU$30000,Sales_Savings!$D$7:$D$30000,S1_StudyArea!$D$7,Sales_Savings!$H$7:$H$30000,S1_StudyArea!$D$8,Sales_Savings!$G$7:$G$30000,S1_StudyArea!$D$9,Sales_Savings!$C$7:$C$30000,S1_StudyArea!$D$10))))/INDEX(Library!$E$478:$E$491,MATCH(S5_Budget!Q$12,Library!$B$478:$B$491,0))/1000 -> 46.422179 | R13: =$D$9 -> 46.422179 | S13: =$D$9 -> 46.422179 | T13: 46.422179 | U13: 46.422179 | V13: 46.422179 | W13: 46.422179 | X13: 46.422179 | Y13: 46.422179 | Z13: 46.422179 | AA13: 46.422179 | AB13: 46.422179 | AC13: 46.422179 | AD13: 46.422179 | AE13: 46.422179 | AF13: 46.422179 | AG13: 46.422179 | AH13: 46.422179 | AI13: 46.422179 | AJ13: 46.422179 | AK13: 46.422179 | AL13: 46.422179 | AM13: 46.422179 | AN13: 46.422179
C14: Annual change in spending | D14: % | G14: =G13/F13-1 -> 0.7266646152 | H14: =H13/G13-1 -> -0.1122727243 | I14: 0.1169702254 | J14: 0.1370367225 | K14: 0.1732021978 | L14: -0.1746870171 | M14: 0.08850274597 | N14: -0.09662812388 | O14: -0.2757307248 | P14: =P13/O13-1 -> 0.1298960803 | Q14: 0.1340850521 | R14: =R13/Q13-1 -> 0 | S14: =S13/R13-1 -> 0 | T14: 0 | U14: 0 | V14: 0 | W14: 0 | X14: 0 | Y14: 0 | Z14: 0 | AA14: 0 | AB14: 0 | AC14: 0 | AD14: 0 | AE14: 0 | AF14: 0 | AG14: 0 | AH14: 0 | AI14: 0 | AJ14: =AJ13/AI13-1 -> 0 | AK14: =AK13/AJ13-1 -> 0 | AL14: =AL13/AK13-1 -> 0 | AM14: =AM13/AL13-1 -> 0 | AN14: =AN13/AM13-1 -> 0
C15: Total energy efficiency expenditures | D15: 2022 $ Million | F15: =F13/S4or5_Costs!$D$16 -> 49.97540143 | G15: =G13/S4or5_Costs!$D$16 -> 86.29075729 | H15: =H13/S4or5_Costs!$D$16 -> 76.60265888 | I15: =I13/S4or5_Costs!$D$16 -> 85.56288916 | J15: =J13/S4or5_Costs!$D$16 -> 97.28814705 | K15: =K13/S4or5_Costs!$D$16 -> 114.1386679 | L15: =L13/S4or5_Costs!$D$16 -> 94.20012451 | M15: =M13/S4or5_Costs!$D$16 -> 102.5370942 | N15: =N13/S4or5_Costs!$D$16 -> 92.62912716 | O15: =O13/S4or5_Costs!$D$16 -> 67.08843079 | P15: =P13/S4or5_Costs!$D$16 -> 75.80295498 | Q15: =Q13/S4or5_Costs!$D$16 -> 85.96699815 | R15: =R13/S4or5_Costs!$D$16 -> 85.96699815 | S15: =S13/S4or5_Costs!$D$16 -> 85.96699815 | T15: =T13/S4or5_Costs!$D$16 -> 85.96699815 | U15: =U13/S4or5_Costs!$D$16 -> 85.96699815 | V15: =V13/S4or5_Costs!$D$16 -> 85.96699815 | W15: =W13/S4or5_Costs!$D$16 -> 85.96699815 | X15: =X13/S4or5_Costs!$D$16 -> 85.96699815 | Y15: =Y13/S4or5_Costs!$D$16 -> 85.96699815 | Z15: =Z13/S4or5_Costs!$D$16 -> 85.96699815 | AA15: =AA13/S4or5_Costs!$D$16 -> 85.96699815 | AB15: =AB13/S4or5_Costs!$D$16 -> 85.96699815 | AC15: =AC13/S4or5_Costs!$D$16 -> 85.96699815 | AD15: =AD13/S4or5_Costs!$D$16 -> 85.96699815 | AE15: =AE13/S4or5_Costs!$D$16 -> 85.96699815 | AF15: =AF13/S4or5_Costs!$D$16 -> 85.96699815 | AG15: =AG13/S4or5_Costs!$D$16 -> 85.96699815 | AH15: =AH13/S4or5_Costs!$D$16 -> 85.96699815 | AI15: =AI13/S4or5_Costs!$D$16 -> 85.96699815 | AJ15: =AJ13/S4or5_Costs!$D$16 -> 85.96699815 | AK15: =AK13/S4or5_Costs!$D$16 -> 85.96699815 | AL15: =AL13/S4or5_Costs!$D$16 -> 85.96699815 | AM15: =AM13/S4or5_Costs!$D$16 -> 85.96699815 | AN15: =AN13/S4or5_Costs!$D$16 -> 85.96699815
C16: Annual savings | D16: MWh | F16: =S7_Outputs!F9 -> 152771 | G16: =S7_Outputs!G9 -> 241261 | H16: =S7_Outputs!H9 -> 338884 | I16: =S7_Outputs!I9 -> 386604 | J16: =S7_Outputs!J9 -> 421514 | K16: =S7_Outputs!K9 -> 479860 | L16: =S7_Outputs!L9 -> 421789.12 | M16: =S7_Outputs!M9 -> 434506.628 | N16: =S7_Outputs!N9 -> 421164.456 | O16: =S7_Outputs!O9 -> 272524.168 | P16: =S7_Outputs!P9 -> 336081.783 | Q16: =S7_Outputs!Q9 -> 460336.233 | R16: =R15*10^6/(S4or5_Costs!R21*10) -> 167298.94 | S16: =S15*10^6/(S4or5_Costs!S21*10) -> 167298.94 | T16: =T15*10^6/(S4or5_Costs!T21*10) -> 167298.94 | U16: =U15*10^6/(S4or5_Costs!U21*10) -> 167298.94 | V16: =V15*10^6/(S4or5_Costs!V21*10) -> 167298.94 | W16: =W15*10^6/(S4or5_Costs!W21*10) -> 167298.94 | X16: =X15*10^6/(S4or5_Costs!X21*10) -> 167298.94 | Y16: =Y15*10^6/(S4or5_Costs!Y21*10) -> 167298.94 | Z16: =Z15*10^6/(S4or5_Costs!Z21*10) -> 167298.94 | AA16: =AA15*10^6/(S4or5_Costs!AA21*10) -> 167298.94 | AB16: =AB15*10^6/(S4or5_Costs!AB21*10) -> 167298.94 | AC16: =AC15*10^6/(S4or5_Costs!AC21*10) -> 167298.94 | AD16: =AD15*10^6/(S4or5_Costs!AD21*10) -> 167298.94 | AE16: =AE15*10^6/(S4or5_Costs!AE21*10) -> 167298.94 | AF16: =AF15*10^6/(S4or5_Costs!AF21*10) -> 167298.94 | AG16: =AG15*10^6/(S4or5_Costs!AG21*10) -> 167298.94 | AH16: =AH15*10^6/(S4or5_Costs!AH21*10) -> 167298.94 | AI16: =AI15*10^6/(S4or5_Costs!AI21*10) -> 167298.94 | AJ16: =AJ15*10^6/(S4or5_Costs!AJ21*10) -> 167298.94 | AK16: =AK15*10^6/(S4or5_Costs!AK21*10) -> 167298.94 | AL16: =AL15*10^6/(S4or5_Costs!AL21*10) -> 167298.94 | AM16: =AM15*10^6/(S4or5_Costs!AM21*10) -> 167298.94 | AN16: =AN15*10^6/(S4or5_Costs!AN21*10) -> 167298.94
C17: Annual savings | D17: % | F17: =F16/S7_Outputs!E14 -> 0.00108601183 | G17: =G16/S7_Outputs!F14 -> 0.001769149866 | H17: =H16/S7_Outputs!G14 -> 0.002587318052 | I17: =I16/S7_Outputs!H14 -> 0.002962540193 | J17: =J16/S7_Outputs!I14 -> 0.003104162391 | K17: =K16/S7_Outputs!J14 -> 0.003531544773 | L17: =L16/S7_Outputs!K14 -> 0.003053959034 | M17: =M16/S7_Outputs!L14 -> 0.003255789244 | N17: =N16/S7_Outputs!M14 -> 0.003011198098 | O17: =O16/S7_Outputs!N14 -> 0.001956369212 | P17: =P16/S7_Outputs!O14 -> 0.00251802971 | Q17: =Q16/S7_Outputs!P14 -> 0.003351215703 | R17: =R16/S7_Outputs!Q14 -> 0.001153505738 | S17: =S16/S7_Outputs!R14 -> 0.001149966622 | T17: =T16/S7_Outputs!S14 -> 0.001148232164 | U17: =U16/S7_Outputs!T14 -> 0.00114830933 | V17: =V16/S7_Outputs!U14 -> 0.001148619203 | W17: =W16/S7_Outputs!V14 -> 0.001148512861 | X17: =X16/S7_Outputs!W14 -> 0.001148063625 | Y17: =Y16/S7_Outputs!X14 -> 0.001147266217 | Z17: =Z16/S7_Outputs!Y14 -> 0.001146086944 | AA17: =AA16/S7_Outputs!Z14 -> 0.001144413631 | AB17: =AB16/S7_Outputs!AA14 -> 0.001142326603 | AC17: =AC16/S7_Outputs!AB14 -> 0.001139689904 | AD17: =AD16/S7_Outputs!AC14 -> 0.001136478004 | AE17: =AE16/S7_Outputs!AD14 -> 0.001132701274 | AF17: =AF16/S7_Outputs!AE14 -> 0.001128128628 | AG17: =AG16/S7_Outputs!AF14 -> 0.00112277493 | AH17: =AH16/S7_Outputs!AG14 -> 0.001116601956 | AI17: =AI16/S7_Outputs!AH14 -> 0.001109802017 | AJ17: =AJ16/S7_Outputs!AI14 -> 0.00110254992 | AK17: =AK16/S7_Outputs!AJ14 -> 0.001095095843 | AL17: =AL16/S7_Outputs!AK14 -> 0.001087599671 | AM17: =AM16/S7_Outputs!AL14 -> 0.001080098227 | AN17: =AN16/S7_Outputs!AM14 -> 0.001072628135
C23: Data sources:
C24: U.S. Energy Information Administration (EIA). "Annual Electric Power Industry Report, Form EIA-861 detailed data files (EIA Form 861)." (2022). Available at https://www.eia.gov/electricity/data/eia861/

Sheet S6_Other
B2: =scenarioLabel -> Energy Savings and Impacts Scenario Tool -- GA, All sectors, All Utilities
C4: Step 6. Set Multiple Benefits and Other Settings
C5: Set other inputs for the modules described below. If these modules are not edited, default values will be used.
C6: Note that some modules may contain detailed results, rather than inputs that are meant to be edited by the user.
D8: Estimate impacts on greenhouse gas and criteria pollutant emissions, and estimate losses to transmission and distribution (T&D).
D10: Examine impacts on outdoor air quality and public health. This sheet is informational only; there are no inputs to edit.
D12: Analyze energy burden and investment in energy efficiency, bill assistance, and other programs for low-income customers.
D14: Examine demographic data for households in the selected service territory. This sheet is informational only; there are no inputs to edit.
D16: Set up the expected relationship between annual electricity sales and peak demand, and annual incremental savings and peak avoided MW.
D18: Examine historical information on number of customers, average rates, and average per-customer consumption. This sheet is informational only; there are no inputs to edit.
D20: Determine the schedule on which savings from energy efficiency measures expire.

Sheet S7_Outputs
B2: =scenarioLabel -> Energy Savings and Impacts Scenario Tool -- GA, All sectors, All Utilities
C4: Step 7. Review Outputs | D4: =HYPERLINK("#R"&ROW(),"Click here to jump to future years") -> Click here to jump to future years
C5: Review outputs from all steps, including information on annual incremental savings from energy efficiency (EE), cumulative savings, costs, emission impacts, public health impacts, energy burden impacts, and peak demand impacts.
C7: Sales and Savings | D7: View charts | E7: 2010 | F7: 2011 | G7: 2012 | H7: 2013 | I7: 2014 | J7: 2015 | K7: 2016 | L7: 2017 | M7: 2018 | N7: 2019 | O7: 2020 | P7: 2021 | Q7: 2022 | R7: 2023 | S7: 2024 | T7: 2025 | U7: 2026 | V7: 2027 | W7: 2028 | X7: 2029 | Y7: 2030 | Z7: 2031 | AA7: 2032 | AB7: 2033 | AC7: 2034 | AD7: 2035 | AE7: 2036 | AF7: 2037 | AG7: 2038 | AH7: 2039 | AI7: 2040 | AJ7: 2041 | AK7: 2042 | AL7: 2043 | AM7: 2044 | AN7: 2045
C8: Baseline sales | D8: MWh | E8: =S2_Sales!E13 -> 140671580 | F8: =S2_Sales!F13 -> 136523920 | G8: =S2_Sales!G13 -> 131362103.3 | H8: =S2_Sales!H13 -> 131201653.6 | I8: =S2_Sales!I13 -> 136854483.1 | J8: =S2_Sales!J13 -> 137332826 | K8: =S2_Sales!K13 -> 140009303.5 | L8: =S2_Sales!L13 -> 135726268.7 | M8: =S2_Sales!M13 -> 142513076.3 | N8: =S2_Sales!N13 -> 142291984.1 | O8: =S2_Sales!O13 -> 136644606.3 | P8: =S2_Sales!P13 -> 140762837.5 | Q8: =S2_Sales!Q13 -> 148762211.2 | R8: =S2_Sales!R13 -> 149786159.8 | S8: =S2_Sales!S13 -> 150817156.3 | T8: =S2_Sales!T13 -> 151855249.4 | U8: =S2_Sales!U13 -> 152900487.7 | V8: =S2_Sales!V13 -> 153952920.6 | W8: =S2_Sales!W13 -> 155012597.5 | X8: =S2_Sales!X13 -> 156079568.2 | Y8: =S2_Sales!Y13 -> 157153883.1 | Z8: =S2_Sales!Z13 -> 158235592.6 | AA8: =S2_Sales!AA13 -> 159324747.7 | AB8: =S2_Sales!AB13 -> 160421399.5 | AC8: =S2_Sales!AC13 -> 161525599.7 | AD8: =S2_Sales!AD13 -> 162637400.3 | AE8: =S2_Sales!AE13 -> 163756853.5 | AF8: =S2_Sales!AF13 -> 164884012.1 | AG8: =S2_Sales!AG13 -> 166018929 | AH8: =S2_Sales!AH13 -> 167161657.7 | AI8: =S2_Sales!AI13 -> 168312252 | AJ8: =S2_Sales!AJ13 -> 169470765.9 | AK8: =S2_Sales!AK13 -> 170637254 | AL8: =S2_Sales!AL13 -> 171811771.2 | AM8: =S2_Sales!AM13 -> 172994372.8 | AN8: =S2_Sales!AN13 -> 174185114.3
C9: Annual incremental savings | D9: MWh | F9: =S4_AnnSavings!F15 -> 152771 | G9: =S4_AnnSavings!G15 -> 241261 | H9: =S4_AnnSavings!H15 -> 338884 | I9: =S4_AnnSavings!I15 -> 386604 | J9: =S4_AnnSavings!J15 -> 421514 | K9: =S4_AnnSavings!K15 -> 479860 | L9: =S4_AnnSavings!L15 -> 421789.12 | M9: =S4_AnnSavings!M15 -> 434506.628 | N9: =S4_AnnSavings!N15 -> 421164.456 | O9: =S4_AnnSavings!O15 -> 272524.168 | P9: =S4_AnnSavings!P15 -> 336081.783 | Q9: =S4_AnnSavings!Q15 -> 460336.233 | R9: =IF(S3_Approach!$F$10="Annual Incremental Savings",S4_AnnSavings!R15, IF(S3_Approach!$F$10="Cumulative Savings",S4_CumulSavings!R17, S5_Budget!R16)) -> 764378.5467 | S9: =IF(S3_Approach!$F$10="Annual Incremental Savings",S4_AnnSavings!S15, IF(S3_Approach!$F$10="Cumulative Savings",S4_CumulSavings!S17, S5_Budget!S16)) -> 1057694.107 | T9: =IF(S3_Approach!$F$10="Annual Incremental Savings",S4_AnnSavings!T15, IF(S3_Approach!$F$10="Cumulative Savings",S4_CumulSavings!T17, S5_Budget!T16)) -> 1350694.439 | U9: =IF(S3_Approach!$F$10="Annual Incremental Savings",S4_AnnSavings!U15, IF(S3_Approach!$F$10="Cumulative Savings",S4_CumulSavings!U17, S5_Budget!U16)) -> 1456915.272 | V9: =IF(S3_Approach!$F$10="Annual Incremental Savings",S4_AnnSavings!V15, IF(S3_Approach!$F$10="Cumulative Savings",S4_CumulSavings!V17, S5_Budget!V16)) -> 1456522.228 | W9: =IF(S3_Approach!$F$10="Annual Incremental Savings",S4_AnnSavings!W15, IF(S3_Approach!$F$10="Cumulative Savings",S4_CumulSavings!W17, S5_Budget!W16)) -> 1456657.089 | X9: =IF(S3_Approach!$F$10="Annual Incremental Savings",S4_AnnSavings!X15, IF(S3_Approach!$F$10="Cumulative Savings",S4_CumulSavings!X17, S5_Budget!X16)) -> 1457227.076 | Y9: =IF(S3_Approach!$F$10="Annual Incremental Savings",S4_AnnSavings!Y15, IF(S3_Approach!$F$10="Cumulative Savings",S4_CumulSavings!Y17, S5_Budget!Y16)) -> 1458239.923 | Z9: =IF(S3_Approach!$F$10="Annual Incremental Savings",S4_AnnSavings!Z15, IF(S3_Approach!$F$10="Cumulative Savings",S4_CumulSavings!Z17, S5_Budget!Z16)) -> 1459740.388 | AA9: =IF(S3_Approach!$F$10="Annual Incremental Savings",S4_AnnSavings!AA15, IF(S3_Approach!$F$10="Cumulative Savings",S4_CumulSavings!AA17, S5_Budget!AA16)) -> 1461874.757 | AB9: =IF(S3_Approach!$F$10="Annual Incremental Savings",S4_AnnSavings!AB15, IF(S3_Approach!$F$10="Cumulative Savings",S4_CumulSavings!AB17, S5_Budget!AB16)) -> 1464545.6 | AC9: =IF(S3_Approach!$F$10="Annual Incremental Savings",S4_AnnSavings!AC15, IF(S3_Approach!$F$10="Cumulative Savings",S4_CumulSavings!AC17, S5_Budget!AC16)) -> 1467933.859 | AD9: =IF(S3_Approach!$F$10="Annual Incremental Savings",S4_AnnSavings!AD15, IF(S3_Approach!$F$10="Cumulative Savings",S4_CumulSavings!AD17, S5_Budget!AD16)) -> 1472082.516 | AE9: =IF(S3_Approach!$F$10="Annual Incremental Savings",S4_AnnSavings!AE15, IF(S3_Approach!$F$10="Cumulative Savings",S4_CumulSavings!AE17, S5_Budget!AE16)) -> 1476990.835 | AF9: =IF(S3_Approach!$F$10="Annual Incremental Savings",S4_AnnSavings!AF15, IF(S3_Approach!$F$10="Cumulative Savings",S4_CumulSavings!AF17, S5_Budget!AF16)) -> 1482977.525 | AG9: =IF(S3_Approach!$F$10="Annual Incremental Savings",S4_AnnSavings!AG15, IF(S3_Approach!$F$10="Cumulative Savings",S4_CumulSavings!AG17, S5_Budget!AG16)) -> 1490048.767 | AH9: =IF(S3_Approach!$F$10="Annual Incremental Savings",S4_AnnSavings!AH15, IF(S3_Approach!$F$10="Cumulative Savings",S4_CumulSavings!AH17, S5_Budget!AH16)) -> 1498286.288 | AI9: =IF(S3_Approach!$F$10="Annual Incremental Savings",S4_AnnSavings!AI15, IF(S3_Approach!$F$10="Cumulative Savings",S4_CumulSavings!AI17, S5_Budget!AI16)) -> 1507466.534 | AJ9: =IF(S3_Approach!$F$10="Annual Incremental Savings",S4_AnnSavings!AJ15, IF(S3_Approach!$F$10="Cumulative Savings",S4_CumulSavings!AJ17, S5_Budget!AJ16)) -> 1517381.997 | AK9: =IF(S3_Approach!$F$10="Annual Incremental Savings",S4_AnnSavings!AK15, IF(S3_Approach!$F$10="Cumulative Savings",S4_CumulSavings!AK17, S5_Budget!AK16)) -> 1527710.484 | AL9: =IF(S3_Approach!$F$10="Annual Incremental Savings",S4_AnnSavings!AL15, IF(S3_Approach!$F$10="Cumulative Savings",S4_CumulSavings!AL17, S5_Budget!AL16)) -> 1538240.075 | AM9: =IF(S3_Approach!$F$10="Annual Incremental Savings",S4_AnnSavings!AM15, IF(S3_Approach!$F$10="Cumulative Savings",S4_CumulSavings!AM17, S5_Budget!AM16)) -> 1548923.384 | AN9: =IF(S3_Approach!$F$10="Annual Incremental Savings",S4_AnnSavings!AN15, IF(S3_Approach!$F$10="Cumulative Savings",S4_CumulSavings!AN17, S5_Budget!AN16)) -> 1559710.533
C10: Annual incremental savings | D10: % | F10: =S4_AnnSavings!F14 -> 0.00108601183 | G10: =S4_AnnSavings!G14 -> 0.001767170178 | H10: =S4_AnnSavings!H14 -> 0.002579769899 | I10: =S4_AnnSavings!I14 -> 0.00294663969 | J10: =S4_AnnSavings!J14 -> 0.003080016017 | K10: =S4_AnnSavings!K14 -> 0.00349413912 | L10: =S4_AnnSavings!L14 -> 0.003012579231 | M10: =S4_AnnSavings!M14 -> 0.003201345121 | N10: =S4_AnnSavings!N14 -> 0.002955268857 | O10: =S4_AnnSavings!O14 -> 0.001915246102 | P10: =S4_AnnSavings!P14 -> 0.002459532008 | Q10: =S4_AnnSavings!Q14 -> 0.003270296629 | R10: =IF(S3_Approach!$F$10="Annual Incremental Savings",S4_AnnSavings!R14, IF(S3_Approach!$F$10="Cumulative Savings",S4_CumulSavings!R18, S5_Budget!R17)) -> 0.005270296629 | S10: =IF(S3_Approach!$F$10="Annual Incremental Savings",S4_AnnSavings!S14, IF(S3_Approach!$F$10="Cumulative Savings",S4_CumulSavings!S18, S5_Budget!S17)) -> 0.007270296629 | T10: =IF(S3_Approach!$F$10="Annual Incremental Savings",S4_AnnSavings!T14, IF(S3_Approach!$F$10="Cumulative Savings",S4_CumulSavings!T18, S5_Budget!T17)) -> 0.009270296629 | U10: =IF(S3_Approach!$F$10="Annual Incremental Savings",S4_AnnSavings!U14, IF(S3_Approach!$F$10="Cumulative Savings",S4_CumulSavings!U18, S5_Budget!U17)) -> 0.01 | V10: =IF(S3_Approach!$F$10="Annual Incremental Savings",S4_AnnSavings!V14, IF(S3_Approach!$F$10="Cumulative Savings",S4_CumulSavings!V18, S5_Budget!V17)) -> 0.01 | W10: =IF(S3_Approach!$F$10="Annual Incremental Savings",S4_AnnSavings!W14, IF(S3_Approach!$F$10="Cumulative Savings",S4_CumulSavings!W18, S5_Budget!W17)) -> 0.01 | X10: =IF(S3_Approach!$F$10="Annual Incremental Savings",S4_AnnSavings!X14, IF(S3_Approach!$F$10="Cumulative Savings",S4_CumulSavings!X18, S5_Budget!X17)) -> 0.01 | Y10: =IF(S3_Approach!$F$10="Annual Incremental Savings",S4_AnnSavings!Y14, IF(S3_Approach!$F$10="Cumulative Savings",S4_CumulSavings!Y18, S5_Budget!Y17)) -> 0.01 | Z10: =IF(S3_Approach!$F$10="Annual Incremental Savings",S4_AnnSavings!Z14, IF(S3_Approach!$F$10="Cumulative Savings",S4_CumulSavings!Z18, S5_Budget!Z17)) -> 0.01 | AA10: =IF(S3_Approach!$F$10="Annual Incremental Savings",S4_AnnSavings!AA14, IF(S3_Approach!$F$10="Cumulative Savings",S4_CumulSavings!AA18, S5_Budget!AA17)) -> 0.01 | AB10: =IF(S3_Approach!$F$10="Annual Incremental Savings",S4_AnnSavings!AB14, IF(S3_Approach!$F$10="Cumulative Savings",S4_CumulSavings!AB18, S5_Budget!AB17)) -> 0.01 | AC10: =IF(S3_Approach!$F$10="Annual Incremental Savings",S4_AnnSavings!AC14, IF(S3_Approach!$F$10="Cumulative Savings",S4_CumulSavings!AC18, S5_Budget!AC17)) -> 0.01 | AD10: =IF(S3_Approach!$F$10="Annual Incremental Savings",S4_AnnSavings!AD14, IF(S3_Approach!$F$10="Cumulative Savings",S4_CumulSavings!AD18, S5_Budget!AD17)) -> 0.01 | AE10: =IF(S3_Approach!$F$10="Annual Incremental Savings",S4_AnnSavings!AE14, IF(S3_Approach!$F$10="Cumulative Savings",S4_CumulSavings!AE18, S5_Budget!AE17)) -> 0.01 | AF10: =IF(S3_Approach!$F$10="Annual Incremental Savings",S4_AnnSavings!AF14, IF(S3_Approach!$F$10="Cumulative Savings",S4_CumulSavings!AF18, S5_Budget!AF17)) -> 0.01 | AG10: =IF(S3_Approach!$F$10="Annual Incremental Savings",S4_AnnSavings!AG14, IF(S3_Approach!$F$10="Cumulative Savings",S4_CumulSavings!AG18, S5_Budget!AG17)) -> 0.01 | AH10: =IF(S3_Approach!$F$10="Annual Incremental Savings",S4_AnnSavings!AH14, IF(S3_Approach!$F$10="Cumulative Savings",S4_CumulSavings!AH18, S5_Budget!AH17)) -> 0.01 | AI10: =IF(S3_Approach!$F$10="Annual Incremental Savings",S4_AnnSavings!AI14, IF(S3_Approach!$F$10="Cumulative Savings",S4_CumulSavings!AI18, S5_Budget!AI17)) -> 0.01 | AJ10: =IF(S3_Approach!$F$10="Annual Incremental Savings",S4_AnnSavings!AJ14, IF(S3_Approach!$F$10="Cumulative Savings",S4_CumulSavings!AJ18, S5_Budget!AJ17)) -> 0.01 | AK10: =IF(S3_Approach!$F$10="Annual Incremental Savings",S4_AnnSavings!AK14, IF(S3_Approach!$F$10="Cumulative Savings",S4_CumulSavings!AK18, S5_Budget!AK17)) -> 0.01 | AL10: =IF(S3_Approach!$F$10="Annual Incremental Savings",S4_AnnSavings!AL14, IF(S3_Approach!$F$10="Cumulative Savings",S4_CumulSavings!AL18, S5_Budget!AL17)) -> 0.01 | AM10: =IF(S3_Approach!$F$10="Annual Incremental Savings",S4_AnnSavings!AM14, IF(S3_Approach!$F$10="Cumulative Savings",S4_CumulSavings!AM18, S5_Budget!AM17)) -> 0.01 | AN10: =IF(S3_Approach!$F$10="Annual Incremental Savings",S4_AnnSavings!AN14, IF(S3_Approach!$F$10="Cumulative Savings",S4_CumulSavings!AN18, S5_Budget!AN17)) -> 0.01
C11: Expiring savings | D11: MWh | F11: =F9*A_MeasureExpiration!$E$16 -> 0 | G11: =G9*A_MeasureExpiration!$E$16+F9*A_MeasureExpiration!$F$16 -> 10800.66194 | H11: =H9*A_MeasureExpiration!$E$16+G9*A_MeasureExpiration!$F$16+F9*A_MeasureExpiration!$G$16 -> 17931.69329 | I11: =I9*A_MeasureExpiration!$E$16+H9*A_MeasureExpiration!$F$16+G9*A_MeasureExpiration!$G$16+F9*A_MeasureExpiration!$H$16 -> 26236.5429 | J11: =J9*A_MeasureExpiration!$E$16+I9*A_MeasureExpiration!$F$16+H9*A_MeasureExpiration!$G$16+G9*A_MeasureExpiration!$H$16+F9*A_MeasureExpiration!$I$16 -> 31454.05794 | K11: =K9*A_MeasureExpiration!$E$16+J9*A_MeasureExpiration!$F$16+I9*A_MeasureExpiration!$G$16+H9*A_MeasureExpiration!$H$16+G9*A_MeasureExpiration!$I$16+F9*A_MeasureExpiration!$J$16 -> 37406.51479 | L11: =L9*A_MeasureExpiration!$E$16+K9*A_MeasureExpiration!$F$16+J9*A_MeasureExpiration!$G$16+I9*A_MeasureExpiration!$H$16+H9*A_MeasureExpiration!$I$16+G9*A_MeasureExpiration!$J$16+F9*A_MeasureExpiration!$K$16 -> 49204.98927 | M11: =M9*A_MeasureExpiration!$E$16+L9*A_MeasureExpiration!$F$16+K9*A_MeasureExpiration!$G$16+J9*A_MeasureExpiration!$H$16+I9*A_MeasureExpiration!$I$16+H9*A_MeasureExpiration!$J$16+G9*A_MeasureExpiration!$K$16+F9*A_MeasureExpiration!$L$16 -> 57153.02591 | N11: =N9*A_MeasureExpiration!$E$16+M9*A_MeasureExpiration!$F$16+L9*A_MeasureExpiration!$G$16+K9*A_MeasureExpiration!$H$16+J9*A_MeasureExpiration!$I$16+I9*A_MeasureExpiration!$J$16+H9*A_MeasureExpiration!$K$16+G9*A_MeasureExpiration!$L$16+F9*A_MeasureExpiration!$M$16 -> 77172.59572 | O11: =O9*A_MeasureExpiration!$E$16+N9*A_MeasureExpiration!$F$16+M9*A_MeasureExpiration!$G$16+L9*A_MeasureExpiration!$H$16+K9*A_MeasureExpiration!$I$16+J9*A_MeasureExpiration!$J$16+I9*A_MeasureExpiration!$K$16+H9*A_MeasureExpiration!$L$16+G9*A_MeasureExpiration!$M$16 -> 89053.95781 | P11: =P9*A_MeasureExpiration!$E$16+O9*A_MeasureExpiration!$F$16+N9*A_MeasureExpiration!$G$16+M9*A_MeasureExpiration!$H$16+L9*A_MeasureExpiration!$I$16+K9*A_MeasureExpiration!$J$16+J9*A_MeasureExpiration!$K$16+I9*A_MeasureExpiration!$L$16+H9*A_MeasureExpiration!$M$16+G9*A_MeasureExpiration!$N$16+F9*A_MeasureExpiration!$O$16 -> 111660.605 | Q11: =Q9*A_MeasureExpiration!$E$16+P9*A_MeasureExpiration!$F$16+O9*A_MeasureExpiration!$G$16+N9*A_MeasureExpiration!$H$16+M9*A_MeasureExpiration!$I$16+L9*A_MeasureExpiration!$J$16+K9*A_MeasureExpiration!$K$16+J9*A_MeasureExpiration!$L$16+I9*A_MeasureExpiration!$M$16+H9*A_MeasureExpiration!$N$16+G9*A_MeasureExpiration!$O$16 -> 132214.5616 | R11: =R9*A_MeasureExpiration!$E$16+Q9*A_MeasureExpiration!$F$16+P9*A_MeasureExpiration!$G$16+O9*A_MeasureExpiration!$H$16+N9*A_MeasureExpiration!$I$16+M9*A_MeasureExpiration!$J$16+L9*A_MeasureExpiration!$K$16+K9*A_MeasureExpiration!$L$16+J9*A_MeasureExpiration!$M$16+I9*A_MeasureExpiration!$N$16+H9*A_MeasureExpiration!$O$16+G9*A_MeasureExpiration!$P$16+F9*A_MeasureExpiration!$Q$16 -> 186787.5307 | S11: =S9*A_MeasureExpiration!$E$16+R9*A_MeasureExpiration!$F$16+Q9*A_MeasureExpiration!$G$16+P9*A_MeasureExpiration!$H$16+O9*A_MeasureExpiration!$I$16+N9*A_MeasureExpiration!$J$16+M9*A_MeasureExpiration!$K$16+L9*A_MeasureExpiration!$L$16+K9*A_MeasureExpiration!$M$16+J9*A_MeasureExpiration!$N$16+I9*A_MeasureExpiration!$O$16+H9*A_MeasureExpiration!$P$16+G9*A_MeasureExpiration!$Q$16+F9*A_MeasureExpiration!$R$16 -> 246454.2078 | T11: =T9*A_MeasureExpiration!$E$16+S9*A_MeasureExpiration!$F$16+R9*A_MeasureExpiration!$G$16+Q9*A_MeasureExpiration!$H$16+P9*A_MeasureExpiration!$I$16+O9*A_MeasureExpiration!$J$16+N9*A_MeasureExpiration!$K$16+M9*A_MeasureExpiration!$L$16+L9*A_MeasureExpiration!$M$16+K9*A_MeasureExpiration!$N$16+J9*A_MeasureExpiration!$O$16+I9*A_MeasureExpiration!$P$16+H9*A_MeasureExpiration!$Q$16+G9*A_MeasureExpiration!$R$16+F9*A_MeasureExpiration!$S$16 -> 302810.3849 | U11: =U9*A_MeasureExpiration!$E$16+T9*A_MeasureExpiration!$F$16+S9*A_MeasureExpiration!$G$16+R9*A_MeasureExpiration!$H$16+Q9*A_MeasureExpiration!$I$16+P9*A_MeasureExpiration!$J$16+O9*A_MeasureExpiration!$K$16+N9*A_MeasureExpiration!$L$16+M9*A_MeasureExpiration!$M$16+L9*A_MeasureExpiration!$N$16+K9*A_MeasureExpiration!$O$16+J9*A_MeasureExpiration!$P$16+I9*A_MeasureExpiration!$Q$16+H9*A_MeasureExpiration!$R$16+G9*A_MeasureExpiration!$S$16+F9*A_MeasureExpiration!$T$16 -> 372372.4586 | V11: =V9*A_MeasureExpiration!$E$16+U9*A_MeasureExpiration!$F$16+T9*A_MeasureExpiration!$G$16+S9*A_MeasureExpiration!$H$16+R9*A_MeasureExpiration!$I$16+Q9*A_MeasureExpiration!$J$16+P9*A_MeasureExpiration!$K$16+O9*A_MeasureExpiration!$L$16+N9*A_MeasureExpiration!$M$16+M9*A_MeasureExpiration!$N$16+L9*A_MeasureExpiration!$O$16+K9*A_MeasureExpiration!$P$16+J9*A_MeasureExpiration!$Q$16+I9*A_MeasureExpiration!$R$16+H9*A_MeasureExpiration!$S$16+G9*A_MeasureExpiration!$T$16+F9*A_MeasureExpiration!$U$16 -> 417575.4677 | W11: =W9*A_MeasureExpiration!$E$16+V9*A_MeasureExpiration!$F$16+U9*A_MeasureExpiration!$G$16+T9*A_MeasureExpiration!$H$16+S9*A_MeasureExpiration!$I$16+R9*A_MeasureExpiration!$J$16+Q9*A_MeasureExpiration!$K$16+P9*A_MeasureExpiration!$L$16+O9*A_MeasureExpiration!$M$16+N9*A_MeasureExpiration!$N$16+M9*A_MeasureExpiration!$O$16+L9*A_MeasureExpiration!$P$16+K9*A_MeasureExpiration!$Q$16+J9*A_MeasureExpiration!$R$16+I9*A_MeasureExpiration!$S$16+H9*A_MeasureExpiration!$T$16+G9*A_MeasureExpiration!$U$16+F9*A_MeasureExpiration!$V$16 -> 453978.9348 | X11: =X9*A_MeasureExpiration!$E$16+W9*A_MeasureExpiration!$F$16+V9*A_MeasureExpiration!$G$16+U9*A_MeasureExpiration!$H$16+T9*A_MeasureExpiration!$I$16+S9*A_MeasureExpiration!$J$16+R9*A_MeasureExpiration!$K$16+Q9*A_MeasureExpiration!$L$16+P9*A_MeasureExpiration!$M$16+O9*A_MeasureExpiration!$N$16+N9*A_MeasureExpiration!$O$16+M9*A_MeasureExpiration!$P$16+L9*A_MeasureExpiration!$Q$16+K9*A_MeasureExpiration!$R$16+J9*A_MeasureExpiration!$S$16+I9*A_MeasureExpiration!$T$16+H9*A_MeasureExpiration!$U$16+G9*A_MeasureExpiration!$V$16+F9*A_MeasureExpiration!$W$16 -> 491541.0548 | Y11: =Y9*A_MeasureExpiration!$E$16+X9*A_MeasureExpiration!$F$16+W9*A_MeasureExpiration!$G$16+V9*A_MeasureExpiration!$H$16+U9*A_MeasureExpiration!$I$16+T9*A_MeasureExpiration!$J$16+S9*A_MeasureExpiration!$K$16+R9*A_MeasureExpiration!$L$16+Q9*A_MeasureExpiration!$M$16+P9*A_MeasureExpiration!$N$16+O9*A_MeasureExpiration!$O$16+N9*A_MeasureExpiration!$P$16+M9*A_MeasureExpiration!$Q$16+L9*A_MeasureExpiration!$R$16+K9*A_MeasureExpiration!$S$16+J9*A_MeasureExpiration!$T$16+I9*A_MeasureExpiration!$U$16+H9*A_MeasureExpiration!$V$16+G9*A_MeasureExpiration!$W$16+F9*A_MeasureExpiration!$X$16 -> 533971.4878 | Z11: =Z9*A_MeasureExpiration!$E$16+Y9*A_MeasureExpiration!$F$16+X9*A_MeasureExpiration!$G$16+W9*A_MeasureExpiration!$H$16+V9*A_MeasureExpiration!$I$16+U9*A_MeasureExpiration!$J$16+T9*A_MeasureExpiration!$K$16+S9*A_MeasureExpiration!$L$16+R9*A_MeasureExpiration!$M$16+Q9*A_MeasureExpiration!$N$16+P9*A_MeasureExpiration!$O$16+O9*A_MeasureExpiration!$P$16+N9*A_MeasureExpiration!$Q$16+M9*A_MeasureExpiration!$R$16+L9*A_MeasureExpiration!$S$16+K9*A_MeasureExpiration!$T$16+J9*A_MeasureExpiration!$U$16+I9*A_MeasureExpiration!$V$16+H9*A_MeasureExpiration!$W$16+G9*A_MeasureExpiration!$X$16+F9*A_MeasureExpiration!$Y$16 -> 591467.8445 | AA11: =AA9*A_MeasureExpiration!$E$16+Z9*A_MeasureExpiration!$F$16+Y9*A_MeasureExpiration!$G$16+X9*A_MeasureExpiration!$H$16+W9*A_MeasureExpiration!$I$16+V9*A_MeasureExpiration!$J$16+U9*A_MeasureExpiration!$K$16+T9*A_MeasureExpiration!$L$16+S9*A_MeasureExpiration!$M$16+R9*A_MeasureExpiration!$N$16+Q9*A_MeasureExpiration!$O$16+P9*A_MeasureExpiration!$P$16+O9*A_MeasureExpiration!$Q$16+N9*A_MeasureExpiration!$R$16+M9*A_MeasureExpiration!$S$16+L9*A_MeasureExpiration!$T$16+K9*A_MeasureExpiration!$U$16+J9*A_MeasureExpiration!$V$16+I9*A_MeasureExpiration!$W$16+H9*A_MeasureExpiration!$X$16+G9*A_MeasureExpiration!$Y$16+F9*A_MeasureExpiration!$Z$16 -> 639803.9764 | AB11: =AB9*A_MeasureExpiration!$E$16+AA9*A_MeasureExpiration!$F$16+Z9*A_MeasureExpiration!$G$16+Y9*A_MeasureExpiration!$H$16+X9*A_MeasureExpiration!$I$16+W9*A_MeasureExpiration!$J$16+V9*A_MeasureExpiration!$K$16+U9*A_MeasureExpiration!$L$16+T9*A_MeasureExpiration!$M$16+S9*A_MeasureExpiration!$N$16+R9*A_MeasureExpiration!$O$16+Q9*A_MeasureExpiration!$P$16+P9*A_MeasureExpiration!$Q$16+O9*A_MeasureExpiration!$R$16+N9*A_MeasureExpiration!$S$16+M9*A_MeasureExpiration!$T$16+L9*A_MeasureExpiration!$U$16+K9*A_MeasureExpiration!$V$16+J9*A_MeasureExpiration!$W$16+I9*A_MeasureExpiration!$X$16+H9*A_MeasureExpiration!$Y$16+G9*A_MeasureExpiration!$Z$16+F9*A_MeasureExpiration!$AA$16 -> 706719.712 | AC11: =AC9*A_MeasureExpiration!$E$16+AB9*A_MeasureExpiration!$F$16+AA9*A_MeasureExpiration!$G$16+Z9*A_MeasureExpiration!$H$16+Y9*A_MeasureExpiration!$I$16+X9*A_MeasureExpiration!$J$16+W9*A_MeasureExpiration!$K$16+V9*A_MeasureExpiration!$L$16+U9*A_MeasureExpiration!$M$16+T9*A_MeasureExpiration!$N$16+S9*A_MeasureExpiration!$O$16+R9*A_MeasureExpiration!$P$16+Q9*A_MeasureExpiration!$Q$16+P9*A_MeasureExpiration!$R$16+O9*A_MeasureExpiration!$S$16+N9*A_MeasureExpiration!$T$16+M9*A_MeasureExpiration!$U$16+L9*A_MeasureExpiration!$V$16+K9*A_MeasureExpiration!$W$16+J9*A_MeasureExpiration!$X$16+I9*A_MeasureExpiration!$Y$16+H9*A_MeasureExpiration!$Z$16+G9*A_MeasureExpiration!$AA$16+F9*A_MeasureExpiration!$AB$16 -> 778599.33 | AD11: =AD9*A_MeasureExpiration!$E$16+AC9*A_MeasureExpiration!$F$16+AB9*A_MeasureExpiration!$G$16+AA9*A_MeasureExpiration!$H$16+Z9*A_MeasureExpiration!$I$16+Y9*A_MeasureExpiration!$J$16+X9*A_MeasureExpiration!$K$16+W9*A_MeasureExpiration!$L$16+V9*A_MeasureExpiration!$M$16+U9*A_MeasureExpiration!$N$16+T9*A_MeasureExpiration!$O$16+S9*A_MeasureExpiration!$P$16+R9*A_MeasureExpiration!$Q$16+Q9*A_MeasureExpiration!$R$16+P9*A_MeasureExpiration!$S$16+O9*A_MeasureExpiration!$T$16+N9*A_MeasureExpiration!$U$16+M9*A_MeasureExpiration!$V$16+L9*A_MeasureExpiration!$W$16+K9*A_MeasureExpiration!$X$16+J9*A_MeasureExpiration!$Y$16+I9*A_MeasureExpiration!$Z$16+H9*A_MeasureExpiration!$AA$16+G9*A_MeasureExpiration!$AB$16+F9*A_MeasureExpiration!$AC$16 -> 851113.7954 | AE11: =AE9*A_MeasureExpiration!$E$16+AD9*A_MeasureExpiration!$F$16+AC9*A_MeasureExpiration!$G$16+AB9*A_MeasureExpiration!$H$16+AA9*A_MeasureExpiration!$I$16+Z9*A_MeasureExpiration!$J$16+Y9*A_MeasureExpiration!$K$16+X9*A_MeasureExpiration!$L$16+W9*A_MeasureExpiration!$M$16+V9*A_MeasureExpiration!$N$16+U9*A_MeasureExpiration!$O$16+T9*A_MeasureExpiration!$P$16+S9*A_MeasureExpiration!$Q$16+R9*A_MeasureExpiration!$R$16+Q9*A_MeasureExpiration!$S$16+P9*A_MeasureExpiration!$T$16+O9*A_MeasureExpiration!$U$16+N9*A_MeasureExpiration!$V$16+M9*A_MeasureExpiration!$W$16+L9*A_MeasureExpiration!$X$16+K9*A_MeasureExpiration!$Y$16+J9*A_MeasureExpiration!$Z$16+I9*A_MeasureExpiration!$AA$16+H9*A_MeasureExpiration!$AB$16+G9*A_MeasureExpiration!$AC$16+F9*A_MeasureExpiration!$AD$16 -> 956206.6087 | AF11: =AF9*A_MeasureExpiration!$E$16+AE9*A_MeasureExpiration!$F$16+AD9*A_MeasureExpiration!$G$16+AC9*A_MeasureExpiration!$H$16+AB9*A_MeasureExpiration!$I$16+AA9*A_MeasureExpiration!$J$16+Z9*A_MeasureExpiration!$K$16+Y9*A_MeasureExpiration!$L$16+X9*A_MeasureExpiration!$M$16+W9*A_MeasureExpiration!$N$16+V9*A_MeasureExpiration!$O$16+U9*A_MeasureExpiration!$P$16+T9*A_MeasureExpiration!$Q$16+S9*A_MeasureExpiration!$R$16+R9*A_MeasureExpiration!$S$16+Q9*A_MeasureExpiration!$T$16+P9*A_MeasureExpiration!$U$16+O9*A_MeasureExpiration!$V$16+N9*A_MeasureExpiration!$W$16+M9*A_MeasureExpiration!$X$16+L9*A_MeasureExpiration!$Y$16+K9*A_MeasureExpiration!$Z$16+J9*A_MeasureExpiration!$AA$16+I9*A_MeasureExpiration!$AB$16+H9*A_MeasureExpiration!$AC$16+G9*A_MeasureExpiration!$AD$16+F9*A_MeasureExpiration!$AE$16 -> 1062943.145 | AG11: =AG9*A_MeasureExpiration!$E$16+AF9*A_MeasureExpiration!$F$16+AE9*A_MeasureExpiration!$G$16+AD9*A_MeasureExpiration!$H$16+AC9*A_MeasureExpiration!$I$16+AB9*A_MeasureExpiration!$J$16+AA9*A_MeasureExpiration!$K$16+Z9*A_MeasureExpiration!$L$16+Y9*A_MeasureExpiration!$M$16+X9*A_MeasureExpiration!$N$16+W9*A_MeasureExpiration!$O$16+V9*A_MeasureExpiration!$P$16+U9*A_MeasureExpiration!$Q$16+T9*A_MeasureExpiration!$R$16+S9*A_MeasureExpiration!$S$16+R9*A_MeasureExpiration!$T$16+Q9*A_MeasureExpiration!$U$16+P9*A_MeasureExpiration!$V$16+O9*A_MeasureExpiration!$W$16+N9*A_MeasureExpiration!$X$16+M9*A_MeasureExpiration!$Y$16+L9*A_MeasureExpiration!$Z$16+K9*A_MeasureExpiration!$AA$16+J9*A_MeasureExpiration!$AB$16+I9*A_MeasureExpiration!$AC$16+H9*A_MeasureExpiration!$AD$16+G9*A_MeasureExpiration!$AE$16+F9*A_MeasureExpiration!$AF$16 -> 1178883.923 | AH11: =AH9*A_MeasureExpiration!$E$16+AG9*A_MeasureExpiration!$F$16+AF9*A_MeasureExpiration!$G$16+AE9*A_MeasureExpiration!$H$16+AD9*A_MeasureExpiration!$I$16+AC9*A_MeasureExpiration!$J$16+AB9*A_MeasureExpiration!$K$16+AA9*A_MeasureExpiration!$L$16+Z9*A_MeasureExpiration!$M$16+Y9*A_MeasureExpiration!$N$16+X9*A_MeasureExpiration!$O$16+W9*A_MeasureExpiration!$P$16+V9*A_MeasureExpiration!$Q$16+U9*A_MeasureExpiration!$R$16+T9*A_MeasureExpiration!$S$16+S9*A_MeasureExpiration!$T$16+R9*A_MeasureExpiration!$U$16+Q9*A_MeasureExpiration!$V$16+P9*A_MeasureExpiration!$W$16+O9*A_MeasureExpiration!$X$16+N9*A_MeasureExpiration!$Y$16+M9*A_MeasureExpiration!$Z$16+L9*A_MeasureExpiration!$AA$16+K9*A_MeasureExpiration!$AB$16+J9*A_MeasureExpiration!$AC$16+I9*A_MeasureExpiration!$AD$16+H9*A_MeasureExpiration!$AE$16+G9*A_MeasureExpiration!$AF$16+F9*A_MeasureExpiration!$AG$16 -> 1273582.261 | AI11: =AI9*A_MeasureExpiration!$E$16+AH9*A_MeasureExpiration!$F$16+AG9*A_MeasureExpiration!$G$16+AF9*A_MeasureExpiration!$H$16+AE9*A_MeasureExpiration!$I$16+AD9*A_MeasureExpiration!$J$16+AC9*A_MeasureExpiration!$K$16+AB9*A_MeasureExpiration!$L$16+AA9*A_MeasureExpiration!$M$16+Z9*A_MeasureExpiration!$N$16+Y9*A_MeasureExpiration!$O$16+X9*A_MeasureExpiration!$P$16+W9*A_MeasureExpiration!$Q$16+V9*A_MeasureExpiration!$R$16+U9*A_MeasureExpiration!$S$16+T9*A_MeasureExpiration!$T$16+S9*A_MeasureExpiration!$U$16+R9*A_MeasureExpiration!$V$16+Q9*A_MeasureExpiration!$W$16+P9*A_MeasureExpiration!$X$16+O9*A_MeasureExpiration!$Y$16+N9*A_MeasureExpiration!$Z$16+M9*A_MeasureExpiration!$AA$16+L9*A_MeasureExpiration!$AB$16+K9*A_MeasureExpiration!$AC$16+J9*A_MeasureExpiration!$AD$16+I9*A_MeasureExpiration!$AE$16+H9*A_MeasureExpiration!$AF$16+G9*A_MeasureExpiration!$AG$16+F9*A_MeasureExpiration!$AH$16 -> 1348418.538 | AJ11: =AJ9*A_MeasureExpiration!$E$16+AI9*A_MeasureExpiration!$F$16+AH9*A_MeasureExpiration!$G$16+AG9*A_MeasureExpiration!$H$16+AF9*A_MeasureExpiration!$I$16+AE9*A_MeasureExpiration!$J$16+AD9*A_MeasureExpiration!$K$16+AC9*A_MeasureExpiration!$L$16+AB9*A_MeasureExpiration!$M$16+AA9*A_MeasureExpiration!$N$16+Z9*A_MeasureExpiration!$O$16+Y9*A_MeasureExpiration!$P$16+X9*A_MeasureExpiration!$Q$16+W9*A_MeasureExpiration!$R$16+V9*A_MeasureExpiration!$S$16+U9*A_MeasureExpiration!$T$16+T9*A_MeasureExpiration!$U$16+S9*A_MeasureExpiration!$V$16+R9*A_MeasureExpiration!$W$16+Q9*A_MeasureExpiration!$X$16+P9*A_MeasureExpiration!$Y$16+O9*A_MeasureExpiration!$Z$16+N9*A_MeasureExpiration!$AA$16+M9*A_MeasureExpiration!$AB$16+L9*A_MeasureExpiration!$AC$16+K9*A_MeasureExpiration!$AD$16+J9*A_MeasureExpiration!$AE$16+I9*A_MeasureExpiration!$AF$16+H9*A_MeasureExpiration!$AG$16+G9*A_MeasureExpiration!$AH$16+F9*A_MeasureExpiration!$AI$16 -> 1391716.789 | AK11: =AK9*A_MeasureExpiration!$E$16+AJ9*A_MeasureExpiration!$F$16+AI9*A_MeasureExpiration!$G$16+AH9*A_MeasureExpiration!$H$16+AG9*A_MeasureExpiration!$I$16+AF9*A_MeasureExpiration!$J$16+AE9*A_MeasureExpiration!$K$16+AD9*A_MeasureExpiration!$L$16+AC9*A_MeasureExpiration!$M$16+AB9*A_MeasureExpiration!$N$16+AA9*A_MeasureExpiration!$O$16+Z9*A_MeasureExpiration!$P$16+Y9*A_MeasureExpiration!$Q$16+X9*A_MeasureExpiration!$R$16+W9*A_MeasureExpiration!$S$16+V9*A_MeasureExpiration!$T$16+U9*A_MeasureExpiration!$U$16+T9*A_MeasureExpiration!$V$16+S9*A_MeasureExpiration!$W$16+R9*A_MeasureExpiration!$X$16+Q9*A_MeasureExpiration!$Y$16+P9*A_MeasureExpiration!$Z$16+O9*A_MeasureExpiration!$AA$16+N9*A_MeasureExpiration!$AB$16+M9*A_MeasureExpiration!$AC$16+L9*A_MeasureExpiration!$AD$16+K9*A_MeasureExpiration!$AE$16+J9*A_MeasureExpiration!$AF$16+I9*A_MeasureExpiration!$AG$16+H9*A_MeasureExpiration!$AH$16+G9*A_MeasureExpiration!$AI$16+F9*A_MeasureExpiration!$AJ$16 -> 1414181.462 | AL11: =AL9*A_MeasureExpiration!$E$16+AK9*A_MeasureExpiration!$F$16+AJ9*A_MeasureExpiration!$G$16+AI9*A_MeasureExpiration!$H$16+AH9*A_MeasureExpiration!$I$16+AG9*A_MeasureExpiration!$J$16+AF9*A_MeasureExpiration!$K$16+AE9*A_MeasureExpiration!$L$16+AD9*A_MeasureExpiration!$M$16+AC9*A_MeasureExpiration!$N$16+AB9*A_MeasureExpiration!$O$16+AA9*A_MeasureExpiration!$P$16+Z9*A_MeasureExpiration!$Q$16+Y9*A_MeasureExpiration!$R$16+X9*A_MeasureExpiration!$S$16+W9*A_MeasureExpiration!$T$16+V9*A_MeasureExpiration!$U$16+U9*A_MeasureExpiration!$V$16+T9*A_MeasureExpiration!$W$16+S9*A_MeasureExpiration!$X$16+R9*A_MeasureExpiration!$Y$16+Q9*A_MeasureExpiration!$Z$16+P9*A_MeasureExpiration!$AA$16+O9*A_MeasureExpiration!$AB$16+N9*A_MeasureExpiration!$AC$16+M9*A_MeasureExpiration!$AD$16+L9*A_MeasureExpiration!$AE$16+K9*A_MeasureExpiration!$AF$16+J9*A_MeasureExpiration!$AG$16+I9*A_MeasureExpiration!$AH$16+H9*A_MeasureExpiration!$AI$16+G9*A_MeasureExpiration!$AJ$16+F9*A_MeasureExpiration!$AK$16 -> 1432053.711 | AM11: =AM9*A_MeasureExpiration!$E$16+AL9*A_MeasureExpiration!$F$16+AK9*A_MeasureExpiration!$G$16+AJ9*A_MeasureExpiration!$H$16+AI9*A_MeasureExpiration!$I$16+AH9*A_MeasureExpiration!$J$16+AG9*A_MeasureExpiration!$K$16+AF9*A_MeasureExpiration!$L$16+AE9*A_MeasureExpiration!$M$16+AD9*A_MeasureExpiration!$N$16+AC9*A_MeasureExpiration!$O$16+AB9*A_MeasureExpiration!$P$16+AA9*A_MeasureExpiration!$Q$16+Z9*A_MeasureExpiration!$R$16+Y9*A_MeasureExpiration!$S$16+X9*A_MeasureExpiration!$T$16+W9*A_MeasureExpiration!$U$16+V9*A_MeasureExpiration!$V$16+U9*A_MeasureExpiration!$W$16+T9*A_MeasureExpiration!$X$16+S9*A_MeasureExpiration!$Y$16+R9*A_MeasureExpiration!$Z$16+Q9*A_MeasureExpiration!$AA$16+P9*A_MeasureExpiration!$AB$16+O9*A_MeasureExpiration!$AC$16+N9*A_MeasureExpiration!$AD$16+M9*A_MeasureExpiration!$AE$16+L9*A_MeasureExpiration!$AF$16+K9*A_MeasureExpiration!$AG$16+J9*A_MeasureExpiration!$AH$16+I9*A_MeasureExpiration!$AI$16+H9*A_MeasureExpiration!$AJ$16+G9*A_MeasureExpiration!$AK$16+F9*A_MeasureExpiration!$AL$16 -> 1445036.811 | AN11: =AN9*A_MeasureExpiration!$E$16+AM9*A_MeasureExpiration!$F$16+AL9*A_MeasureExpiration!$G$16+AK9*A_MeasureExpiration!$H$16+AJ9*A_MeasureExpiration!$I$16+AI9*A_MeasureExpiration!$J$16+AH9*A_MeasureExpiration!$K$16+AG9*A_MeasureExpiration!$L$16+AF9*A_MeasureExpiration!$M$16+AE9*A_MeasureExpiration!$N$16+AD9*A_MeasureExpiration!$O$16+AC9*A_MeasureExpiration!$P$16+AB9*A_MeasureExpiration!$Q$16+AA9*A_MeasureExpiration!$R$16+Z9*A_MeasureExpiration!$S$16+Y9*A_MeasureExpiration!$T$16+X9*A_MeasureExpiration!$U$16+W9*A_MeasureExpiration!$V$16+V9*A_MeasureExpiration!$W$16+U9*A_MeasureExpiration!$X$16+T9*A_MeasureExpiration!$Y$16+S9*A_MeasureExpiration!$Z$16+R9*A_MeasureExpiration!$AA$16+Q9*A_MeasureExpiration!$AB$16+P9*A_MeasureExpiration!$AC$16+O9*A_MeasureExpiration!$AD$16+N9*A_MeasureExpiration!$AE$16+M9*A_MeasureExpiration!$AF$16+L9*A_MeasureExpiration!$AG$16+K9*A_MeasureExpiration!$AH$16+J9*A_MeasureExpiration!$AI$16+I9*A_MeasureExpiration!$AJ$16+H9*A_MeasureExpiration!$AK$16+G9*A_MeasureExpiration!$AL$16+F9*A_MeasureExpiration!$AM$16 -> 1456680.329
C12: Net cumulative savings | D12: MWh | F12: =SUM($F9:F$9)-SUM($F11:F$11) -> 152771 | G12: =SUM($F9:G$9)-SUM($F11:G$11) -> 383231.3381 | H12: =SUM($F9:H$9)-SUM($F11:H$11) -> 704183.6448 | I12: =SUM($F9:I$9)-SUM($F11:I$11) -> 1064551.102 | J12: =SUM($F9:J$9)-SUM($F11:J$11) -> 1454611.044 | K12: =SUM($F9:K$9)-SUM($F11:K$11) -> 1897064.529 | L12: =SUM($F9:L$9)-SUM($F11:L$11) -> 2269648.66 | M12: =SUM($F9:M$9)-SUM($F11:M$11) -> 2647002.262 | N12: =SUM($F9:N$9)-SUM($F11:N$11) -> 2990994.122 | O12: =SUM($F9:O$9)-SUM($F11:O$11) -> 3174464.332 | P12: =SUM($F9:P$9)-SUM($F11:P$11) -> 3398885.51 | Q12: =SUM($F9:Q$9)-SUM($F11:Q$11) -> 3727007.182 | R12: =SUM($F9:R$9)-SUM($F11:R$11) -> 4304598.198 | S12: =SUM($F9:S$9)-SUM($F11:S$11) -> 5115838.097 | T12: =SUM($F9:T$9)-SUM($F11:T$11) -> 6163722.151 | U12: =SUM($F9:U$9)-SUM($F11:U$11) -> 7248264.965 | V12: =SUM($F9:V$9)-SUM($F11:V$11) -> 8287211.725 | W12: =SUM($F9:W$9)-SUM($F11:W$11) -> 9289889.879 | X12: =SUM($F9:X$9)-SUM($F11:X$11) -> 10255575.9 | Y12: =SUM($F9:Y$9)-SUM($F11:Y$11) -> 11179844.34 | Z12: =SUM($F9:Z$9)-SUM($F11:Z$11) -> 12048116.88 | AA12: =SUM($F9:AA$9)-SUM($F11:AA$11) -> 12870187.66 | AB12: =SUM($F9:AB$9)-SUM($F11:AB$11) -> 13628013.55 | AC12: =SUM($F9:AC$9)-SUM($F11:AC$11) -> 14317348.08 | AD12: =SUM($F9:AD$9)-SUM($F11:AD$11) -> 14938316.8 | AE12: =SUM($F9:AE$9)-SUM($F11:AE$11) -> 15459101.02 | AF12: =SUM($F9:AF$9)-SUM($F11:AF$11) -> 15879135.4 | AG12: =SUM($F9:AG$9)-SUM($F11:AG$11) -> 16190300.25 | AH12: =SUM($F9:AH$9)-SUM($F11:AH$11) -> 16415004.27 | AI12: =SUM($F9:AI$9)-SUM($F11:AI$11) -> 16574052.27 | AJ12: =SUM($F9:AJ$9)-SUM($F11:AJ$11) -> 16699717.48 | AK12: =SUM($F9:AK$9)-SUM($F11:AK$11) -> 16813246.5 | AL12: =SUM($F9:AL$9)-SUM($F11:AL$11) -> 16919432.87 | AM12: =SUM($F9:AM$9)-SUM($F11:AM$11) -> 17023319.44 | AN12: =SUM($F9:AN$9)-SUM($F11:AN$11) -> 17126349.64
C13: Net cumulative savings | D13: % | F13: =F12/F8 -> 0.001119005373 | G13: =G12/G8 -> 0.002917366031 | H13: 0.005367185742 | I13: 0.007778708287 | J13: 0.01059186711 | K13: =K12/K8 -> 0.0135495605 | L13: 0.01672225047 | M13: 0.01857375008 | N13: 0.02102011677 | O13: =O12/O8 -> 0.02323153777 | P13: =P12/P8 -> 0.02414618496 | Q13: =Q12/Q8 -> 0.02505345378 | R13: 0.02873829067 | S13: 0.03392079669 | T13: 0.04058945724 | U13: 0.04740511343 | V13: 0.0538295194 | W13: 0.05992990267 | X13: 0.06570735693 | Y13: 0.07113947243 | Z13: 0.07614037196 | AA13: 0.08077958916 | AB13: 0.08495134434 | AC13: 0.08863825983 | AD13: 0.09185044013 | AE13: 0.09440277273 | AF13: 0.09630488247 | AG13: 0.09752080889 | AH13: 0.09819838173 | AI13: 0.09847204869 | AJ13: =AJ12/AJ8 -> 0.09854040248 | AK13: 0.09853209722 | AL13: 0.09847656389 | AM13: 0.09840389121 | AN13: 0.0983226937
C14: Sales after EE | D14: MWh | E14: =E8-E12 -> 140671580 | F14: =F8-F12 -> 136371149 | G14: 130978872 | H14: 130497470 | I14: 135789932 | J14: 135878215 | K14: 138112239 | L14: 133456620 | M14: 139866074 | N14: 139300990 | O14: =O8-O12 -> 133470142 | P14: =P8-P12 -> 137363952 | Q14: =Q8-Q12 -> 145035204 | R14: 145481561.6 | S14: 145701318.2 | T14: 145691527.2 | U14: 145652222.8 | V14: 145665708.9 | W14: 145722707.6 | X14: 145823992.3 | Y14: 145974038.8 | Z14: 146187475.7 | AA14: 146454560 | AB14: 146793385.9 | AC14: 147208251.6 | AD14: 147699083.5 | AE14: 148297752.5 | AF14: 149004876.7 | AG14: 149828628.8 | AH14: 150746653.4 | AI14: 151738199.7 | AJ14: =AJ8-AJ12 -> 152771048.4 | AK14: 153824007.5 | AL14: 154892338.4 | AM14: 155971053.3 | AN14: 157058764.7
C16: Costs | D16: View charts | E16: 2010 | F16: 2011 | G16: 2012 | H16: 2013 | I16: 2014 | J16: 2015 | K16: 2016 | L16: 2017 | M16: 2018 | N16: 2019 | O16: 2020 | P16: 2021 | Q16: 2022 | R16: 2023 | S16: 2024 | T16: 2025 | U16: 2026 | V16: 2027 | W16: 2028 | X16: 2029 | Y16: 2030 | Z16: 2031 | AA16: 2032 | AB16: 2033 | AC16: 2034 | AD16: 2035 | AE16: 2036 | AF16: 2037 | AG16: 2038 | AH16: 2039 | AI16: 2040 | AJ16: 2041 | AK16: 2042 | AL16: 2043 | AM16: 2044 | AN16: 2045
C17: Total annual costs | D17: 2022 $ M | F17: =SUM(F18:F19) -> 49.97540143 | G17: =SUM(G18:G19) -> 86.29075729 | H17: =SUM(H18:H19) -> 76.60265888 | I17: =SUM(I18:I19) -> 85.56288916 | J17: 97.28814705 | K17: 114.1386679 | L17: 94.20012451 | M17: 102.5370942 | N17: 92.62912716 | O17: =SUM(O18:O19) -> 67.08843079 | P17: 75.80295498 | Q17: =SUM(Q18:Q19) -> 85.96699815 | R17: 392.7779167 | S17: 543.4988848 | T17: 694.0578725 | U17: 748.6397255 | V17: 748.4377585 | W17: 748.5070572 | X17: 748.7999467 | Y17: 749.320401 | Z17: 750.0914185 | AA17: 751.18817 | AB17: 752.5605894 | AC17: 754.3016554 | AD17: 756.4334536 | AE17: 758.9556059 | AF17: 762.0318823 | AG17: 765.6654584 | AH17: 769.89833 | AI17: 774.6156239 | AJ17: =SUM(AJ18:AJ19) -> 779.7107102 | AK17: 785.0180304 | AL17: 790.4286883 | AM17: 795.9183343 | AN17: 801.4613395
C18: Annual utility costs | D18: 2022 $ M | F18: =IFERROR(S4or5_Costs!F21*S4or5_Costs!$D$16*F9*10^-5,0) -> 26.98671677 | G18: =IFERROR(S4or5_Costs!G21*S4or5_Costs!$D$16*G9*10^-5,0) -> 46.59700894 | H18: =IFERROR(S4or5_Costs!H21*S4or5_Costs!$D$16*H9*10^-5,0) -> 41.3654358 | I18: =IFERROR(S4or5_Costs!I21*S4or5_Costs!$D$16*I9*10^-5,0) -> 46.20396014 | J18: =IFERROR(S4or5_Costs!J21*S4or5_Costs!$D$16*J9*10^-5,0) -> 52.53559941 | K18: =IFERROR(S4or5_Costs!K21*S4or5_Costs!$D$16*K9*10^-5,0) -> 61.63488069 | L18: =IFERROR(S4or5_Costs!L21*S4or5_Costs!$D$16*L9*10^-5,0) -> 50.86806724 | M18: =IFERROR(S4or5_Costs!M21*S4or5_Costs!$D$16*M9*10^-5,0) -> 55.37003087 | N18: =IFERROR(S4or5_Costs!N21*S4or5_Costs!$D$16*N9*10^-5,0) -> 50.01972867 | O18: =IFERROR(S4or5_Costs!O21*S4or5_Costs!$D$16*O9*10^-5,0) -> 36.22775263 | P18: =IFERROR(S4or5_Costs!P21*S4or5_Costs!$D$16*P9*10^-5,0) -> 40.93359569 | Q18: =IFERROR(S4or5_Costs!Q21*S4or5_Costs!$D$16*Q9*10^-5,0) -> 46.422179 | R18: =IFERROR(S4or5_Costs!R21*S4or5_Costs!$D$16*R9*10^-5,0) -> 212.100075 | S18: =IFERROR(S4or5_Costs!S21*S4or5_Costs!$D$16*S9*10^-5,0) -> 293.4893978 | T18: =IFERROR(S4or5_Costs!T21*S4or5_Costs!$D$16*T9*10^-5,0) -> 374.7912512 | U18: =IFERROR(S4or5_Costs!U21*S4or5_Costs!$D$16*U9*10^-5,0) -> 404.2654518 | V18: =IFERROR(S4or5_Costs!V21*S4or5_Costs!$D$16*V9*10^-5,0) -> 404.1563896 | W18: =IFERROR(S4or5_Costs!W21*S4or5_Costs!$D$16*W9*10^-5,0) -> 404.1938109 | X18: =IFERROR(S4or5_Costs!X21*S4or5_Costs!$D$16*X9*10^-5,0) -> 404.3519712 | Y18: =IFERROR(S4or5_Costs!Y21*S4or5_Costs!$D$16*Y9*10^-5,0) -> 404.6330166 | Z18: =IFERROR(S4or5_Costs!Z21*S4or5_Costs!$D$16*Z9*10^-5,0) -> 405.049366 | AA18: =IFERROR(S4or5_Costs!AA21*S4or5_Costs!$D$16*AA9*10^-5,0) -> 405.6416118 | AB18: =IFERROR(S4or5_Costs!AB21*S4or5_Costs!$D$16*AB9*10^-5,0) -> 406.3827183 | AC18: =IFERROR(S4or5_Costs!AC21*S4or5_Costs!$D$16*AC9*10^-5,0) -> 407.3228939 | AD18: =IFERROR(S4or5_Costs!AD21*S4or5_Costs!$D$16*AD9*10^-5,0) -> 408.474065 | AE18: =IFERROR(S4or5_Costs!AE21*S4or5_Costs!$D$16*AE9*10^-5,0) -> 409.8360272 | AF18: =IFERROR(S4or5_Costs!AF21*S4or5_Costs!$D$16*AF9*10^-5,0) -> 411.4972164 | AG18: =IFERROR(S4or5_Costs!AG21*S4or5_Costs!$D$16*AG9*10^-5,0) -> 413.4593475 | AH18: =IFERROR(S4or5_Costs!AH21*S4or5_Costs!$D$16*AH9*10^-5,0) -> 415.7450982 | AI18: =IFERROR(S4or5_Costs!AI21*S4or5_Costs!$D$16*AI9*10^-5,0) -> 418.2924369 | AJ18: =IFERROR(S4or5_Costs!AJ21*S4or5_Costs!$D$16*AJ9*10^-5,0) -> 421.0437835 | AK18: =IFERROR(S4or5_Costs!AK21*S4or5_Costs!$D$16*AK9*10^-5,0) -> 423.9097364 | AL18: =IFERROR(S4or5_Costs!AL21*S4or5_Costs!$D$16*AL9*10^-5,0) -> 426.8314917 | AM18: =IFERROR(S4or5_Costs!AM21*S4or5_Costs!$D$16*AM9*10^-5,0) -> 429.7959005 | AN18: =IFERROR(S4or5_Costs!AN21*S4or5_Costs!$D$16*AN9*10^-5,0) -> 432.7891233
C19: Annual participant costs | D19: 2022 $ M | F19: =IFERROR(S4or5_Costs!F21*(1-S4or5_Costs!$D$16)*F9*10^-5,0) -> 22.98868466 | G19: =IFERROR(S4or5_Costs!G21*(1-S4or5_Costs!$D$16)*G9*10^-5,0) -> 39.69374835 | H19: =IFERROR(S4or5_Costs!H21*(1-S4or5_Costs!$D$16)*H9*10^-5,0) -> 35.23722309 | I19: =IFERROR(S4or5_Costs!I21*(1-S4or5_Costs!$D$16)*I9*10^-5,0) -> 39.35892901 | J19: =IFERROR(S4or5_Costs!J21*(1-S4or5_Costs!$D$16)*J9*10^-5,0) -> 44.75254765 | K19: =IFERROR(S4or5_Costs!K21*(1-S4or5_Costs!$D$16)*K9*10^-5,0) -> 52.50378726 | L19: =IFERROR(S4or5_Costs!L21*(1-S4or5_Costs!$D$16)*L9*10^-5,0) -> 43.33205728 | M19: =IFERROR(S4or5_Costs!M21*(1-S4or5_Costs!$D$16)*M9*10^-5,0) -> 47.16706333 | N19: =IFERROR(S4or5_Costs!N21*(1-S4or5_Costs!$D$16)*N9*10^-5,0) -> 42.60939849 | O19: =IFERROR(S4or5_Costs!O21*(1-S4or5_Costs!$D$16)*O9*10^-5,0) -> 30.86067816 | P19: =IFERROR(S4or5_Costs!P21*(1-S4or5_Costs!$D$16)*P9*10^-5,0) -> 34.86935929 | Q19: =IFERROR(S4or5_Costs!Q21*(1-S4or5_Costs!$D$16)*Q9*10^-5,0) -> 39.54481915 | R19: =IFERROR(S4or5_Costs!R21*(1-S4or5_Costs!$D$16)*R9*10^-5,0) -> 180.6778417 | S19: =IFERROR(S4or5_Costs!S21*(1-S4or5_Costs!$D$16)*S9*10^-5,0) -> 250.009487 | T19: =IFERROR(S4or5_Costs!T21*(1-S4or5_Costs!$D$16)*T9*10^-5,0) -> 319.2666214 | U19: =IFERROR(S4or5_Costs!U21*(1-S4or5_Costs!$D$16)*U9*10^-5,0) -> 344.3742737 | V19: =IFERROR(S4or5_Costs!V21*(1-S4or5_Costs!$D$16)*V9*10^-5,0) -> 344.2813689 | W19: =IFERROR(S4or5_Costs!W21*(1-S4or5_Costs!$D$16)*W9*10^-5,0) -> 344.3132463 | X19: =IFERROR(S4or5_Costs!X21*(1-S4or5_Costs!$D$16)*X9*10^-5,0) -> 344.4479755 | Y19: =IFERROR(S4or5_Costs!Y21*(1-S4or5_Costs!$D$16)*Y9*10^-5,0) -> 344.6873845 | Z19: =IFERROR(S4or5_Costs!Z21*(1-S4or5_Costs!$D$16)*Z9*10^-5,0) -> 345.0420525 | AA19: =IFERROR(S4or5_Costs!AA21*(1-S4or5_Costs!$D$16)*AA9*10^-5,0) -> 345.5465582 | AB19: =IFERROR(S4or5_Costs!AB21*(1-S4or5_Costs!$D$16)*AB9*10^-5,0) -> 346.1778711 | AC19: =IFERROR(S4or5_Costs!AC21*(1-S4or5_Costs!$D$16)*AC9*10^-5,0) -> 346.9787615 | AD19: =IFERROR(S4or5_Costs!AD21*(1-S4or5_Costs!$D$16)*AD9*10^-5,0) -> 347.9593887 | AE19: =IFERROR(S4or5_Costs!AE21*(1-S4or5_Costs!$D$16)*AE9*10^-5,0) -> 349.1195787 | AF19: =IFERROR(S4or5_Costs!AF21*(1-S4or5_Costs!$D$16)*AF9*10^-5,0) -> 350.5346658 | AG19: =IFERROR(S4or5_Costs!AG21*(1-S4or5_Costs!$D$16)*AG9*10^-5,0) -> 352.2061109 | AH19: =IFERROR(S4or5_Costs!AH21*(1-S4or5_Costs!$D$16)*AH9*10^-5,0) -> 354.1532318 | AI19: =IFERROR(S4or5_Costs!AI21*(1-S4or5_Costs!$D$16)*AI9*10^-5,0) -> 356.323187 | AJ19: =IFERROR(S4or5_Costs!AJ21*(1-S4or5_Costs!$D$16)*AJ9*10^-5,0) -> 358.6669267 | AK19: =IFERROR(S4or5_Costs!AK21*(1-S4or5_Costs!$D$16)*AK9*10^-5,0) -> 361.108294 | AL19: =IFERROR(S4or5_Costs!AL21*(1-S4or5_Costs!$D$16)*AL9*10^-5,0) -> 363.5971966 | AM19: =IFERROR(S4or5_Costs!AM21*(1-S4or5_Costs!$D$16)*AM9*10^-5,0) -> 366.1224338 | AN19: =IFERROR(S4or5_Costs!AN21*(1-S4or5_Costs!$D$16)*AN9*10^-5,0) -> 368.6722162
C20: First-year utility cost of saved energy | D20: 2022 ¢/kWh | F20: =IFERROR(S4or5_Costs!F22,"None reported") -> 17.66481647 | G20: =IFERROR(S4or5_Costs!G22,"None reported") -> 19.31394172 | H20: =IFERROR(S4or5_Costs!H22,"None reported") -> 12.20637026 | I20: =IFERROR(S4or5_Costs!I22,"None reported") -> 11.95123696 | J20: =IFERROR(S4or5_Costs!J22,"None reported") -> 12.46354793 | K20: =IFERROR(S4or5_Costs!K22,"None reported") -> 12.84434641 | L20: =IFERROR(S4or5_Costs!L22,"None reported") -> 12.06007097 | M20: =IFERROR(S4or5_Costs!M22,"None reported") -> 12.74319591 | N20: =IFERROR(S4or5_Costs!N22,"None reported") -> 11.87653135 | O20: =IFERROR(S4or5_Costs!O22,"None reported") -> 13.29340913 | P20: =IFERROR(S4or5_Costs!P22,"None reported") -> 12.17965322 | Q20: =IFERROR(S4or5_Costs!Q22,"None reported") -> 10.08440693 | R20: =S4or5_Costs!R22 -> 27.74804132 | S20: =S4or5_Costs!S22 -> 27.74804132 | T20: =S4or5_Costs!T22 -> 27.74804132 | U20: =S4or5_Costs!U22 -> 27.74804132 | V20: =S4or5_Costs!V22 -> 27.74804132 | W20: =S4or5_Costs!W22 -> 27.74804132 | X20: =S4or5_Costs!X22 -> 27.74804132 | Y20: =S4or5_Costs!Y22 -> 27.74804132 | Z20: =S4or5_Costs!Z22 -> 27.74804132 | AA20: =S4or5_Costs!AA22 -> 27.74804132 | AB20: =S4or5_Costs!AB22 -> 27.74804132 | AC20: =S4or5_Costs!AC22 -> 27.74804132 | AD20: =S4or5_Costs!AD22 -> 27.74804132 | AE20: =S4or5_Costs!AE22 -> 27.74804132 | AF20: =S4or5_Costs!AF22 -> 27.74804132 | AG20: =S4or5_Costs!AG22 -> 27.74804132 | AH20: =S4or5_Costs!AH22 -> 27.74804132 | AI20: =S4or5_Costs!AI22 -> 27.74804132 | AJ20: =S4or5_Costs!AJ22 -> 27.74804132 | AK20: =S4or5_Costs!AK22 -> 27.74804132 | AL20: =S4or5_Costs!AL22 -> 27.74804132 | AM20: =S4or5_Costs!AM22 -> 27.74804132 | AN20: =S4or5_Costs!AN22 -> 27.74804132
C21: Levelized utility cost of saved energy | D21: 2022 $/MWh | F21: =F62 -> 18.99984272 | G21: 20.77360133 | H21: 13.12887205 | I21: 12.85445693 | J21: 13.40548603 | K21: 13.81506352 | L21: 12.97151613 | M21: 13.70626853 | N21: 12.77410542 | O21: =O62 -> 14.29806435 | P21: 13.10013585 | Q21: =Q62 -> 10.84654041 | R21: 29.84511171 | S21: 29.84511171 | T21: 29.84511171 | U21: 29.84511171 | V21: 29.84511171 | W21: 29.84511171 | X21: 29.84511171 | Y21: 29.84511171 | Z21: 29.84511171 | AA21: 29.84511171 | AB21: 29.84511171 | AC21: 29.84511171 | AD21: 29.84511171 | AE21: 29.84511171 | AF21: 29.84511171 | AG21: 29.84511171 | AH21: 29.84511171 | AI21: 29.84511171 | AJ21: =AJ62 -> 29.84511171 | AK21: =AK62 -> 29.84511171 | AL21: 29.84511171 | AM21: 29.84511171 | AN21: 29.84511171
C23: Emissions Impacts | D23: View charts | E23: 2010 | F23: 2011 | G23: 2012 | H23: 2013 | I23: 2014 | J23: 2015 | K23: 2016 | L23: 2017 | M23: 2018 | N23: 2019 | O23: 2020 | P23: 2021 | Q23: 2022 | R23: 2023 | S23: 2024 | T23: 2025 | U23: 2026 | V23: 2027 | W23: 2028 | X23: 2029 | Y23: 2030 | Z23: 2031 | AA23: 2032 | AB23: 2033 | AC23: 2034 | AD23: 2035 | AE23: 2036 | AF23: 2037 | AG23: 2038 | AH23: 2039 | AI23: 2040 | AJ23: 2041 | AK23: 2042 | AL23: 2043 | AM23: 2044 | AN23: 2045
C24: Avoided carbon dioxide (CO2) | D24: thousand short tons | F24: =C_Emissions!F17 -> 131.6854238 | G24: =C_Emissions!G17 -> 315.9810776 | H24: =C_Emissions!H17 -> 546.1199357 | I24: =C_Emissions!I17 -> 843.1931651 | J24: =C_Emissions!J17 -> 1187.650583 | K24: =C_Emissions!K17 -> 1523.202475 | L24: =C_Emissions!L17 -> 1857.031366 | M24: =C_Emissions!M17 -> 2232.737108 | N24: =C_Emissions!N17 -> 2520.648196 | O24: =C_Emissions!O17 -> 2671.239944 | P24: =C_Emissions!P17 -> 2780.160463 | Q24: =C_Emissions!Q17 -> 2745.199948 | R24: =C_Emissions!R17 -> 3476.430519 | S24: =C_Emissions!S17 -> 4070.117745 | T24: =C_Emissions!T17 -> 4829.735953 | U24: =C_Emissions!U17 -> 5592.453633 | V24: =C_Emissions!V17 -> 6294.473331 | W24: =C_Emissions!W17 -> 6944.411319 | X24: =C_Emissions!X17 -> 6967.797588 | Y24: =C_Emissions!Y17 -> 6834.323089 | Z24: =C_Emissions!Z17 -> 6344.089657 | AA24: =C_Emissions!AA17 -> 5686.28033 | AB24: =C_Emissions!AB17 -> 4866.198462 | AC24: =C_Emissions!AC17 -> 3899.020879 | AD24: =C_Emissions!AD17 -> 2802.183985 | AE24: =C_Emissions!AE17 -> 2569.822559 | AF24: =C_Emissions!AF17 -> 2300.626628 | AG24: =C_Emissions!AG17 -> 2000.04617 | AH24: =C_Emissions!AH17 -> 1677.344088 | AI24: =C_Emissions!AI17 -> 1339.739925 | AJ24: =C_Emissions!AJ17 -> 1636.225455 | AK24: =C_Emissions!AK17 -> 1935.623032 | AL24: =C_Emissions!AL17 -> 2237.942449 | AM24: =C_Emissions!AM17 -> 2543.55951 | AN24: =C_Emissions!AN17 -> 2852.596339
C25: Avoided fine particulate matter (PM2.5) | D25: short tons | F25: =C_Emissions!F18 -> 13.65994053 | G25: =C_Emissions!G18 -> 27.72085207 | H25: =C_Emissions!H18 -> 45.5093537 | I25: =C_Emissions!I18 -> 61.14276494 | J25: =C_Emissions!J18 -> 83.08362646 | K25: =C_Emissions!K18 -> 105.7252116 | L25: =C_Emissions!L18 -> 70.06687786 | M25: =C_Emissions!M18 -> 75.59988837 | N25: =C_Emissions!N18 -> 106.2970912 | O25: =C_Emissions!O18 -> 105.9767029 | P25: =C_Emissions!P18 -> 108.5802708 | Q25: =C_Emissions!Q18 -> 113.796247 | R25: =C_Emissions!R18 -> 127.7901334 | S25: =C_Emissions!S18 -> 163.9660366 | T25: =C_Emissions!T18 -> 212.1211026 | U25: =C_Emissions!U18 -> 266.5783466 | V25: =C_Emissions!V18 -> 324.3781098 | W25: =C_Emissions!W18 -> 385.5841981 | X25: =C_Emissions!X18 -> 428.4786062 | Y25: =C_Emissions!Y18 -> 470.1609525 | Z25: =C_Emissions!Z18 -> 427.3375906 | AA25: =C_Emissions!AA18 -> 371.7444165 | AB25: =C_Emissions!AB18 -> 303.8918145 | AC25: =C_Emissions!AC18 -> 224.9822317 | AD25: =C_Emissions!AD18 -> 136.3698806 | AE25: =C_Emissions!AE18 -> 125.7580108 | AF25: =C_Emissions!AF18 -> 113.3913977 | AG25: =C_Emissions!AG18 -> 99.52056006 | AH25: =C_Emissions!AH18 -> 84.58561129 | AI25: =C_Emissions!AI18 -> 68.93089875 | AJ25: =C_Emissions!AJ18 -> 84.68736324 | AK25: =C_Emissions!AK18 -> 100.6004808 | AL25: =C_Emissions!AL18 -> 116.6700932 | AM25: =C_Emissions!AM18 -> 132.9154799 | AN25: =C_Emissions!AN18 -> 149.342934
C26: Avoided sulfur dioxide (SO2) | D26: short tons | F26: =C_Emissions!F19 -> 285.3786571 | G26: =C_Emissions!G19 -> 487.4951566 | H26: =C_Emissions!H19 -> 812.0145873 | I26: =C_Emissions!I19 -> 1264.129795 | J26: =C_Emissions!J19 -> 1423.989348 | K26: =C_Emissions!K19 -> 1396.647532 | L26: =C_Emissions!L19 -> 331.4198779 | M26: =C_Emissions!M19 -> 425.9150796 | N26: =C_Emissions!N19 -> 547.0100064 | O26: =C_Emissions!O19 -> 325.4379949 | P26: =C_Emissions!P19 -> 508.669043 | Q26: =C_Emissions!Q19 -> 336.3689865 | R26: =C_Emissions!R19 -> 360.9696147 | S26: =C_Emissions!S19 -> 669.1337727 | T26: =C_Emissions!T19 -> 1095.516994 | U26: =C_Emissions!U19 -> 1628.511414 | V26: =C_Emissions!V19 -> 2250.937586 | W26: =C_Emissions!W19 -> 2959.346017 | X26: =C_Emissions!X19 -> 2474.853868 | Y26: =C_Emissions!Y19 -> 1834.391234 | Z26: =C_Emissions!Z19 -> 1581.486062 | AA26: =C_Emissions!AA19 -> 1267.045875 | AB26: =C_Emissions!AB19 -> 894.4349434 | AC26: =C_Emissions!AC19 -> 469.8387029 | AD26: =C_Emissions!AD19 -> 0 | AE26: =C_Emissions!AE19 -> 0 | AF26: =C_Emissions!AF19 -> 0 | AG26: =C_Emissions!AG19 -> 0 | AH26: =C_Emissions!AH19 -> 0 | AI26: =C_Emissions!AI19 -> 0 | AJ26: =C_Emissions!AJ19 -> 1.29798235 | AK26: =C_Emissions!AK19 -> 2.613612744 | AL26: =C_Emissions!AL19 -> 3.94517906 | AM26: =C_Emissions!AM19 -> 5.292537003 | AN26: =C_Emissions!AN19 -> 6.655711268
C27: Avoided nitrogen oxides (NOx) | D27: short tons | F27: =C_Emissions!F20 -> 116.6913719 | G27: =C_Emissions!G20 -> 234.8465007 | H27: =C_Emissions!H20 -> 388.5370522 | I27: =C_Emissions!I20 -> 623.1326983 | J27: =C_Emissions!J20 -> 785.7033773 | K27: =C_Emissions!K20 -> 1000.622171 | L27: =C_Emissions!L20 -> 822.8835235 | M27: =C_Emissions!M20 -> 1119.276242 | N27: =C_Emissions!N20 -> 1337.982293 | O27: =C_Emissions!O20 -> 1174.17979 | P27: =C_Emissions!P20 -> 1355.71718 | Q27: =C_Emissions!Q20 -> 1369.257317 | R27: =C_Emissions!R20 -> 1646.556846 | S27: =C_Emissions!S20 -> 1814.770088 | T27: =C_Emissions!T20 -> 2015.291308 | U27: =C_Emissions!U20 -> 2168.569211 | V27: =C_Emissions!V20 -> 2249.224447 | W27: =C_Emissions!W20 -> 2263.328857 | X27: =C_Emissions!X20 -> 2176.072372 | Y27: =C_Emissions!Y20 -> 2020.590107 | Z27: =C_Emissions!Z20 -> 1811.567179 | AA27: =C_Emissions!AA20 -> 1544.254715 | AB27: =C_Emissions!AB20 -> 1221.245823 | AC27: =C_Emissions!AC20 -> 848.1430829 | AD27: =C_Emissions!AD20 -> 431.1912005 | AE27: =C_Emissions!AE20 -> 356.9788173 | AF27: =C_Emissions!AF20 -> 275.0086325 | AG27: =C_Emissions!AG20 -> 186.93177 | AH27: =C_Emissions!AH20 -> 94.76309138 | AI27: =C_Emissions!AI20 -> 0 | AJ27: =C_Emissions!AJ20 -> 44.68682945 | AK27: =C_Emissions!AK20 -> 89.98124428 | AL27: =C_Emissions!AL20 -> 135.8242998 | AM27: =C_Emissions!AM20 -> 182.211028 | AN27: =C_Emissions!AN20 -> 229.1422794
C29: Public Health Impacts | D29: View charts | E29: 2010 | F29: 2011 | G29: 2012 | H29: 2013 | I29: 2014 | J29: 2015 | K29: 2016 | L29: 2017 | M29: 2018 | N29: 2019 | O29: 2020 | P29: 2021 | Q29: 2022 | R29: 2023 | S29: 2024 | T29: 2025 | U29: 2026 | V29: 2027 | W29: 2028 | X29: 2029 | Y29: 2030 | Z29: 2031 | AA29: 2032 | AB29: 2033 | AC29: 2034 | AD29: 2035 | AE29: 2036 | AF29: 2037 | AG29: 2038 | AH29: 2039 | AI29: 2040 | AJ29: 2041 | AK29: 2042 | AL29: 2043 | AM29: 2044 | AN29: 2045
C30: Fine particulate matter (PM2.5) benefits | D30: 2022 $ million | O30: =G_Health!O11 -> 45.31870033 | P30: =G_Health!P11 -> 64.54569916 | Q30: =G_Health!Q11 -> 47.55070892 | R30: =G_Health!R11 -> 51.91309854 | S30: =G_Health!S11 -> 86.94297045 | T30: =G_Health!T11 -> 135.1692542 | U30: =G_Health!U11 -> 200.2768237 | V30: =G_Health!V11 -> 278.5591766 | W30: =G_Health!W11 -> 370.4456226 | X30: =G_Health!X11 -> 329.6653085 | Y30: =G_Health!Y11 -> 267.9552539 | Z30: =G_Health!Z11 -> 239.9261135 | AA30: =G_Health!AA11 -> 200.8994898 | AB30: =G_Health!AB11 -> 150.6544917 | AC30: =G_Health!AC11 -> 89.47274163 | AD30: =G_Health!AD11 -> 17.82355868 | AE30: =G_Health!AE11 -> 16.73596587 | AF30: =G_Health!AF11 -> 15.33054809 | AG30: =G_Health!AG11 -> 13.62756519 | AH30: =G_Health!AH11 -> 11.67721502 | AI30: =G_Health!AI11 -> 9.520809033 | AJ30: =G_Health!AJ11 -> 12.27414744 | AK30: =G_Health!AK11 -> 15.16249148 | AL30: =G_Health!AL11 -> 18.1870575 | AM30: =G_Health!AM11 -> 21.35235697 | AN30: =G_Health!AN11 -> 24.66118678
C31: Ozone benefits | D31: 2022 $ million | O31: =G_Health!O15 -> 6.684802733 | P31: =G_Health!P15 -> 6.573498969 | Q31: =G_Health!Q15 -> 3.662146595 | R31: =G_Health!R15 -> 5.080013739 | S31: =G_Health!S15 -> 6.354503448 | T31: =G_Health!T15 -> 8.038176114 | U31: =G_Health!U15 -> 10.25338389 | V31: =G_Health!V15 -> 12.67518678 | W31: =G_Health!W15 -> 15.31696681 | X31: =G_Health!X15 -> 16.1202129 | Y31: =G_Health!Y15 -> 16.62271508 | Z31: =G_Health!Z15 -> 14.93863574 | AA31: =G_Health!AA15 -> 12.68074899 | AB31: =G_Health!AB15 -> 9.85231045 | AC31: =G_Health!AC15 -> 6.484448555 | AD31: =G_Health!AD15 -> 2.616743959 | AE31: =G_Health!AE15 -> 2.193566153 | AF31: =G_Health!AF15 -> 1.710822021 | AG31: =G_Health!AG15 -> 1.177136236 | AH31: =G_Health!AH15 -> 0.6039547367 | AI31: =G_Health!AI15 -> 0 | AJ31: =G_Health!AJ15 -> 0.9459286295 | AK31: =G_Health!AK15 -> 1.926950684 | AL31: =G_Health!AL15 -> 2.942239655 | AM31: =G_Health!AM15 -> 3.992093366 | AN31: =G_Health!AN15 -> 5.076933639
C32: Total benefits | D32: 2022 $ million | O32: =G_Health!O17 -> 52.00350307 | P32: =G_Health!P17 -> 71.11919813 | Q32: =G_Health!Q17 -> 51.21285551 | R32: =G_Health!R17 -> 56.99311228 | S32: =G_Health!S17 -> 93.2974739 | T32: =G_Health!T17 -> 143.2074303 | U32: =G_Health!U17 -> 210.5302076 | V32: =G_Health!V17 -> 291.2343634 | W32: =G_Health!W17 -> 385.7625894 | X32: =G_Health!X17 -> 345.7855214 | Y32: =G_Health!Y17 -> 284.577969 | Z32: =G_Health!Z17 -> 254.8647493 | AA32: =G_Health!AA17 -> 213.5802388 | AB32: =G_Health!AB17 -> 160.5068022 | AC32: =G_Health!AC17 -> 95.95719019 | AD32: =G_Health!AD17 -> 20.44030264 | AE32: =G_Health!AE17 -> 18.92953203 | AF32: =G_Health!AF17 -> 17.04137011 | AG32: =G_Health!AG17 -> 14.80470143 | AH32: =G_Health!AH17 -> 12.28116976 | AI32: =G_Health!AI17 -> 9.520809033 | AJ32: =G_Health!AJ17 -> 13.22007607 | AK32: =G_Health!AK17 -> 17.08944217 | AL32: =G_Health!AL17 -> 21.12929715 | AM32: =G_Health!AM17 -> 25.34445033 | AN32: =G_Health!AN17 -> 29.73812042
C34: Energy Burden Impacts | D34: View charts | E34: 2010 | F34: 2011 | G34: 2012 | H34: 2013 | I34: 2014 | J34: 2015 | K34: 2016 | L34: 2017 | M34: 2018 | N34: 2019 | O34: 2020 | P34: 2021 | Q34: 2022 | R34: 2023 | S34: 2024 | T34: 2025 | U34: 2026 | V34: 2027 | W34: 2028 | X34: 2029 | Y34: 2030 | Z34: 2031 | AA34: 2032 | AB34: 2033 | AC34: 2034 | AD34: 2035 | AE34: 2036 | AF34: 2037 | AG34: 2038 | AH34: 2039 | AI34: 2040 | AJ34: 2041 | AK34: 2042 | AL34: 2043 | AM34: 2044 | AN34: 2045
C35: Net cumulative low-income (LI) savings | D35: MWh | R35: =E_Equity!R60 -> 0 | S35: =E_Equity!S60 -> 0 | T35: =E_Equity!T60 -> 0 | U35: =E_Equity!U60 -> 0 | V35: =E_Equity!V60 -> 0 | W35: =E_Equity!W60 -> 0 | X35: =E_Equity!X60 -> 0 | Y35: =E_Equity!Y60 -> 0 | Z35: =E_Equity!Z60 -> 0 | AA35: =E_Equity!AA60 -> 0 | AB35: =E_Equity!AB60 -> 0 | AC35: =E_Equity!AC60 -> 0 | AD35: =E_Equity!AD60 -> 0 | AE35: =E_Equity!AE60 -> 0 | AF35: =E_Equity!AF60 -> 0 | AG35: =E_Equity!AG60 -> 0 | AH35: =E_Equity!AH60 -> 0 | AI35: =E_Equity!AI60 -> 0 | AJ35: =E_Equity!AJ60 -> 0 | AK35: =E_Equity!AK60 -> 0 | AL35: =E_Equity!AL60 -> 0 | AM35: =E_Equity!AM60 -> 0 | AN35: =E_Equity!AN60 -> 0
C36: Annual EE program spending | D36: 2022 $ M | F36: =E_Equity!F61 -> 0 | G36: =E_Equity!G61 -> 0 | H36: =E_Equity!H61 -> 0 | I36: =E_Equity!I61 -> 0 | J36: =E_Equity!J61 -> 0 | K36: =E_Equity!K61 -> 0 | L36: =E_Equity!L61 -> 0 | M36: =E_Equity!M61 -> 0 | N36: =E_Equity!N61 -> 0 | O36: =E_Equity!O61 -> 0 | P36: =E_Equity!P61 -> 0 | Q36: =E_Equity!Q61 -> 0 | R36: =E_Equity!R61 -> 0 | S36: =E_Equity!S61 -> 0 | T36: =E_Equity!T61 -> 0 | U36: =E_Equity!U61 -> 0 | V36: =E_Equity!V61 -> 0 | W36: =E_Equity!W61 -> 0 | X36: =E_Equity!X61 -> 0 | Y36: =E_Equity!Y61 -> 0 | Z36: =E_Equity!Z61 -> 0 | AA36: =E_Equity!AA61 -> 0 | AB36: =E_Equity!AB61 -> 0 | AC36: =E_Equity!AC61 -> 0 | AD36: =E_Equity!AD61 -> 0 | AE36: =E_Equity!AE61 -> 0 | AF36: =E_Equity!AF61 -> 0 | AG36: =E_Equity!AG61 -> 0 | AH36: =E_Equity!AH61 -> 0 | AI36: =E_Equity!AI61 -> 0 | AJ36: =E_Equity!AJ61 -> 0 | AK36: =E_Equity!AK61 -> 0 | AL36: =E_Equity!AL61 -> 0 | AM36: =E_Equity!AM61 -> 0 | AN36: =E_Equity!AN61 -> 0
C37: Annual EE and monetary assistance spending | D37: 2022 $ M | F37: =E_Equity!F63 -> 0 | G37: =E_Equity!G63 -> 0 | H37: =E_Equity!H63 -> 0 | I37: =E_Equity!I63 -> 0 | J37: =E_Equity!J63 -> 0 | K37: =E_Equity!K63 -> 0 | L37: =E_Equity!L63 -> 0 | M37: =E_Equity!M63 -> 0 | N37: =E_Equity!N63 -> 0 | O37: =E_Equity!O63 -> 0 | P37: =E_Equity!P63 -> 0 | Q37: =E_Equity!Q63 -> 0 | R37: =E_Equity!R63 -> 0 | S37: =E_Equity!S63 -> 0 | T37: =E_Equity!T63 -> 0 | U37: =E_Equity!U63 -> 0 | V37: =E_Equity!V63 -> 0 | W37: =E_Equity!W63 -> 0 | X37: =E_Equity!X63 -> 0 | Y37: =E_Equity!Y63 -> 0 | Z37: =E_Equity!Z63 -> 0 | AA37: =E_Equity!AA63 -> 0 | AB37: =E_Equity!AB63 -> 0 | AC37: =E_Equity!AC63 -> 0 | AD37: =E_Equity!AD63 -> 0 | AE37: =E_Equity!AE63 -> 0 | AF37: =E_Equity!AF63 -> 0 | AG37: =E_Equity!AG63 -> 0 | AH37: =E_Equity!AH63 -> 0 | AI37: =E_Equity!AI63 -> 0 | AJ37: =E_Equity!AJ63 -> 0 | AK37: =E_Equity!AK63 -> 0 | AL37: =E_Equity!AL63 -> 0 | AM37: =E_Equity!AM63 -> 0 | AN37: =E_Equity!AN63 -> 0
C38: LI EE program spending rel. to residential | D38: % | F38: =E_Equity!F64 -> 0 | G38: =E_Equity!G64 -> 0 | H38: =E_Equity!H64 -> 0 | I38: =E_Equity!I64 -> 0 | J38: =E_Equity!J64 -> 0 | K38: =E_Equity!K64 -> 0 | L38: =E_Equity!L64 -> 0 | M38: =E_Equity!M64 -> 0 | N38: =E_Equity!N64 -> 0 | O38: =E_Equity!O64 -> 0 | P38: =E_Equity!P64 -> 0 | Q38: =E_Equity!Q64 -> 0 | R38: =E_Equity!R64 -> 0 | S38: =E_Equity!S64 -> 0 | T38: =E_Equity!T64 -> 0 | U38: =E_Equity!U64 -> 0 | V38: =E_Equity!V64 -> 0 | W38: =E_Equity!W64 -> 0 | X38: =E_Equity!X64 -> 0 | Y38: =E_Equity!Y64 -> 0 | Z38: =E_Equity!Z64 -> 0 | AA38: =E_Equity!AA64 -> 0 | AB38: =E_Equity!AB64 -> 0 | AC38: =E_Equity!AC64 -> 0 | AD38: =E_Equity!AD64 -> 0 | AE38: =E_Equity!AE64 -> 0 | AF38: =E_Equity!AF64 -> 0 | AG38: =E_Equity!AG64 -> 0 | AH38: =E_Equity!AH64 -> 0 | AI38: =E_Equity!AI64 -> 0 | AJ38: =E_Equity!AJ64 -> 0 | AK38: =E_Equity!AK64 -> 0 | AL38: =E_Equity!AL64 -> 0 | AM38: =E_Equity!AM64 -> 0 | AN38: =E_Equity!AN64 -> 0
C39: % of LI households reached by program | D39: % | F39: =E_Equity!F65 -> 0 | G39: =E_Equity!G65 -> 0 | H39: =E_Equity!H65 -> 0 | I39: =E_Equity!I65 -> 0 | J39: =E_Equity!J65 -> 0 | K39: =E_Equity!K65 -> 0 | L39: =E_Equity!L65 -> 0 | M39: =E_Equity!M65 -> 0 | N39: =E_Equity!N65 -> 0 | O39: =E_Equity!O65 -> 0 | P39: =E_Equity!P65 -> 0 | Q39: =E_Equity!Q65 -> 0 | R39: =E_Equity!R65 -> 0 | S39: =E_Equity!S65 -> 0 | T39: =E_Equity!T65 -> 0 | U39: =E_Equity!U65 -> 0 | V39: =E_Equity!V65 -> 0 | W39: =E_Equity!W65 -> 0 | X39: =E_Equity!X65 -> 0 | Y39: =E_Equity!Y65 -> 0 | Z39: =E_Equity!Z65 -> 0 | AA39: =E_Equity!AA65 -> 0 | AB39: =E_Equity!AB65 -> 0 | AC39: =E_Equity!AC65 -> 0 | AD39: =E_Equity!AD65 -> 0 | AE39: =E_Equity!AE65 -> 0 | AF39: =E_Equity!AF65 -> 0 | AG39: =E_Equity!AG65 -> 0 | AH39: =E_Equity!AH65 -> 0 | AI39: =E_Equity!AI65 -> 0 | AJ39: =E_Equity!AJ65 -> 0 | AK39: =E_Equity!AK65 -> 0 | AL39: =E_Equity!AL65 -> 0 | AM39: =E_Equity!AM65 -> 0 | AN39: =E_Equity!AN65 -> 0
C40: Electricity burden | D40: % | R40: =E_Equity!R69 -> 0.06876327373 | S40: =E_Equity!S69 -> 0.06876327373 | T40: =E_Equity!T69 -> 0.06876327373 | U40: =E_Equity!U69 -> 0.06876327373 | V40: =E_Equity!V69 -> 0.06876327373 | W40: =E_Equity!W69 -> 0.06876327373 | X40: =E_Equity!X69 -> 0.06876327373 | Y40: =E_Equity!Y69 -> 0.06876327373 | Z40: =E_Equity!Z69 -> 0.06876327373 | AA40: =E_Equity!AA69 -> 0.06876327373 | AB40: =E_Equity!AB69 -> 0.06876327373 | AC40: =E_Equity!AC69 -> 0.06876327373 | AD40: =E_Equity!AD69 -> 0.06876327373 | AE40: =E_Equity!AE69 -> 0.06876327373 | AF40: =E_Equity!AF69 -> 0.06876327373 | AG40: =E_Equity!AG69 -> 0.06876327373 | AH40: =E_Equity!AH69 -> 0.06876327373 | AI40: =E_Equity!AI69 -> 0.06876327373 | AJ40: =E_Equity!AJ69 -> 0.06876327373 | AK40: =E_Equity!AK69 -> 0.06876327373 | AL40: =E_Equity!AL69 -> 0.06876327373 | AM40: =E_Equity!AM69 -> 0.06876327373 | AN40: =E_Equity!AN69 -> 0.06876327373
C41: Energy burden | D41: % | R41: =E_Equity!R70 -> 0.08561033917 | S41: =E_Equity!S70 -> 0.08561033917 | T41: =E_Equity!T70 -> 0.08561033917 | U41: =E_Equity!U70 -> 0.08561033917 | V41: =E_Equity!V70 -> 0.08561033917 | W41: =E_Equity!W70 -> 0.08561033917 | X41: =E_Equity!X70 -> 0.08561033917 | Y41: =E_Equity!Y70 -> 0.08561033917 | Z41: =E_Equity!Z70 -> 0.08561033917 | AA41: =E_Equity!AA70 -> 0.08561033917 | AB41: =E_Equity!AB70 -> 0.08561033917 | AC41: =E_Equity!AC70 -> 0.08561033917 | AD41: =E_Equity!AD70 -> 0.08561033917 | AE41: =E_Equity!AE70 -> 0.08561033917 | AF41: =E_Equity!AF70 -> 0.08561033917 | AG41: =E_Equity!AG70 -> 0.08561033917 | AH41: =E_Equity!AH70 -> 0.08561033917 | AI41: =E_Equity!AI70 -> 0.08561033917 | AJ41: =E_Equity!AJ70 -> 0.08561033917 | AK41: =E_Equity!AK70 -> 0.08561033917 | AL41: =E_Equity!AL70 -> 0.08561033917 | AM41: =E_Equity!AM70 -> 0.08561033917 | AN41: =E_Equity!AN70 -> 0.08561033917
C43: Peak Demand Impacts | D43: View charts | E43: 2010 | F43: 2011 | G43: 2012 | H43: 2013 | I43: 2014 | J43: 2015 | K43: 2016 | L43: 2017 | M43: 2018 | N43: 2019 | O43: 2020 | P43: 2021 | Q43: 2022 | R43: 2023 | S43: 2024 | T43: 2025 | U43: 2026 | V43: 2027 | W43: 2028 | X43: 2029 | Y43: 2030 | Z43: 2031 | AA43: 2032 | AB43: 2033 | AC43: 2034 | AD43: 2035 | AE43: 2036 | AF43: 2037 | AG43: 2038 | AH43: 2039 | AI43: 2040 | AJ43: 2041 | AK43: 2042 | AL43: 2043 | AM43: 2044 | AN43: 2045
C44: System peak demand | D44: MW | E44: =B_PeakDemand!E13/(1-C_Emissions!E26) -> 53971.01994 | F44: =B_PeakDemand!F13/(1-C_Emissions!F26) -> 54299.52752 | G44: =B_PeakDemand!G13/(1-C_Emissions!G26) -> 54464.66338 | H44: =B_PeakDemand!H13/(1-C_Emissions!H26) -> 48983.52625 | I44: =B_PeakDemand!I13/(1-C_Emissions!I26) -> 54702.22872 | J44: =B_PeakDemand!J13/(1-C_Emissions!J26) -> 52984.36014 | K44: =B_PeakDemand!K13/(1-C_Emissions!K26) -> 54270.01352 | L44: =B_PeakDemand!L13/(1-C_Emissions!L26) -> 52538.71244 | M44: =B_PeakDemand!M13/(1-C_Emissions!M26) -> 52565.6496 | N44: =B_PeakDemand!N13/(1-C_Emissions!N26) -> 56356.2196 | O44: =B_PeakDemand!O13/(1-C_Emissions!O26) -> 54612.72522 | P44: =B_PeakDemand!P13/(1-C_Emissions!P26) -> 52919.00056 | Q44: =B_PeakDemand!Q13/(1-C_Emissions!Q26) -> 58390.55082 | R44: =B_PeakDemand!R13/(1-C_Emissions!R26) -> 58907.27895 | S44: =B_PeakDemand!S13/(1-C_Emissions!S26) -> 59312.74499 | T44: =B_PeakDemand!T13/(1-C_Emissions!T26) -> 59721.00191 | U44: =B_PeakDemand!U13/(1-C_Emissions!U26) -> 60132.06891 | V44: =B_PeakDemand!V13/(1-C_Emissions!V26) -> 60545.96534 | W44: =B_PeakDemand!W13/(1-C_Emissions!W26) -> 60962.71066 | X44: =B_PeakDemand!X13/(1-C_Emissions!X26) -> 61382.3245 | Y44: =B_PeakDemand!Y13/(1-C_Emissions!Y26) -> 61804.82659 | Z44: =B_PeakDemand!Z13/(1-C_Emissions!Z26) -> 62230.23681 | AA44: =B_PeakDemand!AA13/(1-C_Emissions!AA26) -> 62658.57518 | AB44: =B_PeakDemand!AB13/(1-C_Emissions!AB26) -> 63089.86186 | AC44: =B_PeakDemand!AC13/(1-C_Emissions!AC26) -> 63524.11714 | AD44: =B_PeakDemand!AD13/(1-C_Emissions!AD26) -> 63961.36145 | AE44: =B_PeakDemand!AE13/(1-C_Emissions!AE26) -> 64401.61537 | AF44: =B_PeakDemand!AF13/(1-C_Emissions!AF26) -> 64844.89961 | AG44: =B_PeakDemand!AG13/(1-C_Emissions!AG26) -> 65291.23503 | AH44: =B_PeakDemand!AH13/(1-C_Emissions!AH26) -> 65740.64263 | AI44: =B_PeakDemand!AI13/(1-C_Emissions!AI26) -> 66193.14355 | AJ44: =B_PeakDemand!AJ13/(1-C_Emissions!AJ26) -> 66648.7591 | AK44: =B_PeakDemand!AK13/(1-C_Emissions!AK26) -> 67107.51071 | AL44: =B_PeakDemand!AL13/(1-C_Emissions!AL26) -> 67569.41996 | AM44: =B_PeakDemand!AM13/(1-C_Emissions!AM26) -> 68034.50858 | AN44: =B_PeakDemand!AN13/(1-C_Emissions!AN26) -> 68502.79847
C45: Cumulative peak savings | D45: MW | F45: =B_PeakDemand!F21/(1-C_Emissions!F26) -> 47.40223783 | G45: =B_PeakDemand!G21/(1-C_Emissions!G26) -> 126.8554775 | H45: =B_PeakDemand!H21/(1-C_Emissions!H26) -> 352.8462339 | I45: =B_PeakDemand!I21/(1-C_Emissions!I26) -> 302.1707081 | J45: =B_PeakDemand!J21/(1-C_Emissions!J26) -> 343.7186769 | K45: =B_PeakDemand!K21/(1-C_Emissions!K26) -> 450.594209 | L45: =B_PeakDemand!L21/(1-C_Emissions!L26) -> 949.43319 | M45: =B_PeakDemand!M21/(1-C_Emissions!M26) -> 1013.079658 | N45: =B_PeakDemand!N21/(1-C_Emissions!N26) -> 556.8776798 | O45: =B_PeakDemand!O21/(1-C_Emissions!O26) -> 609.8638167 | P45: =B_PeakDemand!P21/(1-C_Emissions!P26) -> 663.6893161 | Q45: =B_PeakDemand!Q21/(1-C_Emissions!Q26) -> 63362.76025 | R45: =B_PeakDemand!R21/(1-C_Emissions!R26) -> 67817.01974 | S45: =B_PeakDemand!S21/(1-C_Emissions!S26) -> 73346.52628 | T45: =B_PeakDemand!T21/(1-C_Emissions!T26) -> 78213.51162 | U45: =B_PeakDemand!U21/(1-C_Emissions!U26) -> 82134.05331 | V45: =B_PeakDemand!V21/(1-C_Emissions!V26) -> 85781.47303 | W45: =B_PeakDemand!W21/(1-C_Emissions!W26) -> 89103.72425 | X45: =B_PeakDemand!X21/(1-C_Emissions!X26) -> 92221.88051 | Y45: =B_PeakDemand!Y21/(1-C_Emissions!Y26) -> 95187.8578 | Z45: =B_PeakDemand!Z21/(1-C_Emissions!Z26) -> 97855.22695 | AA45: =B_PeakDemand!AA21/(1-C_Emissions!AA26) -> 100319.8839 | AB45: =B_PeakDemand!AB21/(1-C_Emissions!AB26) -> 102698.9389 | AC45: =B_PeakDemand!AC21/(1-C_Emissions!AC26) -> 104922.9782 | AD45: =B_PeakDemand!AD21/(1-C_Emissions!AD26) -> 106946.1642 | AE45: =B_PeakDemand!AE21/(1-C_Emissions!AE26) -> 108748.6145 | AF45: =B_PeakDemand!AF21/(1-C_Emissions!AF26) -> 110320.2341 | AG45: =B_PeakDemand!AG21/(1-C_Emissions!AG26) -> 111527.1165 | AH45: =B_PeakDemand!AH21/(1-C_Emissions!AH26) -> 112417.2309 | AI45: =B_PeakDemand!AI21/(1-C_Emissions!AI26) -> 113230.5084 | AJ45: =B_PeakDemand!AJ21/(1-C_Emissions!AJ26) -> 114007.3653 | AK45: =B_PeakDemand!AK21/(1-C_Emissions!AK26) -> 114786.4799 | AL45: =B_PeakDemand!AL21/(1-C_Emissions!AL26) -> 115547.2298 | AM45: =B_PeakDemand!AM21/(1-C_Emissions!AM26) -> 116291.4535 | AN45: =B_PeakDemand!AN21/(1-C_Emissions!AN26) -> 117051.5005
C46: System peak demand, post-EE | D46: MW | F46: =F44-F45 -> 54252.12528 | G46: =G44-G45 -> 54337.80791 | H46: =H44-H45 -> 48630.68002 | I46: 54400.05802 | J46: 52640.64146 | K46: 53819.41931 | L46: 51589.27925 | M46: 51552.56994 | N46: 55799.34192 | O46: =O44-O45 -> 54002.8614 | P46: 52255.31124 | Q46: =Q44-Q45 -> -4972.20943 | R46: -8909.740787 | S46: -14033.78129 | T46: -18492.50971 | U46: -22001.9844 | V46: -25235.50769 | W46: -28141.01358 | X46: -30839.55601 | Y46: -33383.03121 | Z46: -35624.99014 | AA46: -37661.30873 | AB46: -39609.07701 | AC46: -41398.86103 | AD46: -42984.8027 | AE46: -44346.99911 | AF46: -45475.33451 | AG46: -46235.88151 | AH46: -46676.58826 | AI46: -47037.36485 | AJ46: =AJ44-AJ45 -> -47358.60624 | AK46: -47678.96919 | AL46: -47977.8098 | AM46: -48256.94488 | AN46: -48548.70199
C53: Appendix A. Levelization Calculation
C54: Calculates the levelized cost of saved energy based on the above options. Based on calculations available in http://epa.gov/airquality/cpp/df-cpp-demand-side-ee-at3.xlsx
E56: 2010 | F56: 2011 | G56: 2012 | H56: 2013 | I56: 2014 | J56: 2015 | K56: 2016 | L56: 2017 | M56: 2018 | N56: 2019 | O56: 2020 | P56: 2021 | Q56: 2022 | R56: 2023 | S56: 2024 | T56: 2025 | U56: 2026 | V56: 2027 | W56: 2028 | X56: 2029 | Y56: 2030 | Z56: 2031 | AA56: 2032 | AB56: 2033 | AC56: 2034 | AD56: 2035 | AE56: 2036 | AF56: 2037 | AG56: 2038 | AH56: 2039 | AI56: 2040 | AJ56: 2041 | AK56: 2042 | AL56: 2043 | AM56: 2044 | AN56: 2045
C57: Utility portion | D57: % | F57: =S4or5_Costs!$D$16 -> 0.54 | G57: =S4or5_Costs!$D$16 -> 0.54 | H57: =S4or5_Costs!$D$16 -> 0.54 | I57: =S4or5_Costs!$D$16 -> 0.54 | J57: =S4or5_Costs!$D$16 -> 0.54 | K57: =S4or5_Costs!$D$16 -> 0.54 | L57: =S4or5_Costs!$D$16 -> 0.54 | M57: =S4or5_Costs!$D$16 -> 0.54 | N57: =S4or5_Costs!$D$16 -> 0.54 | O57: =S4or5_Costs!$D$16 -> 0.54 | P57: =S4or5_Costs!$D$16 -> 0.54 | Q57: =S4or5_Costs!$D$16 -> 0.54 | R57: =S4or5_Costs!$D$16 -> 0.54 | S57: =S4or5_Costs!$D$16 -> 0.54 | T57: =S4or5_Costs!$D$16 -> 0.54 | U57: =S4or5_Costs!$D$16 -> 0.54 | V57: =S4or5_Costs!$D$16 -> 0.54 | W57: =S4or5_Costs!$D$16 -> 0.54 | X57: =S4or5_Costs!$D$16 -> 0.54 | Y57: =S4or5_Costs!$D$16 -> 0.54 | Z57: =S4or5_Costs!$D$16 -> 0.54 | AA57: =S4or5_Costs!$D$16 -> 0.54 | AB57: =S4or5_Costs!$D$16 -> 0.54 | AC57: =S4or5_Costs!$D$16 -> 0.54 | AD57: =S4or5_Costs!$D$16 -> 0.54 | AE57: =S4or5_Costs!$D$16 -> 0.54 | AF57: =S4or5_Costs!$D$16 -> 0.54 | AG57: =S4or5_Costs!$D$16 -> 0.54 | AH57: =S4or5_Costs!$D$16 -> 0.54 | AI57: =S4or5_Costs!$D$16 -> 0.54 | AJ57: =S4or5_Costs!$D$16 -> 0.54 | AK57: =S4or5_Costs!$D$16 -> 0.54 | AL57: =S4or5_Costs!$D$16 -> 0.54 | AM57: =S4or5_Costs!$D$16 -> 0.54 | AN57: =S4or5_Costs!$D$16 -> 0.54
C58: First Year Savings | D58: MWh | F58: =F9 -> 152771 | G58: 241261 | H58: 338884 | I58: 386604 | J58: 421514 | K58: 479860 | L58: 421789.12 | M58: 434506.628 | N58: 421164.456 | O58: 272524.168 | P58: 336081.783 | Q58: 460336.233 | R58: 764378.5467 | S58: 1057694.107 | T58: 1350694.439 | U58: 1456915.272 | V58: 1456522.228 | W58: 1456657.089 | X58: 1457227.076 | Y58: 1458239.923 | Z58: 1459740.388 | AA58: 1461874.757 | AB58: 1464545.6 | AC58: 1467933.859 | AD58: 1472082.516 | AE58: 1476990.835 | AF58: 1482977.525 | AG58: 1490048.767 | AH58: 1498286.288 | AI58: 1507466.534 | AJ58: =AJ9 -> 1517381.997 | AK58: 1527710.484 | AL58: 1538240.075 | AM58: 1548923.384 | AN58: 1559710.533
C59: Utility Cost of First-year Savings | D59: 2022 ¢/kWh | F59: =F57*S4or5_Costs!F21 -> 17.66481647 | G59: =G57*S4or5_Costs!G21 -> 19.31394172 | H59: =H57*S4or5_Costs!H21 -> 12.20637026 | I59: =I57*S4or5_Costs!I21 -> 11.95123696 | J59: =J57*S4or5_Costs!J21 -> 12.46354793 | K59: =K57*S4or5_Costs!K21 -> 12.84434641 | L59: =L57*S4or5_Costs!L21 -> 12.06007097 | M59: =M57*S4or5_Costs!M21 -> 12.74319591 | N59: =N57*S4or5_Costs!N21 -> 11.87653135 | O59: =O57*S4or5_Costs!O21 -> 13.29340913 | P59: =P57*S4or5_Costs!P21 -> 12.17965322 | Q59: =Q57*S4or5_Costs!Q21 -> 10.08440693 | R59: =R57*S4or5_Costs!R21 -> 27.74804132 | S59: =S57*S4or5_Costs!S21 -> 27.74804132 | T59: =T57*S4or5_Costs!T21 -> 27.74804132 | U59: =U57*S4or5_Costs!U21 -> 27.74804132 | V59: =V57*S4or5_Costs!V21 -> 27.74804132 | W59: =W57*S4or5_Costs!W21 -> 27.74804132 | X59: =X57*S4or5_Costs!X21 -> 27.74804132 | Y59: =Y57*S4or5_Costs!Y21 -> 27.74804132 | Z59: =Z57*S4or5_Costs!Z21 -> 27.74804132 | AA59: =AA57*S4or5_Costs!AA21 -> 27.74804132 | AB59: =AB57*S4or5_Costs!AB21 -> 27.74804132 | AC59: =AC57*S4or5_Costs!AC21 -> 27.74804132 | AD59: =AD57*S4or5_Costs!AD21 -> 27.74804132 | AE59: =AE57*S4or5_Costs!AE21 -> 27.74804132 | AF59: =AF57*S4or5_Costs!AF21 -> 27.74804132 | AG59: =AG57*S4or5_Costs!AG21 -> 27.74804132 | AH59: =AH57*S4or5_Costs!AH21 -> 27.74804132 | AI59: =AI57*S4or5_Costs!AI21 -> 27.74804132 | AJ59: =AJ57*S4or5_Costs!AJ21 -> 27.74804132 | AK59: =AK57*S4or5_Costs!AK21 -> 27.74804132 | AL59: =AL57*S4or5_Costs!AL21 -> 27.74804132 | AM59: =AM57*S4or5_Costs!AM21 -> 27.74804132 | AN59: =AN57*S4or5_Costs!AN21 -> 27.74804132
C60: Levelized Savings | D60: MWh | F60: =NPV(S4or5_Costs!$D$17,F$64:F$103) -> 1420365.272 | G60: =NPV(S4or5_Costs!$D$17,G$64:G$103) -> 2243087.666 | H60: =NPV(S4or5_Costs!$D$17,H$64:H$103) -> 3150722.747 | I60: =NPV(S4or5_Costs!$D$17,I$64:I$103) -> 3594392.231 | J60: =NPV(S4or5_Costs!$D$17,J$64:J$103) -> 3918962.678 | K60: =NPV(S4or5_Costs!$D$17,K$64:K$103) -> 4461425.79 | L60: =NPV(S4or5_Costs!$D$17,L$64:L$103) -> 3921520.564 | M60: =NPV(S4or5_Costs!$D$17,M$64:M$103) -> 4039759.672 | N60: =NPV(S4or5_Costs!$D$17,N$64:N$103) -> 3915712.845 | O60: =NPV(S4or5_Costs!$D$17,O$64:O$103) -> 2533752.243 | P60: =NPV(S4or5_Costs!$D$17,P$64:P$103) -> 3124669.558 | Q60: =NPV(S4or5_Costs!$D$17,Q$64:Q$103) -> 4279906.519 | R60: =NPV(S4or5_Costs!$D$17,R$64:R$103) -> 7106693.956 | S60: =NPV(S4or5_Costs!$D$17,S$64:S$103) -> 9833751.023 | T60: =NPV(S4or5_Costs!$D$17,T$64:T$103) -> 12557877.31 | U60: =NPV(S4or5_Costs!$D$17,U$64:U$103) -> 13545449.44 | V60: =NPV(S4or5_Costs!$D$17,V$64:V$103) -> 13541795.17 | W60: =NPV(S4or5_Costs!$D$17,W$64:W$103) -> 13543049.02 | X60: =NPV(S4or5_Costs!$D$17,X$64:X$103) -> 13548348.39 | Y60: =NPV(S4or5_Costs!$D$17,Y$64:Y$103) -> 13557765.19 | Z60: =NPV(S4or5_Costs!$D$17,Z$64:Z$103) -> 13571715.53 | AA60: =NPV(S4or5_Costs!$D$17,AA$64:AA$103) -> 13591559.51 | AB60: =NPV(S4or5_Costs!$D$17,AB$64:AB$103) -> 13616391.26 | AC60: =NPV(S4or5_Costs!$D$17,AC$64:AC$103) -> 13647893.09 | AD60: =NPV(S4or5_Costs!$D$17,AD$64:AD$103) -> 13686464.6 | AE60: =NPV(S4or5_Costs!$D$17,AE$64:AE$103) -> 13732098.95 | AF60: =NPV(S4or5_Costs!$D$17,AF$64:AF$103) -> 13787759.3 | AG60: =NPV(S4or5_Costs!$D$17,AG$64:AG$103) -> 13853503.1 | AH60: =NPV(S4or5_Costs!$D$17,AH$64:AH$103) -> 13930090.2 | AI60: =NPV(S4or5_Costs!$D$17,AI$64:AI$103) -> 14015442.16 | AJ60: =NPV(S4or5_Costs!$D$17,AJ$64:AJ$103) -> 14107629.67 | AK60: =NPV(S4or5_Costs!$D$17,AK$64:AK$103) -> 14203657.22 | AL60: =NPV(S4or5_Costs!$D$17,AL$64:AL$103) -> 14301554.5 | AM60: =NPV(S4or5_Costs!$D$17,AM$64:AM$103) -> 14400880.94 | AN60: =NPV(S4or5_Costs!$D$17,AN$64:AN$103) -> 14501172.84
C61: Annual Total Investment | D61: 2022 $ M | F61: =F58*10*F59*10^-6 -> 26.98671677 | G61: =G58*10*G59*10^-6 -> 46.59700894 | H61: 41.3654358 | I61: 46.20396014 | J61: 52.53559941 | K61: 61.63488069 | L61: 50.86806724 | M61: 55.37003087 | N61: 50.01972867 | O61: 36.22775263 | P61: 40.93359569 | Q61: 46.422179 | R61: 212.100075 | S61: 293.4893978 | T61: 374.7912512 | U61: 404.2654518 | V61: 404.1563896 | W61: 404.1938109 | X61: 404.3519712 | Y61: 404.6330166 | Z61: 405.049366 | AA61: 405.6416118 | AB61: 406.3827183 | AC61: 407.3228939 | AD61: 408.474065 | AE61: 409.8360272 | AF61: 411.4972164 | AG61: 413.4593475 | AH61: 415.7450982 | AI61: 418.2924369 | AJ61: =AJ58*10*AJ59*10^-6 -> 421.0437835 | AK61: 423.9097364 | AL61: 426.8314917 | AM61: 429.7959005 | AN61: 432.7891233
C62: Levelized Cost of Saved Energy | D62: 2022 $/MWh | F62: =IFERROR(F61*10^6/F60,0) -> 18.99984272 | G62: =IFERROR(G61*10^6/G60,0) -> 20.77360133 | H62: 13.12887205 | I62: 12.85445693 | J62: 13.40548603 | K62: =IFERROR(K61*10^6/K60,0) -> 13.81506352 | L62: 12.97151613 | M62: 13.70626853 | N62: 12.77410542 | O62: =IFERROR(O61*10^6/O60,0) -> 14.29806435 | P62: 13.10013585 | Q62: 10.84654041 | R62: 29.84511171 | S62: 29.84511171 | T62: 29.84511171 | U62: 29.84511171 | V62: 29.84511171 | W62: 29.84511171 | X62: 29.84511171 | Y62: 29.84511171 | Z62: 29.84511171 | AA62: 29.84511171 | AB62: 29.84511171 | AC62: 29.84511171 | AD62: 29.84511171 | AE62: 29.84511171 | AF62: 29.84511171 | AG62: 29.84511171 | AH62: 29.84511171 | AI62: 29.84511171 | AJ62: =IFERROR(AJ61*10^6/AJ60,0) -> 29.84511171 | AK62: 29.84511171 | AL62: 29.84511171 | AM62: 29.84511171 | AN62: 29.84511171
C63: Remaining GWh
C64: Year 0 | D64: MWh | F64: =F$58*(1-INDEX(A_MeasureExpiration!$E$18:$AS$18,MATCH($C64,A_MeasureExpiration!$E$14:$AS$14,0))) -> 152771 | G64: =G$58*(1-INDEX(A_MeasureExpiration!$E$18:$AS$18,MATCH($C64,A_MeasureExpiration!$E$14:$AS$14,0))) -> 241261 | H64: =H$58*(1-INDEX(A_MeasureExpiration!$E$18:$AS$18,MATCH($C64,A_MeasureExpiration!$E$14:$AS$14,0))) -> 338884 | I64: =I$58*(1-INDEX(A_MeasureExpiration!$E$18:$AS$18,MATCH($C64,A_MeasureExpiration!$E$14:$AS$14,0))) -> 386604 | J64: =J$58*(1-INDEX(A_MeasureExpiration!$E$18:$AS$18,MATCH($C64,A_MeasureExpiration!$E$14:$AS$14,0))) -> 421514 | K64: =K$58*(1-INDEX(A_MeasureExpiration!$E$18:$AS$18,MATCH($C64,A_MeasureExpiration!$E$14:$AS$14,0))) -> 479860 | L64: =L$58*(1-INDEX(A_MeasureExpiration!$E$18:$AS$18,MATCH($C64,A_MeasureExpiration!$E$14:$AS$14,0))) -> 421789.12 | M64: =M$58*(1-INDEX(A_MeasureExpiration!$E$18:$AS$18,MATCH($C64,A_MeasureExpiration!$E$14:$AS$14,0))) -> 434506.628 | N64: =N$58*(1-INDEX(A_MeasureExpiration!$E$18:$AS$18,MATCH($C64,A_MeasureExpiration!$E$14:$AS$14,0))) -> 421164.456 | O64: =O$58*(1-INDEX(A_MeasureExpiration!$E$18:$AS$18,MATCH($C64,A_MeasureExpiration!$E$14:$AS$14,0))) -> 272524.168 | P64: =P$58*(1-INDEX(A_MeasureExpiration!$E$18:$AS$18,MATCH($C64,A_MeasureExpiration!$E$14:$AS$14,0))) -> 336081.783 | Q64: =Q$58*(1-INDEX(A_MeasureExpiration!$E$18:$AS$18,MATCH($C64,A_MeasureExpiration!$E$14:$AS$14,0))) -> 460336.233 | R64: =R$58*(1-INDEX(A_MeasureExpiration!$E$18:$AS$18,MATCH($C64,A_MeasureExpiration!$E$14:$AS$14,0))) -> 764378.5467 | S64: =S$58*(1-INDEX(A_MeasureExpiration!$E$18:$AS$18,MATCH($C64,A_MeasureExpiration!$E$14:$AS$14,0))) -> 1057694.107 | T64: =T$58*(1-INDEX(A_MeasureExpiration!$E$18:$AS$18,MATCH($C64,A_MeasureExpiration!$E$14:$AS$14,0))) -> 1350694.439 | U64: =U$58*(1-INDEX(A_MeasureExpiration!$E$18:$AS$18,MATCH($C64,A_MeasureExpiration!$E$14:$AS$14,0))) -> 1456915.272 | V64: =V$58*(1-INDEX(A_MeasureExpiration!$E$18:$AS$18,MATCH($C64,A_MeasureExpiration!$E$14:$AS$14,0))) -> 1456522.228 | W64: =W$58*(1-INDEX(A_MeasureExpiration!$E$18:$AS$18,MATCH($C64,A_MeasureExpiration!$E$14:$AS$14,0))) -> 1456657.089 | X64: =X$58*(1-INDEX(A_MeasureExpiration!$E$18:$AS$18,MATCH($C64,A_MeasureExpiration!$E$14:$AS$14,0))) -> 1457227.076 | Y64: =Y$58*(1-INDEX(A_MeasureExpiration!$E$18:$AS$18,MATCH($C64,A_MeasureExpiration!$E$14:$AS$14,0))) -> 1458239.923 | Z64: =Z$58*(1-INDEX(A_MeasureExpiration!$E$18:$AS$18,MATCH($C64,A_MeasureExpiration!$E$14:$AS$14,0))) -> 1459740.388 | AA64: =AA$58*(1-INDEX(A_MeasureExpiration!$E$18:$AS$18,MATCH($C64,A_MeasureExpiration!$E$14:$AS$14,0))) -> 1461874.757 | AB64: =AB$58*(1-INDEX(A_MeasureExpiration!$E$18:$AS$18,MATCH($C64,A_MeasureExpiration!$E$14:$AS$14,0))) -> 1464545.6 | AC64: =AC$58*(1-INDEX(A_MeasureExpiration!$E$18:$AS$18,MATCH($C64,A_MeasureExpiration!$E$14:$AS$14,0))) -> 1467933.859 | AD64: =AD$58*(1-INDEX(A_MeasureExpiration!$E$18:$AS$18,MATCH($C64,A_MeasureExpiration!$E$14:$AS$14,0))) -> 1472082.516 | AE64: =AE$58*(1-INDEX(A_MeasureExpiration!$E$18:$AS$18,MATCH($C64,A_MeasureExpiration!$E$14:$AS$14,0))) -> 1476990.835 | AF64: =AF$58*(1-INDEX(A_MeasureExpiration!$E$18:$AS$18,MATCH($C64,A_MeasureExpiration!$E$14:$AS$14,0))) -> 1482977.525 | AG64: =AG$58*(1-INDEX(A_MeasureExpiration!$E$18:$AS$18,MATCH($C64,A_MeasureExpiration!$E$14:$AS$14,0))) -> 1490048.767 | AH64: =AH$58*(1-INDEX(A_MeasureExpiration!$E$18:$AS$18,MATCH($C64,A_MeasureExpiration!$E$14:$AS$14,0))) -> 1498286.288 | AI64: =AI$58*(1-INDEX(A_MeasureExpiration!$E$18:$AS$18,MATCH($C64,A_MeasureExpiration!$E$14:$AS$14,0))) -> 1507466.534 | AJ64: =AJ$58*(1-INDEX(A_MeasureExpiration!$E$18:$AS$18,MATCH($C64,A_MeasureExpiration!$E$14:$AS$14,0))) -> 1517381.997 | AK64: =AK$58*(1-INDEX(A_MeasureExpiration!$E$18:$AS$18,MATCH($C64,A_MeasureExpiration!$E$14:$AS$14,0))) -> 1527710.484 | AL64: =AL$58*(1-INDEX(A_MeasureExpiration!$E$18:$AS$18,MATCH($C64,A_MeasureExpiration!$E$14:$AS$14,0))) -> 1538240.075 | AM64: =AM$58*(1-INDEX(A_MeasureExpiration!$E$18:$AS$18,MATCH($C64,A_MeasureExpiration!$E$14:$AS$14,0))) -> 1548923.384 | AN64: =AN$58*(1-INDEX(A_MeasureExpiration!$E$18:$AS$18,MATCH($C64,A_MeasureExpiration!$E$14:$AS$14,0))) -> 1559710.533
C65: Year 1 | D65: MWh | F65: =F$58*(1-INDEX(A_MeasureExpiration!$E$18:$AS$18,MATCH($C65,A_MeasureExpiration!$E$14:$AS$14,0))) -> 141970.3381 | G65: =G$58*(1-INDEX(A_MeasureExpiration!$E$18:$AS$18,MATCH($C65,A_MeasureExpiration!$E$14:$AS$14,0))) -> 224204.2386 | H65: =H$58*(1-INDEX(A_MeasureExpiration!$E$18:$AS$18,MATCH($C65,A_MeasureExpiration!$E$14:$AS$14,0))) -> 314925.4508 | I65: =I$58*(1-INDEX(A_MeasureExpiration!$E$18:$AS$18,MATCH($C65,A_MeasureExpiration!$E$14:$AS$14,0))) -> 359271.7242 | J65: =J$58*(1-INDEX(A_MeasureExpiration!$E$18:$AS$18,MATCH($C65,A_MeasureExpiration!$E$14:$AS$14,0))) -> 391713.6438 | K65: =K$58*(1-INDEX(A_MeasureExpiration!$E$18:$AS$18,MATCH($C65,A_MeasureExpiration!$E$14:$AS$14,0))) -> 445934.6762 | L65: =L$58*(1-INDEX(A_MeasureExpiration!$E$18:$AS$18,MATCH($C65,A_MeasureExpiration!$E$14:$AS$14,0))) -> 391969.3133 | M65: =M$58*(1-INDEX(A_MeasureExpiration!$E$18:$AS$18,MATCH($C65,A_MeasureExpiration!$E$14:$AS$14,0))) -> 403787.7141 | N65: =N$58*(1-INDEX(A_MeasureExpiration!$E$18:$AS$18,MATCH($C65,A_MeasureExpiration!$E$14:$AS$14,0))) -> 391388.812 | O65: =O$58*(1-INDEX(A_MeasureExpiration!$E$18:$AS$18,MATCH($C65,A_MeasureExpiration!$E$14:$AS$14,0))) -> 253257.1513 | P65: =P$58*(1-INDEX(A_MeasureExpiration!$E$18:$AS$18,MATCH($C65,A_MeasureExpiration!$E$14:$AS$14,0))) -> 312321.346 | Q65: =Q$58*(1-INDEX(A_MeasureExpiration!$E$18:$AS$18,MATCH($C65,A_MeasureExpiration!$E$14:$AS$14,0))) -> 427791.2079 | R65: =R$58*(1-INDEX(A_MeasureExpiration!$E$18:$AS$18,MATCH($C65,A_MeasureExpiration!$E$14:$AS$14,0))) -> 710338.2231 | S65: =S$58*(1-INDEX(A_MeasureExpiration!$E$18:$AS$18,MATCH($C65,A_MeasureExpiration!$E$14:$AS$14,0))) -> 982916.8487 | T65: =T$58*(1-INDEX(A_MeasureExpiration!$E$18:$AS$18,MATCH($C65,A_MeasureExpiration!$E$14:$AS$14,0))) -> 1255202.533 | U65: =U$58*(1-INDEX(A_MeasureExpiration!$E$18:$AS$18,MATCH($C65,A_MeasureExpiration!$E$14:$AS$14,0))) -> 1353913.725 | V65: =V$58*(1-INDEX(A_MeasureExpiration!$E$18:$AS$18,MATCH($C65,A_MeasureExpiration!$E$14:$AS$14,0))) -> 1353548.468 | W65: =W$58*(1-INDEX(A_MeasureExpiration!$E$18:$AS$18,MATCH($C65,A_MeasureExpiration!$E$14:$AS$14,0))) -> 1353673.795 | X65: =X$58*(1-INDEX(A_MeasureExpiration!$E$18:$AS$18,MATCH($C65,A_MeasureExpiration!$E$14:$AS$14,0))) -> 1354203.485 | Y65: =Y$58*(1-INDEX(A_MeasureExpiration!$E$18:$AS$18,MATCH($C65,A_MeasureExpiration!$E$14:$AS$14,0))) -> 1355144.726 | Z65: =Z$58*(1-INDEX(A_MeasureExpiration!$E$18:$AS$18,MATCH($C65,A_MeasureExpiration!$E$14:$AS$14,0))) -> 1356539.11 | AA65: =AA$58*(1-INDEX(A_MeasureExpiration!$E$18:$AS$18,MATCH($C65,A_MeasureExpiration!$E$14:$AS$14,0))) -> 1358522.583 | AB65: =AB$58*(1-INDEX(A_MeasureExpiration!$E$18:$AS$18,MATCH($C65,A_MeasureExpiration!$E$14:$AS$14,0))) -> 1361004.601 | AC65: =AC$58*(1-INDEX(A_MeasureExpiration!$E$18:$AS$18,MATCH($C65,A_MeasureExpiration!$E$14:$AS$14,0))) -> 1364153.316 | AD65: =AD$58*(1-INDEX(A_MeasureExpiration!$E$18:$AS$18,MATCH($C65,A_MeasureExpiration!$E$14:$AS$14,0))) -> 1368008.67 | AE65: =AE$58*(1-INDEX(A_MeasureExpiration!$E$18:$AS$18,MATCH($C65,A_MeasureExpiration!$E$14:$AS$14,0))) -> 1372569.978 | AF65: =AF$58*(1-INDEX(A_MeasureExpiration!$E$18:$AS$18,MATCH($C65,A_MeasureExpiration!$E$14:$AS$14,0))) -> 1378133.419 | AG65: =AG$58*(1-INDEX(A_MeasureExpiration!$E$18:$AS$18,MATCH($C65,A_MeasureExpiration!$E$14:$AS$14,0))) -> 1384704.735 | AH65: =AH$58*(1-INDEX(A_MeasureExpiration!$E$18:$AS$18,MATCH($C65,A_MeasureExpiration!$E$14:$AS$14,0))) -> 1392359.877 | AI65: =AI$58*(1-INDEX(A_MeasureExpiration!$E$18:$AS$18,MATCH($C65,A_MeasureExpiration!$E$14:$AS$14,0))) -> 1400891.095 | AJ65: =AJ$58*(1-INDEX(A_MeasureExpiration!$E$18:$AS$18,MATCH($C65,A_MeasureExpiration!$E$14:$AS$14,0))) -> 1410105.551 | AK65: =AK$58*(1-INDEX(A_MeasureExpiration!$E$18:$AS$18,MATCH($C65,A_MeasureExpiration!$E$14:$AS$14,0))) -> 1419703.83 | AL65: =AL$58*(1-INDEX(A_MeasureExpiration!$E$18:$AS$18,MATCH($C65,A_MeasureExpiration!$E$14:$AS$14,0))) -> 1429488.996 | AM65: =AM$58*(1-INDEX(A_MeasureExpiration!$E$18:$AS$18,MATCH($C65,A_MeasureExpiration!$E$14:$AS$14,0))) -> 1439417.012 | AN65: =AN$58*(1-INDEX(A_MeasureExpiration!$E$18:$AS$18,MATCH($C65,A_MeasureExpiration!$E$14:$AS$14,0))) -> 1449441.528
C66: Year 2 | D66: MWh | F66: =F$58*(1-INDEX(A_MeasureExpiration!$E$18:$AS$18,MATCH($C66,A_MeasureExpiration!$E$14:$AS$14,0))) -> 141095.4062 | G66: =G$58*(1-INDEX(A_MeasureExpiration!$E$18:$AS$18,MATCH($C66,A_MeasureExpiration!$E$14:$AS$14,0))) -> 222822.5173 | H66: =H$58*(1-INDEX(A_MeasureExpiration!$E$18:$AS$18,MATCH($C66,A_MeasureExpiration!$E$14:$AS$14,0))) -> 312984.6348 | I66: =I$58*(1-INDEX(A_MeasureExpiration!$E$18:$AS$18,MATCH($C66,A_MeasureExpiration!$E$14:$AS$14,0))) -> 357057.6119 | J66: =J$58*(1-INDEX(A_MeasureExpiration!$E$18:$AS$18,MATCH($C66,A_MeasureExpiration!$E$14:$AS$14,0))) -> 389299.5991 | K66: =K$58*(1-INDEX(A_MeasureExpiration!$E$18:$AS$18,MATCH($C66,A_MeasureExpiration!$E$14:$AS$14,0))) -> 443186.4793 | L66: =L$58*(1-INDEX(A_MeasureExpiration!$E$18:$AS$18,MATCH($C66,A_MeasureExpiration!$E$14:$AS$14,0))) -> 389553.6929 | M66: =M$58*(1-INDEX(A_MeasureExpiration!$E$18:$AS$18,MATCH($C66,A_MeasureExpiration!$E$14:$AS$14,0))) -> 401299.2595 | N66: =N$58*(1-INDEX(A_MeasureExpiration!$E$18:$AS$18,MATCH($C66,A_MeasureExpiration!$E$14:$AS$14,0))) -> 388976.7691 | O66: =O$58*(1-INDEX(A_MeasureExpiration!$E$18:$AS$18,MATCH($C66,A_MeasureExpiration!$E$14:$AS$14,0))) -> 251696.3834 | P66: =P$58*(1-INDEX(A_MeasureExpiration!$E$18:$AS$18,MATCH($C66,A_MeasureExpiration!$E$14:$AS$14,0))) -> 310396.5785 | Q66: =Q$58*(1-INDEX(A_MeasureExpiration!$E$18:$AS$18,MATCH($C66,A_MeasureExpiration!$E$14:$AS$14,0))) -> 425154.8251 | R66: =R$58*(1-INDEX(A_MeasureExpiration!$E$18:$AS$18,MATCH($C66,A_MeasureExpiration!$E$14:$AS$14,0))) -> 705960.5655 | S66: =S$58*(1-INDEX(A_MeasureExpiration!$E$18:$AS$18,MATCH($C66,A_MeasureExpiration!$E$14:$AS$14,0))) -> 976859.3492 | T66: =T$58*(1-INDEX(A_MeasureExpiration!$E$18:$AS$18,MATCH($C66,A_MeasureExpiration!$E$14:$AS$14,0))) -> 1247466.997 | U66: =U$58*(1-INDEX(A_MeasureExpiration!$E$18:$AS$18,MATCH($C66,A_MeasureExpiration!$E$14:$AS$14,0))) -> 1345569.854 | V66: =V$58*(1-INDEX(A_MeasureExpiration!$E$18:$AS$18,MATCH($C66,A_MeasureExpiration!$E$14:$AS$14,0))) -> 1345206.848 | W66: =W$58*(1-INDEX(A_MeasureExpiration!$E$18:$AS$18,MATCH($C66,A_MeasureExpiration!$E$14:$AS$14,0))) -> 1345331.402 | X66: =X$58*(1-INDEX(A_MeasureExpiration!$E$18:$AS$18,MATCH($C66,A_MeasureExpiration!$E$14:$AS$14,0))) -> 1345857.828 | Y66: =Y$58*(1-INDEX(A_MeasureExpiration!$E$18:$AS$18,MATCH($C66,A_MeasureExpiration!$E$14:$AS$14,0))) -> 1346793.268 | Z66: =Z$58*(1-INDEX(A_MeasureExpiration!$E$18:$AS$18,MATCH($C66,A_MeasureExpiration!$E$14:$AS$14,0))) -> 1348179.059 | AA66: =AA$58*(1-INDEX(A_MeasureExpiration!$E$18:$AS$18,MATCH($C66,A_MeasureExpiration!$E$14:$AS$14,0))) -> 1350150.308 | AB66: =AB$58*(1-INDEX(A_MeasureExpiration!$E$18:$AS$18,MATCH($C66,A_MeasureExpiration!$E$14:$AS$14,0))) -> 1352617.03 | AC66: =AC$58*(1-INDEX(A_MeasureExpiration!$E$18:$AS$18,MATCH($C66,A_MeasureExpiration!$E$14:$AS$14,0))) -> 1355746.34 | AD66: =AD$58*(1-INDEX(A_MeasureExpiration!$E$18:$AS$18,MATCH($C66,A_MeasureExpiration!$E$14:$AS$14,0))) -> 1359577.934 | AE66: =AE$58*(1-INDEX(A_MeasureExpiration!$E$18:$AS$18,MATCH($C66,A_MeasureExpiration!$E$14:$AS$14,0))) -> 1364111.132 | AF66: =AF$58*(1-INDEX(A_MeasureExpiration!$E$18:$AS$18,MATCH($C66,A_MeasureExpiration!$E$14:$AS$14,0))) -> 1369640.287 | AG66: =AG$58*(1-INDEX(A_MeasureExpiration!$E$18:$AS$18,MATCH($C66,A_MeasureExpiration!$E$14:$AS$14,0))) -> 1376171.106 | AH66: =AH$58*(1-INDEX(A_MeasureExpiration!$E$18:$AS$18,MATCH($C66,A_MeasureExpiration!$E$14:$AS$14,0))) -> 1383779.07 | AI66: =AI$58*(1-INDEX(A_MeasureExpiration!$E$18:$AS$18,MATCH($C66,A_MeasureExpiration!$E$14:$AS$14,0))) -> 1392257.713 | AJ66: =AJ$58*(1-INDEX(A_MeasureExpiration!$E$18:$AS$18,MATCH($C66,A_MeasureExpiration!$E$14:$AS$14,0))) -> 1401415.381 | AK66: =AK$58*(1-INDEX(A_MeasureExpiration!$E$18:$AS$18,MATCH($C66,A_MeasureExpiration!$E$14:$AS$14,0))) -> 1410954.509 | AL66: =AL$58*(1-INDEX(A_MeasureExpiration!$E$18:$AS$18,MATCH($C66,A_MeasureExpiration!$E$14:$AS$14,0))) -> 1420679.371 | AM66: =AM$58*(1-INDEX(A_MeasureExpiration!$E$18:$AS$18,MATCH($C66,A_MeasureExpiration!$E$14:$AS$14,0))) -> 1430546.203 | AN66: =AN$58*(1-INDEX(A_MeasureExpiration!$E$18:$AS$18,MATCH($C66,A_MeasureExpiration!$E$14:$AS$14,0))) -> 1440508.94
C67: Year 3 | D67: MWh | F67: =F$58*(1-INDEX(A_MeasureExpiration!$E$18:$AS$18,MATCH($C67,A_MeasureExpiration!$E$14:$AS$14,0))) -> 140199.1337 | G67: =G$58*(1-INDEX(A_MeasureExpiration!$E$18:$AS$18,MATCH($C67,A_MeasureExpiration!$E$14:$AS$14,0))) -> 221407.0943 | H67: =H$58*(1-INDEX(A_MeasureExpiration!$E$18:$AS$18,MATCH($C67,A_MeasureExpiration!$E$14:$AS$14,0))) -> 310996.48 | I67: =I$58*(1-INDEX(A_MeasureExpiration!$E$18:$AS$18,MATCH($C67,A_MeasureExpiration!$E$14:$AS$14,0))) -> 354789.4947 | J67: =J$58*(1-INDEX(A_MeasureExpiration!$E$18:$AS$18,MATCH($C67,A_MeasureExpiration!$E$14:$AS$14,0))) -> 386826.673 | K67: =K$58*(1-INDEX(A_MeasureExpiration!$E$18:$AS$18,MATCH($C67,A_MeasureExpiration!$E$14:$AS$14,0))) -> 440371.2505 | L67: =L$58*(1-INDEX(A_MeasureExpiration!$E$18:$AS$18,MATCH($C67,A_MeasureExpiration!$E$14:$AS$14,0))) -> 387079.1528 | M67: =M$58*(1-INDEX(A_MeasureExpiration!$E$18:$AS$18,MATCH($C67,A_MeasureExpiration!$E$14:$AS$14,0))) -> 398750.1087 | N67: =N$58*(1-INDEX(A_MeasureExpiration!$E$18:$AS$18,MATCH($C67,A_MeasureExpiration!$E$14:$AS$14,0))) -> 386505.8937 | O67: =O$58*(1-INDEX(A_MeasureExpiration!$E$18:$AS$18,MATCH($C67,A_MeasureExpiration!$E$14:$AS$14,0))) -> 250097.5465 | P67: =P$58*(1-INDEX(A_MeasureExpiration!$E$18:$AS$18,MATCH($C67,A_MeasureExpiration!$E$14:$AS$14,0))) -> 308424.8636 | Q67: =Q$58*(1-INDEX(A_MeasureExpiration!$E$18:$AS$18,MATCH($C67,A_MeasureExpiration!$E$14:$AS$14,0))) -> 422454.1379 | R67: =R$58*(1-INDEX(A_MeasureExpiration!$E$18:$AS$18,MATCH($C67,A_MeasureExpiration!$E$14:$AS$14,0))) -> 701476.1316 | S67: =S$58*(1-INDEX(A_MeasureExpiration!$E$18:$AS$18,MATCH($C67,A_MeasureExpiration!$E$14:$AS$14,0))) -> 970654.1001 | T67: =T$58*(1-INDEX(A_MeasureExpiration!$E$18:$AS$18,MATCH($C67,A_MeasureExpiration!$E$14:$AS$14,0))) -> 1239542.782 | U67: =U$58*(1-INDEX(A_MeasureExpiration!$E$18:$AS$18,MATCH($C67,A_MeasureExpiration!$E$14:$AS$14,0))) -> 1337022.466 | V67: =V$58*(1-INDEX(A_MeasureExpiration!$E$18:$AS$18,MATCH($C67,A_MeasureExpiration!$E$14:$AS$14,0))) -> 1336661.766 | W67: =W$58*(1-INDEX(A_MeasureExpiration!$E$18:$AS$18,MATCH($C67,A_MeasureExpiration!$E$14:$AS$14,0))) -> 1336785.529 | X67: =X$58*(1-INDEX(A_MeasureExpiration!$E$18:$AS$18,MATCH($C67,A_MeasureExpiration!$E$14:$AS$14,0))) -> 1337308.61 | Y67: =Y$58*(1-INDEX(A_MeasureExpiration!$E$18:$AS$18,MATCH($C67,A_MeasureExpiration!$E$14:$AS$14,0))) -> 1338238.108 | Z67: =Z$58*(1-INDEX(A_MeasureExpiration!$E$18:$AS$18,MATCH($C67,A_MeasureExpiration!$E$14:$AS$14,0))) -> 1339615.096 | AA67: =AA$58*(1-INDEX(A_MeasureExpiration!$E$18:$AS$18,MATCH($C67,A_MeasureExpiration!$E$14:$AS$14,0))) -> 1341573.824 | AB67: =AB$58*(1-INDEX(A_MeasureExpiration!$E$18:$AS$18,MATCH($C67,A_MeasureExpiration!$E$14:$AS$14,0))) -> 1344024.877 | AC67: =AC$58*(1-INDEX(A_MeasureExpiration!$E$18:$AS$18,MATCH($C67,A_MeasureExpiration!$E$14:$AS$14,0))) -> 1347134.309 | AD67: =AD$58*(1-INDEX(A_MeasureExpiration!$E$18:$AS$18,MATCH($C67,A_MeasureExpiration!$E$14:$AS$14,0))) -> 1350941.563 | AE67: =AE$58*(1-INDEX(A_MeasureExpiration!$E$18:$AS$18,MATCH($C67,A_MeasureExpiration!$E$14:$AS$14,0))) -> 1355445.965 | AF67: =AF$58*(1-INDEX(A_MeasureExpiration!$E$18:$AS$18,MATCH($C67,A_MeasureExpiration!$E$14:$AS$14,0))) -> 1360939.997 | AG67: =AG$58*(1-INDEX(A_MeasureExpiration!$E$18:$AS$18,MATCH($C67,A_MeasureExpiration!$E$14:$AS$14,0))) -> 1367429.331 | AH67: =AH$58*(1-INDEX(A_MeasureExpiration!$E$18:$AS$18,MATCH($C67,A_MeasureExpiration!$E$14:$AS$14,0))) -> 1374988.968 | AI67: =AI$58*(1-INDEX(A_MeasureExpiration!$E$18:$AS$18,MATCH($C67,A_MeasureExpiration!$E$14:$AS$14,0))) -> 1383413.752 | AJ67: =AJ$58*(1-INDEX(A_MeasureExpiration!$E$18:$AS$18,MATCH($C67,A_MeasureExpiration!$E$14:$AS$14,0))) -> 1392513.249 | AK67: =AK$58*(1-INDEX(A_MeasureExpiration!$E$18:$AS$18,MATCH($C67,A_MeasureExpiration!$E$14:$AS$14,0))) -> 1401991.782 | AL67: =AL$58*(1-INDEX(A_MeasureExpiration!$E$18:$AS$18,MATCH($C67,A_MeasureExpiration!$E$14:$AS$14,0))) -> 1411654.869 | AM67: =AM$58*(1-INDEX(A_MeasureExpiration!$E$18:$AS$18,MATCH($C67,A_MeasureExpiration!$E$14:$AS$14,0))) -> 1421459.024 | AN67: =AN$58*(1-INDEX(A_MeasureExpiration!$E$18:$AS$18,MATCH($C67,A_MeasureExpiration!$E$14:$AS$14,0))) -> 1431358.475
C68: Year 4 | D68: MWh | F68: =F$58*(1-INDEX(A_MeasureExpiration!$E$18:$AS$18,MATCH($C68,A_MeasureExpiration!$E$14:$AS$14,0))) -> 139433.5907 | G68: =G$58*(1-INDEX(A_MeasureExpiration!$E$18:$AS$18,MATCH($C68,A_MeasureExpiration!$E$14:$AS$14,0))) -> 220198.1235 | H68: =H$58*(1-INDEX(A_MeasureExpiration!$E$18:$AS$18,MATCH($C68,A_MeasureExpiration!$E$14:$AS$14,0))) -> 309298.3154 | I68: =I$58*(1-INDEX(A_MeasureExpiration!$E$18:$AS$18,MATCH($C68,A_MeasureExpiration!$E$14:$AS$14,0))) -> 352852.2029 | J68: =J$58*(1-INDEX(A_MeasureExpiration!$E$18:$AS$18,MATCH($C68,A_MeasureExpiration!$E$14:$AS$14,0))) -> 384714.4454 | K68: =K$58*(1-INDEX(A_MeasureExpiration!$E$18:$AS$18,MATCH($C68,A_MeasureExpiration!$E$14:$AS$14,0))) -> 437966.6483 | L68: =L$58*(1-INDEX(A_MeasureExpiration!$E$18:$AS$18,MATCH($C68,A_MeasureExpiration!$E$14:$AS$14,0))) -> 384965.5465 | M68: =M$58*(1-INDEX(A_MeasureExpiration!$E$18:$AS$18,MATCH($C68,A_MeasureExpiration!$E$14:$AS$14,0))) -> 396572.7744 | N68: =N$58*(1-INDEX(A_MeasureExpiration!$E$18:$AS$18,MATCH($C68,A_MeasureExpiration!$E$14:$AS$14,0))) -> 384395.4177 | O68: =O$58*(1-INDEX(A_MeasureExpiration!$E$18:$AS$18,MATCH($C68,A_MeasureExpiration!$E$14:$AS$14,0))) -> 248731.9144 | P68: =P$58*(1-INDEX(A_MeasureExpiration!$E$18:$AS$18,MATCH($C68,A_MeasureExpiration!$E$14:$AS$14,0))) -> 306740.7411 | Q68: =Q$58*(1-INDEX(A_MeasureExpiration!$E$18:$AS$18,MATCH($C68,A_MeasureExpiration!$E$14:$AS$14,0))) -> 420147.3701 | R68: =R$58*(1-INDEX(A_MeasureExpiration!$E$18:$AS$18,MATCH($C68,A_MeasureExpiration!$E$14:$AS$14,0))) -> 697645.7928 | S68: =S$58*(1-INDEX(A_MeasureExpiration!$E$18:$AS$18,MATCH($C68,A_MeasureExpiration!$E$14:$AS$14,0))) -> 965353.9424 | T68: =T$58*(1-INDEX(A_MeasureExpiration!$E$18:$AS$18,MATCH($C68,A_MeasureExpiration!$E$14:$AS$14,0))) -> 1232774.385 | U68: =U$58*(1-INDEX(A_MeasureExpiration!$E$18:$AS$18,MATCH($C68,A_MeasureExpiration!$E$14:$AS$14,0))) -> 1329721.791 | V68: =V$58*(1-INDEX(A_MeasureExpiration!$E$18:$AS$18,MATCH($C68,A_MeasureExpiration!$E$14:$AS$14,0))) -> 1329363.06 | W68: =W$58*(1-INDEX(A_MeasureExpiration!$E$18:$AS$18,MATCH($C68,A_MeasureExpiration!$E$14:$AS$14,0))) -> 1329486.148 | X68: =X$58*(1-INDEX(A_MeasureExpiration!$E$18:$AS$18,MATCH($C68,A_MeasureExpiration!$E$14:$AS$14,0))) -> 1330006.373 | Y68: =Y$58*(1-INDEX(A_MeasureExpiration!$E$18:$AS$18,MATCH($C68,A_MeasureExpiration!$E$14:$AS$14,0))) -> 1330930.796 | Z68: =Z$58*(1-INDEX(A_MeasureExpiration!$E$18:$AS$18,MATCH($C68,A_MeasureExpiration!$E$14:$AS$14,0))) -> 1332300.265 | AA68: =AA$58*(1-INDEX(A_MeasureExpiration!$E$18:$AS$18,MATCH($C68,A_MeasureExpiration!$E$14:$AS$14,0))) -> 1334248.297 | AB68: =AB$58*(1-INDEX(A_MeasureExpiration!$E$18:$AS$18,MATCH($C68,A_MeasureExpiration!$E$14:$AS$14,0))) -> 1336685.966 | AC68: =AC$58*(1-INDEX(A_MeasureExpiration!$E$18:$AS$18,MATCH($C68,A_MeasureExpiration!$E$14:$AS$14,0))) -> 1339778.419 | AD68: =AD$58*(1-INDEX(A_MeasureExpiration!$E$18:$AS$18,MATCH($C68,A_MeasureExpiration!$E$14:$AS$14,0))) -> 1343564.885 | AE68: =AE$58*(1-INDEX(A_MeasureExpiration!$E$18:$AS$18,MATCH($C68,A_MeasureExpiration!$E$14:$AS$14,0))) -> 1348044.691 | AF68: =AF$58*(1-INDEX(A_MeasureExpiration!$E$18:$AS$18,MATCH($C68,A_MeasureExpiration!$E$14:$AS$14,0))) -> 1353508.723 | AG68: =AG$58*(1-INDEX(A_MeasureExpiration!$E$18:$AS$18,MATCH($C68,A_MeasureExpiration!$E$14:$AS$14,0))) -> 1359962.623 | AH68: =AH$58*(1-INDEX(A_MeasureExpiration!$E$18:$AS$18,MATCH($C68,A_MeasureExpiration!$E$14:$AS$14,0))) -> 1367480.981 | AI68: =AI$58*(1-INDEX(A_MeasureExpiration!$E$18:$AS$18,MATCH($C68,A_MeasureExpiration!$E$14:$AS$14,0))) -> 1375859.762 | AJ68: =AJ$58*(1-INDEX(A_MeasureExpiration!$E$18:$AS$18,MATCH($C68,A_MeasureExpiration!$E$14:$AS$14,0))) -> 1384909.572 | AK68: =AK$58*(1-INDEX(A_MeasureExpiration!$E$18:$AS$18,MATCH($C68,A_MeasureExpiration!$E$14:$AS$14,0))) -> 1394336.349 | AL68: =AL$58*(1-INDEX(A_MeasureExpiration!$E$18:$AS$18,MATCH($C68,A_MeasureExpiration!$E$14:$AS$14,0))) -> 1403946.672 | AM68: =AM$58*(1-INDEX(A_MeasureExpiration!$E$18:$AS$18,MATCH($C68,A_MeasureExpiration!$E$14:$AS$14,0))) -> 1413697.292 | AN68: =AN$58*(1-INDEX(A_MeasureExpiration!$E$18:$AS$18,MATCH($C68,A_MeasureExpiration!$E$14:$AS$14,0))) -> 1423542.689
C69: Year 5 | D69: MWh | F69: =F$58*(1-INDEX(A_MeasureExpiration!$E$18:$AS$18,MATCH($C69,A_MeasureExpiration!$E$14:$AS$14,0))) -> 137238.6701 | G69: =G$58*(1-INDEX(A_MeasureExpiration!$E$18:$AS$18,MATCH($C69,A_MeasureExpiration!$E$14:$AS$14,0))) -> 216731.8325 | H69: =H$58*(1-INDEX(A_MeasureExpiration!$E$18:$AS$18,MATCH($C69,A_MeasureExpiration!$E$14:$AS$14,0))) -> 304429.4367 | I69: =I$58*(1-INDEX(A_MeasureExpiration!$E$18:$AS$18,MATCH($C69,A_MeasureExpiration!$E$14:$AS$14,0))) -> 347297.7123 | J69: =J$58*(1-INDEX(A_MeasureExpiration!$E$18:$AS$18,MATCH($C69,A_MeasureExpiration!$E$14:$AS$14,0))) -> 378658.3892 | K69: =K$58*(1-INDEX(A_MeasureExpiration!$E$18:$AS$18,MATCH($C69,A_MeasureExpiration!$E$14:$AS$14,0))) -> 431072.3123 | L69: =L$58*(1-INDEX(A_MeasureExpiration!$E$18:$AS$18,MATCH($C69,A_MeasureExpiration!$E$14:$AS$14,0))) -> 378905.5376 | M69: =M$58*(1-INDEX(A_MeasureExpiration!$E$18:$AS$18,MATCH($C69,A_MeasureExpiration!$E$14:$AS$14,0))) -> 390330.048 | N69: =N$58*(1-INDEX(A_MeasureExpiration!$E$18:$AS$18,MATCH($C69,A_MeasureExpiration!$E$14:$AS$14,0))) -> 378344.3836 | O69: =O$58*(1-INDEX(A_MeasureExpiration!$E$18:$AS$18,MATCH($C69,A_MeasureExpiration!$E$14:$AS$14,0))) -> 244816.4533 | P69: =P$58*(1-INDEX(A_MeasureExpiration!$E$18:$AS$18,MATCH($C69,A_MeasureExpiration!$E$14:$AS$14,0))) -> 301912.123 | Q69: =Q$58*(1-INDEX(A_MeasureExpiration!$E$18:$AS$18,MATCH($C69,A_MeasureExpiration!$E$14:$AS$14,0))) -> 413533.5398 | R69: =R$58*(1-INDEX(A_MeasureExpiration!$E$18:$AS$18,MATCH($C69,A_MeasureExpiration!$E$14:$AS$14,0))) -> 686663.6678 | S69: =S$58*(1-INDEX(A_MeasureExpiration!$E$18:$AS$18,MATCH($C69,A_MeasureExpiration!$E$14:$AS$14,0))) -> 950157.6383 | T69: =T$58*(1-INDEX(A_MeasureExpiration!$E$18:$AS$18,MATCH($C69,A_MeasureExpiration!$E$14:$AS$14,0))) -> 1213368.431 | U69: =U$58*(1-INDEX(A_MeasureExpiration!$E$18:$AS$18,MATCH($C69,A_MeasureExpiration!$E$14:$AS$14,0))) -> 1308789.72 | V69: =V$58*(1-INDEX(A_MeasureExpiration!$E$18:$AS$18,MATCH($C69,A_MeasureExpiration!$E$14:$AS$14,0))) -> 1308436.637 | W69: =W$58*(1-INDEX(A_MeasureExpiration!$E$18:$AS$18,MATCH($C69,A_MeasureExpiration!$E$14:$AS$14,0))) -> 1308557.786 | X69: =X$58*(1-INDEX(A_MeasureExpiration!$E$18:$AS$18,MATCH($C69,A_MeasureExpiration!$E$14:$AS$14,0))) -> 1309069.823 | Y69: =Y$58*(1-INDEX(A_MeasureExpiration!$E$18:$AS$18,MATCH($C69,A_MeasureExpiration!$E$14:$AS$14,0))) -> 1309979.693 | Z69: =Z$58*(1-INDEX(A_MeasureExpiration!$E$18:$AS$18,MATCH($C69,A_MeasureExpiration!$E$14:$AS$14,0))) -> 1311327.605 | AA69: =AA$58*(1-INDEX(A_MeasureExpiration!$E$18:$AS$18,MATCH($C69,A_MeasureExpiration!$E$14:$AS$14,0))) -> 1313244.971 | AB69: =AB$58*(1-INDEX(A_MeasureExpiration!$E$18:$AS$18,MATCH($C69,A_MeasureExpiration!$E$14:$AS$14,0))) -> 1315644.268 | AC69: =AC$58*(1-INDEX(A_MeasureExpiration!$E$18:$AS$18,MATCH($C69,A_MeasureExpiration!$E$14:$AS$14,0))) -> 1318688.04 | AD69: =AD$58*(1-INDEX(A_MeasureExpiration!$E$18:$AS$18,MATCH($C69,A_MeasureExpiration!$E$14:$AS$14,0))) -> 1322414.901 | AE69: =AE$58*(1-INDEX(A_MeasureExpiration!$E$18:$AS$18,MATCH($C69,A_MeasureExpiration!$E$14:$AS$14,0))) -> 1326824.187 | AF69: =AF$58*(1-INDEX(A_MeasureExpiration!$E$18:$AS$18,MATCH($C69,A_MeasureExpiration!$E$14:$AS$14,0))) -> 1332202.206 | AG69: =AG$58*(1-INDEX(A_MeasureExpiration!$E$18:$AS$18,MATCH($C69,A_MeasureExpiration!$E$14:$AS$14,0))) -> 1338554.51 | AH69: =AH$58*(1-INDEX(A_MeasureExpiration!$E$18:$AS$18,MATCH($C69,A_MeasureExpiration!$E$14:$AS$14,0))) -> 1345954.517 | AI69: =AI$58*(1-INDEX(A_MeasureExpiration!$E$18:$AS$18,MATCH($C69,A_MeasureExpiration!$E$14:$AS$14,0))) -> 1354201.402 | AJ69: =AJ$58*(1-INDEX(A_MeasureExpiration!$E$18:$AS$18,MATCH($C69,A_MeasureExpiration!$E$14:$AS$14,0))) -> 1363108.753 | AK69: =AK$58*(1-INDEX(A_MeasureExpiration!$E$18:$AS$18,MATCH($C69,A_MeasureExpiration!$E$14:$AS$14,0))) -> 1372387.136 | AL69: =AL$58*(1-INDEX(A_MeasureExpiration!$E$18:$AS$18,MATCH($C69,A_MeasureExpiration!$E$14:$AS$14,0))) -> 1381846.176 | AM69: =AM$58*(1-INDEX(A_MeasureExpiration!$E$18:$AS$18,MATCH($C69,A_MeasureExpiration!$E$14:$AS$14,0))) -> 1391443.305 | AN69: =AN$58*(1-INDEX(A_MeasureExpiration!$E$18:$AS$18,MATCH($C69,A_MeasureExpiration!$E$14:$AS$14,0))) -> 1401133.718
C70: Year 6 | D70: MWh | F70: =F$58*(1-INDEX(A_MeasureExpiration!$E$18:$AS$18,MATCH($C70,A_MeasureExpiration!$E$14:$AS$14,0))) -> 131805.6219 | G70: =G$58*(1-INDEX(A_MeasureExpiration!$E$18:$AS$18,MATCH($C70,A_MeasureExpiration!$E$14:$AS$14,0))) -> 208151.7837 | H70: =H$58*(1-INDEX(A_MeasureExpiration!$E$18:$AS$18,MATCH($C70,A_MeasureExpiration!$E$14:$AS$14,0))) -> 292377.5873 | I70: =I$58*(1-INDEX(A_MeasureExpiration!$E$18:$AS$18,MATCH($C70,A_MeasureExpiration!$E$14:$AS$14,0))) -> 333548.78 | J70: =J$58*(1-INDEX(A_MeasureExpiration!$E$18:$AS$18,MATCH($C70,A_MeasureExpiration!$E$14:$AS$14,0))) -> 363667.9404 | K70: =K$58*(1-INDEX(A_MeasureExpiration!$E$18:$AS$18,MATCH($C70,A_MeasureExpiration!$E$14:$AS$14,0))) -> 414006.8844 | L70: =L$58*(1-INDEX(A_MeasureExpiration!$E$18:$AS$18,MATCH($C70,A_MeasureExpiration!$E$14:$AS$14,0))) -> 363905.3046 | M70: =M$58*(1-INDEX(A_MeasureExpiration!$E$18:$AS$18,MATCH($C70,A_MeasureExpiration!$E$14:$AS$14,0))) -> 374877.5379 | N70: =N$58*(1-INDEX(A_MeasureExpiration!$E$18:$AS$18,MATCH($C70,A_MeasureExpiration!$E$14:$AS$14,0))) -> 363366.3657 | O70: =O$58*(1-INDEX(A_MeasureExpiration!$E$18:$AS$18,MATCH($C70,A_MeasureExpiration!$E$14:$AS$14,0))) -> 235124.5816 | P70: =P$58*(1-INDEX(A_MeasureExpiration!$E$18:$AS$18,MATCH($C70,A_MeasureExpiration!$E$14:$AS$14,0))) -> 289959.9298 | Q70: =Q$58*(1-INDEX(A_MeasureExpiration!$E$18:$AS$18,MATCH($C70,A_MeasureExpiration!$E$14:$AS$14,0))) -> 397162.4424 | R70: =R$58*(1-INDEX(A_MeasureExpiration!$E$18:$AS$18,MATCH($C70,A_MeasureExpiration!$E$14:$AS$14,0))) -> 659479.808 | S70: =S$58*(1-INDEX(A_MeasureExpiration!$E$18:$AS$18,MATCH($C70,A_MeasureExpiration!$E$14:$AS$14,0))) -> 912542.4954 | T70: =T$58*(1-INDEX(A_MeasureExpiration!$E$18:$AS$18,MATCH($C70,A_MeasureExpiration!$E$14:$AS$14,0))) -> 1165333.215 | U70: =U$58*(1-INDEX(A_MeasureExpiration!$E$18:$AS$18,MATCH($C70,A_MeasureExpiration!$E$14:$AS$14,0))) -> 1256976.936 | V70: =V$58*(1-INDEX(A_MeasureExpiration!$E$18:$AS$18,MATCH($C70,A_MeasureExpiration!$E$14:$AS$14,0))) -> 1256637.831 | W70: =W$58*(1-INDEX(A_MeasureExpiration!$E$18:$AS$18,MATCH($C70,A_MeasureExpiration!$E$14:$AS$14,0))) -> 1256754.185 | X70: =X$58*(1-INDEX(A_MeasureExpiration!$E$18:$AS$18,MATCH($C70,A_MeasureExpiration!$E$14:$AS$14,0))) -> 1257245.95 | Y70: =Y$58*(1-INDEX(A_MeasureExpiration!$E$18:$AS$18,MATCH($C70,A_MeasureExpiration!$E$14:$AS$14,0))) -> 1258119.801 | Z70: =Z$58*(1-INDEX(A_MeasureExpiration!$E$18:$AS$18,MATCH($C70,A_MeasureExpiration!$E$14:$AS$14,0))) -> 1259414.35 | AA70: =AA$58*(1-INDEX(A_MeasureExpiration!$E$18:$AS$18,MATCH($C70,A_MeasureExpiration!$E$14:$AS$14,0))) -> 1261255.812 | AB70: =AB$58*(1-INDEX(A_MeasureExpiration!$E$18:$AS$18,MATCH($C70,A_MeasureExpiration!$E$14:$AS$14,0))) -> 1263560.124 | AC70: =AC$58*(1-INDEX(A_MeasureExpiration!$E$18:$AS$18,MATCH($C70,A_MeasureExpiration!$E$14:$AS$14,0))) -> 1266483.399 | AD70: =AD$58*(1-INDEX(A_MeasureExpiration!$E$18:$AS$18,MATCH($C70,A_MeasureExpiration!$E$14:$AS$14,0))) -> 1270062.719 | AE70: =AE$58*(1-INDEX(A_MeasureExpiration!$E$18:$AS$18,MATCH($C70,A_MeasureExpiration!$E$14:$AS$14,0))) -> 1274297.449 | AF70: =AF$58*(1-INDEX(A_MeasureExpiration!$E$18:$AS$18,MATCH($C70,A_MeasureExpiration!$E$14:$AS$14,0))) -> 1279462.562 | AG70: =AG$58*(1-INDEX(A_MeasureExpiration!$E$18:$AS$18,MATCH($C70,A_MeasureExpiration!$E$14:$AS$14,0))) -> 1285563.388 | AH70: =AH$58*(1-INDEX(A_MeasureExpiration!$E$18:$AS$18,MATCH($C70,A_MeasureExpiration!$E$14:$AS$14,0))) -> 1292670.441 | AI70: =AI$58*(1-INDEX(A_MeasureExpiration!$E$18:$AS$18,MATCH($C70,A_MeasureExpiration!$E$14:$AS$14,0))) -> 1300590.846 | AJ70: =AJ$58*(1-INDEX(A_MeasureExpiration!$E$18:$AS$18,MATCH($C70,A_MeasureExpiration!$E$14:$AS$14,0))) -> 1309145.57 | AK70: =AK$58*(1-INDEX(A_MeasureExpiration!$E$18:$AS$18,MATCH($C70,A_MeasureExpiration!$E$14:$AS$14,0))) -> 1318056.637 | AL70: =AL$58*(1-INDEX(A_MeasureExpiration!$E$18:$AS$18,MATCH($C70,A_MeasureExpiration!$E$14:$AS$14,0))) -> 1327141.21 | AM70: =AM$58*(1-INDEX(A_MeasureExpiration!$E$18:$AS$18,MATCH($C70,A_MeasureExpiration!$E$14:$AS$14,0))) -> 1336358.405 | AN70: =AN$58*(1-INDEX(A_MeasureExpiration!$E$18:$AS$18,MATCH($C70,A_MeasureExpiration!$E$14:$AS$14,0))) -> 1345665.191
C71: Year 7 | D71: MWh | F71: =F$58*(1-INDEX(A_MeasureExpiration!$E$18:$AS$18,MATCH($C71,A_MeasureExpiration!$E$14:$AS$14,0))) -> 125079.7451 | G71: =G$58*(1-INDEX(A_MeasureExpiration!$E$18:$AS$18,MATCH($C71,A_MeasureExpiration!$E$14:$AS$14,0))) -> 197530.0574 | H71: =H$58*(1-INDEX(A_MeasureExpiration!$E$18:$AS$18,MATCH($C71,A_MeasureExpiration!$E$14:$AS$14,0))) -> 277457.923 | I71: =I$58*(1-INDEX(A_MeasureExpiration!$E$18:$AS$18,MATCH($C71,A_MeasureExpiration!$E$14:$AS$14,0))) -> 316528.201 | J71: =J$58*(1-INDEX(A_MeasureExpiration!$E$18:$AS$18,MATCH($C71,A_MeasureExpiration!$E$14:$AS$14,0))) -> 345110.4182 | K71: =K$58*(1-INDEX(A_MeasureExpiration!$E$18:$AS$18,MATCH($C71,A_MeasureExpiration!$E$14:$AS$14,0))) -> 392880.6285 | L71: =L$58*(1-INDEX(A_MeasureExpiration!$E$18:$AS$18,MATCH($C71,A_MeasureExpiration!$E$14:$AS$14,0))) -> 345335.6699 | M71: =M$58*(1-INDEX(A_MeasureExpiration!$E$18:$AS$18,MATCH($C71,A_MeasureExpiration!$E$14:$AS$14,0))) -> 355748.0038 | N71: =N$58*(1-INDEX(A_MeasureExpiration!$E$18:$AS$18,MATCH($C71,A_MeasureExpiration!$E$14:$AS$14,0))) -> 344824.2325 | O71: =O$58*(1-INDEX(A_MeasureExpiration!$E$18:$AS$18,MATCH($C71,A_MeasureExpiration!$E$14:$AS$14,0))) -> 223126.4669 | P71: =P$58*(1-INDEX(A_MeasureExpiration!$E$18:$AS$18,MATCH($C71,A_MeasureExpiration!$E$14:$AS$14,0))) -> 275163.6355 | Q71: =Q$58*(1-INDEX(A_MeasureExpiration!$E$18:$AS$18,MATCH($C71,A_MeasureExpiration!$E$14:$AS$14,0))) -> 376895.7374 | R71: =R$58*(1-INDEX(A_MeasureExpiration!$E$18:$AS$18,MATCH($C71,A_MeasureExpiration!$E$14:$AS$14,0))) -> 625827.3744 | S71: =S$58*(1-INDEX(A_MeasureExpiration!$E$18:$AS$18,MATCH($C71,A_MeasureExpiration!$E$14:$AS$14,0))) -> 865976.5879 | T71: =T$58*(1-INDEX(A_MeasureExpiration!$E$18:$AS$18,MATCH($C71,A_MeasureExpiration!$E$14:$AS$14,0))) -> 1105867.712 | U71: =U$58*(1-INDEX(A_MeasureExpiration!$E$18:$AS$18,MATCH($C71,A_MeasureExpiration!$E$14:$AS$14,0))) -> 1192834.968 | V71: =V$58*(1-INDEX(A_MeasureExpiration!$E$18:$AS$18,MATCH($C71,A_MeasureExpiration!$E$14:$AS$14,0))) -> 1192513.167 | W71: =W$58*(1-INDEX(A_MeasureExpiration!$E$18:$AS$18,MATCH($C71,A_MeasureExpiration!$E$14:$AS$14,0))) -> 1192623.583 | X71: =X$58*(1-INDEX(A_MeasureExpiration!$E$18:$AS$18,MATCH($C71,A_MeasureExpiration!$E$14:$AS$14,0))) -> 1193090.254 | Y71: =Y$58*(1-INDEX(A_MeasureExpiration!$E$18:$AS$18,MATCH($C71,A_MeasureExpiration!$E$14:$AS$14,0))) -> 1193919.513 | Z71: =Z$58*(1-INDEX(A_MeasureExpiration!$E$18:$AS$18,MATCH($C71,A_MeasureExpiration!$E$14:$AS$14,0))) -> 1195148.004 | AA71: =AA$58*(1-INDEX(A_MeasureExpiration!$E$18:$AS$18,MATCH($C71,A_MeasureExpiration!$E$14:$AS$14,0))) -> 1196895.498 | AB71: =AB$58*(1-INDEX(A_MeasureExpiration!$E$18:$AS$18,MATCH($C71,A_MeasureExpiration!$E$14:$AS$14,0))) -> 1199082.224 | AC71: =AC$58*(1-INDEX(A_MeasureExpiration!$E$18:$AS$18,MATCH($C71,A_MeasureExpiration!$E$14:$AS$14,0))) -> 1201856.328 | AD71: =AD$58*(1-INDEX(A_MeasureExpiration!$E$18:$AS$18,MATCH($C71,A_MeasureExpiration!$E$14:$AS$14,0))) -> 1205252.999 | AE71: =AE$58*(1-INDEX(A_MeasureExpiration!$E$18:$AS$18,MATCH($C71,A_MeasureExpiration!$E$14:$AS$14,0))) -> 1209271.637 | AF71: =AF$58*(1-INDEX(A_MeasureExpiration!$E$18:$AS$18,MATCH($C71,A_MeasureExpiration!$E$14:$AS$14,0))) -> 1214173.18 | AG71: =AG$58*(1-INDEX(A_MeasureExpiration!$E$18:$AS$18,MATCH($C71,A_MeasureExpiration!$E$14:$AS$14,0))) -> 1219962.689 | AH71: =AH$58*(1-INDEX(A_MeasureExpiration!$E$18:$AS$18,MATCH($C71,A_MeasureExpiration!$E$14:$AS$14,0))) -> 1226707.078 | AI71: =AI$58*(1-INDEX(A_MeasureExpiration!$E$18:$AS$18,MATCH($C71,A_MeasureExpiration!$E$14:$AS$14,0))) -> 1234223.314 | AJ71: =AJ$58*(1-INDEX(A_MeasureExpiration!$E$18:$AS$18,MATCH($C71,A_MeasureExpiration!$E$14:$AS$14,0))) -> 1242341.501 | AK71: =AK$58*(1-INDEX(A_MeasureExpiration!$E$18:$AS$18,MATCH($C71,A_MeasureExpiration!$E$14:$AS$14,0))) -> 1250797.848 | AL71: =AL$58*(1-INDEX(A_MeasureExpiration!$E$18:$AS$18,MATCH($C71,A_MeasureExpiration!$E$14:$AS$14,0))) -> 1259418.846 | AM71: =AM$58*(1-INDEX(A_MeasureExpiration!$E$18:$AS$18,MATCH($C71,A_MeasureExpiration!$E$14:$AS$14,0))) -> 1268165.699 | AN71: =AN$58*(1-INDEX(A_MeasureExpiration!$E$18:$AS$18,MATCH($C71,A_MeasureExpiration!$E$14:$AS$14,0))) -> 1276997.571
C72: Year 8 | D72: MWh | F72: =F$58*(1-INDEX(A_MeasureExpiration!$E$18:$AS$18,MATCH($C72,A_MeasureExpiration!$E$14:$AS$14,0))) -> 114197.2064 | G72: =G$58*(1-INDEX(A_MeasureExpiration!$E$18:$AS$18,MATCH($C72,A_MeasureExpiration!$E$14:$AS$14,0))) -> 180343.9934 | H72: =H$58*(1-INDEX(A_MeasureExpiration!$E$18:$AS$18,MATCH($C72,A_MeasureExpiration!$E$14:$AS$14,0))) -> 253317.7507 | I72: =I$58*(1-INDEX(A_MeasureExpiration!$E$18:$AS$18,MATCH($C72,A_MeasureExpiration!$E$14:$AS$14,0))) -> 288988.7268 | J72: =J$58*(1-INDEX(A_MeasureExpiration!$E$18:$AS$18,MATCH($C72,A_MeasureExpiration!$E$14:$AS$14,0))) -> 315084.1538 | K72: =K$58*(1-INDEX(A_MeasureExpiration!$E$18:$AS$18,MATCH($C72,A_MeasureExpiration!$E$14:$AS$14,0))) -> 358698.1263 | L72: =L$58*(1-INDEX(A_MeasureExpiration!$E$18:$AS$18,MATCH($C72,A_MeasureExpiration!$E$14:$AS$14,0))) -> 315289.8075 | M72: =M$58*(1-INDEX(A_MeasureExpiration!$E$18:$AS$18,MATCH($C72,A_MeasureExpiration!$E$14:$AS$14,0))) -> 324796.2184 | N72: =N$58*(1-INDEX(A_MeasureExpiration!$E$18:$AS$18,MATCH($C72,A_MeasureExpiration!$E$14:$AS$14,0))) -> 314822.8676 | O72: =O$58*(1-INDEX(A_MeasureExpiration!$E$18:$AS$18,MATCH($C72,A_MeasureExpiration!$E$14:$AS$14,0))) -> 203713.3923 | P72: =P$58*(1-INDEX(A_MeasureExpiration!$E$18:$AS$18,MATCH($C72,A_MeasureExpiration!$E$14:$AS$14,0))) -> 251223.0773 | Q72: =Q$58*(1-INDEX(A_MeasureExpiration!$E$18:$AS$18,MATCH($C72,A_MeasureExpiration!$E$14:$AS$14,0))) -> 344103.9975 | R72: =R$58*(1-INDEX(A_MeasureExpiration!$E$18:$AS$18,MATCH($C72,A_MeasureExpiration!$E$14:$AS$14,0))) -> 571377.3861 | S72: =S$58*(1-INDEX(A_MeasureExpiration!$E$18:$AS$18,MATCH($C72,A_MeasureExpiration!$E$14:$AS$14,0))) -> 790632.4643 | T72: =T$58*(1-INDEX(A_MeasureExpiration!$E$18:$AS$18,MATCH($C72,A_MeasureExpiration!$E$14:$AS$14,0))) -> 1009651.908 | U72: =U$58*(1-INDEX(A_MeasureExpiration!$E$18:$AS$18,MATCH($C72,A_MeasureExpiration!$E$14:$AS$14,0))) -> 1089052.595 | V72: =V$58*(1-INDEX(A_MeasureExpiration!$E$18:$AS$18,MATCH($C72,A_MeasureExpiration!$E$14:$AS$14,0))) -> 1088758.792 | W72: =W$58*(1-INDEX(A_MeasureExpiration!$E$18:$AS$18,MATCH($C72,A_MeasureExpiration!$E$14:$AS$14,0))) -> 1088859.602 | X72: =X$58*(1-INDEX(A_MeasureExpiration!$E$18:$AS$18,MATCH($C72,A_MeasureExpiration!$E$14:$AS$14,0))) -> 1089285.67 | Y72: =Y$58*(1-INDEX(A_MeasureExpiration!$E$18:$AS$18,MATCH($C72,A_MeasureExpiration!$E$14:$AS$14,0))) -> 1090042.78 | Z72: =Z$58*(1-INDEX(A_MeasureExpiration!$E$18:$AS$18,MATCH($C72,A_MeasureExpiration!$E$14:$AS$14,0))) -> 1091164.385 | AA72: =AA$58*(1-INDEX(A_MeasureExpiration!$E$18:$AS$18,MATCH($C72,A_MeasureExpiration!$E$14:$AS$14,0))) -> 1092759.839 | AB72: =AB$58*(1-INDEX(A_MeasureExpiration!$E$18:$AS$18,MATCH($C72,A_MeasureExpiration!$E$14:$AS$14,0))) -> 1094756.309 | AC72: =AC$58*(1-INDEX(A_MeasureExpiration!$E$18:$AS$18,MATCH($C72,A_MeasureExpiration!$E$14:$AS$14,0))) -> 1097289.053 | AD72: =AD$58*(1-INDEX(A_MeasureExpiration!$E$18:$AS$18,MATCH($C72,A_MeasureExpiration!$E$14:$AS$14,0))) -> 1100390.198 | AE72: =AE$58*(1-INDEX(A_MeasureExpiration!$E$18:$AS$18,MATCH($C72,A_MeasureExpiration!$E$14:$AS$14,0))) -> 1104059.194 | AF72: =AF$58*(1-INDEX(A_MeasureExpiration!$E$18:$AS$18,MATCH($C72,A_MeasureExpiration!$E$14:$AS$14,0))) -> 1108534.28 | AG72: =AG$58*(1-INDEX(A_MeasureExpiration!$E$18:$AS$18,MATCH($C72,A_MeasureExpiration!$E$14:$AS$14,0))) -> 1113820.074 | AH72: =AH$58*(1-INDEX(A_MeasureExpiration!$E$18:$AS$18,MATCH($C72,A_MeasureExpiration!$E$14:$AS$14,0))) -> 1119977.669 | AI72: =AI$58*(1-INDEX(A_MeasureExpiration!$E$18:$AS$18,MATCH($C72,A_MeasureExpiration!$E$14:$AS$14,0))) -> 1126839.956 | AJ72: =AJ$58*(1-INDEX(A_MeasureExpiration!$E$18:$AS$18,MATCH($C72,A_MeasureExpiration!$E$14:$AS$14,0))) -> 1134251.822 | AK72: =AK$58*(1-INDEX(A_MeasureExpiration!$E$18:$AS$18,MATCH($C72,A_MeasureExpiration!$E$14:$AS$14,0))) -> 1141972.426 | AL72: =AL$58*(1-INDEX(A_MeasureExpiration!$E$18:$AS$18,MATCH($C72,A_MeasureExpiration!$E$14:$AS$14,0))) -> 1149843.356 | AM72: =AM$58*(1-INDEX(A_MeasureExpiration!$E$18:$AS$18,MATCH($C72,A_MeasureExpiration!$E$14:$AS$14,0))) -> 1157829.191 | AN72: =AN$58*(1-INDEX(A_MeasureExpiration!$E$18:$AS$18,MATCH($C72,A_MeasureExpiration!$E$14:$AS$14,0))) -> 1165892.648
C73: Year 9 | D73: MWh | F73: =F$58*(1-INDEX(A_MeasureExpiration!$E$18:$AS$18,MATCH($C73,A_MeasureExpiration!$E$14:$AS$14,0))) -> 106392.6438 | G73: =G$58*(1-INDEX(A_MeasureExpiration!$E$18:$AS$18,MATCH($C73,A_MeasureExpiration!$E$14:$AS$14,0))) -> 168018.7707 | H73: =H$58*(1-INDEX(A_MeasureExpiration!$E$18:$AS$18,MATCH($C73,A_MeasureExpiration!$E$14:$AS$14,0))) -> 236005.2934 | I73: =I$58*(1-INDEX(A_MeasureExpiration!$E$18:$AS$18,MATCH($C73,A_MeasureExpiration!$E$14:$AS$14,0))) -> 269238.4133 | J73: =J$58*(1-INDEX(A_MeasureExpiration!$E$18:$AS$18,MATCH($C73,A_MeasureExpiration!$E$14:$AS$14,0))) -> 293550.4044 | K73: =K$58*(1-INDEX(A_MeasureExpiration!$E$18:$AS$18,MATCH($C73,A_MeasureExpiration!$E$14:$AS$14,0))) -> 334183.6738 | L73: =L$58*(1-INDEX(A_MeasureExpiration!$E$18:$AS$18,MATCH($C73,A_MeasureExpiration!$E$14:$AS$14,0))) -> 293742.0033 | M73: =M$58*(1-INDEX(A_MeasureExpiration!$E$18:$AS$18,MATCH($C73,A_MeasureExpiration!$E$14:$AS$14,0))) -> 302598.7189 | N73: =N$58*(1-INDEX(A_MeasureExpiration!$E$18:$AS$18,MATCH($C73,A_MeasureExpiration!$E$14:$AS$14,0))) -> 293306.9753 | O73: =O$58*(1-INDEX(A_MeasureExpiration!$E$18:$AS$18,MATCH($C73,A_MeasureExpiration!$E$14:$AS$14,0))) -> 189791.0383 | P73: =P$58*(1-INDEX(A_MeasureExpiration!$E$18:$AS$18,MATCH($C73,A_MeasureExpiration!$E$14:$AS$14,0))) -> 234053.776 | Q73: =Q$58*(1-INDEX(A_MeasureExpiration!$E$18:$AS$18,MATCH($C73,A_MeasureExpiration!$E$14:$AS$14,0))) -> 320586.9494 | R73: =R$58*(1-INDEX(A_MeasureExpiration!$E$18:$AS$18,MATCH($C73,A_MeasureExpiration!$E$14:$AS$14,0))) -> 532327.8267 | S73: =S$58*(1-INDEX(A_MeasureExpiration!$E$18:$AS$18,MATCH($C73,A_MeasureExpiration!$E$14:$AS$14,0))) -> 736598.3877 | T73: =T$58*(1-INDEX(A_MeasureExpiration!$E$18:$AS$18,MATCH($C73,A_MeasureExpiration!$E$14:$AS$14,0))) -> 940649.4184 | U73: =U$58*(1-INDEX(A_MeasureExpiration!$E$18:$AS$18,MATCH($C73,A_MeasureExpiration!$E$14:$AS$14,0))) -> 1014623.636 | V73: =V$58*(1-INDEX(A_MeasureExpiration!$E$18:$AS$18,MATCH($C73,A_MeasureExpiration!$E$14:$AS$14,0))) -> 1014349.912 | W73: =W$58*(1-INDEX(A_MeasureExpiration!$E$18:$AS$18,MATCH($C73,A_MeasureExpiration!$E$14:$AS$14,0))) -> 1014443.832 | X73: =X$58*(1-INDEX(A_MeasureExpiration!$E$18:$AS$18,MATCH($C73,A_MeasureExpiration!$E$14:$AS$14,0))) -> 1014840.782 | Y73: =Y$58*(1-INDEX(A_MeasureExpiration!$E$18:$AS$18,MATCH($C73,A_MeasureExpiration!$E$14:$AS$14,0))) -> 1015546.149 | Z73: =Z$58*(1-INDEX(A_MeasureExpiration!$E$18:$AS$18,MATCH($C73,A_MeasureExpiration!$E$14:$AS$14,0))) -> 1016591.101 | AA73: =AA$58*(1-INDEX(A_MeasureExpiration!$E$18:$AS$18,MATCH($C73,A_MeasureExpiration!$E$14:$AS$14,0))) -> 1018077.516 | AB73: =AB$58*(1-INDEX(A_MeasureExpiration!$E$18:$AS$18,MATCH($C73,A_MeasureExpiration!$E$14:$AS$14,0))) -> 1019937.542 | AC73: =AC$58*(1-INDEX(A_MeasureExpiration!$E$18:$AS$18,MATCH($C73,A_MeasureExpiration!$E$14:$AS$14,0))) -> 1022297.191 | AD73: =AD$58*(1-INDEX(A_MeasureExpiration!$E$18:$AS$18,MATCH($C73,A_MeasureExpiration!$E$14:$AS$14,0))) -> 1025186.395 | AE73: =AE$58*(1-INDEX(A_MeasureExpiration!$E$18:$AS$18,MATCH($C73,A_MeasureExpiration!$E$14:$AS$14,0))) -> 1028604.642 | AF73: =AF$58*(1-INDEX(A_MeasureExpiration!$E$18:$AS$18,MATCH($C73,A_MeasureExpiration!$E$14:$AS$14,0))) -> 1032773.887 | AG73: =AG$58*(1-INDEX(A_MeasureExpiration!$E$18:$AS$18,MATCH($C73,A_MeasureExpiration!$E$14:$AS$14,0))) -> 1037698.435 | AH73: =AH$58*(1-INDEX(A_MeasureExpiration!$E$18:$AS$18,MATCH($C73,A_MeasureExpiration!$E$14:$AS$14,0))) -> 1043435.202 | AI73: =AI$58*(1-INDEX(A_MeasureExpiration!$E$18:$AS$18,MATCH($C73,A_MeasureExpiration!$E$14:$AS$14,0))) -> 1049828.501 | AJ73: =AJ$58*(1-INDEX(A_MeasureExpiration!$E$18:$AS$18,MATCH($C73,A_MeasureExpiration!$E$14:$AS$14,0))) -> 1056733.819 | AK73: =AK$58*(1-INDEX(A_MeasureExpiration!$E$18:$AS$18,MATCH($C73,A_MeasureExpiration!$E$14:$AS$14,0))) -> 1063926.775 | AL73: =AL$58*(1-INDEX(A_MeasureExpiration!$E$18:$AS$18,MATCH($C73,A_MeasureExpiration!$E$14:$AS$14,0))) -> 1071259.783 | AM73: =AM$58*(1-INDEX(A_MeasureExpiration!$E$18:$AS$18,MATCH($C73,A_MeasureExpiration!$E$14:$AS$14,0))) -> 1078699.843 | AN73: =AN$58*(1-INDEX(A_MeasureExpiration!$E$18:$AS$18,MATCH($C73,A_MeasureExpiration!$E$14:$AS$14,0))) -> 1086212.22
C74: Year 10 | D74: MWh | F74: =F$58*(1-INDEX(A_MeasureExpiration!$E$18:$AS$18,MATCH($C74,A_MeasureExpiration!$E$14:$AS$14,0))) -> 96444.61406 | G74: =G$58*(1-INDEX(A_MeasureExpiration!$E$18:$AS$18,MATCH($C74,A_MeasureExpiration!$E$14:$AS$14,0))) -> 152308.5143 | H74: =H$58*(1-INDEX(A_MeasureExpiration!$E$18:$AS$18,MATCH($C74,A_MeasureExpiration!$E$14:$AS$14,0))) -> 213938.0942 | I74: =I$58*(1-INDEX(A_MeasureExpiration!$E$18:$AS$18,MATCH($C74,A_MeasureExpiration!$E$14:$AS$14,0))) -> 244063.8182 | J74: =J$58*(1-INDEX(A_MeasureExpiration!$E$18:$AS$18,MATCH($C74,A_MeasureExpiration!$E$14:$AS$14,0))) -> 266102.5656 | K74: =K$58*(1-INDEX(A_MeasureExpiration!$E$18:$AS$18,MATCH($C74,A_MeasureExpiration!$E$14:$AS$14,0))) -> 302936.503 | L74: =L$58*(1-INDEX(A_MeasureExpiration!$E$18:$AS$18,MATCH($C74,A_MeasureExpiration!$E$14:$AS$14,0))) -> 266276.2494 | M74: =M$58*(1-INDEX(A_MeasureExpiration!$E$18:$AS$18,MATCH($C74,A_MeasureExpiration!$E$14:$AS$14,0))) -> 274304.8356 | N74: =N$58*(1-INDEX(A_MeasureExpiration!$E$18:$AS$18,MATCH($C74,A_MeasureExpiration!$E$14:$AS$14,0))) -> 265881.8978 | O74: =O$58*(1-INDEX(A_MeasureExpiration!$E$18:$AS$18,MATCH($C74,A_MeasureExpiration!$E$14:$AS$14,0))) -> 172045.0099 | P74: =P$58*(1-INDEX(A_MeasureExpiration!$E$18:$AS$18,MATCH($C74,A_MeasureExpiration!$E$14:$AS$14,0))) -> 212169.0494 | Q74: =Q$58*(1-INDEX(A_MeasureExpiration!$E$18:$AS$18,MATCH($C74,A_MeasureExpiration!$E$14:$AS$14,0))) -> 290611.1129 | R74: =R$58*(1-INDEX(A_MeasureExpiration!$E$18:$AS$18,MATCH($C74,A_MeasureExpiration!$E$14:$AS$14,0))) -> 482553.5863 | S74: =S$58*(1-INDEX(A_MeasureExpiration!$E$18:$AS$18,MATCH($C74,A_MeasureExpiration!$E$14:$AS$14,0))) -> 667724.2403 | T74: =T$58*(1-INDEX(A_MeasureExpiration!$E$18:$AS$18,MATCH($C74,A_MeasureExpiration!$E$14:$AS$14,0))) -> 852695.8906 | U74: =U$58*(1-INDEX(A_MeasureExpiration!$E$18:$AS$18,MATCH($C74,A_MeasureExpiration!$E$14:$AS$14,0))) -> 919753.2983 | V74: =V$58*(1-INDEX(A_MeasureExpiration!$E$18:$AS$18,MATCH($C74,A_MeasureExpiration!$E$14:$AS$14,0))) -> 919505.1686 | W74: =W$58*(1-INDEX(A_MeasureExpiration!$E$18:$AS$18,MATCH($C74,A_MeasureExpiration!$E$14:$AS$14,0))) -> 919590.3066 | X74: =X$58*(1-INDEX(A_MeasureExpiration!$E$18:$AS$18,MATCH($C74,A_MeasureExpiration!$E$14:$AS$14,0))) -> 919950.1406 | Y74: =Y$58*(1-INDEX(A_MeasureExpiration!$E$18:$AS$18,MATCH($C74,A_MeasureExpiration!$E$14:$AS$14,0))) -> 920589.5531 | Z74: =Z$58*(1-INDEX(A_MeasureExpiration!$E$18:$AS$18,MATCH($C74,A_MeasureExpiration!$E$14:$AS$14,0))) -> 921536.799 | AA74: =AA$58*(1-INDEX(A_MeasureExpiration!$E$18:$AS$18,MATCH($C74,A_MeasureExpiration!$E$14:$AS$14,0))) -> 922884.2305 | AB74: =AB$58*(1-INDEX(A_MeasureExpiration!$E$18:$AS$18,MATCH($C74,A_MeasureExpiration!$E$14:$AS$14,0))) -> 924570.3383 | AC74: =AC$58*(1-INDEX(A_MeasureExpiration!$E$18:$AS$18,MATCH($C74,A_MeasureExpiration!$E$14:$AS$14,0))) -> 926709.3528 | AD74: =AD$58*(1-INDEX(A_MeasureExpiration!$E$18:$AS$18,MATCH($C74,A_MeasureExpiration!$E$14:$AS$14,0))) -> 929328.4076 | AE74: =AE$58*(1-INDEX(A_MeasureExpiration!$E$18:$AS$18,MATCH($C74,A_MeasureExpiration!$E$14:$AS$14,0))) -> 932427.0381 | AF74: =AF$58*(1-INDEX(A_MeasureExpiration!$E$18:$AS$18,MATCH($C74,A_MeasureExpiration!$E$14:$AS$14,0))) -> 936206.4465 | AG74: =AG$58*(1-INDEX(A_MeasureExpiration!$E$18:$AS$18,MATCH($C74,A_MeasureExpiration!$E$14:$AS$14,0))) -> 940670.5345 | AH74: =AH$58*(1-INDEX(A_MeasureExpiration!$E$18:$AS$18,MATCH($C74,A_MeasureExpiration!$E$14:$AS$14,0))) -> 945870.8966 | AI74: =AI$58*(1-INDEX(A_MeasureExpiration!$E$18:$AS$18,MATCH($C74,A_MeasureExpiration!$E$14:$AS$14,0))) -> 951666.4034 | AJ74: =AJ$58*(1-INDEX(A_MeasureExpiration!$E$18:$AS$18,MATCH($C74,A_MeasureExpiration!$E$14:$AS$14,0))) -> 957926.0531 | AK74: =AK$58*(1-INDEX(A_MeasureExpiration!$E$18:$AS$18,MATCH($C74,A_MeasureExpiration!$E$14:$AS$14,0))) -> 964446.4462 | AL74: =AL$58*(1-INDEX(A_MeasureExpiration!$E$18:$AS$18,MATCH($C74,A_MeasureExpiration!$E$14:$AS$14,0))) -> 971093.7964 | AM74: =AM$58*(1-INDEX(A_MeasureExpiration!$E$18:$AS$18,MATCH($C74,A_MeasureExpiration!$E$14:$AS$14,0))) -> 977838.1887 | AN74: =AN$58*(1-INDEX(A_MeasureExpiration!$E$18:$AS$18,MATCH($C74,A_MeasureExpiration!$E$14:$AS$14,0))) -> 984648.1363
C75: Year 11 | D75: MWh | F75: =F$58*(1-INDEX(A_MeasureExpiration!$E$18:$AS$18,MATCH($C75,A_MeasureExpiration!$E$14:$AS$14,0))) -> 84315.37773 | G75: =G$58*(1-INDEX(A_MeasureExpiration!$E$18:$AS$18,MATCH($C75,A_MeasureExpiration!$E$14:$AS$14,0))) -> 133153.6244 | H75: =H$58*(1-INDEX(A_MeasureExpiration!$E$18:$AS$18,MATCH($C75,A_MeasureExpiration!$E$14:$AS$14,0))) -> 187032.4372 | I75: =I$58*(1-INDEX(A_MeasureExpiration!$E$18:$AS$18,MATCH($C75,A_MeasureExpiration!$E$14:$AS$14,0))) -> 213369.4372 | J75: =J$58*(1-INDEX(A_MeasureExpiration!$E$18:$AS$18,MATCH($C75,A_MeasureExpiration!$E$14:$AS$14,0))) -> 232636.5091 | K75: =K$58*(1-INDEX(A_MeasureExpiration!$E$18:$AS$18,MATCH($C75,A_MeasureExpiration!$E$14:$AS$14,0))) -> 264838.0724 | L75: =L$58*(1-INDEX(A_MeasureExpiration!$E$18:$AS$18,MATCH($C75,A_MeasureExpiration!$E$14:$AS$14,0))) -> 232788.3497 | M75: =M$58*(1-INDEX(A_MeasureExpiration!$E$18:$AS$18,MATCH($C75,A_MeasureExpiration!$E$14:$AS$14,0))) -> 239807.2309 | N75: =N$58*(1-INDEX(A_MeasureExpiration!$E$18:$AS$18,MATCH($C75,A_MeasureExpiration!$E$14:$AS$14,0))) -> 232443.5933 | O75: =O$58*(1-INDEX(A_MeasureExpiration!$E$18:$AS$18,MATCH($C75,A_MeasureExpiration!$E$14:$AS$14,0))) -> 150407.9843 | P75: =P$58*(1-INDEX(A_MeasureExpiration!$E$18:$AS$18,MATCH($C75,A_MeasureExpiration!$E$14:$AS$14,0))) -> 185485.8742 | Q75: =Q$58*(1-INDEX(A_MeasureExpiration!$E$18:$AS$18,MATCH($C75,A_MeasureExpiration!$E$14:$AS$14,0))) -> 254062.7695 | R75: =R$58*(1-INDEX(A_MeasureExpiration!$E$18:$AS$18,MATCH($C75,A_MeasureExpiration!$E$14:$AS$14,0))) -> 421865.8377 | S75: =S$58*(1-INDEX(A_MeasureExpiration!$E$18:$AS$18,MATCH($C75,A_MeasureExpiration!$E$14:$AS$14,0))) -> 583748.7359 | T75: =T$58*(1-INDEX(A_MeasureExpiration!$E$18:$AS$18,MATCH($C75,A_MeasureExpiration!$E$14:$AS$14,0))) -> 745457.6578 | U75: =U$58*(1-INDEX(A_MeasureExpiration!$E$18:$AS$18,MATCH($C75,A_MeasureExpiration!$E$14:$AS$14,0))) -> 804081.6745 | V75: =V$58*(1-INDEX(A_MeasureExpiration!$E$18:$AS$18,MATCH($C75,A_MeasureExpiration!$E$14:$AS$14,0))) -> 803864.7504 | W75: =W$58*(1-INDEX(A_MeasureExpiration!$E$18:$AS$18,MATCH($C75,A_MeasureExpiration!$E$14:$AS$14,0))) -> 803939.1812 | X75: =X$58*(1-INDEX(A_MeasureExpiration!$E$18:$AS$18,MATCH($C75,A_MeasureExpiration!$E$14:$AS$14,0))) -> 804253.7611 | Y75: =Y$58*(1-INDEX(A_MeasureExpiration!$E$18:$AS$18,MATCH($C75,A_MeasureExpiration!$E$14:$AS$14,0))) -> 804812.7587 | Z75: =Z$58*(1-INDEX(A_MeasureExpiration!$E$18:$AS$18,MATCH($C75,A_MeasureExpiration!$E$14:$AS$14,0))) -> 805640.8754 | AA75: =AA$58*(1-INDEX(A_MeasureExpiration!$E$18:$AS$18,MATCH($C75,A_MeasureExpiration!$E$14:$AS$14,0))) -> 806818.8488 | AB75: =AB$58*(1-INDEX(A_MeasureExpiration!$E$18:$AS$18,MATCH($C75,A_MeasureExpiration!$E$14:$AS$14,0))) -> 808292.9055 | AC75: =AC$58*(1-INDEX(A_MeasureExpiration!$E$18:$AS$18,MATCH($C75,A_MeasureExpiration!$E$14:$AS$14,0))) -> 810162.9094 | AD75: =AD$58*(1-INDEX(A_MeasureExpiration!$E$18:$AS$18,MATCH($C75,A_MeasureExpiration!$E$14:$AS$14,0))) -> 812452.5821 | AE75: =AE$58*(1-INDEX(A_MeasureExpiration!$E$18:$AS$18,MATCH($C75,A_MeasureExpiration!$E$14:$AS$14,0))) -> 815161.5172 | AF75: =AF$58*(1-INDEX(A_MeasureExpiration!$E$18:$AS$18,MATCH($C75,A_MeasureExpiration!$E$14:$AS$14,0))) -> 818465.613 | AG75: =AG$58*(1-INDEX(A_MeasureExpiration!$E$18:$AS$18,MATCH($C75,A_MeasureExpiration!$E$14:$AS$14,0))) -> 822368.2806 | AH75: =AH$58*(1-INDEX(A_MeasureExpiration!$E$18:$AS$18,MATCH($C75,A_MeasureExpiration!$E$14:$AS$14,0))) -> 826914.6257 | AI75: =AI$58*(1-INDEX(A_MeasureExpiration!$E$18:$AS$18,MATCH($C75,A_MeasureExpiration!$E$14:$AS$14,0))) -> 831981.2678 | AJ75: =AJ$58*(1-INDEX(A_MeasureExpiration!$E$18:$AS$18,MATCH($C75,A_MeasureExpiration!$E$14:$AS$14,0))) -> 837453.6805 | AK75: =AK$58*(1-INDEX(A_MeasureExpiration!$E$18:$AS$18,MATCH($C75,A_MeasureExpiration!$E$14:$AS$14,0))) -> 843154.0444 | AL75: =AL$58*(1-INDEX(A_MeasureExpiration!$E$18:$AS$18,MATCH($C75,A_MeasureExpiration!$E$14:$AS$14,0))) -> 848965.399 | AM75: =AM$58*(1-INDEX(A_MeasureExpiration!$E$18:$AS$18,MATCH($C75,A_MeasureExpiration!$E$14:$AS$14,0))) -> 854861.5912 | AN75: =AN$58*(1-INDEX(A_MeasureExpiration!$E$18:$AS$18,MATCH($C75,A_MeasureExpiration!$E$14:$AS$14,0))) -> 860815.0942
C76: Year 12 | D76: MWh | F76: =F$58*(1-INDEX(A_MeasureExpiration!$E$18:$AS$18,MATCH($C76,A_MeasureExpiration!$E$14:$AS$14,0))) -> 69074.8348 | G76: =G$58*(1-INDEX(A_MeasureExpiration!$E$18:$AS$18,MATCH($C76,A_MeasureExpiration!$E$14:$AS$14,0))) -> 109085.2565 | H76: =H$58*(1-INDEX(A_MeasureExpiration!$E$18:$AS$18,MATCH($C76,A_MeasureExpiration!$E$14:$AS$14,0))) -> 153225.1299 | I76: =I$58*(1-INDEX(A_MeasureExpiration!$E$18:$AS$18,MATCH($C76,A_MeasureExpiration!$E$14:$AS$14,0))) -> 174801.5489 | J76: =J$58*(1-INDEX(A_MeasureExpiration!$E$18:$AS$18,MATCH($C76,A_MeasureExpiration!$E$14:$AS$14,0))) -> 190585.9745 | K76: =K$58*(1-INDEX(A_MeasureExpiration!$E$18:$AS$18,MATCH($C76,A_MeasureExpiration!$E$14:$AS$14,0))) -> 216966.8997 | L76: =L$58*(1-INDEX(A_MeasureExpiration!$E$18:$AS$18,MATCH($C76,A_MeasureExpiration!$E$14:$AS$14,0))) -> 190710.369 | M76: =M$58*(1-INDEX(A_MeasureExpiration!$E$18:$AS$18,MATCH($C76,A_MeasureExpiration!$E$14:$AS$14,0))) -> 196460.5426 | N76: =N$58*(1-INDEX(A_MeasureExpiration!$E$18:$AS$18,MATCH($C76,A_MeasureExpiration!$E$14:$AS$14,0))) -> 190427.9295 | O76: =O$58*(1-INDEX(A_MeasureExpiration!$E$18:$AS$18,MATCH($C76,A_MeasureExpiration!$E$14:$AS$14,0))) -> 123220.7807 | P76: =P$58*(1-INDEX(A_MeasureExpiration!$E$18:$AS$18,MATCH($C76,A_MeasureExpiration!$E$14:$AS$14,0))) -> 151958.118 | Q76: =Q$58*(1-INDEX(A_MeasureExpiration!$E$18:$AS$18,MATCH($C76,A_MeasureExpiration!$E$14:$AS$14,0))) -> 208139.3016 | R76: =R$58*(1-INDEX(A_MeasureExpiration!$E$18:$AS$18,MATCH($C76,A_MeasureExpiration!$E$14:$AS$14,0))) -> 345610.8937 | S76: =S$58*(1-INDEX(A_MeasureExpiration!$E$18:$AS$18,MATCH($C76,A_MeasureExpiration!$E$14:$AS$14,0))) -> 478232.4243 | T76: =T$58*(1-INDEX(A_MeasureExpiration!$E$18:$AS$18,MATCH($C76,A_MeasureExpiration!$E$14:$AS$14,0))) -> 610711.426 | U76: =U$58*(1-INDEX(A_MeasureExpiration!$E$18:$AS$18,MATCH($C76,A_MeasureExpiration!$E$14:$AS$14,0))) -> 658738.7773 | V76: =V$58*(1-INDEX(A_MeasureExpiration!$E$18:$AS$18,MATCH($C76,A_MeasureExpiration!$E$14:$AS$14,0))) -> 658561.0636 | W76: =W$58*(1-INDEX(A_MeasureExpiration!$E$18:$AS$18,MATCH($C76,A_MeasureExpiration!$E$14:$AS$14,0))) -> 658622.0406 | X76: =X$58*(1-INDEX(A_MeasureExpiration!$E$18:$AS$18,MATCH($C76,A_MeasureExpiration!$E$14:$AS$14,0))) -> 658879.7582 | Y76: =Y$58*(1-INDEX(A_MeasureExpiration!$E$18:$AS$18,MATCH($C76,A_MeasureExpiration!$E$14:$AS$14,0))) -> 659337.7134 | Z76: =Z$58*(1-INDEX(A_MeasureExpiration!$E$18:$AS$18,MATCH($C76,A_MeasureExpiration!$E$14:$AS$14,0))) -> 660016.1427 | AA76: =AA$58*(1-INDEX(A_MeasureExpiration!$E$18:$AS$18,MATCH($C76,A_MeasureExpiration!$E$14:$AS$14,0))) -> 660981.1899 | AB76: =AB$58*(1-INDEX(A_MeasureExpiration!$E$18:$AS$18,MATCH($C76,A_MeasureExpiration!$E$14:$AS$14,0))) -> 662188.8014 | AC76: =AC$58*(1-INDEX(A_MeasureExpiration!$E$18:$AS$18,MATCH($C76,A_MeasureExpiration!$E$14:$AS$14,0))) -> 663720.7902 | AD76: =AD$58*(1-INDEX(A_MeasureExpiration!$E$18:$AS$18,MATCH($C76,A_MeasureExpiration!$E$14:$AS$14,0))) -> 665596.5899 | AE76: =AE$58*(1-INDEX(A_MeasureExpiration!$E$18:$AS$18,MATCH($C76,A_MeasureExpiration!$E$14:$AS$14,0))) -> 667815.8676 | AF76: =AF$58*(1-INDEX(A_MeasureExpiration!$E$18:$AS$18,MATCH($C76,A_MeasureExpiration!$E$14:$AS$14,0))) -> 670522.7271 | AG76: =AG$58*(1-INDEX(A_MeasureExpiration!$E$18:$AS$18,MATCH($C76,A_MeasureExpiration!$E$14:$AS$14,0))) -> 673719.9626 | AH76: =AH$58*(1-INDEX(A_MeasureExpiration!$E$18:$AS$18,MATCH($C76,A_MeasureExpiration!$E$14:$AS$14,0))) -> 677444.5267 | AI76: =AI$58*(1-INDEX(A_MeasureExpiration!$E$18:$AS$18,MATCH($C76,A_MeasureExpiration!$E$14:$AS$14,0))) -> 681595.3409 | AJ76: =AJ$58*(1-INDEX(A_MeasureExpiration!$E$18:$AS$18,MATCH($C76,A_MeasureExpiration!$E$14:$AS$14,0))) -> 686078.5801 | AK76: =AK$58*(1-INDEX(A_MeasureExpiration!$E$18:$AS$18,MATCH($C76,A_MeasureExpiration!$E$14:$AS$14,0))) -> 690748.5669 | AL76: =AL$58*(1-INDEX(A_MeasureExpiration!$E$18:$AS$18,MATCH($C76,A_MeasureExpiration!$E$14:$AS$14,0))) -> 695509.482 | AM76: =AM$58*(1-INDEX(A_MeasureExpiration!$E$18:$AS$18,MATCH($C76,A_MeasureExpiration!$E$14:$AS$14,0))) -> 700339.8998 | AN76: =AN$58*(1-INDEX(A_MeasureExpiration!$E$18:$AS$18,MATCH($C76,A_MeasureExpiration!$E$14:$AS$14,0))) -> 705217.2691
C77: Year 13 | D77: MWh | F77: =F$58*(1-INDEX(A_MeasureExpiration!$E$18:$AS$18,MATCH($C77,A_MeasureExpiration!$E$14:$AS$14,0))) -> 54572.73083 | G77: =G$58*(1-INDEX(A_MeasureExpiration!$E$18:$AS$18,MATCH($C77,A_MeasureExpiration!$E$14:$AS$14,0))) -> 86183.05576 | H77: =H$58*(1-INDEX(A_MeasureExpiration!$E$18:$AS$18,MATCH($C77,A_MeasureExpiration!$E$14:$AS$14,0))) -> 121055.8634 | I77: =I$58*(1-INDEX(A_MeasureExpiration!$E$18:$AS$18,MATCH($C77,A_MeasureExpiration!$E$14:$AS$14,0))) -> 138102.3625 | J77: =J$58*(1-INDEX(A_MeasureExpiration!$E$18:$AS$18,MATCH($C77,A_MeasureExpiration!$E$14:$AS$14,0))) -> 150572.884 | K77: =K$58*(1-INDEX(A_MeasureExpiration!$E$18:$AS$18,MATCH($C77,A_MeasureExpiration!$E$14:$AS$14,0))) -> 171415.1941 | L77: =L$58*(1-INDEX(A_MeasureExpiration!$E$18:$AS$18,MATCH($C77,A_MeasureExpiration!$E$14:$AS$14,0))) -> 150671.1621 | M77: =M$58*(1-INDEX(A_MeasureExpiration!$E$18:$AS$18,MATCH($C77,A_MeasureExpiration!$E$14:$AS$14,0))) -> 155214.0999 | N77: =N$58*(1-INDEX(A_MeasureExpiration!$E$18:$AS$18,MATCH($C77,A_MeasureExpiration!$E$14:$AS$14,0))) -> 150448.0202 | O77: =O$58*(1-INDEX(A_MeasureExpiration!$E$18:$AS$18,MATCH($C77,A_MeasureExpiration!$E$14:$AS$14,0))) -> 97350.85889 | P77: =P$58*(1-INDEX(A_MeasureExpiration!$E$18:$AS$18,MATCH($C77,A_MeasureExpiration!$E$14:$AS$14,0))) -> 120054.8578 | Q77: =Q$58*(1-INDEX(A_MeasureExpiration!$E$18:$AS$18,MATCH($C77,A_MeasureExpiration!$E$14:$AS$14,0))) -> 164440.9301 | R77: =R$58*(1-INDEX(A_MeasureExpiration!$E$18:$AS$18,MATCH($C77,A_MeasureExpiration!$E$14:$AS$14,0))) -> 273050.6751 | S77: =S$58*(1-INDEX(A_MeasureExpiration!$E$18:$AS$18,MATCH($C77,A_MeasureExpiration!$E$14:$AS$14,0))) -> 377828.6179 | T77: =T$58*(1-INDEX(A_MeasureExpiration!$E$18:$AS$18,MATCH($C77,A_MeasureExpiration!$E$14:$AS$14,0))) -> 482493.9554 | U77: =U$58*(1-INDEX(A_MeasureExpiration!$E$18:$AS$18,MATCH($C77,A_MeasureExpiration!$E$14:$AS$14,0))) -> 520438.0739 | V77: =V$58*(1-INDEX(A_MeasureExpiration!$E$18:$AS$18,MATCH($C77,A_MeasureExpiration!$E$14:$AS$14,0))) -> 520297.6708 | W77: =W$58*(1-INDEX(A_MeasureExpiration!$E$18:$AS$18,MATCH($C77,A_MeasureExpiration!$E$14:$AS$14,0))) -> 520345.8458 | X77: =X$58*(1-INDEX(A_MeasureExpiration!$E$18:$AS$18,MATCH($C77,A_MeasureExpiration!$E$14:$AS$14,0))) -> 520549.4562 | Y77: =Y$58*(1-INDEX(A_MeasureExpiration!$E$18:$AS$18,MATCH($C77,A_MeasureExpiration!$E$14:$AS$14,0))) -> 520911.2647 | Z77: =Z$58*(1-INDEX(A_MeasureExpiration!$E$18:$AS$18,MATCH($C77,A_MeasureExpiration!$E$14:$AS$14,0))) -> 521447.2593 | AA77: =AA$58*(1-INDEX(A_MeasureExpiration!$E$18:$AS$18,MATCH($C77,A_MeasureExpiration!$E$14:$AS$14,0))) -> 522209.6971 | AB77: =AB$58*(1-INDEX(A_MeasureExpiration!$E$18:$AS$18,MATCH($C77,A_MeasureExpiration!$E$14:$AS$14,0))) -> 523163.7733 | AC77: =AC$58*(1-INDEX(A_MeasureExpiration!$E$18:$AS$18,MATCH($C77,A_MeasureExpiration!$E$14:$AS$14,0))) -> 524374.1246 | AD77: =AD$58*(1-INDEX(A_MeasureExpiration!$E$18:$AS$18,MATCH($C77,A_MeasureExpiration!$E$14:$AS$14,0))) -> 525856.1044 | AE77: =AE$58*(1-INDEX(A_MeasureExpiration!$E$18:$AS$18,MATCH($C77,A_MeasureExpiration!$E$14:$AS$14,0))) -> 527609.4498 | AF77: =AF$58*(1-INDEX(A_MeasureExpiration!$E$18:$AS$18,MATCH($C77,A_MeasureExpiration!$E$14:$AS$14,0))) -> 529748.0103 | AG77: =AG$58*(1-INDEX(A_MeasureExpiration!$E$18:$AS$18,MATCH($C77,A_MeasureExpiration!$E$14:$AS$14,0))) -> 532273.9935 | AH77: =AH$58*(1-INDEX(A_MeasureExpiration!$E$18:$AS$18,MATCH($C77,A_MeasureExpiration!$E$14:$AS$14,0))) -> 535216.5939 | AI77: =AI$58*(1-INDEX(A_MeasureExpiration!$E$18:$AS$18,MATCH($C77,A_MeasureExpiration!$E$14:$AS$14,0))) -> 538495.9541 | AJ77: =AJ$58*(1-INDEX(A_MeasureExpiration!$E$18:$AS$18,MATCH($C77,A_MeasureExpiration!$E$14:$AS$14,0))) -> 542037.9475 | AK77: =AK$58*(1-INDEX(A_MeasureExpiration!$E$18:$AS$18,MATCH($C77,A_MeasureExpiration!$E$14:$AS$14,0))) -> 545727.4812 | AL77: =AL$58*(1-INDEX(A_MeasureExpiration!$E$18:$AS$18,MATCH($C77,A_MeasureExpiration!$E$14:$AS$14,0))) -> 549488.853 | AM77: =AM$58*(1-INDEX(A_MeasureExpiration!$E$18:$AS$18,MATCH($C77,A_MeasureExpiration!$E$14:$AS$14,0))) -> 553305.1357 | AN77: =AN$58*(1-INDEX(A_MeasureExpiration!$E$18:$AS$18,MATCH($C77,A_MeasureExpiration!$E$14:$AS$14,0))) -> 557158.5124
C78: Year 14 | D78: MWh | F78: =F$58*(1-INDEX(A_MeasureExpiration!$E$18:$AS$18,MATCH($C78,A_MeasureExpiration!$E$14:$AS$14,0))) -> 42737.12723 | G78: =G$58*(1-INDEX(A_MeasureExpiration!$E$18:$AS$18,MATCH($C78,A_MeasureExpiration!$E$14:$AS$14,0))) -> 67491.88035 | H78: =H$58*(1-INDEX(A_MeasureExpiration!$E$18:$AS$18,MATCH($C78,A_MeasureExpiration!$E$14:$AS$14,0))) -> 94801.55674 | I78: =I$58*(1-INDEX(A_MeasureExpiration!$E$18:$AS$18,MATCH($C78,A_MeasureExpiration!$E$14:$AS$14,0))) -> 108151.0518 | J78: =J$58*(1-INDEX(A_MeasureExpiration!$E$18:$AS$18,MATCH($C78,A_MeasureExpiration!$E$14:$AS$14,0))) -> 117916.9963 | K78: =K$58*(1-INDEX(A_MeasureExpiration!$E$18:$AS$18,MATCH($C78,A_MeasureExpiration!$E$14:$AS$14,0))) -> 134239.076 | L78: =L$58*(1-INDEX(A_MeasureExpiration!$E$18:$AS$18,MATCH($C78,A_MeasureExpiration!$E$14:$AS$14,0))) -> 117993.9602 | M78: =M$58*(1-INDEX(A_MeasureExpiration!$E$18:$AS$18,MATCH($C78,A_MeasureExpiration!$E$14:$AS$14,0))) -> 121551.6364 | N78: =N$58*(1-INDEX(A_MeasureExpiration!$E$18:$AS$18,MATCH($C78,A_MeasureExpiration!$E$14:$AS$14,0))) -> 117819.2127 | O78: =O$58*(1-INDEX(A_MeasureExpiration!$E$18:$AS$18,MATCH($C78,A_MeasureExpiration!$E$14:$AS$14,0))) -> 76237.637 | P78: =P$58*(1-INDEX(A_MeasureExpiration!$E$18:$AS$18,MATCH($C78,A_MeasureExpiration!$E$14:$AS$14,0))) -> 94017.64681 | Q78: =Q$58*(1-INDEX(A_MeasureExpiration!$E$18:$AS$18,MATCH($C78,A_MeasureExpiration!$E$14:$AS$14,0))) -> 128777.3737 | R78: =R$58*(1-INDEX(A_MeasureExpiration!$E$18:$AS$18,MATCH($C78,A_MeasureExpiration!$E$14:$AS$14,0))) -> 213832.0964 | S78: =S$58*(1-INDEX(A_MeasureExpiration!$E$18:$AS$18,MATCH($C78,A_MeasureExpiration!$E$14:$AS$14,0))) -> 295886.0491 | T78: =T$58*(1-INDEX(A_MeasureExpiration!$E$18:$AS$18,MATCH($C78,A_MeasureExpiration!$E$14:$AS$14,0))) -> 377851.8181 | U78: =U$58*(1-INDEX(A_MeasureExpiration!$E$18:$AS$18,MATCH($C78,A_MeasureExpiration!$E$14:$AS$14,0))) -> 407566.7067 | V78: =V$58*(1-INDEX(A_MeasureExpiration!$E$18:$AS$18,MATCH($C78,A_MeasureExpiration!$E$14:$AS$14,0))) -> 407456.754 | W78: =W$58*(1-INDEX(A_MeasureExpiration!$E$18:$AS$18,MATCH($C78,A_MeasureExpiration!$E$14:$AS$14,0))) -> 407494.4808 | X78: =X$58*(1-INDEX(A_MeasureExpiration!$E$18:$AS$18,MATCH($C78,A_MeasureExpiration!$E$14:$AS$14,0))) -> 407653.9327 | Y78: =Y$58*(1-INDEX(A_MeasureExpiration!$E$18:$AS$18,MATCH($C78,A_MeasureExpiration!$E$14:$AS$14,0))) -> 407937.2731 | Z78: =Z$58*(1-INDEX(A_MeasureExpiration!$E$18:$AS$18,MATCH($C78,A_MeasureExpiration!$E$14:$AS$14,0))) -> 408357.0225 | AA78: =AA$58*(1-INDEX(A_MeasureExpiration!$E$18:$AS$18,MATCH($C78,A_MeasureExpiration!$E$14:$AS$14,0))) -> 408954.1045 | AB78: =AB$58*(1-INDEX(A_MeasureExpiration!$E$18:$AS$18,MATCH($C78,A_MeasureExpiration!$E$14:$AS$14,0))) -> 409701.263 | AC78: =AC$58*(1-INDEX(A_MeasureExpiration!$E$18:$AS$18,MATCH($C78,A_MeasureExpiration!$E$14:$AS$14,0))) -> 410649.1161 | AD78: =AD$58*(1-INDEX(A_MeasureExpiration!$E$18:$AS$18,MATCH($C78,A_MeasureExpiration!$E$14:$AS$14,0))) -> 411809.6877 | AE78: =AE$58*(1-INDEX(A_MeasureExpiration!$E$18:$AS$18,MATCH($C78,A_MeasureExpiration!$E$14:$AS$14,0))) -> 413182.7718 | AF78: =AF$58*(1-INDEX(A_MeasureExpiration!$E$18:$AS$18,MATCH($C78,A_MeasureExpiration!$E$14:$AS$14,0))) -> 414857.5264 | AG78: =AG$58*(1-INDEX(A_MeasureExpiration!$E$18:$AS$18,MATCH($C78,A_MeasureExpiration!$E$14:$AS$14,0))) -> 416835.6804 | AH78: =AH$58*(1-INDEX(A_MeasureExpiration!$E$18:$AS$18,MATCH($C78,A_MeasureExpiration!$E$14:$AS$14,0))) -> 419140.0966 | AI78: =AI$58*(1-INDEX(A_MeasureExpiration!$E$18:$AS$18,MATCH($C78,A_MeasureExpiration!$E$14:$AS$14,0))) -> 421708.237 | AJ78: =AJ$58*(1-INDEX(A_MeasureExpiration!$E$18:$AS$18,MATCH($C78,A_MeasureExpiration!$E$14:$AS$14,0))) -> 424482.0513 | AK78: =AK$58*(1-INDEX(A_MeasureExpiration!$E$18:$AS$18,MATCH($C78,A_MeasureExpiration!$E$14:$AS$14,0))) -> 427371.4078 | AL78: =AL$58*(1-INDEX(A_MeasureExpiration!$E$18:$AS$18,MATCH($C78,A_MeasureExpiration!$E$14:$AS$14,0))) -> 430317.0222 | AM78: =AM$58*(1-INDEX(A_MeasureExpiration!$E$18:$AS$18,MATCH($C78,A_MeasureExpiration!$E$14:$AS$14,0))) -> 433305.6386 | AN78: =AN$58*(1-INDEX(A_MeasureExpiration!$E$18:$AS$18,MATCH($C78,A_MeasureExpiration!$E$14:$AS$14,0))) -> 436323.3042
C79: Year 15 | D79: MWh | F79: =F$58*(1-INDEX(A_MeasureExpiration!$E$18:$AS$18,MATCH($C79,A_MeasureExpiration!$E$14:$AS$14,0))) -> 18409.04644 | G79: =G$58*(1-INDEX(A_MeasureExpiration!$E$18:$AS$18,MATCH($C79,A_MeasureExpiration!$E$14:$AS$14,0))) -> 29072.17307 | H79: =H$58*(1-INDEX(A_MeasureExpiration!$E$18:$AS$18,MATCH($C79,A_MeasureExpiration!$E$14:$AS$14,0))) -> 40835.83463 | I79: =I$58*(1-INDEX(A_MeasureExpiration!$E$18:$AS$18,MATCH($C79,A_MeasureExpiration!$E$14:$AS$14,0))) -> 46586.13866 | J79: =J$58*(1-INDEX(A_MeasureExpiration!$E$18:$AS$18,MATCH($C79,A_MeasureExpiration!$E$14:$AS$14,0))) -> 50792.82586 | K79: =K$58*(1-INDEX(A_MeasureExpiration!$E$18:$AS$18,MATCH($C79,A_MeasureExpiration!$E$14:$AS$14,0))) -> 57823.57269 | L79: =L$58*(1-INDEX(A_MeasureExpiration!$E$18:$AS$18,MATCH($C79,A_MeasureExpiration!$E$14:$AS$14,0))) -> 50825.97808 | M79: =M$58*(1-INDEX(A_MeasureExpiration!$E$18:$AS$18,MATCH($C79,A_MeasureExpiration!$E$14:$AS$14,0))) -> 52358.44952 | N79: =N$58*(1-INDEX(A_MeasureExpiration!$E$18:$AS$18,MATCH($C79,A_MeasureExpiration!$E$14:$AS$14,0))) -> 50750.70549 | O79: =O$58*(1-INDEX(A_MeasureExpiration!$E$18:$AS$18,MATCH($C79,A_MeasureExpiration!$E$14:$AS$14,0))) -> 32839.41366 | P79: =P$58*(1-INDEX(A_MeasureExpiration!$E$18:$AS$18,MATCH($C79,A_MeasureExpiration!$E$14:$AS$14,0))) -> 40498.1649 | Q79: =Q$58*(1-INDEX(A_MeasureExpiration!$E$18:$AS$18,MATCH($C79,A_MeasureExpiration!$E$14:$AS$14,0))) -> 55470.94076 | R79: =R$58*(1-INDEX(A_MeasureExpiration!$E$18:$AS$18,MATCH($C79,A_MeasureExpiration!$E$14:$AS$14,0))) -> 92108.32005 | S79: =S$58*(1-INDEX(A_MeasureExpiration!$E$18:$AS$18,MATCH($C79,A_MeasureExpiration!$E$14:$AS$14,0))) -> 127453.1156 | T79: =T$58*(1-INDEX(A_MeasureExpiration!$E$18:$AS$18,MATCH($C79,A_MeasureExpiration!$E$14:$AS$14,0))) -> 162759.926 | U79: =U$58*(1-INDEX(A_MeasureExpiration!$E$18:$AS$18,MATCH($C79,A_MeasureExpiration!$E$14:$AS$14,0))) -> 175559.6344 | V79: =V$58*(1-INDEX(A_MeasureExpiration!$E$18:$AS$18,MATCH($C79,A_MeasureExpiration!$E$14:$AS$14,0))) -> 175512.2721 | W79: =W$58*(1-INDEX(A_MeasureExpiration!$E$18:$AS$18,MATCH($C79,A_MeasureExpiration!$E$14:$AS$14,0))) -> 175528.523 | X79: =X$58*(1-INDEX(A_MeasureExpiration!$E$18:$AS$18,MATCH($C79,A_MeasureExpiration!$E$14:$AS$14,0))) -> 175597.207 | Y79: =Y$58*(1-INDEX(A_MeasureExpiration!$E$18:$AS$18,MATCH($C79,A_MeasureExpiration!$E$14:$AS$14,0))) -> 175719.2561 | Z79: =Z$58*(1-INDEX(A_MeasureExpiration!$E$18:$AS$18,MATCH($C79,A_MeasureExpiration!$E$14:$AS$14,0))) -> 175900.0634 | AA79: =AA$58*(1-INDEX(A_MeasureExpiration!$E$18:$AS$18,MATCH($C79,A_MeasureExpiration!$E$14:$AS$14,0))) -> 176157.2569 | AB79: =AB$58*(1-INDEX(A_MeasureExpiration!$E$18:$AS$18,MATCH($C79,A_MeasureExpiration!$E$14:$AS$14,0))) -> 176479.0959 | AC79: =AC$58*(1-INDEX(A_MeasureExpiration!$E$18:$AS$18,MATCH($C79,A_MeasureExpiration!$E$14:$AS$14,0))) -> 176887.3843 | AD79: =AD$58*(1-INDEX(A_MeasureExpiration!$E$18:$AS$18,MATCH($C79,A_MeasureExpiration!$E$14:$AS$14,0))) -> 177387.3013 | AE79: =AE$58*(1-INDEX(A_MeasureExpiration!$E$18:$AS$18,MATCH($C79,A_MeasureExpiration!$E$14:$AS$14,0))) -> 177978.7582 | AF79: =AF$58*(1-INDEX(A_MeasureExpiration!$E$18:$AS$18,MATCH($C79,A_MeasureExpiration!$E$14:$AS$14,0))) -> 178700.1599 | AG79: =AG$58*(1-INDEX(A_MeasureExpiration!$E$18:$AS$18,MATCH($C79,A_MeasureExpiration!$E$14:$AS$14,0))) -> 179552.251 | AH79: =AH$58*(1-INDEX(A_MeasureExpiration!$E$18:$AS$18,MATCH($C79,A_MeasureExpiration!$E$14:$AS$14,0))) -> 180544.8799 | AI79: =AI$58*(1-INDEX(A_MeasureExpiration!$E$18:$AS$18,MATCH($C79,A_MeasureExpiration!$E$14:$AS$14,0))) -> 181651.1081 | AJ79: =AJ$58*(1-INDEX(A_MeasureExpiration!$E$18:$AS$18,MATCH($C79,A_MeasureExpiration!$E$14:$AS$14,0))) -> 182845.9305 | AK79: =AK$58*(1-INDEX(A_MeasureExpiration!$E$18:$AS$18,MATCH($C79,A_MeasureExpiration!$E$14:$AS$14,0))) -> 184090.5227 | AL79: =AL$58*(1-INDEX(A_MeasureExpiration!$E$18:$AS$18,MATCH($C79,A_MeasureExpiration!$E$14:$AS$14,0))) -> 185359.3481 | AM79: =AM$58*(1-INDEX(A_MeasureExpiration!$E$18:$AS$18,MATCH($C79,A_MeasureExpiration!$E$14:$AS$14,0))) -> 186646.6967 | AN79: =AN$58*(1-INDEX(A_MeasureExpiration!$E$18:$AS$18,MATCH($C79,A_MeasureExpiration!$E$14:$AS$14,0))) -> 187946.5582
C80: Year 16 | D80: MWh | F80: =F$58*(1-INDEX(A_MeasureExpiration!$E$18:$AS$18,MATCH($C80,A_MeasureExpiration!$E$14:$AS$14,0))) -> 13357.17179 | G80: =G$58*(1-INDEX(A_MeasureExpiration!$E$18:$AS$18,MATCH($C80,A_MeasureExpiration!$E$14:$AS$14,0))) -> 21094.08608 | H80: =H$58*(1-INDEX(A_MeasureExpiration!$E$18:$AS$18,MATCH($C80,A_MeasureExpiration!$E$14:$AS$14,0))) -> 29629.52266 | I80: =I$58*(1-INDEX(A_MeasureExpiration!$E$18:$AS$18,MATCH($C80,A_MeasureExpiration!$E$14:$AS$14,0))) -> 33801.80822 | J80: =J$58*(1-INDEX(A_MeasureExpiration!$E$18:$AS$18,MATCH($C80,A_MeasureExpiration!$E$14:$AS$14,0))) -> 36854.08167 | K80: =K$58*(1-INDEX(A_MeasureExpiration!$E$18:$AS$18,MATCH($C80,A_MeasureExpiration!$E$14:$AS$14,0))) -> 41955.42647 | L80: =L$58*(1-INDEX(A_MeasureExpiration!$E$18:$AS$18,MATCH($C80,A_MeasureExpiration!$E$14:$AS$14,0))) -> 36878.13614 | M80: =M$58*(1-INDEX(A_MeasureExpiration!$E$18:$AS$18,MATCH($C80,A_MeasureExpiration!$E$14:$AS$14,0))) -> 37990.06143 | N80: =N$58*(1-INDEX(A_MeasureExpiration!$E$18:$AS$18,MATCH($C80,A_MeasureExpiration!$E$14:$AS$14,0))) -> 36823.52012 | O80: =O$58*(1-INDEX(A_MeasureExpiration!$E$18:$AS$18,MATCH($C80,A_MeasureExpiration!$E$14:$AS$14,0))) -> 23827.50738 | P80: =P$58*(1-INDEX(A_MeasureExpiration!$E$18:$AS$18,MATCH($C80,A_MeasureExpiration!$E$14:$AS$14,0))) -> 29384.51743 | Q80: =Q$58*(1-INDEX(A_MeasureExpiration!$E$18:$AS$18,MATCH($C80,A_MeasureExpiration!$E$14:$AS$14,0))) -> 40248.41198 | R80: =R$58*(1-INDEX(A_MeasureExpiration!$E$18:$AS$18,MATCH($C80,A_MeasureExpiration!$E$14:$AS$14,0))) -> 66831.63404 | S80: =S$58*(1-INDEX(A_MeasureExpiration!$E$18:$AS$18,MATCH($C80,A_MeasureExpiration!$E$14:$AS$14,0))) -> 92476.9877 | T80: =T$58*(1-INDEX(A_MeasureExpiration!$E$18:$AS$18,MATCH($C80,A_MeasureExpiration!$E$14:$AS$14,0))) -> 118094.7802 | U80: =U$58*(1-INDEX(A_MeasureExpiration!$E$18:$AS$18,MATCH($C80,A_MeasureExpiration!$E$14:$AS$14,0))) -> 127381.948 | V80: =V$58*(1-INDEX(A_MeasureExpiration!$E$18:$AS$18,MATCH($C80,A_MeasureExpiration!$E$14:$AS$14,0))) -> 127347.5831 | W80: =W$58*(1-INDEX(A_MeasureExpiration!$E$18:$AS$18,MATCH($C80,A_MeasureExpiration!$E$14:$AS$14,0))) -> 127359.3743 | X80: =X$58*(1-INDEX(A_MeasureExpiration!$E$18:$AS$18,MATCH($C80,A_MeasureExpiration!$E$14:$AS$14,0))) -> 127409.2098 | Y80: =Y$58*(1-INDEX(A_MeasureExpiration!$E$18:$AS$18,MATCH($C80,A_MeasureExpiration!$E$14:$AS$14,0))) -> 127497.7658 | Z80: =Z$58*(1-INDEX(A_MeasureExpiration!$E$18:$AS$18,MATCH($C80,A_MeasureExpiration!$E$14:$AS$14,0))) -> 127628.9553 | AA80: =AA$58*(1-INDEX(A_MeasureExpiration!$E$18:$AS$18,MATCH($C80,A_MeasureExpiration!$E$14:$AS$14,0))) -> 127815.5689 | AB80: =AB$58*(1-INDEX(A_MeasureExpiration!$E$18:$AS$18,MATCH($C80,A_MeasureExpiration!$E$14:$AS$14,0))) -> 128049.0877 | AC80: =AC$58*(1-INDEX(A_MeasureExpiration!$E$18:$AS$18,MATCH($C80,A_MeasureExpiration!$E$14:$AS$14,0))) -> 128345.3322 | AD80: =AD$58*(1-INDEX(A_MeasureExpiration!$E$18:$AS$18,MATCH($C80,A_MeasureExpiration!$E$14:$AS$14,0))) -> 128708.0602 | AE80: =AE$58*(1-INDEX(A_MeasureExpiration!$E$18:$AS$18,MATCH($C80,A_MeasureExpiration!$E$14:$AS$14,0))) -> 129137.2074 | AF80: =AF$58*(1-INDEX(A_MeasureExpiration!$E$18:$AS$18,MATCH($C80,A_MeasureExpiration!$E$14:$AS$14,0))) -> 129660.6396 | AG80: =AG$58*(1-INDEX(A_MeasureExpiration!$E$18:$AS$18,MATCH($C80,A_MeasureExpiration!$E$14:$AS$14,0))) -> 130278.8969 | AH80: =AH$58*(1-INDEX(A_MeasureExpiration!$E$18:$AS$18,MATCH($C80,A_MeasureExpiration!$E$14:$AS$14,0))) -> 130999.1251 | AI80: =AI$58*(1-INDEX(A_MeasureExpiration!$E$18:$AS$18,MATCH($C80,A_MeasureExpiration!$E$14:$AS$14,0))) -> 131801.7783 | AJ80: =AJ$58*(1-INDEX(A_MeasureExpiration!$E$18:$AS$18,MATCH($C80,A_MeasureExpiration!$E$14:$AS$14,0))) -> 132668.7134 | AK80: =AK$58*(1-INDEX(A_MeasureExpiration!$E$18:$AS$18,MATCH($C80,A_MeasureExpiration!$E$14:$AS$14,0))) -> 133571.7603 | AL80: =AL$58*(1-INDEX(A_MeasureExpiration!$E$18:$AS$18,MATCH($C80,A_MeasureExpiration!$E$14:$AS$14,0))) -> 134492.3902 | AM80: =AM$58*(1-INDEX(A_MeasureExpiration!$E$18:$AS$18,MATCH($C80,A_MeasureExpiration!$E$14:$AS$14,0))) -> 135426.46 | AN80: =AN$58*(1-INDEX(A_MeasureExpiration!$E$18:$AS$18,MATCH($C80,A_MeasureExpiration!$E$14:$AS$14,0))) -> 136369.609
C81: Year 17 | D81: MWh | F81: =F$58*(1-INDEX(A_MeasureExpiration!$E$18:$AS$18,MATCH($C81,A_MeasureExpiration!$E$14:$AS$14,0))) -> 8559.889835 | G81: =G$58*(1-INDEX(A_MeasureExpiration!$E$18:$AS$18,MATCH($C81,A_MeasureExpiration!$E$14:$AS$14,0))) -> 13518.06024 | H81: =H$58*(1-INDEX(A_MeasureExpiration!$E$18:$AS$18,MATCH($C81,A_MeasureExpiration!$E$14:$AS$14,0))) -> 18987.96046 | I81: =I$58*(1-INDEX(A_MeasureExpiration!$E$18:$AS$18,MATCH($C81,A_MeasureExpiration!$E$14:$AS$14,0))) -> 21661.75288 | J81: =J$58*(1-INDEX(A_MeasureExpiration!$E$18:$AS$18,MATCH($C81,A_MeasureExpiration!$E$14:$AS$14,0))) -> 23617.79005 | K81: =K$58*(1-INDEX(A_MeasureExpiration!$E$18:$AS$18,MATCH($C81,A_MeasureExpiration!$E$14:$AS$14,0))) -> 26886.96635 | L81: =L$58*(1-INDEX(A_MeasureExpiration!$E$18:$AS$18,MATCH($C81,A_MeasureExpiration!$E$14:$AS$14,0))) -> 23633.20526 | M81: =M$58*(1-INDEX(A_MeasureExpiration!$E$18:$AS$18,MATCH($C81,A_MeasureExpiration!$E$14:$AS$14,0))) -> 24345.77811 | N81: =N$58*(1-INDEX(A_MeasureExpiration!$E$18:$AS$18,MATCH($C81,A_MeasureExpiration!$E$14:$AS$14,0))) -> 23598.2048 | O81: =O$58*(1-INDEX(A_MeasureExpiration!$E$18:$AS$18,MATCH($C81,A_MeasureExpiration!$E$14:$AS$14,0))) -> 15269.76229 | P81: =P$58*(1-INDEX(A_MeasureExpiration!$E$18:$AS$18,MATCH($C81,A_MeasureExpiration!$E$14:$AS$14,0))) -> 18830.94984 | Q81: =Q$58*(1-INDEX(A_MeasureExpiration!$E$18:$AS$18,MATCH($C81,A_MeasureExpiration!$E$14:$AS$14,0))) -> 25793.03298 | R81: =R$58*(1-INDEX(A_MeasureExpiration!$E$18:$AS$18,MATCH($C81,A_MeasureExpiration!$E$14:$AS$14,0))) -> 42828.78395 | S81: =S$58*(1-INDEX(A_MeasureExpiration!$E$18:$AS$18,MATCH($C81,A_MeasureExpiration!$E$14:$AS$14,0))) -> 59263.50572 | T81: =T$58*(1-INDEX(A_MeasureExpiration!$E$18:$AS$18,MATCH($C81,A_MeasureExpiration!$E$14:$AS$14,0))) -> 75680.56504 | U81: =U$58*(1-INDEX(A_MeasureExpiration!$E$18:$AS$18,MATCH($C81,A_MeasureExpiration!$E$14:$AS$14,0))) -> 81632.20918 | V81: =V$58*(1-INDEX(A_MeasureExpiration!$E$18:$AS$18,MATCH($C81,A_MeasureExpiration!$E$14:$AS$14,0))) -> 81610.18656 | W81: =W$58*(1-INDEX(A_MeasureExpiration!$E$18:$AS$18,MATCH($C81,A_MeasureExpiration!$E$14:$AS$14,0))) -> 81617.74294 | X81: =X$58*(1-INDEX(A_MeasureExpiration!$E$18:$AS$18,MATCH($C81,A_MeasureExpiration!$E$14:$AS$14,0))) -> 81649.67981 | Y81: =Y$58*(1-INDEX(A_MeasureExpiration!$E$18:$AS$18,MATCH($C81,A_MeasureExpiration!$E$14:$AS$14,0))) -> 81706.43053 | Z81: =Z$58*(1-INDEX(A_MeasureExpiration!$E$18:$AS$18,MATCH($C81,A_MeasureExpiration!$E$14:$AS$14,0))) -> 81790.50282 | AA81: =AA$58*(1-INDEX(A_MeasureExpiration!$E$18:$AS$18,MATCH($C81,A_MeasureExpiration!$E$14:$AS$14,0))) -> 81910.09338 | AB81: =AB$58*(1-INDEX(A_MeasureExpiration!$E$18:$AS$18,MATCH($C81,A_MeasureExpiration!$E$14:$AS$14,0))) -> 82059.74298 | AC81: =AC$58*(1-INDEX(A_MeasureExpiration!$E$18:$AS$18,MATCH($C81,A_MeasureExpiration!$E$14:$AS$14,0))) -> 82249.59005 | AD81: =AD$58*(1-INDEX(A_MeasureExpiration!$E$18:$AS$18,MATCH($C81,A_MeasureExpiration!$E$14:$AS$14,0))) -> 82482.04285 | AE81: =AE$58*(1-INDEX(A_MeasureExpiration!$E$18:$AS$18,MATCH($C81,A_MeasureExpiration!$E$14:$AS$14,0))) -> 82757.06013 | AF81: =AF$58*(1-INDEX(A_MeasureExpiration!$E$18:$AS$18,MATCH($C81,A_MeasureExpiration!$E$14:$AS$14,0))) -> 83092.49949 | AG81: =AG$58*(1-INDEX(A_MeasureExpiration!$E$18:$AS$18,MATCH($C81,A_MeasureExpiration!$E$14:$AS$14,0))) -> 83488.70722 | AH81: =AH$58*(1-INDEX(A_MeasureExpiration!$E$18:$AS$18,MATCH($C81,A_MeasureExpiration!$E$14:$AS$14,0))) -> 83950.26257 | AI81: =AI$58*(1-INDEX(A_MeasureExpiration!$E$18:$AS$18,MATCH($C81,A_MeasureExpiration!$E$14:$AS$14,0))) -> 84464.63965 | AJ81: =AJ$58*(1-INDEX(A_MeasureExpiration!$E$18:$AS$18,MATCH($C81,A_MeasureExpiration!$E$14:$AS$14,0))) -> 85020.2115 | AK81: =AK$58*(1-INDEX(A_MeasureExpiration!$E$18:$AS$18,MATCH($C81,A_MeasureExpiration!$E$14:$AS$14,0))) -> 85598.92547 | AL81: =AL$58*(1-INDEX(A_MeasureExpiration!$E$18:$AS$18,MATCH($C81,A_MeasureExpiration!$E$14:$AS$14,0))) -> 86188.90747 | AM81: =AM$58*(1-INDEX(A_MeasureExpiration!$E$18:$AS$18,MATCH($C81,A_MeasureExpiration!$E$14:$AS$14,0))) -> 86787.50238 | AN81: =AN$58*(1-INDEX(A_MeasureExpiration!$E$18:$AS$18,MATCH($C81,A_MeasureExpiration!$E$14:$AS$14,0))) -> 87391.91561
C82: Year 18 | D82: MWh | F82: =F$58*(1-INDEX(A_MeasureExpiration!$E$18:$AS$18,MATCH($C82,A_MeasureExpiration!$E$14:$AS$14,0))) -> 6724.822669 | G82: =G$58*(1-INDEX(A_MeasureExpiration!$E$18:$AS$18,MATCH($C82,A_MeasureExpiration!$E$14:$AS$14,0))) -> 10620.06167 | H82: =H$58*(1-INDEX(A_MeasureExpiration!$E$18:$AS$18,MATCH($C82,A_MeasureExpiration!$E$14:$AS$14,0))) -> 14917.32597 | I82: =I$58*(1-INDEX(A_MeasureExpiration!$E$18:$AS$18,MATCH($C82,A_MeasureExpiration!$E$14:$AS$14,0))) -> 17017.9114 | J82: =J$58*(1-INDEX(A_MeasureExpiration!$E$18:$AS$18,MATCH($C82,A_MeasureExpiration!$E$14:$AS$14,0))) -> 18554.61378 | K82: =K$58*(1-INDEX(A_MeasureExpiration!$E$18:$AS$18,MATCH($C82,A_MeasureExpiration!$E$14:$AS$14,0))) -> 21122.94484 | L82: =L$58*(1-INDEX(A_MeasureExpiration!$E$18:$AS$18,MATCH($C82,A_MeasureExpiration!$E$14:$AS$14,0))) -> 18566.72428 | M82: =M$58*(1-INDEX(A_MeasureExpiration!$E$18:$AS$18,MATCH($C82,A_MeasureExpiration!$E$14:$AS$14,0))) -> 19126.53594 | N82: =N$58*(1-INDEX(A_MeasureExpiration!$E$18:$AS$18,MATCH($C82,A_MeasureExpiration!$E$14:$AS$14,0))) -> 18539.22722 | O82: =O$58*(1-INDEX(A_MeasureExpiration!$E$18:$AS$18,MATCH($C82,A_MeasureExpiration!$E$14:$AS$14,0))) -> 11996.23425 | P82: =P$58*(1-INDEX(A_MeasureExpiration!$E$18:$AS$18,MATCH($C82,A_MeasureExpiration!$E$14:$AS$14,0))) -> 14793.97525 | Q82: =Q$58*(1-INDEX(A_MeasureExpiration!$E$18:$AS$18,MATCH($C82,A_MeasureExpiration!$E$14:$AS$14,0))) -> 20263.52865 | R82: =R$58*(1-INDEX(A_MeasureExpiration!$E$18:$AS$18,MATCH($C82,A_MeasureExpiration!$E$14:$AS$14,0))) -> 33647.15933 | S82: =S$58*(1-INDEX(A_MeasureExpiration!$E$18:$AS$18,MATCH($C82,A_MeasureExpiration!$E$14:$AS$14,0))) -> 46558.60933 | T82: =T$58*(1-INDEX(A_MeasureExpiration!$E$18:$AS$18,MATCH($C82,A_MeasureExpiration!$E$14:$AS$14,0))) -> 59456.18333 | U82: =U$58*(1-INDEX(A_MeasureExpiration!$E$18:$AS$18,MATCH($C82,A_MeasureExpiration!$E$14:$AS$14,0))) -> 64131.91541 | V82: =V$58*(1-INDEX(A_MeasureExpiration!$E$18:$AS$18,MATCH($C82,A_MeasureExpiration!$E$14:$AS$14,0))) -> 64114.61399 | W82: =W$58*(1-INDEX(A_MeasureExpiration!$E$18:$AS$18,MATCH($C82,A_MeasureExpiration!$E$14:$AS$14,0))) -> 64120.55043 | X82: =X$58*(1-INDEX(A_MeasureExpiration!$E$18:$AS$18,MATCH($C82,A_MeasureExpiration!$E$14:$AS$14,0))) -> 64145.64069 | Y82: =Y$58*(1-INDEX(A_MeasureExpiration!$E$18:$AS$18,MATCH($C82,A_MeasureExpiration!$E$14:$AS$14,0))) -> 64190.2252 | Z82: =Z$58*(1-INDEX(A_MeasureExpiration!$E$18:$AS$18,MATCH($C82,A_MeasureExpiration!$E$14:$AS$14,0))) -> 64256.27409 | AA82: =AA$58*(1-INDEX(A_MeasureExpiration!$E$18:$AS$18,MATCH($C82,A_MeasureExpiration!$E$14:$AS$14,0))) -> 64350.22686 | AB82: =AB$58*(1-INDEX(A_MeasureExpiration!$E$18:$AS$18,MATCH($C82,A_MeasureExpiration!$E$14:$AS$14,0))) -> 64467.79461 | AC82: =AC$58*(1-INDEX(A_MeasureExpiration!$E$18:$AS$18,MATCH($C82,A_MeasureExpiration!$E$14:$AS$14,0))) -> 64616.94231 | AD82: =AD$58*(1-INDEX(A_MeasureExpiration!$E$18:$AS$18,MATCH($C82,A_MeasureExpiration!$E$14:$AS$14,0))) -> 64799.56193 | AE82: =AE$58*(1-INDEX(A_MeasureExpiration!$E$18:$AS$18,MATCH($C82,A_MeasureExpiration!$E$14:$AS$14,0))) -> 65015.62108 | AF82: =AF$58*(1-INDEX(A_MeasureExpiration!$E$18:$AS$18,MATCH($C82,A_MeasureExpiration!$E$14:$AS$14,0))) -> 65279.14903 | AG82: =AG$58*(1-INDEX(A_MeasureExpiration!$E$18:$AS$18,MATCH($C82,A_MeasureExpiration!$E$14:$AS$14,0))) -> 65590.41784 | AH82: =AH$58*(1-INDEX(A_MeasureExpiration!$E$18:$AS$18,MATCH($C82,A_MeasureExpiration!$E$14:$AS$14,0))) -> 65953.02505 | AI82: =AI$58*(1-INDEX(A_MeasureExpiration!$E$18:$AS$18,MATCH($C82,A_MeasureExpiration!$E$14:$AS$14,0))) -> 66357.1301 | AJ82: =AJ$58*(1-INDEX(A_MeasureExpiration!$E$18:$AS$18,MATCH($C82,A_MeasureExpiration!$E$14:$AS$14,0))) -> 66793.59859 | AK82: =AK$58*(1-INDEX(A_MeasureExpiration!$E$18:$AS$18,MATCH($C82,A_MeasureExpiration!$E$14:$AS$14,0))) -> 67248.248 | AL82: =AL$58*(1-INDEX(A_MeasureExpiration!$E$18:$AS$18,MATCH($C82,A_MeasureExpiration!$E$14:$AS$14,0))) -> 67711.74979 | AM82: =AM$58*(1-INDEX(A_MeasureExpiration!$E$18:$AS$18,MATCH($C82,A_MeasureExpiration!$E$14:$AS$14,0))) -> 68182.01806 | AN82: =AN$58*(1-INDEX(A_MeasureExpiration!$E$18:$AS$18,MATCH($C82,A_MeasureExpiration!$E$14:$AS$14,0))) -> 68656.85733
C83: Year 19 | D83: MWh | F83: =F$58*(1-INDEX(A_MeasureExpiration!$E$18:$AS$18,MATCH($C83,A_MeasureExpiration!$E$14:$AS$14,0))) -> 5794.055604 | G83: =G$58*(1-INDEX(A_MeasureExpiration!$E$18:$AS$18,MATCH($C83,A_MeasureExpiration!$E$14:$AS$14,0))) -> 9150.163637 | H83: =H$58*(1-INDEX(A_MeasureExpiration!$E$18:$AS$18,MATCH($C83,A_MeasureExpiration!$E$14:$AS$14,0))) -> 12852.65357 | I83: =I$58*(1-INDEX(A_MeasureExpiration!$E$18:$AS$18,MATCH($C83,A_MeasureExpiration!$E$14:$AS$14,0))) -> 14662.50187 | J83: =J$58*(1-INDEX(A_MeasureExpiration!$E$18:$AS$18,MATCH($C83,A_MeasureExpiration!$E$14:$AS$14,0))) -> 15986.51284 | K83: =K$58*(1-INDEX(A_MeasureExpiration!$E$18:$AS$18,MATCH($C83,A_MeasureExpiration!$E$14:$AS$14,0))) -> 18199.36717 | L83: =L$58*(1-INDEX(A_MeasureExpiration!$E$18:$AS$18,MATCH($C83,A_MeasureExpiration!$E$14:$AS$14,0))) -> 15996.94716 | M83: =M$58*(1-INDEX(A_MeasureExpiration!$E$18:$AS$18,MATCH($C83,A_MeasureExpiration!$E$14:$AS$14,0))) -> 16479.27658 | N83: =N$58*(1-INDEX(A_MeasureExpiration!$E$18:$AS$18,MATCH($C83,A_MeasureExpiration!$E$14:$AS$14,0))) -> 15973.2559 | O83: =O$58*(1-INDEX(A_MeasureExpiration!$E$18:$AS$18,MATCH($C83,A_MeasureExpiration!$E$14:$AS$14,0))) -> 10335.86337 | P83: =P$58*(1-INDEX(A_MeasureExpiration!$E$18:$AS$18,MATCH($C83,A_MeasureExpiration!$E$14:$AS$14,0))) -> 12746.37554 | Q83: =Q$58*(1-INDEX(A_MeasureExpiration!$E$18:$AS$18,MATCH($C83,A_MeasureExpiration!$E$14:$AS$14,0))) -> 17458.90078 | R83: =R$58*(1-INDEX(A_MeasureExpiration!$E$18:$AS$18,MATCH($C83,A_MeasureExpiration!$E$14:$AS$14,0))) -> 28990.13427 | S83: =S$58*(1-INDEX(A_MeasureExpiration!$E$18:$AS$18,MATCH($C83,A_MeasureExpiration!$E$14:$AS$14,0))) -> 40114.5405 | T83: =T$58*(1-INDEX(A_MeasureExpiration!$E$18:$AS$18,MATCH($C83,A_MeasureExpiration!$E$14:$AS$14,0))) -> 51226.99128 | U83: =U$58*(1-INDEX(A_MeasureExpiration!$E$18:$AS$18,MATCH($C83,A_MeasureExpiration!$E$14:$AS$14,0))) -> 55255.56616 | V83: =V$58*(1-INDEX(A_MeasureExpiration!$E$18:$AS$18,MATCH($C83,A_MeasureExpiration!$E$14:$AS$14,0))) -> 55240.65939 | W83: =W$58*(1-INDEX(A_MeasureExpiration!$E$18:$AS$18,MATCH($C83,A_MeasureExpiration!$E$14:$AS$14,0))) -> 55245.77418 | X83: =X$58*(1-INDEX(A_MeasureExpiration!$E$18:$AS$18,MATCH($C83,A_MeasureExpiration!$E$14:$AS$14,0))) -> 55267.39175 | Y83: =Y$58*(1-INDEX(A_MeasureExpiration!$E$18:$AS$18,MATCH($C83,A_MeasureExpiration!$E$14:$AS$14,0))) -> 55305.80542 | Z83: =Z$58*(1-INDEX(A_MeasureExpiration!$E$18:$AS$18,MATCH($C83,A_MeasureExpiration!$E$14:$AS$14,0))) -> 55362.71265 | AA83: =AA$58*(1-INDEX(A_MeasureExpiration!$E$18:$AS$18,MATCH($C83,A_MeasureExpiration!$E$14:$AS$14,0))) -> 55443.66162 | AB83: =AB$58*(1-INDEX(A_MeasureExpiration!$E$18:$AS$18,MATCH($C83,A_MeasureExpiration!$E$14:$AS$14,0))) -> 55544.9571 | AC83: =AC$58*(1-INDEX(A_MeasureExpiration!$E$18:$AS$18,MATCH($C83,A_MeasureExpiration!$E$14:$AS$14,0))) -> 55673.46161 | AD83: =AD$58*(1-INDEX(A_MeasureExpiration!$E$18:$AS$18,MATCH($C83,A_MeasureExpiration!$E$14:$AS$14,0))) -> 55830.80528 | AE83: =AE$58*(1-INDEX(A_MeasureExpiration!$E$18:$AS$18,MATCH($C83,A_MeasureExpiration!$E$14:$AS$14,0))) -> 56016.96018 | AF83: =AF$58*(1-INDEX(A_MeasureExpiration!$E$18:$AS$18,MATCH($C83,A_MeasureExpiration!$E$14:$AS$14,0))) -> 56244.01384 | AG83: =AG$58*(1-INDEX(A_MeasureExpiration!$E$18:$AS$18,MATCH($C83,A_MeasureExpiration!$E$14:$AS$14,0))) -> 56512.20066 | AH83: =AH$58*(1-INDEX(A_MeasureExpiration!$E$18:$AS$18,MATCH($C83,A_MeasureExpiration!$E$14:$AS$14,0))) -> 56824.62025 | AI83: =AI$58*(1-INDEX(A_MeasureExpiration!$E$18:$AS$18,MATCH($C83,A_MeasureExpiration!$E$14:$AS$14,0))) -> 57172.79406 | AJ83: =AJ$58*(1-INDEX(A_MeasureExpiration!$E$18:$AS$18,MATCH($C83,A_MeasureExpiration!$E$14:$AS$14,0))) -> 57548.85196 | AK83: =AK$58*(1-INDEX(A_MeasureExpiration!$E$18:$AS$18,MATCH($C83,A_MeasureExpiration!$E$14:$AS$14,0))) -> 57940.5744 | AL83: =AL$58*(1-INDEX(A_MeasureExpiration!$E$18:$AS$18,MATCH($C83,A_MeasureExpiration!$E$14:$AS$14,0))) -> 58339.92399 | AM83: =AM$58*(1-INDEX(A_MeasureExpiration!$E$18:$AS$18,MATCH($C83,A_MeasureExpiration!$E$14:$AS$14,0))) -> 58745.10352 | AN83: =AN$58*(1-INDEX(A_MeasureExpiration!$E$18:$AS$18,MATCH($C83,A_MeasureExpiration!$E$14:$AS$14,0))) -> 59154.22139
C84: Year 20 | D84: MWh | F84: =F$58*(1-INDEX(A_MeasureExpiration!$E$18:$AS$18,MATCH($C84,A_MeasureExpiration!$E$14:$AS$14,0))) -> 2607.770452 | G84: =G$58*(1-INDEX(A_MeasureExpiration!$E$18:$AS$18,MATCH($C84,A_MeasureExpiration!$E$14:$AS$14,0))) -> 4118.277074 | H84: =H$58*(1-INDEX(A_MeasureExpiration!$E$18:$AS$18,MATCH($C84,A_MeasureExpiration!$E$14:$AS$14,0))) -> 5784.682183 | I84: =I$58*(1-INDEX(A_MeasureExpiration!$E$18:$AS$18,MATCH($C84,A_MeasureExpiration!$E$14:$AS$14,0))) -> 6599.25305 | J84: =J$58*(1-INDEX(A_MeasureExpiration!$E$18:$AS$18,MATCH($C84,A_MeasureExpiration!$E$14:$AS$14,0))) -> 7195.159776 | K84: =K$58*(1-INDEX(A_MeasureExpiration!$E$18:$AS$18,MATCH($C84,A_MeasureExpiration!$E$14:$AS$14,0))) -> 8191.114341 | L84: =L$58*(1-INDEX(A_MeasureExpiration!$E$18:$AS$18,MATCH($C84,A_MeasureExpiration!$E$14:$AS$14,0))) -> 7199.85602 | M84: =M$58*(1-INDEX(A_MeasureExpiration!$E$18:$AS$18,MATCH($C84,A_MeasureExpiration!$E$14:$AS$14,0))) -> 7416.941341 | N84: =N$58*(1-INDEX(A_MeasureExpiration!$E$18:$AS$18,MATCH($C84,A_MeasureExpiration!$E$14:$AS$14,0))) -> 7189.19313 | O84: =O$58*(1-INDEX(A_MeasureExpiration!$E$18:$AS$18,MATCH($C84,A_MeasureExpiration!$E$14:$AS$14,0))) -> 4651.933107 | P84: =P$58*(1-INDEX(A_MeasureExpiration!$E$18:$AS$18,MATCH($C84,A_MeasureExpiration!$E$14:$AS$14,0))) -> 5736.848898 | Q84: =Q$58*(1-INDEX(A_MeasureExpiration!$E$18:$AS$18,MATCH($C84,A_MeasureExpiration!$E$14:$AS$14,0))) -> 7857.847538 | R84: =R$58*(1-INDEX(A_MeasureExpiration!$E$18:$AS$18,MATCH($C84,A_MeasureExpiration!$E$14:$AS$14,0))) -> 13047.7891 | S84: =S$58*(1-INDEX(A_MeasureExpiration!$E$18:$AS$18,MATCH($C84,A_MeasureExpiration!$E$14:$AS$14,0))) -> 18054.62711 | T84: =T$58*(1-INDEX(A_MeasureExpiration!$E$18:$AS$18,MATCH($C84,A_MeasureExpiration!$E$14:$AS$14,0))) -> 23056.08426 | U84: =U$58*(1-INDEX(A_MeasureExpiration!$E$18:$AS$18,MATCH($C84,A_MeasureExpiration!$E$14:$AS$14,0))) -> 24869.25266 | V84: =V$58*(1-INDEX(A_MeasureExpiration!$E$18:$AS$18,MATCH($C84,A_MeasureExpiration!$E$14:$AS$14,0))) -> 24862.54346 | W84: =W$58*(1-INDEX(A_MeasureExpiration!$E$18:$AS$18,MATCH($C84,A_MeasureExpiration!$E$14:$AS$14,0))) -> 24864.84551 | X84: =X$58*(1-INDEX(A_MeasureExpiration!$E$18:$AS$18,MATCH($C84,A_MeasureExpiration!$E$14:$AS$14,0))) -> 24874.57508 | Y84: =Y$58*(1-INDEX(A_MeasureExpiration!$E$18:$AS$18,MATCH($C84,A_MeasureExpiration!$E$14:$AS$14,0))) -> 24891.86419 | Z84: =Z$58*(1-INDEX(A_MeasureExpiration!$E$18:$AS$18,MATCH($C84,A_MeasureExpiration!$E$14:$AS$14,0))) -> 24917.47681 | AA84: =AA$58*(1-INDEX(A_MeasureExpiration!$E$18:$AS$18,MATCH($C84,A_MeasureExpiration!$E$14:$AS$14,0))) -> 24953.91008 | AB84: =AB$58*(1-INDEX(A_MeasureExpiration!$E$18:$AS$18,MATCH($C84,A_MeasureExpiration!$E$14:$AS$14,0))) -> 24999.50083 | AC84: =AC$58*(1-INDEX(A_MeasureExpiration!$E$18:$AS$18,MATCH($C84,A_MeasureExpiration!$E$14:$AS$14,0))) -> 25057.33774 | AD84: =AD$58*(1-INDEX(A_MeasureExpiration!$E$18:$AS$18,MATCH($C84,A_MeasureExpiration!$E$14:$AS$14,0))) -> 25128.15448 | AE84: =AE$58*(1-INDEX(A_MeasureExpiration!$E$18:$AS$18,MATCH($C84,A_MeasureExpiration!$E$14:$AS$14,0))) -> 25211.9385 | AF84: =AF$58*(1-INDEX(A_MeasureExpiration!$E$18:$AS$18,MATCH($C84,A_MeasureExpiration!$E$14:$AS$14,0))) -> 25314.1301 | AG84: =AG$58*(1-INDEX(A_MeasureExpiration!$E$18:$AS$18,MATCH($C84,A_MeasureExpiration!$E$14:$AS$14,0))) -> 25434.83479 | AH84: =AH$58*(1-INDEX(A_MeasureExpiration!$E$18:$AS$18,MATCH($C84,A_MeasureExpiration!$E$14:$AS$14,0))) -> 25575.44762 | AI84: =AI$58*(1-INDEX(A_MeasureExpiration!$E$18:$AS$18,MATCH($C84,A_MeasureExpiration!$E$14:$AS$14,0))) -> 25732.1526 | AJ84: =AJ$58*(1-INDEX(A_MeasureExpiration!$E$18:$AS$18,MATCH($C84,A_MeasureExpiration!$E$14:$AS$14,0))) -> 25901.40757 | AK84: =AK$58*(1-INDEX(A_MeasureExpiration!$E$18:$AS$18,MATCH($C84,A_MeasureExpiration!$E$14:$AS$14,0))) -> 26077.71278 | AL84: =AL$58*(1-INDEX(A_MeasureExpiration!$E$18:$AS$18,MATCH($C84,A_MeasureExpiration!$E$14:$AS$14,0))) -> 26257.4508 | AM84: =AM$58*(1-INDEX(A_MeasureExpiration!$E$18:$AS$18,MATCH($C84,A_MeasureExpiration!$E$14:$AS$14,0))) -> 26439.81274 | AN84: =AN$58*(1-INDEX(A_MeasureExpiration!$E$18:$AS$18,MATCH($C84,A_MeasureExpiration!$E$14:$AS$14,0))) -> 26623.94723
C85: Year 21 | D85: MWh | F85: =F$58*(1-INDEX(A_MeasureExpiration!$E$18:$AS$18,MATCH($C85,A_MeasureExpiration!$E$14:$AS$14,0))) -> 2304.930546 | G85: =G$58*(1-INDEX(A_MeasureExpiration!$E$18:$AS$18,MATCH($C85,A_MeasureExpiration!$E$14:$AS$14,0))) -> 3640.022311 | H85: =H$58*(1-INDEX(A_MeasureExpiration!$E$18:$AS$18,MATCH($C85,A_MeasureExpiration!$E$14:$AS$14,0))) -> 5112.908099 | I85: =I$58*(1-INDEX(A_MeasureExpiration!$E$18:$AS$18,MATCH($C85,A_MeasureExpiration!$E$14:$AS$14,0))) -> 5832.883 | J85: =J$58*(1-INDEX(A_MeasureExpiration!$E$18:$AS$18,MATCH($C85,A_MeasureExpiration!$E$14:$AS$14,0))) -> 6359.587187 | K85: =K$58*(1-INDEX(A_MeasureExpiration!$E$18:$AS$18,MATCH($C85,A_MeasureExpiration!$E$14:$AS$14,0))) -> 7239.88173 | L85: =L$58*(1-INDEX(A_MeasureExpiration!$E$18:$AS$18,MATCH($C85,A_MeasureExpiration!$E$14:$AS$14,0))) -> 6363.738057 | M85: =M$58*(1-INDEX(A_MeasureExpiration!$E$18:$AS$18,MATCH($C85,A_MeasureExpiration!$E$14:$AS$14,0))) -> 6555.613299 | N85: =N$58*(1-INDEX(A_MeasureExpiration!$E$18:$AS$18,MATCH($C85,A_MeasureExpiration!$E$14:$AS$14,0))) -> 6354.313446 | O85: =O$58*(1-INDEX(A_MeasureExpiration!$E$18:$AS$18,MATCH($C85,A_MeasureExpiration!$E$14:$AS$14,0))) -> 4111.704966 | P85: =P$58*(1-INDEX(A_MeasureExpiration!$E$18:$AS$18,MATCH($C85,A_MeasureExpiration!$E$14:$AS$14,0))) -> 5070.629685 | Q85: =Q$58*(1-INDEX(A_MeasureExpiration!$E$18:$AS$18,MATCH($C85,A_MeasureExpiration!$E$14:$AS$14,0))) -> 6945.31714 | R85: =R$58*(1-INDEX(A_MeasureExpiration!$E$18:$AS$18,MATCH($C85,A_MeasureExpiration!$E$14:$AS$14,0))) -> 11532.55173 | S85: =S$58*(1-INDEX(A_MeasureExpiration!$E$18:$AS$18,MATCH($C85,A_MeasureExpiration!$E$14:$AS$14,0))) -> 15957.94657 | T85: =T$58*(1-INDEX(A_MeasureExpiration!$E$18:$AS$18,MATCH($C85,A_MeasureExpiration!$E$14:$AS$14,0))) -> 20378.58541 | U85: =U$58*(1-INDEX(A_MeasureExpiration!$E$18:$AS$18,MATCH($C85,A_MeasureExpiration!$E$14:$AS$14,0))) -> 21981.19089 | V85: =V$58*(1-INDEX(A_MeasureExpiration!$E$18:$AS$18,MATCH($C85,A_MeasureExpiration!$E$14:$AS$14,0))) -> 21975.26084 | W85: =W$58*(1-INDEX(A_MeasureExpiration!$E$18:$AS$18,MATCH($C85,A_MeasureExpiration!$E$14:$AS$14,0))) -> 21977.29555 | X85: =X$58*(1-INDEX(A_MeasureExpiration!$E$18:$AS$18,MATCH($C85,A_MeasureExpiration!$E$14:$AS$14,0))) -> 21985.89523 | Y85: =Y$58*(1-INDEX(A_MeasureExpiration!$E$18:$AS$18,MATCH($C85,A_MeasureExpiration!$E$14:$AS$14,0))) -> 22001.17655 | Z85: =Z$58*(1-INDEX(A_MeasureExpiration!$E$18:$AS$18,MATCH($C85,A_MeasureExpiration!$E$14:$AS$14,0))) -> 22023.81479 | AA85: =AA$58*(1-INDEX(A_MeasureExpiration!$E$18:$AS$18,MATCH($C85,A_MeasureExpiration!$E$14:$AS$14,0))) -> 22056.01706 | AB85: =AB$58*(1-INDEX(A_MeasureExpiration!$E$18:$AS$18,MATCH($C85,A_MeasureExpiration!$E$14:$AS$14,0))) -> 22096.31337 | AC85: =AC$58*(1-INDEX(A_MeasureExpiration!$E$18:$AS$18,MATCH($C85,A_MeasureExpiration!$E$14:$AS$14,0))) -> 22147.43369 | AD85: =AD$58*(1-INDEX(A_MeasureExpiration!$E$18:$AS$18,MATCH($C85,A_MeasureExpiration!$E$14:$AS$14,0))) -> 22210.0265 | AE85: =AE$58*(1-INDEX(A_MeasureExpiration!$E$18:$AS$18,MATCH($C85,A_MeasureExpiration!$E$14:$AS$14,0))) -> 22284.08069 | AF85: =AF$58*(1-INDEX(A_MeasureExpiration!$E$18:$AS$18,MATCH($C85,A_MeasureExpiration!$E$14:$AS$14,0))) -> 22374.4048 | AG85: =AG$58*(1-INDEX(A_MeasureExpiration!$E$18:$AS$18,MATCH($C85,A_MeasureExpiration!$E$14:$AS$14,0))) -> 22481.09207 | AH85: =AH$58*(1-INDEX(A_MeasureExpiration!$E$18:$AS$18,MATCH($C85,A_MeasureExpiration!$E$14:$AS$14,0))) -> 22605.37557 | AI85: =AI$58*(1-INDEX(A_MeasureExpiration!$E$18:$AS$18,MATCH($C85,A_MeasureExpiration!$E$14:$AS$14,0))) -> 22743.88243 | AJ85: =AJ$58*(1-INDEX(A_MeasureExpiration!$E$18:$AS$18,MATCH($C85,A_MeasureExpiration!$E$14:$AS$14,0))) -> 22893.48184 | AK85: =AK$58*(1-INDEX(A_MeasureExpiration!$E$18:$AS$18,MATCH($C85,A_MeasureExpiration!$E$14:$AS$14,0))) -> 23049.31276 | AL85: =AL$58*(1-INDEX(A_MeasureExpiration!$E$18:$AS$18,MATCH($C85,A_MeasureExpiration!$E$14:$AS$14,0))) -> 23208.17784 | AM85: =AM$58*(1-INDEX(A_MeasureExpiration!$E$18:$AS$18,MATCH($C85,A_MeasureExpiration!$E$14:$AS$14,0))) -> 23369.36212 | AN85: =AN$58*(1-INDEX(A_MeasureExpiration!$E$18:$AS$18,MATCH($C85,A_MeasureExpiration!$E$14:$AS$14,0))) -> 23532.1131
C86: Year 22 | D86: MWh | F86: =F$58*(1-INDEX(A_MeasureExpiration!$E$18:$AS$18,MATCH($C86,A_MeasureExpiration!$E$14:$AS$14,0))) -> 1797.226741 | G86: =G$58*(1-INDEX(A_MeasureExpiration!$E$18:$AS$18,MATCH($C86,A_MeasureExpiration!$E$14:$AS$14,0))) -> 2838.239724 | H86: =H$58*(1-INDEX(A_MeasureExpiration!$E$18:$AS$18,MATCH($C86,A_MeasureExpiration!$E$14:$AS$14,0))) -> 3986.695034 | I86: =I$58*(1-INDEX(A_MeasureExpiration!$E$18:$AS$18,MATCH($C86,A_MeasureExpiration!$E$14:$AS$14,0))) -> 4548.082078 | J86: =J$58*(1-INDEX(A_MeasureExpiration!$E$18:$AS$18,MATCH($C86,A_MeasureExpiration!$E$14:$AS$14,0))) -> 4958.769875 | K86: =K$58*(1-INDEX(A_MeasureExpiration!$E$18:$AS$18,MATCH($C86,A_MeasureExpiration!$E$14:$AS$14,0))) -> 5645.163179 | L86: =L$58*(1-INDEX(A_MeasureExpiration!$E$18:$AS$18,MATCH($C86,A_MeasureExpiration!$E$14:$AS$14,0))) -> 4962.006439 | M86: =M$58*(1-INDEX(A_MeasureExpiration!$E$18:$AS$18,MATCH($C86,A_MeasureExpiration!$E$14:$AS$14,0))) -> 5111.617592 | N86: =N$58*(1-INDEX(A_MeasureExpiration!$E$18:$AS$18,MATCH($C86,A_MeasureExpiration!$E$14:$AS$14,0))) -> 4954.657774 | O86: =O$58*(1-INDEX(A_MeasureExpiration!$E$18:$AS$18,MATCH($C86,A_MeasureExpiration!$E$14:$AS$14,0))) -> 3206.025505 | P86: =P$58*(1-INDEX(A_MeasureExpiration!$E$18:$AS$18,MATCH($C86,A_MeasureExpiration!$E$14:$AS$14,0))) -> 3953.729227 | Q86: =Q$58*(1-INDEX(A_MeasureExpiration!$E$18:$AS$18,MATCH($C86,A_MeasureExpiration!$E$14:$AS$14,0))) -> 5415.481917 | R86: =R$58*(1-INDEX(A_MeasureExpiration!$E$18:$AS$18,MATCH($C86,A_MeasureExpiration!$E$14:$AS$14,0))) -> 8992.292809 | S86: =S$58*(1-INDEX(A_MeasureExpiration!$E$18:$AS$18,MATCH($C86,A_MeasureExpiration!$E$14:$AS$14,0))) -> 12442.91215 | T86: =T$58*(1-INDEX(A_MeasureExpiration!$E$18:$AS$18,MATCH($C86,A_MeasureExpiration!$E$14:$AS$14,0))) -> 15889.82311 | U86: =U$58*(1-INDEX(A_MeasureExpiration!$E$18:$AS$18,MATCH($C86,A_MeasureExpiration!$E$14:$AS$14,0))) -> 17139.42494 | V86: =V$58*(1-INDEX(A_MeasureExpiration!$E$18:$AS$18,MATCH($C86,A_MeasureExpiration!$E$14:$AS$14,0))) -> 17134.80109 | W86: =W$58*(1-INDEX(A_MeasureExpiration!$E$18:$AS$18,MATCH($C86,A_MeasureExpiration!$E$14:$AS$14,0))) -> 17136.38762 | X86: =X$58*(1-INDEX(A_MeasureExpiration!$E$18:$AS$18,MATCH($C86,A_MeasureExpiration!$E$14:$AS$14,0))) -> 17143.09305 | Y86: =Y$58*(1-INDEX(A_MeasureExpiration!$E$18:$AS$18,MATCH($C86,A_MeasureExpiration!$E$14:$AS$14,0))) -> 17155.00838 | Z86: =Z$58*(1-INDEX(A_MeasureExpiration!$E$18:$AS$18,MATCH($C86,A_MeasureExpiration!$E$14:$AS$14,0))) -> 17172.66013 | AA86: =AA$58*(1-INDEX(A_MeasureExpiration!$E$18:$AS$18,MATCH($C86,A_MeasureExpiration!$E$14:$AS$14,0))) -> 17197.76925 | AB86: =AB$58*(1-INDEX(A_MeasureExpiration!$E$18:$AS$18,MATCH($C86,A_MeasureExpiration!$E$14:$AS$14,0))) -> 17229.18955 | AC86: =AC$58*(1-INDEX(A_MeasureExpiration!$E$18:$AS$18,MATCH($C86,A_MeasureExpiration!$E$14:$AS$14,0))) -> 17269.04967 | AD86: =AD$58*(1-INDEX(A_MeasureExpiration!$E$18:$AS$18,MATCH($C86,A_MeasureExpiration!$E$14:$AS$14,0))) -> 17317.85525 | AE86: =AE$58*(1-INDEX(A_MeasureExpiration!$E$18:$AS$18,MATCH($C86,A_MeasureExpiration!$E$14:$AS$14,0))) -> 17375.59763 | AF86: =AF$58*(1-INDEX(A_MeasureExpiration!$E$18:$AS$18,MATCH($C86,A_MeasureExpiration!$E$14:$AS$14,0))) -> 17446.02617 | AG86: =AG$58*(1-INDEX(A_MeasureExpiration!$E$18:$AS$18,MATCH($C86,A_MeasureExpiration!$E$14:$AS$14,0))) -> 17529.21359 | AH86: =AH$58*(1-INDEX(A_MeasureExpiration!$E$18:$AS$18,MATCH($C86,A_MeasureExpiration!$E$14:$AS$14,0))) -> 17626.12133 | AI86: =AI$58*(1-INDEX(A_MeasureExpiration!$E$18:$AS$18,MATCH($C86,A_MeasureExpiration!$E$14:$AS$14,0))) -> 17734.11948 | AJ86: =AJ$58*(1-INDEX(A_MeasureExpiration!$E$18:$AS$18,MATCH($C86,A_MeasureExpiration!$E$14:$AS$14,0))) -> 17850.76684 | AK86: =AK$58*(1-INDEX(A_MeasureExpiration!$E$18:$AS$18,MATCH($C86,A_MeasureExpiration!$E$14:$AS$14,0))) -> 17972.27311 | AL86: =AL$58*(1-INDEX(A_MeasureExpiration!$E$18:$AS$18,MATCH($C86,A_MeasureExpiration!$E$14:$AS$14,0))) -> 18096.14519 | AM86: =AM$58*(1-INDEX(A_MeasureExpiration!$E$18:$AS$18,MATCH($C86,A_MeasureExpiration!$E$14:$AS$14,0))) -> 18221.82564 | AN86: =AN$58*(1-INDEX(A_MeasureExpiration!$E$18:$AS$18,MATCH($C86,A_MeasureExpiration!$E$14:$AS$14,0))) -> 18348.7277
C87: Year 23 | D87: MWh | F87: =F$58*(1-INDEX(A_MeasureExpiration!$E$18:$AS$18,MATCH($C87,A_MeasureExpiration!$E$14:$AS$14,0))) -> 1684.724701 | G87: =G$58*(1-INDEX(A_MeasureExpiration!$E$18:$AS$18,MATCH($C87,A_MeasureExpiration!$E$14:$AS$14,0))) -> 2660.572792 | H87: =H$58*(1-INDEX(A_MeasureExpiration!$E$18:$AS$18,MATCH($C87,A_MeasureExpiration!$E$14:$AS$14,0))) -> 3737.137582 | I87: =I$58*(1-INDEX(A_MeasureExpiration!$E$18:$AS$18,MATCH($C87,A_MeasureExpiration!$E$14:$AS$14,0))) -> 4263.383157 | J87: =J$58*(1-INDEX(A_MeasureExpiration!$E$18:$AS$18,MATCH($C87,A_MeasureExpiration!$E$14:$AS$14,0))) -> 4648.362893 | K87: =K$58*(1-INDEX(A_MeasureExpiration!$E$18:$AS$18,MATCH($C87,A_MeasureExpiration!$E$14:$AS$14,0))) -> 5291.789639 | L87: =L$58*(1-INDEX(A_MeasureExpiration!$E$18:$AS$18,MATCH($C87,A_MeasureExpiration!$E$14:$AS$14,0))) -> 4651.396855 | M87: =M$58*(1-INDEX(A_MeasureExpiration!$E$18:$AS$18,MATCH($C87,A_MeasureExpiration!$E$14:$AS$14,0))) -> 4791.642713 | N87: =N$58*(1-INDEX(A_MeasureExpiration!$E$18:$AS$18,MATCH($C87,A_MeasureExpiration!$E$14:$AS$14,0))) -> 4644.508199 | O87: =O$58*(1-INDEX(A_MeasureExpiration!$E$18:$AS$18,MATCH($C87,A_MeasureExpiration!$E$14:$AS$14,0))) -> 3005.336074 | P87: =P$58*(1-INDEX(A_MeasureExpiration!$E$18:$AS$18,MATCH($C87,A_MeasureExpiration!$E$14:$AS$14,0))) -> 3706.235354 | Q87: =Q$58*(1-INDEX(A_MeasureExpiration!$E$18:$AS$18,MATCH($C87,A_MeasureExpiration!$E$14:$AS$14,0))) -> 5076.485867 | R87: =R$58*(1-INDEX(A_MeasureExpiration!$E$18:$AS$18,MATCH($C87,A_MeasureExpiration!$E$14:$AS$14,0))) -> 8429.397061 | S87: =S$58*(1-INDEX(A_MeasureExpiration!$E$18:$AS$18,MATCH($C87,A_MeasureExpiration!$E$14:$AS$14,0))) -> 11664.01599 | T87: =T$58*(1-INDEX(A_MeasureExpiration!$E$18:$AS$18,MATCH($C87,A_MeasureExpiration!$E$14:$AS$14,0))) -> 14895.15867 | U87: =U$58*(1-INDEX(A_MeasureExpiration!$E$18:$AS$18,MATCH($C87,A_MeasureExpiration!$E$14:$AS$14,0))) -> 16066.53845 | V87: =V$58*(1-INDEX(A_MeasureExpiration!$E$18:$AS$18,MATCH($C87,A_MeasureExpiration!$E$14:$AS$14,0))) -> 16062.20405 | W87: =W$58*(1-INDEX(A_MeasureExpiration!$E$18:$AS$18,MATCH($C87,A_MeasureExpiration!$E$14:$AS$14,0))) -> 16063.69126 | X87: =X$58*(1-INDEX(A_MeasureExpiration!$E$18:$AS$18,MATCH($C87,A_MeasureExpiration!$E$14:$AS$14,0))) -> 16069.97696 | Y87: =Y$58*(1-INDEX(A_MeasureExpiration!$E$18:$AS$18,MATCH($C87,A_MeasureExpiration!$E$14:$AS$14,0))) -> 16081.14641 | Z87: =Z$58*(1-INDEX(A_MeasureExpiration!$E$18:$AS$18,MATCH($C87,A_MeasureExpiration!$E$14:$AS$14,0))) -> 16097.6932 | AA87: =AA$58*(1-INDEX(A_MeasureExpiration!$E$18:$AS$18,MATCH($C87,A_MeasureExpiration!$E$14:$AS$14,0))) -> 16121.23056 | AB87: =AB$58*(1-INDEX(A_MeasureExpiration!$E$18:$AS$18,MATCH($C87,A_MeasureExpiration!$E$14:$AS$14,0))) -> 16150.68402 | AC87: =AC$58*(1-INDEX(A_MeasureExpiration!$E$18:$AS$18,MATCH($C87,A_MeasureExpiration!$E$14:$AS$14,0))) -> 16188.04899 | AD87: =AD$58*(1-INDEX(A_MeasureExpiration!$E$18:$AS$18,MATCH($C87,A_MeasureExpiration!$E$14:$AS$14,0))) -> 16233.79946 | AE87: =AE$58*(1-INDEX(A_MeasureExpiration!$E$18:$AS$18,MATCH($C87,A_MeasureExpiration!$E$14:$AS$14,0))) -> 16287.92731 | AF87: =AF$58*(1-INDEX(A_MeasureExpiration!$E$18:$AS$18,MATCH($C87,A_MeasureExpiration!$E$14:$AS$14,0))) -> 16353.94719 | AG87: =AG$58*(1-INDEX(A_MeasureExpiration!$E$18:$AS$18,MATCH($C87,A_MeasureExpiration!$E$14:$AS$14,0))) -> 16431.92728 | AH87: =AH$58*(1-INDEX(A_MeasureExpiration!$E$18:$AS$18,MATCH($C87,A_MeasureExpiration!$E$14:$AS$14,0))) -> 16522.76883 | AI87: =AI$58*(1-INDEX(A_MeasureExpiration!$E$18:$AS$18,MATCH($C87,A_MeasureExpiration!$E$14:$AS$14,0))) -> 16624.00656 | AJ87: =AJ$58*(1-INDEX(A_MeasureExpiration!$E$18:$AS$18,MATCH($C87,A_MeasureExpiration!$E$14:$AS$14,0))) -> 16733.35208 | AK87: =AK$58*(1-INDEX(A_MeasureExpiration!$E$18:$AS$18,MATCH($C87,A_MeasureExpiration!$E$14:$AS$14,0))) -> 16847.25235 | AL87: =AL$58*(1-INDEX(A_MeasureExpiration!$E$18:$AS$18,MATCH($C87,A_MeasureExpiration!$E$14:$AS$14,0))) -> 16963.37034 | AM87: =AM$58*(1-INDEX(A_MeasureExpiration!$E$18:$AS$18,MATCH($C87,A_MeasureExpiration!$E$14:$AS$14,0))) -> 17081.1835 | AN87: =AN$58*(1-INDEX(A_MeasureExpiration!$E$18:$AS$18,MATCH($C87,A_MeasureExpiration!$E$14:$AS$14,0))) -> 17200.14179
C88: Year 24 | D88: MWh | F88: =F$58*(1-INDEX(A_MeasureExpiration!$E$18:$AS$18,MATCH($C88,A_MeasureExpiration!$E$14:$AS$14,0))) -> 1460.182023 | G88: =G$58*(1-INDEX(A_MeasureExpiration!$E$18:$AS$18,MATCH($C88,A_MeasureExpiration!$E$14:$AS$14,0))) -> 2305.967592 | H88: =H$58*(1-INDEX(A_MeasureExpiration!$E$18:$AS$18,MATCH($C88,A_MeasureExpiration!$E$14:$AS$14,0))) -> 3239.046184 | I88: =I$58*(1-INDEX(A_MeasureExpiration!$E$18:$AS$18,MATCH($C88,A_MeasureExpiration!$E$14:$AS$14,0))) -> 3695.152946 | J88: =J$58*(1-INDEX(A_MeasureExpiration!$E$18:$AS$18,MATCH($C88,A_MeasureExpiration!$E$14:$AS$14,0))) -> 4028.821996 | K88: =K$58*(1-INDEX(A_MeasureExpiration!$E$18:$AS$18,MATCH($C88,A_MeasureExpiration!$E$14:$AS$14,0))) -> 4586.491844 | L88: =L$58*(1-INDEX(A_MeasureExpiration!$E$18:$AS$18,MATCH($C88,A_MeasureExpiration!$E$14:$AS$14,0))) -> 4031.451587 | M88: =M$58*(1-INDEX(A_MeasureExpiration!$E$18:$AS$18,MATCH($C88,A_MeasureExpiration!$E$14:$AS$14,0))) -> 4153.005263 | N88: =N$58*(1-INDEX(A_MeasureExpiration!$E$18:$AS$18,MATCH($C88,A_MeasureExpiration!$E$14:$AS$14,0))) -> 4025.481062 | O88: =O$58*(1-INDEX(A_MeasureExpiration!$E$18:$AS$18,MATCH($C88,A_MeasureExpiration!$E$14:$AS$14,0))) -> 2604.780298 | P88: =P$58*(1-INDEX(A_MeasureExpiration!$E$18:$AS$18,MATCH($C88,A_MeasureExpiration!$E$14:$AS$14,0))) -> 3212.262653 | Q88: =Q$58*(1-INDEX(A_MeasureExpiration!$E$18:$AS$18,MATCH($C88,A_MeasureExpiration!$E$14:$AS$14,0))) -> 4399.884087 | R88: =R$58*(1-INDEX(A_MeasureExpiration!$E$18:$AS$18,MATCH($C88,A_MeasureExpiration!$E$14:$AS$14,0))) -> 7305.914162 | S88: =S$58*(1-INDEX(A_MeasureExpiration!$E$18:$AS$18,MATCH($C88,A_MeasureExpiration!$E$14:$AS$14,0))) -> 10109.41815 | T88: =T$58*(1-INDEX(A_MeasureExpiration!$E$18:$AS$18,MATCH($C88,A_MeasureExpiration!$E$14:$AS$14,0))) -> 12909.9092 | U88: =U$58*(1-INDEX(A_MeasureExpiration!$E$18:$AS$18,MATCH($C88,A_MeasureExpiration!$E$14:$AS$14,0))) -> 13925.1657 | V88: =V$58*(1-INDEX(A_MeasureExpiration!$E$18:$AS$18,MATCH($C88,A_MeasureExpiration!$E$14:$AS$14,0))) -> 13921.40899 | W88: =W$58*(1-INDEX(A_MeasureExpiration!$E$18:$AS$18,MATCH($C88,A_MeasureExpiration!$E$14:$AS$14,0))) -> 13922.69799 | X88: =X$58*(1-INDEX(A_MeasureExpiration!$E$18:$AS$18,MATCH($C88,A_MeasureExpiration!$E$14:$AS$14,0))) -> 13928.14591 | Y88: =Y$58*(1-INDEX(A_MeasureExpiration!$E$18:$AS$18,MATCH($C88,A_MeasureExpiration!$E$14:$AS$14,0))) -> 13937.82669 | Z88: =Z$58*(1-INDEX(A_MeasureExpiration!$E$18:$AS$18,MATCH($C88,A_MeasureExpiration!$E$14:$AS$14,0))) -> 13952.1681 | AA88: =AA$58*(1-INDEX(A_MeasureExpiration!$E$18:$AS$18,MATCH($C88,A_MeasureExpiration!$E$14:$AS$14,0))) -> 13972.56836 | AB88: =AB$58*(1-INDEX(A_MeasureExpiration!$E$18:$AS$18,MATCH($C88,A_MeasureExpiration!$E$14:$AS$14,0))) -> 13998.09621 | AC88: =AC$58*(1-INDEX(A_MeasureExpiration!$E$18:$AS$18,MATCH($C88,A_MeasureExpiration!$E$14:$AS$14,0))) -> 14030.48113 | AD88: =AD$58*(1-INDEX(A_MeasureExpiration!$E$18:$AS$18,MATCH($C88,A_MeasureExpiration!$E$14:$AS$14,0))) -> 14070.1339 | AE88: =AE$58*(1-INDEX(A_MeasureExpiration!$E$18:$AS$18,MATCH($C88,A_MeasureExpiration!$E$14:$AS$14,0))) -> 14117.04751 | AF88: =AF$58*(1-INDEX(A_MeasureExpiration!$E$18:$AS$18,MATCH($C88,A_MeasureExpiration!$E$14:$AS$14,0))) -> 14174.26817 | AG88: =AG$58*(1-INDEX(A_MeasureExpiration!$E$18:$AS$18,MATCH($C88,A_MeasureExpiration!$E$14:$AS$14,0))) -> 14241.85495 | AH88: =AH$58*(1-INDEX(A_MeasureExpiration!$E$18:$AS$18,MATCH($C88,A_MeasureExpiration!$E$14:$AS$14,0))) -> 14320.589 | AI88: =AI$58*(1-INDEX(A_MeasureExpiration!$E$18:$AS$18,MATCH($C88,A_MeasureExpiration!$E$14:$AS$14,0))) -> 14408.33361 | AJ88: =AJ$58*(1-INDEX(A_MeasureExpiration!$E$18:$AS$18,MATCH($C88,A_MeasureExpiration!$E$14:$AS$14,0))) -> 14503.10539 | AK88: =AK$58*(1-INDEX(A_MeasureExpiration!$E$18:$AS$18,MATCH($C88,A_MeasureExpiration!$E$14:$AS$14,0))) -> 14601.82485 | AL88: =AL$58*(1-INDEX(A_MeasureExpiration!$E$18:$AS$18,MATCH($C88,A_MeasureExpiration!$E$14:$AS$14,0))) -> 14702.46647 | AM88: =AM$58*(1-INDEX(A_MeasureExpiration!$E$18:$AS$18,MATCH($C88,A_MeasureExpiration!$E$14:$AS$14,0))) -> 14804.5773 | AN88: =AN$58*(1-INDEX(A_MeasureExpiration!$E$18:$AS$18,MATCH($C88,A_MeasureExpiration!$E$14:$AS$14,0))) -> 14907.68066
C89: Year 25 | D89: MWh | F89: =F$58*(1-INDEX(A_MeasureExpiration!$E$18:$AS$18,MATCH($C89,A_MeasureExpiration!$E$14:$AS$14,0))) -> 940.3550476 | G89: =G$58*(1-INDEX(A_MeasureExpiration!$E$18:$AS$18,MATCH($C89,A_MeasureExpiration!$E$14:$AS$14,0))) -> 1485.039694 | H89: =H$58*(1-INDEX(A_MeasureExpiration!$E$18:$AS$18,MATCH($C89,A_MeasureExpiration!$E$14:$AS$14,0))) -> 2085.940918 | I89: =I$58*(1-INDEX(A_MeasureExpiration!$E$18:$AS$18,MATCH($C89,A_MeasureExpiration!$E$14:$AS$14,0))) -> 2379.672993 | J89: =J$58*(1-INDEX(A_MeasureExpiration!$E$18:$AS$18,MATCH($C89,A_MeasureExpiration!$E$14:$AS$14,0))) -> 2594.555364 | K89: =K$58*(1-INDEX(A_MeasureExpiration!$E$18:$AS$18,MATCH($C89,A_MeasureExpiration!$E$14:$AS$14,0))) -> 2953.693915 | L89: =L$58*(1-INDEX(A_MeasureExpiration!$E$18:$AS$18,MATCH($C89,A_MeasureExpiration!$E$14:$AS$14,0))) -> 2596.248817 | M89: =M$58*(1-INDEX(A_MeasureExpiration!$E$18:$AS$18,MATCH($C89,A_MeasureExpiration!$E$14:$AS$14,0))) -> 2674.529203 | N89: =N$58*(1-INDEX(A_MeasureExpiration!$E$18:$AS$18,MATCH($C89,A_MeasureExpiration!$E$14:$AS$14,0))) -> 2592.403808 | O89: =O$58*(1-INDEX(A_MeasureExpiration!$E$18:$AS$18,MATCH($C89,A_MeasureExpiration!$E$14:$AS$14,0))) -> 1677.474632 | P89: =P$58*(1-INDEX(A_MeasureExpiration!$E$18:$AS$18,MATCH($C89,A_MeasureExpiration!$E$14:$AS$14,0))) -> 2068.692363 | Q89: =Q$58*(1-INDEX(A_MeasureExpiration!$E$18:$AS$18,MATCH($C89,A_MeasureExpiration!$E$14:$AS$14,0))) -> 2833.518798 | R89: =R$58*(1-INDEX(A_MeasureExpiration!$E$18:$AS$18,MATCH($C89,A_MeasureExpiration!$E$14:$AS$14,0))) -> 4704.997838 | S89: =S$58*(1-INDEX(A_MeasureExpiration!$E$18:$AS$18,MATCH($C89,A_MeasureExpiration!$E$14:$AS$14,0))) -> 6510.45023 | T89: =T$58*(1-INDEX(A_MeasureExpiration!$E$18:$AS$18,MATCH($C89,A_MeasureExpiration!$E$14:$AS$14,0))) -> 8313.962295 | U89: =U$58*(1-INDEX(A_MeasureExpiration!$E$18:$AS$18,MATCH($C89,A_MeasureExpiration!$E$14:$AS$14,0))) -> 8967.785968 | V89: =V$58*(1-INDEX(A_MeasureExpiration!$E$18:$AS$18,MATCH($C89,A_MeasureExpiration!$E$14:$AS$14,0))) -> 8965.366652 | W89: =W$58*(1-INDEX(A_MeasureExpiration!$E$18:$AS$18,MATCH($C89,A_MeasureExpiration!$E$14:$AS$14,0))) -> 8966.196765 | X89: =X$58*(1-INDEX(A_MeasureExpiration!$E$18:$AS$18,MATCH($C89,A_MeasureExpiration!$E$14:$AS$14,0))) -> 8969.705222 | Y89: =Y$58*(1-INDEX(A_MeasureExpiration!$E$18:$AS$18,MATCH($C89,A_MeasureExpiration!$E$14:$AS$14,0))) -> 8975.939627 | Z89: =Z$58*(1-INDEX(A_MeasureExpiration!$E$18:$AS$18,MATCH($C89,A_MeasureExpiration!$E$14:$AS$14,0))) -> 8985.175471 | AA89: =AA$58*(1-INDEX(A_MeasureExpiration!$E$18:$AS$18,MATCH($C89,A_MeasureExpiration!$E$14:$AS$14,0))) -> 8998.313208 | AB89: =AB$58*(1-INDEX(A_MeasureExpiration!$E$18:$AS$18,MATCH($C89,A_MeasureExpiration!$E$14:$AS$14,0))) -> 9014.753111 | AC89: =AC$58*(1-INDEX(A_MeasureExpiration!$E$18:$AS$18,MATCH($C89,A_MeasureExpiration!$E$14:$AS$14,0))) -> 9035.608946 | AD89: =AD$58*(1-INDEX(A_MeasureExpiration!$E$18:$AS$18,MATCH($C89,A_MeasureExpiration!$E$14:$AS$14,0))) -> 9061.145275 | AE89: =AE$58*(1-INDEX(A_MeasureExpiration!$E$18:$AS$18,MATCH($C89,A_MeasureExpiration!$E$14:$AS$14,0))) -> 9091.357567 | AF89: =AF$58*(1-INDEX(A_MeasureExpiration!$E$18:$AS$18,MATCH($C89,A_MeasureExpiration!$E$14:$AS$14,0))) -> 9128.207585 | AG89: =AG$58*(1-INDEX(A_MeasureExpiration!$E$18:$AS$18,MATCH($C89,A_MeasureExpiration!$E$14:$AS$14,0))) -> 9171.733372 | AH89: =AH$58*(1-INDEX(A_MeasureExpiration!$E$18:$AS$18,MATCH($C89,A_MeasureExpiration!$E$14:$AS$14,0))) -> 9222.437984 | AI89: =AI$58*(1-INDEX(A_MeasureExpiration!$E$18:$AS$18,MATCH($C89,A_MeasureExpiration!$E$14:$AS$14,0))) -> 9278.945381 | AJ89: =AJ$58*(1-INDEX(A_MeasureExpiration!$E$18:$AS$18,MATCH($C89,A_MeasureExpiration!$E$14:$AS$14,0))) -> 9339.978268 | AK89: =AK$58*(1-INDEX(A_MeasureExpiration!$E$18:$AS$18,MATCH($C89,A_MeasureExpiration!$E$14:$AS$14,0))) -> 9403.553456 | AL89: =AL$58*(1-INDEX(A_MeasureExpiration!$E$18:$AS$18,MATCH($C89,A_MeasureExpiration!$E$14:$AS$14,0))) -> 9468.366503 | AM89: =AM$58*(1-INDEX(A_MeasureExpiration!$E$18:$AS$18,MATCH($C89,A_MeasureExpiration!$E$14:$AS$14,0))) -> 9534.125731 | AN89: =AN$58*(1-INDEX(A_MeasureExpiration!$E$18:$AS$18,MATCH($C89,A_MeasureExpiration!$E$14:$AS$14,0))) -> 9600.524136
